Workbook

Sheet Change Log (hidden)
A1: Date | B1: Update
A2: 2024-01-09 | B2: Updated "Travel Time Increase Per Vehicle" in Travel Time Cost for Construction of New Facility (Build) from (E186/G186)-(E186/F186) to (E186/F186)-E186/G186)
A3: 2024-01-09 | B3: Updated the Major Assumption Key and Benefits Summary after adding the Change Log spreadsheet
A4: 2024-01-09 | B4: Add "Discount Rate for CO2 Emission Damages" in the Major Assumption Key, as this rate is referenced in the calculation for emission reduction
A5: 2024-01-09 | B5: Utilize Excel functions to dynamically link and update all headers containing discount year or discount rate. This way, changes in the year or rate will automatically reflect across the document
A6: 2024-01-09 | B6: Change the calculation of Planning Horizon End Year in the Major Assumption Key, so it's based on project open year and operating period
A7: 2024-01-09 | B7: Updated the calculation of "Useful Life Remaining at the End of Planning Horizon" in Useful Life, it is now based on the project open year and useful life of asset
A8: 2024-01-09 | B8: Updated the calculation for D60-D100 in all SOGR supporting tabs to show construction phase and no-build status before construction
A9: 2024-01-10 | B9: Updated the "Cost Summary" to automate the calculations for norminal costs
A10: 2024-01-10 | B10: Corrected formulas under "Travel Time Cost for Rehab (No-build)" and "Travel Time Cost for Construction of New Facility - Calculation" in SOGR Supporting CP-CP
A11: 2024-01-10 | B11: Updated the calculation for maintenance costs in all SOGR supporting tabs to capture maintenance costs within planning horizon prior to construction
A12: 2024-01-10 | B12: Tables for Memo is reformatted
A13: 2024-01-15 | B13: Corrected the formulas for calculating normal costs in the Cost Summary tab
A14: 2024-01-16 | B14: Corrected the formula for calcuting the existing passengers for the build scenario in the VOTT Supporting - Transit TSP
A15: 2024-01-16 | B15: Corrected the formula in the step 1a under the no build for Emission Reduction (Metric Ton)
A16: 2024-01-17 | B16: Updated the formulas in the Auto Idling Benefit - Fuel and Auto Idling Env. Benefits tabs to only show the results between project open year and planning horizon end year
A17: 2024-01-17 | B17: Updated the years in row 5 in all SOGR supporting tabs to 2022 and 2042
A18: 2024-01-18 | B18: Made a corrrection to the "Step 1B Calculation" under the build scenario in the "Auto Idling Env. Benefits" tab
A19: 2024-01-22 | B19: Corrected the formula for calculting the "Inflation Rate" in the "Major Assumption Key"
A20: 2024-01-23 | B20: Updated the reference in cell F34 in the "Tables for Memo" tab
A21: 2024-02-12 | B21: Updated the "Fuel Cost Per Gallon in Texas" in the Auto Idling Benefit - Fuel tab
A22: 2024-02-12 | B22: Updated "Average Transit Trip Length (Miles)" in the VMT Reduction Supporting tab
A23: 2024-02-12 | B23: Updated the crash data range to 2019-2023 in Safety Supproting tabs

Sheet Tables for Memo HGAC
A1: BCA Summary
A2: BCA Summary
A3: Scenario | B3: =_xlfn.CONCAT("$",'[1]Major Assumption Key'!B7," ","Real Dollars") -> $2022 Real Dollars | C3: =_xlfn.CONCAT("$",'[1]Major Assumption Key'!B7," ","Real Dollars") -> $2022 Real Dollars
B4: No Discount | C4: =_xlfn.CONCAT(TEXT('[1]Major Assumption Key'!B8,"0.0%")," Discount") -> 3.1% Discount
A5: Benefits | B5: ='BCA Summary'!H14 -> 549088000 | C5: ='BCA Summary'!I14 -> 299548000
A6: Costs | B6: ='BCA Summary'!H15 -> 179652000 | C6: ='BCA Summary'!I15 -> 149273000
A7: BCA | B7: ='BCA Summary'!H16 -> 3.1 | C7: ='BCA Summary'!I16 -> 2
A9: Project Design, Env. and Capital Costs
A10: Project Planning, Design, Env. and Capital Costs
A11: Scenario | B11: =_xlfn.CONCAT("Nominal $",'[1]Major Assumption Key'!B7,, " ","No Discount") -> Nominal $2022 No Discount | C11: =_xlfn.CONCAT("Real $"," ",'[1]Major Assumption Key'!B7," No Discount") -> Real $ 2022 No Discount | D11: =_xlfn.CONCAT(TEXT('[1]Major Assumption Key'!B8,"0.0%")," Discount"," ",'[1]Major Assumption Key'!B7) -> 3.1% Discount 2022
A12: Planning | B12: ='Cost Summary'!I46 -> 815000 | C12: ='Cost Summary'!J46 -> 771000 | D12: ='Cost Summary'!K46 -> 725000
A13: Design/Environmental | B13: ='Cost Summary'!L46 -> 25014000 | C13: ='Cost Summary'!M46 -> 22715000 | D13: ='Cost Summary'!N46 -> 20415000
A14: Construction | B14: ='Cost Summary'!O46 -> 186835000 | C14: ='Cost Summary'!P46 -> 156166000 | D14: ='Cost Summary'!Q46 -> 128132000
A15: Project Capital Costs | B15: ='Cost Summary'!U46 -> 212663000 | C15: ='Cost Summary'!V46 -> 179652000 | D15: ='Cost Summary'!W46 -> 149273000
A17: Average Daily Traffic Volume
A18: Segment | B18: 2031 | C18: 2050 | D18: CAGR | F18: This table is dynamic! Check Supporting SOGR tabs, including AP-AP, AP-CP, CP-CP
A19: Aldine Westfield Rd- Intercontinental Park Blvd -> Little York Rd | B19: ='SOGR Supporting AP-CP'!B25 -> 14036.33009 | C19: ='SOGR Supporting AP-CP'!B44 -> 19323.4638 | D19: ='SOGR Supporting AP-CP'!E6 -> 0.01696712998
A21: Average Daily Vehicle Miles Traveled (Without Modal Diversion) | M21: 2024 | N21: 12476.85594
A22: Segment | B22: Corridor Length Miles | C22: 2031 | D22: 2050 | F22: 2023 | G22: 2024 | H22: 2025 | I22: 2026 | J22: 2027 | K22: 2028 | M22: 2025 | N22: 12688.55238
A23: Aldine Westfield Rd- Intercontinental Park Blvd -> Little York Rd | B23: ='SOGR Supporting AP-AP'!C108 -> 4.6 | C23: =B$23*B$19 -> 64567.11843 | D23: =B$23*C$19 -> 88887.9335 | F23: ='SOGR Supporting AP-CP'!B17*$B$23 -> 56435.9807 | G23: ='SOGR Supporting AP-CP'!B18*$B$23 -> 57393.53732 | H23: ='SOGR Supporting AP-CP'!B19*$B$23 -> 58367.34093 | I23: ='SOGR Supporting AP-CP'!B20*$B$23 -> 59357.66719 | J23: ='SOGR Supporting AP-CP'!B21*$B$23 -> 60364.79644 | K23: ='SOGR Supporting AP-CP'!B22*$B$23 -> 61389.01379 | M23: 2026 | N23: 12903.84069
F24: =C24*(1+'[1]SOGR Supporting AP-CP'!$E$6) -> 0 | G24: =F24*(1+'[1]SOGR Supporting AP-CP'!$E$6) -> 0 | H24: =G24*(1+'[1]SOGR Supporting AP-CP'!$E$6) -> 0 | I24: =H24*(1+'[1]SOGR Supporting AP-CP'!$E$6) -> 0 | J24: =I24*(1+'[1]SOGR Supporting AP-CP'!$E$6) -> 0 | K24: =J24*(1+'[1]SOGR Supporting AP-CP'!$E$6) -> 0 | M24: 2027 | N24: 13122.78184
M25: 2031 | N25: 14036.33009
A26: Daily VMT Reduced by Modal Diversion | M26: 2032 | N26: 14274.48633
A27: Mode | B27: Daily Induced Demand 2031 | C27: Daily Induced Demand 2050 | D27: Daily VMT Reduced 2031 | E27: Daily VMT Reduced 2050 | F27: 0.86 | G27: National Avg for Walking distance | M27: 2033 | N27: 14516.6834
A28: Pedestrian | B28: ='Pedestrian Demand'!D54 -> 89.99914826 | C28: ='Pedestrian Demand'!D73 -> 123.8995715 | D28: =F$27*B28 -> 77.3992675 | E28: =F$27*C28 -> 106.5536315 | F28: 2.36 | G28: National Avg for Bike distance | M28: 2034 | N28: 14762.98985
A29: Bike | B29: ='Bike Demand'!D33 -> 186.7482326 | C29: ='Bike Demand'!D52 -> 257.0916108 | D29: =F$28*B29 -> 440.725829 | E29: =F$27*C29 -> 221.0987853 | M29: 2035 | N29: 15013.47542
A30: Total | B30: =B28+B29 -> 276.7473809 | C30: =C28+C29 -> 380.9911823 | D30: =D28+D29 -> 518.1250965 | E30: =E28+E29 -> 327.6524168 | M30: 2036 | N30: 15268.21101
M31: 2037 | N31: 15527.26873
A32: Average Daily Vehicle Miles Traveled (With Modal Diversion) | M32: 2038 | N32: 15790.72191
A33: Segment | B33: Corridor Length | C33: 2031 | D33: 2050 | M33: 2039 | N33: 16058.64515
B34: Miles | M34: 2040 | N34: 16331.11426
A35: Aldine Westfield Rd- Intercontinental Park Blvd -> Little York Rd | B35: 4.6 | C35: =C23-D30 -> 64048.99333 | D35: =D23-E30 -> 88560.28108 | M35: 2041 | N35: 16608.2064
M36: 2042 | N36: 16890
M37: 2043 | N37: 17176.57483
M38: 2044 | N38: 17468.012
M39: 2045 | N39: 17764.39403
A40: Useful Life Monetized Benefits | M40: 2046 | N40: 18065.80482
A41: Useful Life Calculation | B41: No Build | C41: Build | M41: 2047 | N41: 18372.32967
A42: Construction Cost | B42: ='Useful Life'!J48 -> 0 | C42: ='Useful Life'!G48 -> 156166000 | M42: 2048 | N42: 18684.05538
A43: (x) Remaining Life at End of Planning Horizon | C43: 0.6 | M43: 2049 | N43: 19001.07018
A44: Total in Real $ | B44: ='Useful Life'!Q48 -> 0 | C44: ='Useful Life'!R48 -> 93700000 | M44: 2050 | N44: 19323.4638
A45: Total Monetized Benefit Real $ (No Build – Build) | B45: ='Useful Life'!S48 -> 93700000
A46: Total Monetized Benefit Discounted @ 3.1% (No Build – Build) | B46: ='Useful Life'!T48 -> 39856000
A48: State of Good Repair
A49: State of Good Repair Calculation | B49: No Build | C49: Build | F49: State of Good Repair Calculation | G49: No Build | H49: Build
A50: On-Going Maintenance Cost | B50: ='SOGR Supporting AP-CP'!E55 -> 1519294.496 | C50: ='SOGR Supporting AP-CP'!E101 -> 439751.4944 | F50: On-Going Maintenance Cost | G50: =MROUND(B50,100) -> 1519300 | H50: =MROUND(C50,100) -> 439800 | J50: =G50+G51+G52+G53+G54 -> 95587600 | K50: =H50+H51+H52+H53+H54 -> 35536900
A51: Rehab Cost | B51: ='SOGR Supporting AP-CP'!F55 -> 15492261.04 | C51: ='SOGR Supporting AP-CP'!F101 -> 0 | F51: Rehab Cost | G51: =MROUND(B51,100) -> 15492300 | H51: =MROUND(C51,100) -> 0
A52: Residual Life of Rehab | B52: ='SOGR Supporting AP-CP'!G55 -> -2526214.951 | C52: ='SOGR Supporting AP-CP'!G101 -> 0 | F52: Residual Life of Rehab | G52: -2526200 | H52: =MROUND(C52,100) -> 0
A53: User Costs (Value of Travel Time) | B53: ='SOGR Supporting AP-CP'!H55 -> 74458298.11 | C53: ='SOGR Supporting AP-CP'!H101 -> 34317651.49 | F53: User Costs (Value of Travel Time) | G53: =MROUND(B53,100) -> 74458300 | H53: =MROUND(C53,100) -> 34317700
A54: Vehicle Wear and Tear | B54: ='SOGR Supporting AP-CP'!I55+'SOGR Supporting AP-CP'!J55 -> 6643921.396 | C54: ='SOGR Supporting AP-CP'!I101+'SOGR Supporting AP-CP'!J101 -> 779405.1191 | F54: Vehicle Wear and Tear | G54: =MROUND(B54,100) -> 6643900 | H54: =MROUND(C54,100) -> 779400
A55: Total in Real $ | B55: ='State of Good Repair AP-CP'!L48 -> 95587560.09 | C55: ='State of Good Repair AP-CP'!R48 -> 35536808.1 | F55: Total in Real $ | G55: =MROUND(B55,100) -> 95587600 | H55: =MROUND(C55,100) -> 35536800
A56: Total Monetized Benefit Real $ (No Build – Build) | B56: ='State of Good Repair AP-CP'!S48 -> 60050751.98 | F56: Total Monetized Benefit Real $ (No Build – Build) | G56: =MROUND(B56,100) -> 60050800
A57: Total Monetized Benefit Discounted @ 3.1% (No Build – Build) | B57: ='State of Good Repair AP-CP'!T48 -> 32021074.37 | F57: Total Monetized Benefit Discounted @ 3.1% (No Build – Build) | G57: =MROUND(B57,100) -> 32021100
H61: 60051000 | I61: 32021000
A62: Safety - Auto Calculations | B62: No Build | C62: Build
A63: ='Roadway Safety'!A19 -> Countermeasure #1: 108 Improve Traffic Signals | B63: ='Roadway Safety'!G48 -> 46524800 | C63: ='Roadway Safety'!R48 -> 35358848
A64: ='Roadway Safety'!A20 -> Countermeasure #2: 108, 110, 407 Improve Traffic Signals, Install Pedestrian Signal, Install Sidewalks | B64: ='Roadway Safety'!H48 -> 4681400 | C64: ='Roadway Safety'!S48 -> 2715212
A65: ='Roadway Safety'!A21 -> Countermeasure #3: 108, 131, 407 Improve Traffic Signals, Improve Pedestrian Signal, Install Sidewalks | B65: ='Roadway Safety'!I48 -> 6181200 | C65: ='Roadway Safety'!T48 -> 3832344
A66: ='Roadway Safety'!A22 -> Countermeasure #4: 203, 407 Install Raised Median, Install Sidewalks | B66: ='Roadway Safety'!J48 -> 10774000 | C66: ='Roadway Safety'!U48 -> 6787620
A67: ='Roadway Safety'!A23 -> Countermeasure #5: 209, 304 Safety Treat Fixed Objects, Safety Lighting | B67: ='Roadway Safety'!K48 -> 202435600 | C67: ='Roadway Safety'!V48 -> 56681968
A68: ='Roadway Safety'!A24 -> Countermeasure #6: 209, 517 Safety Treat Fixed Objects, Add Through Lane | B68: ='Roadway Safety'!L48 -> 35191600 | C68: ='Roadway Safety'!W48 -> 12668976
A69: ='Roadway Safety'!A25 -> Countermeasure #7: 521 Add Right Turn Lane | B69: ='Roadway Safety'!M48 -> 11968800 | C69: ='Roadway Safety'!X48 -> 8976600
A70: ='Roadway Safety'!A26 -> Countermeasure #8: 522 Lengthen Right Turn Lane | B70: ='Roadway Safety'!N48 -> 1599000 | C70: ='Roadway Safety'!Y48 -> 1199250
A71: ='Roadway Safety'!A27 -> Countermeasure #9: 538 Convert 2 Lane Facility to 4 Lane Divided | B71: ='Roadway Safety'!O48 -> 12549600 | C71: ='Roadway Safety'!Z48 -> 9412200
A72: ='Roadway Safety'!A28 -> Countermeasure #10: 401 Install Pavement Markings | B72: ='Roadway Safety'!P48 -> 54087200 | C72: ='Roadway Safety'!AA48 -> 40565400
A73: Total in Real $ | B73: ='Roadway Safety'!Q48 -> 385993200 | C73: ='Roadway Safety'!AB48 -> 178198418
A74: Total Monetized Benefit Real $ (No Build – Build) | B74: ='Roadway Safety'!AH48 -> 207795000
A75: Total Monetized Benefit Discounted @ 3.1% (No Build – Build) | B75: ='Roadway Safety'!AI48 -> 123629000
A78: Safety – Pedestrian | B78: No Build | C78: Build
A79: ='Pedestrian Safety'!A19 -> 407 Install Sidewalks | B79: ='Pedestrian Safety'!G48 -> 658600 | C79: ='Pedestrian Safety'!L48 -> 230510
A80: Total in Real $ | B80: ='Pedestrian Safety'!K48 -> 658600 | C80: ='Pedestrian Safety'!P48 -> 230510
A81: Total Monetized Benefit Real $ (No Build – Build) | B81: ='Pedestrian Safety'!V48 -> 428000
A82: Total Monetized Benefit Discounted @ 3.1% (No Build – Build) | B82: ='Pedestrian Safety'!W48 -> 285000
A84: Safety – Bike | B84: No Build | C84: Build
A85: ='Bike Safety'!A19 -> Buffered bicycle lane on 2-lane roads | B85: ='Bike Safety'!G48 -> 466800 | C85: ='Bike Safety'!M48 -> 172716
A86: Total in Real $ | B86: ='Bike Safety'!L48 -> 466800 | C86: ='Bike Safety'!R48 -> 172716
A87: Total Monetized Benefit Real $ (No Build – Build) | B87: ='Bike Safety'!X48 -> 294000
A88: Total Monetized Benefit Discounted @ 3.1% (No Build – Build) | B88: ='Bike Safety'!Y48 -> 170000
A92: Safety – All Modes
A93: Safety - All Modes | B93: No Build | C93: Build
A94: Auto | B94: ='Tables for Memo HGAC'!B73 -> 385993200 | C94: ='Tables for Memo HGAC'!C73 -> 178198418
A95: Pedestrian | B95: ='Tables for Memo HGAC'!B80 -> 658600 | C95: ='Tables for Memo HGAC'!C80 -> 230510
A96: Bike | B96: ='Tables for Memo HGAC'!B86 -> 466800 | C96: ='Tables for Memo HGAC'!C86 -> 172716
A97: Total in Real $ | B97: =SUM(B94:B96) -> 387118600 | C97: =SUM(C94:C96) -> 178601644
A98: Total Monetized Benefit Real $ (No Build – Build) | B98: =B74+B81+B87 -> 208517000
A99: Total Monetized Benefit Discounted @ 3.1% (No Build – Build) | B99: =B75+B82+B88 -> 124084000
A103: Delay Seconds Per Vehicle 2027
A104: Delay (Sec/Vehicle) (2027) | B104: No-build | D104: Build
A105: Intersection | B105: AM | C105: PM | D105: AM | E105: PM
A106: Aldine Westfield Rd and Little York Rd | B106: ='VOTT Supporting - Auto'!C8 -> 35.1 | C106: ='VOTT Supporting - Auto'!G8 -> 31.9 | D106: ='VOTT Supporting - Auto'!K8 -> 26.9 | E106: ='VOTT Supporting - Auto'!O8 -> 29
A107: Aldine Westfield Rd and Hopper Rd | B107: ='VOTT Supporting - Auto'!C9 -> 13.3 | C107: ='VOTT Supporting - Auto'!G9 -> 14.2 | D107: ='VOTT Supporting - Auto'!K9 -> 16.6 | E107: ='VOTT Supporting - Auto'!O9 -> 15.1
A108: Aldine Westfield Rd and Aldine Mail Rd | B108: ='VOTT Supporting - Auto'!C10 -> 17.4 | C108: ='VOTT Supporting - Auto'!G10 -> 16.1 | D108: ='VOTT Supporting - Auto'!K10 -> 17.6 | E108: ='VOTT Supporting - Auto'!O10 -> 15.2
A109: Aldine Westfield Rd and Lauder Rd | B109: ='VOTT Supporting - Auto'!C11 -> 79.4 | C109: ='VOTT Supporting - Auto'!G11 -> 64.2 | D109: ='VOTT Supporting - Auto'!K11 -> 17.6 | E109: ='VOTT Supporting - Auto'!O11 -> 16.4
A110: Aldine Westfield Rd and Aldine Bender Rd | B110: ='VOTT Supporting - Auto'!C12 -> 186.3 | C110: ='VOTT Supporting - Auto'!G12 -> 185.4 | D110: ='VOTT Supporting - Auto'!K12 -> 31.6 | E110: ='VOTT Supporting - Auto'!O12 -> 29
A111: Total Daily (Sec/Vehicle) Delay Benefit (No Build – Build)
A113: Delay Seconds Per Vehicle 2047
A114: Delay (Sec/Vehicle) (2047) | B114: No-build | D114: Build
A115: Intersection | B115: AM | C115: PM | D115: AM | E115: PM
A116: Aldine Westfield Rd and Little York Rd | B116: ='VOTT Supporting - Auto'!C26 -> 48.2 | C116: ='VOTT Supporting - Auto'!G26 -> 51 | D116: ='VOTT Supporting - Auto'!K26 -> 35.1 | E116: ='VOTT Supporting - Auto'!O26 -> 39.1
A117: Aldine Westfield Rd and Hopper Rd | B117: ='VOTT Supporting - Auto'!C27 -> 16.4 | C117: ='VOTT Supporting - Auto'!G27 -> 19.9 | D117: ='VOTT Supporting - Auto'!K27 -> 18.4 | E117: ='VOTT Supporting - Auto'!O27 -> 17.9
A118: Aldine Westfield Rd and Aldine Mail Rd | B118: ='VOTT Supporting - Auto'!C28 -> 68.1 | C118: ='VOTT Supporting - Auto'!G28 -> 50.9 | D118: ='VOTT Supporting - Auto'!K28 -> 27.9 | E118: ='VOTT Supporting - Auto'!O28 -> 19.8
A119: Aldine Westfield Rd and Lauder Rd | B119: ='VOTT Supporting - Auto'!C29 -> 192.7 | C119: ='VOTT Supporting - Auto'!G29 -> 142 | D119: ='VOTT Supporting - Auto'!K29 -> 20.6 | E119: ='VOTT Supporting - Auto'!O29 -> 18.2
A120: Aldine Westfield Rd and Aldine Bender Rd | B120: ='VOTT Supporting - Auto'!C30 -> 365.1 | C120: ='VOTT Supporting - Auto'!G30 -> 380.8 | D120: ='VOTT Supporting - Auto'!K30 -> 53 | E120: ='VOTT Supporting - Auto'!O30 -> 63.1
A121: Total Daily (Sec/Vehicle) Delay Benefit (No Build – Build)
A123: Value of Travel Time Benefits
A124: Value of Time Calculation | B124: No Build | C124: Build
A125: Auto Vehicles | B125: ='Value of Travel Time'!L48 -> 195675028.5 | C125: ='Value of Travel Time'!X48 -> 50778511.44
A126: Commercial Vehicles | B126: ='Value of Travel Time'!M48 -> 6620370.445 | C126: ='Value of Travel Time'!Y48 -> 1718014.603
A127: Total in Real $ | B127: =B125+B126 -> 202295398.9 | C127: =C125+C126 -> 52496526.05
A128: Total Monetized Benefit Real $ (No Build – Build) | B128: ='Value of Travel Time'!AI48 -> 149799000
A129: Total Monetized Benefit Discounted @ 3.1% (No Build – Build) | B129: ='Value of Travel Time'!AJ48 -> 81618000
A131: Emission Benefits
A132: Emission Calculation | B132: No Build | C132: Build
A133: Nitrogen Oxides (NOX) | B133: =MROUND('Auto Idling Env. Benefits'!L48+'Emission Reduction (Metric Ton)'!M48,100) -> 6400 | C133: =MROUND('Auto Idling Env. Benefits'!S48+'Emission Reduction (Metric Ton)'!U48,100) -> 3600
A134: Carbon Dioxide (CO2) | B134: =MROUND('Auto Idling Env. Benefits'!I48+'Emission Reduction (Metric Ton)'!J48,100) -> 20833500 | C134: =MROUND('Auto Idling Env. Benefits'!P48+'Emission Reduction (Metric Ton)'!R48,100) -> 9060300
A135: Total in Real $ | B135: =SUM(B133:B134) -> 20839900 | C135: =SUM(C133:C134) -> 9063900
A136: Total Monetized Benefit Real $ (No Build – Build) | B136: ='Auto Idling Env. Benefits'!AD48+'Emission Reduction (Metric Ton)'!AJ48 -> 12341000
A137: Total Monetized Benefit Discounted @ 3.1% (No Build – Build) | B137: ='Auto Idling Env. Benefits'!AE48+'Emission Reduction (Metric Ton)'!AK48 -> 8226000
A139: Facility Improvements Benefits
A140: Facility Improvements Calculation | B140: No Build | C140: Build
A141: Pedestrian Facility | B141: ='Facility Improve - Ped'!$AN$48 -> 0 | C141: ='Facility Improve - Ped'!$AJ$48 -> 549504.5157
A142: Bike Facility | B142: ='Facility Improve - Bike'!T48 -> 0 | C142: ='Facility Improve - Bike'!P48 -> 3002503.904
A143: Transit Facility
A144: Total in Real $ | B144: =B141+B142 -> 0 | C144: =C141+C142 -> 3552008.42
A145: Total Monetized Benefit Real $ (No Build – Build) | B145: ='Facility Improve - Ped'!AP48+'Facility Improve - Bike'!V48 -> 3553000
A146: Total Monetized Benefit Discounted @ 3.1% (No Build – Build) | B146: ='Facility Improve - Ped'!AQ48+'Facility Improve - Bike'!W48 -> 2016000
A148: Mortality Reduction
A149: Mortality Reduction Calculation | B149: No Build | C149: Build
A150: Pedestrian Facility | B150: ='Mortality Reduction - Walk'!R48 -> 716000 | C150: ='Mortality Reduction - Walk'!S48 -> 2862000
A151: Bike Facility | B151: ='Mortality Reduction - Bike'!R48 -> 0 | C151: ='Mortality Reduction - Bike'!S48 -> 4593000
A152: Total in Real $ | B152: =B150+B151 -> 716000 | C152: =C150+C151 -> 7455000
A153: Total Monetized Benefit Real $ (No Build – Build) | B153: ='Mortality Reduction - Walk'!T48+'Mortality Reduction - Bike'!T48 -> 6740000
A154: Total Monetized Benefit Discounted @ 3.1% (No Build – Build) | B154: ='Mortality Reduction - Walk'!U48+'Mortality Reduction - Bike'!U48 -> 3825000
A156: Other Externalities
A157: Other Externalities Calculation | B157: No Build | C157: Build
A158: Congestion Externality | B158: =MROUND('Other Highway Use Externalities'!H48,100) -> 18300 | C158: =MROUND('Other Highway Use Externalities'!M48,100) -> 510900
A159: Noise Externality | B159: =MROUND('Other Highway Use Externalities'!I48,100) -> 600 | C159: =MROUND('Other Highway Use Externalities'!N48,100) -> 16900
A160: Total in Real $ | B160: =MROUND('Other Highway Use Externalities'!K48,100) -> 18900 | C160: =MROUND('Other Highway Use Externalities'!P48,100) -> 527800
A161: Total Monetized Benefit Real $ (No Build – Build) | B161: =MROUND('Other Highway Use Externalities'!V48,100) -> 509000
A162: Total Monetized Benefit Discounted @ 3.1% (No Build – Build) | B162: ='Other Highway Use Externalities'!W48 -> 289000
A164: Auto Idle Fuel Consumption
A165: Fuel Consumption | B165: No Build | C165: Build
A166: Fuel Consumption | B166: ='Auto Idling Benefit - Fuel'!J48 -> 24059043.59 | C166: ='Auto Idling Benefit - Fuel'!N48 -> 10179369.74
A167: Total in Real $ | B167: =B166 -> 24059043.59 | C167: =C166 -> 10179369.74
A168: Total Monetized Benefit Real $ (No Build – Build) | B168: ='Auto Idling Benefit - Fuel'!T48 -> 13880000
A169: Total Monetized Benefit Discounted @ 3.1% (No Build – Build) | B169: ='Auto Idling Benefit - Fuel'!U48 -> 7613000
A173: Benefit # | B173: Benefit Name | C173: Current Status/Baseline and Problem to be Addressed | D173: Change to Baseline or Alternatives | E173: Types of Impacts | P173: $2022 Monetized | Q173: $2022 Real Dollars
P174: Value | Q174: 3.1% Discount Rate
A175: 1 | B175: Remaining Useful Life of Asset | C175: The current asset has 0% remaining useful life | D175: Replace infrastructure within public right-of-way | E175: Extend useful life | P175: ='Benefits Summary'!D52 -> 93700000 | Q175: ='Benefits Summary'!E52 -> 39856000
A176: 2 | B176: State of Good Repair | C176: Ongoing expensive maintenance of roadway pavement | D176: Low maintenance required of new facility through the planning horizon | E176: Maintenance cost savings | P176: ='Benefits Summary'!D54 -> 60051000 | Q176: ='Benefits Summary'!E54 -> 32021000
A177: 3 | B177: Safety Benefits | C177: Outdated design, disproportionally higher crash rates | D177: Safety improvement resulting in reduction in traffic crashes | E177: Reduced crashes resulting in reduced fatalities and injuries | P177: ='Benefits Summary'!D57+'Benefits Summary'!D58 +'Benefits Summary'!D59 -> 208517000 | Q177: ='Benefits Summary'!E57+'Benefits Summary'!E58 +'Benefits Summary'!E59 -> 124084000
A178: 4 | B178: Value of Travel Time | C178: The current facilities lead to delay of users. | D178: Improvements to the current facilities will reduce delay | E178: Travel time savings | P178: ='Benefits Summary'!D65 -> 149799000 | Q178: ='Benefits Summary'!E65 -> 81618000
A179: 5 | B179: Emissions Reduction | C179: The current facilities are not conductive for active transportation | D179: Improvements to the existing facilities will induce demand for walking and biking | E179: Reduced emission derived from modal shift from driving personal vehicles to walking and biking | P179: ='Benefits Summary'!D70+'Benefits Summary'!D73 -> 12341000 | Q179: ='Benefits Summary'!E70+'Benefits Summary'!E73 -> 8226000
A180: 6 | B180: Facility Improvements | C180: The current facilities are not conductive for active transportation or using transit | D180: Improvements to the current facilities will improve the quality or comfort of journeys | E180: Improved comfort for active transportation and public transportation users | P180: ='Benefits Summary'!D61+'Benefits Summary'!D60 -> 3553000 | Q180: ='Benefits Summary'!E61+'Benefits Summary'!E60 -> 2016000
A181: 7 | B181: Mortality Reduction Benefits | C181: Roadway is not conducive for active transportation. | D181: New and improved active transportation facilities will encourage more walking and cycling | E181: Reduced mortality risks | P181: ='Benefits Summary'!D67+'Benefits Summary'!D68 -> 6740000 | Q181: ='Benefits Summary'!E67+'Benefits Summary'!E68 -> 3825000
E182: associated with increased walking and cycling
A183: 8 | B183: Externalities Reduction | C183: Roadway is not conducive for active transportation. | D183: New and improved facilities will encourage more walking and cycling | E183: Reduced various externalities | P183: ='Benefits Summary'!D71 -> 509000 | Q183: ='Benefits Summary'!E71 -> 289000
A184: 9 | B184: Automobile Idling Fuel Consumption | C184: Vehicle idling results in consumption of fuel | D184: Improvements slightly decreases fuel consumption | E184: Increased fuel consumption | P184: ='Benefits Summary'!D72 -> 13880000 | Q184: ='Benefits Summary'!E72 -> 7613000
A185: Totals | P185: =SUM(P175:P184) -> 549090000 | Q185: =SUM(Q175:Q184) -> 299548000

Sheet Tables for Memo (hidden)
A1: Project Design, Env. and Capital Costs
A2: Project Planning, Design, Env. and Capital Costs
A3: Scenario | B3: =_xlfn.CONCAT("Nominal $",'Major Assumption Key'!B7,, " ","No Discount") -> Nominal $2022 No Discount | C3: =_xlfn.CONCAT("Real $"," ",'Major Assumption Key'!B7," No Discount") -> Real $ 2022 No Discount | D3: =_xlfn.CONCAT(TEXT('Major Assumption Key'!B8,"0.0%")," Discount"," ",'Major Assumption Key'!B7) -> 3.1% Discount 2022
A4: Planning | B4: =ROUND('Cost Summary'!I46,-3) -> 815000 | C4: =ROUND('Cost Summary'!J46,-3) -> 771000 | D4: =ROUND('Cost Summary'!K46,-3) -> 725000
A5: Design/Environmental | B5: =ROUND('Cost Summary'!L46,-3) -> 25014000 | C5: =ROUND('Cost Summary'!M46,-3) -> 22715000 | D5: =ROUND('Cost Summary'!N46,-3) -> 20415000
A6: Construction | B6: =ROUND('Cost Summary'!O45,-3) -> 186835000 | C6: =ROUND('Cost Summary'!P45,-3) -> 156166000 | D6: =ROUND('Cost Summary'!Q45,-3) -> 128132000
A7: Project Capital Costs | B7: ='Cost Summary'!U46 -> 212663000 | C7: ='Cost Summary'!V46 -> 179652000 | D7: ='Cost Summary'!W46 -> 149273000
A10: BCA Summary
A11: BCA Summary
A12: Scenario | B12: =_xlfn.CONCAT("$",'Major Assumption Key'!B7," ","Real Dollars") -> $2022 Real Dollars | C12: =_xlfn.CONCAT("$",'Major Assumption Key'!B7," ","Real Dollars") -> $2022 Real Dollars
B13: No Discount | C13: =_xlfn.CONCAT(TEXT('Major Assumption Key'!B8,"0.0%")," Discount") -> 3.1% Discount
A14: Benefits | B14: ='BCA Summary'!H14 -> 549088000 | C14: ='BCA Summary'!I14 -> 299548000
A15: Costs | B15: ='BCA Summary'!H15 -> 179652000 | C15: ='BCA Summary'!I15 -> 149273000
A16: BCA | B16: ='BCA Summary'!H7 -> 3.056395289 | C16: ='BCA Summary'!I7 -> 2.006712939
A17: NPV | B17: ='BCA Summary'!H17 -> 369436000 | C17: ='BCA Summary'!I17 -> 150275000
A20: Executive Summary
A21: Executive Summary Matrix
A22: Benefit | B22: Current Status/Baseline and Problem to be Addressed | C22: Change to Baseline or Alternatives | D22: Types of Impacts | E22: =_xlfn.CONCAT("$",'Major Assumption Key'!B7," Monetized") -> $2022 Monetized | F22: =_xlfn.CONCAT("$",'Major Assumption Key'!B7," Real Dollars") -> $2022 Real Dollars
E23: Value | F23: =_xlfn.CONCAT(TEXT('Major Assumption Key'!B8,"0.0%")," Discount") -> 3.1% Discount
A24: Benefit 1: Remaining Useful Life of Asset | B24: The current asset has 0% remaining useful life | C24: Replace infrastructure within public right-of-way | D24: Extend useful life | E24: ='Benefits Summary'!D52 -> 93700000 | F24: ='Benefits Summary'!E52 -> 39856000
A25: Benefit 2: Maintenance | B25: Ongoing maintenance for existing bus shelters | C25: Ongoing maintenance for new BOOST bus shelters | D25: Maintenance cost change | E25: ='Benefits Summary'!D53 -> 0 | F25: ='Benefits Summary'!E53 -> 0
A26: Benefit 3: State of Good Repair | B26: Ongoing expensive maintenance of roadway pavement | C26: Low maintenance required of new facility through the planning horizon | D26: Maintenance cost savings | E26: =SUM('Benefits Summary'!D54:D56) -> 60051000 | F26: =SUM('Benefits Summary'!E54:E56) -> 32021000
A27: Benefits 4: Safety Benefits | B27: Outdated design, disproportionally higher crash rates | C27: Safety improvement resulting in reduction in traffic crashes | D27: Reduced crashes resulting in reduced fatalities and injuries | E27: =SUM('Benefits Summary'!D57:D59) -> 208517000 | F27: =SUM('Benefits Summary'!E57:E59) -> 124084000
A28: Benefits 5: Facility Improvements | B28: The current facilities are not conductive for active transportation or using transit | C28: Improvements to the current facilities will improve the quality or comfort of journeys | D28: Improved comfort for active transportation and public transportation users | E28: =SUM('Benefits Summary'!D60:D64) -> 3553000 | F28: =SUM('Benefits Summary'!E60:E64) -> 2016000
A29: Benefit 6: Value of Travel Time | B29: The current facilities lead to significant delay of users. | C29: Improvements to the current facilities will reduce delay | D29: Travel time savings | E29: ='Benefits Summary'!D65 -> 149799000 | F29: ='Benefits Summary'!E65 -> 81618000
A30: Benefits 7: Operating Cost Savings | B30: The current facilities result in limited demand of walking, biking, and transit usage | C30: New and improved walking, biking, and transit facilities will induce demand | D30: Reduced operating costs derived from modal shift from driving personal vehicles to walking, biking, and taking transit | E30: =SUM('Benefits Summary'!D66:D66) -> 0 | F30: =SUM('Benefits Summary'!E66:E66) -> 0
A31: Benefit 8: Mortality Reduction Benefits | B31: Roadway is not conducive for active transportation. | C31: New and improved active transportation facilities will encourage more walking and cycling | D31: Reduced mortality risks associated with increased walking and cycling | E31: =SUM('Benefits Summary'!D67:D68) -> 6740000 | F31: =SUM('Benefits Summary'!E67:E68) -> 3825000
A32: Benefits 9: Emissions Reduction | B32: The current facilities are not conductive for active transportation or using transit | C32: Improvements to the existing facilities will induce demand for walking, cycling, and taking transit | D32: Reduced emission derived from modal shift from driving personal vehicles to walking, biking, and taking transit | E32: =MAX(IFERROR('Benefits Summary'!D69,0),IFERROR('Benefits Summary'!D70,0)) -> 283000 | F32: =MAX(IFERROR('Benefits Summary'!E69,0),IFERROR('Benefits Summary'!E70,0)) -> 162000
A33: Benefits 10: Congestion Externalities Reduction | B33: Roadway is not conducive for active transportation. | C33: New and improved facilities will encourage more walking and cycling | D33: Reduced congestion externalities | E33: ='Benefits Summary'!D71 -> 509000 | F33: ='Benefits Summary'!E71 -> 289000
A34: Benefit 11: Automobile Idling Emissions and Fuel Consumption | B34: Vehicle idling results in exhaust and the consumption of fuel | C34: Improvements slightly increase automobile emissions and fuel consumption | D34: Increased exhaust and fuel consumption | E34: =SUM('Benefits Summary'!D72:D73) -> 25938000 | F34: =SUM('Benefits Summary'!E72:E73) -> 15677000
A35: Benefit 12: Repurposed Right-of-Way | E35: ='Benefits Summary'!D74 -> 0 | F35: ='Benefits Summary'!E74 -> 0
D36: Total | E36: ='Benefits Summary'!D75 -> 549088000 | F36: ='Benefits Summary'!E75 -> 299548000
A38: Useful Life Benefit
A39: Useful Life Benefit
A40: Scenario | B40: Monetized Value
A41: No Build | B41: =ROUND('Useful Life'!J48,-3) -> 0
A42: Build | B42: =ROUND('Useful Life'!M48,-3) -> 93700000
A43: Net Benefit | B43: =ROUND('Useful Life'!N48,-3) -> 93700000
A44: Discounted Net Benefit | B44: =ROUND('Useful Life'!O48,-3) -> 39856000
A47: Maintenance Benefit
A48: Maintenance Benefit
A49: Scenario | B49: Monetized Value
A50: No Build | B50: =ROUND('Non-Roadway Maintenance'!H49,-3) -> 0
A51: Build | B51: =ROUND('Non-Roadway Maintenance'!J49,-3) -> 0
A52: Net Benefit | B52: =ROUND('Non-Roadway Maintenance'!K49,-3) -> 0
A53: Discounted Net Benefit | B53: =ROUND('Non-Roadway Maintenance'!L49,-3) -> 0
A57: SOGR
A58: Asphalt (AO-CP)
A59: Roadway Characteristics
A60: Roadway | B60: Class | C60: Pavement | D60: Length (ft) | E60: Lanes | F60: Lane-miles | G60: Average Daily Traffic | H60: Truck %
A61: ='SOGR Supporting AP-CP'!A108 -> Intercontinental Park Blvd -> Little York Rd | B61: ='SOGR Supporting AP-CP'!E108 -> Collector | C61: Asphalt Overlay | D61: ='SOGR Supporting AP-CP'!B108 -> 24288 | E61: ='SOGR Supporting AP-CP'!F108 -> 2 | F61: ='SOGR Supporting AP-CP'!H108 -> 9.2 | G61: ='SOGR Supporting AP-CP'!C6 -> 12064 | H61: ='SOGR Supporting AP-CP'!J108 -> 0.032
A62: ='SOGR Supporting AP-CP'!A109 -> 0 | B62: ='SOGR Supporting AP-CP'!E109 -> 0 | C62: Asphalt Overlay | D62: ='SOGR Supporting AP-CP'!B109 -> 0 | E62: ='SOGR Supporting AP-CP'!F109 -> 0 | F62: ='SOGR Supporting AP-CP'!H109 -> 0 | G62: ='SOGR Supporting AP-CP'!C7 -> 0 | H62: ='SOGR Supporting AP-CP'!J109 -> 0
A63: Concrete
A64: Roadway Characteristics
A65: Roadway | B65: Class | C65: Pavement | D65: Length (ft) | E65: Lanes | F65: Lane-miles | G65: Average Daily Traffic | H65: Truck %
A66: ='SOGR Supporting CP-CP'!A6 -> Name of Roadway 1 | B66: ='SOGR Supporting CP-CP'!E108 -> 0 | C66: Concrete | D66: ='SOGR Supporting CP-CP'!B108 -> 24288 | E66: ='SOGR Supporting CP-CP'!F108 -> 0 | F66: ='SOGR Supporting CP-CP'!H108 -> 0 | G66: ='SOGR Supporting CP-CP'!C6 -> 0 | H66: ='SOGR Supporting CP-CP'!J108 -> 0.032
A67: ='SOGR Supporting CP-CP'!A7 -> Name of Roadway 2 | B67: ='SOGR Supporting CP-CP'!E109 -> 0 | C67: Concrete | D67: ='SOGR Supporting CP-CP'!B109 -> 0 | E67: ='SOGR Supporting CP-CP'!F109 -> 0 | F67: ='SOGR Supporting CP-CP'!H109 -> 0 | G67: ='SOGR Supporting CP-CP'!C7 -> 0 | H67: ='SOGR Supporting CP-CP'!J109 -> 0
A68: Asphalt
A69: Roadway Characteristics
A70: Roadway | B70: Class | C70: Pavement | D70: Length (ft) | E70: Lanes | F70: Lane-miles | G70: Average Daily Traffic | H70: Truck %
A71: ='SOGR Supporting AP-AP'!A6 -> Name of Roadway | B71: ='SOGR Supporting AP-AP'!E108 -> 0 | C71: Asphalt Overlay | D71: ='SOGR Supporting AP-AP'!B108 -> 24288 | E71: ='SOGR Supporting AP-AP'!F108 -> 0 | F71: ='SOGR Supporting AP-AP'!H108 -> 0 | G71: ='SOGR Supporting AP-AP'!C6 -> 0 | H71: ='SOGR Supporting AP-AP'!J108 -> 0.032
A72: ='SOGR Supporting AP-AP'!A7 -> Name of Roadway | B72: ='SOGR Supporting AP-AP'!E109 -> 0 | C72: Asphalt Overlay | D72: ='SOGR Supporting AP-AP'!B109 -> 0 | E72: ='SOGR Supporting AP-AP'!F109 -> 0 | F72: ='SOGR Supporting AP-AP'!H109 -> 0 | G72: ='SOGR Supporting AP-AP'!C7 -> 0 | H72: ='SOGR Supporting AP-AP'!J109 -> 0
A73: Roadway Characteristics
A75: Asphalt (AO-CP)
A76: Condition Assessment
A77: City Rating | B77: Overall
A78: (Likert Scale) | B78: (Weighted Average)
A79: Name of Roadway 1 | B79: =IF('SOGR Supporting AP-CP'!G114=1,"Very Poor",IF('SOGR Supporting AP-CP'!G114=2,"Poor",IF('SOGR Supporting AP-CP'!G114=3,"Fair",IF('SOGR Supporting AP-CP'!G114=4,"Satisfactory",IF('SOGR Supporting AP-CP'!G114=5,"Good","N/A"))))) -> Poor
A80: Name of Roadway 1 | B80: =IF('SOGR Supporting AP-CP'!G115=1,"Very Poor",IF('SOGR Supporting AP-CP'!G115=2,"Poor",IF('SOGR Supporting AP-CP'!G115=3,"Fair",IF('SOGR Supporting AP-CP'!G115=4,"Satisfactory",IF('SOGR Supporting AP-CP'!G115=5,"Good","N/A"))))) -> N/A
A81: Concrete
A82: Condition Assessment
A83: City Rating | B83: Overall
A84: (Likert Scale) | B84: (Weighted Average)
A85: ='SOGR Supporting CP-CP'!A114 -> Name of Roadway 1 | B85: =IF('SOGR Supporting CP-CP'!G114=1,"Very Poor",IF('SOGR Supporting CP-CP'!G114=2,"Poor",IF('SOGR Supporting CP-CP'!G114=3,"Fair",IF('SOGR Supporting CP-CP'!G114=4,"Satisfactory",IF('SOGR Supporting CP-CP'!G114=5,"Good","N/A"))))) -> N/A
A86: ='SOGR Supporting CP-CP'!A115 -> Name of Roadway 1 | B86: =IF('SOGR Supporting CP-CP'!G115=1,"Very Poor",IF('SOGR Supporting CP-CP'!G115=2,"Poor",IF('SOGR Supporting CP-CP'!G115=3,"Fair",IF('SOGR Supporting CP-CP'!G115=4,"Satisfactory",IF('SOGR Supporting CP-CP'!G115=5,"Good","N/A"))))) -> N/A
A87: Asphalt
A88: Condition Assessment
A89: City Rating | B89: Overall
A90: (Likert Scale) | B90: (Weighted Average)
A91: ='SOGR Supporting AP-AP'!A6 -> Name of Roadway | B91: =IF('SOGR Supporting AP-AP'!G114=1,"Very Poor",IF('SOGR Supporting AP-AP'!G114=2,"Poor",IF('SOGR Supporting AP-AP'!G114=3,"Fair",IF('SOGR Supporting AP-AP'!G114=4,"Satisfactory",IF('SOGR Supporting AP-AP'!G114=5,"Good","N/A"))))) -> N/A
A92: ='SOGR Supporting AP-AP'!A7 -> Name of Roadway | B92: =IF('SOGR Supporting AP-AP'!G115=1,"Very Poor",IF('SOGR Supporting AP-AP'!G115=2,"Poor",IF('SOGR Supporting AP-AP'!G115=3,"Fair",IF('SOGR Supporting AP-AP'!G115=4,"Satisfactory",IF('SOGR Supporting AP-AP'!G115=5,"Good","N/A"))))) -> N/A
A96: Asphalt (AO-CP)
A97: Annual Pavement Maintenance Costs by Life Cycle Phase
A98: Phase | B98: Percent of Life | C98: Failure Rate Factor | D98: ='SOGR Supporting AP-CP'!D136 -> Aldine Westfield Rd
A99: New | B99: ='SOGR Supporting AP-CP'!C137 -> 0.24 | C99: ='SOGR Supporting AP-CP'!B137 -> 0 | D99: ='SOGR Supporting AP-CP'!D137 -> 0
A100: Very Good | B100: ='SOGR Supporting AP-CP'!C138 -> 0.4 | C100: ='SOGR Supporting AP-CP'!B138 -> 0 | D100: ='SOGR Supporting AP-CP'!D138 -> 0
A101: Good | B101: ='SOGR Supporting AP-CP'!C139 -> 0.52 | C101: ='SOGR Supporting AP-CP'!B139 -> 0.25 | D101: ='SOGR Supporting AP-CP'!D139 -> 15973
A102: Fair | B102: ='SOGR Supporting AP-CP'!C140 -> 0.64 | C102: ='SOGR Supporting AP-CP'!B140 -> 1 | D102: ='SOGR Supporting AP-CP'!D140 -> 63891
A103: Poor | B103: ='SOGR Supporting AP-CP'!C141 -> 0.8 | C103: ='SOGR Supporting AP-CP'!B141 -> 1.5 | D103: ='SOGR Supporting AP-CP'!D141 -> 95836
A104: Very Poor | B104: ='SOGR Supporting AP-CP'!C142 -> 1 | C104: ='SOGR Supporting AP-CP'!B142 -> 3 | D104: ='SOGR Supporting AP-CP'!D142 -> 191672
A105: Concrete
A106: Annual Pavement Maintenance Costs by Life Cycle Phase
A107: Phase | B107: Percent of Life | C107: Failure Rate Factor | D107: ='SOGR Supporting CP-CP'!A6 -> Name of Roadway 1
A108: New | B108: ='SOGR Supporting CP-CP'!C137 -> 0.24 | C108: ='SOGR Supporting CP-CP'!B137 -> 0 | D108: ='SOGR Supporting CP-CP'!D137 -> 0
A109: Very Good | B109: ='SOGR Supporting CP-CP'!C138 -> 0.4 | C109: ='SOGR Supporting CP-CP'!B138 -> 0 | D109: ='SOGR Supporting CP-CP'!D138 -> 0
A110: Good | B110: ='SOGR Supporting CP-CP'!C139 -> 0.52 | C110: ='SOGR Supporting CP-CP'!B139 -> 0.25 | D110: ='SOGR Supporting CP-CP'!D139 -> 0
A111: Fair | B111: ='SOGR Supporting CP-CP'!C140 -> 0.64 | C111: ='SOGR Supporting CP-CP'!B140 -> 1 | D111: ='SOGR Supporting CP-CP'!D140 -> 0
A112: Poor | B112: ='SOGR Supporting CP-CP'!C141 -> 0.8 | C112: ='SOGR Supporting CP-CP'!B141 -> 1.5 | D112: ='SOGR Supporting CP-CP'!D141 -> 0
A113: Very Poor | B113: ='SOGR Supporting CP-CP'!C142 -> 1 | C113: ='SOGR Supporting CP-CP'!B142 -> 3 | D113: ='SOGR Supporting CP-CP'!D142 -> 0
A114: Asphalt
A115: Annual Pavement Maintenance Costs by Life Cycle Phase
A116: Phase | B116: Percent of Life | C116: Failure Rate Factor | D116: ='SOGR Supporting AP-AP'!A6 -> Name of Roadway
A117: New | B117: ='SOGR Supporting AP-AP'!C137 -> 0.24 | C117: ='SOGR Supporting AP-AP'!B137 -> 0 | D117: ='SOGR Supporting AP-AP'!D137 -> 0
A118: Very Good | B118: ='SOGR Supporting AP-AP'!C138 -> 0.4 | C118: ='SOGR Supporting AP-AP'!B138 -> 0 | D118: ='SOGR Supporting AP-AP'!D138 -> 0
A119: Good | B119: ='SOGR Supporting AP-AP'!C139 -> 0.52 | C119: ='SOGR Supporting AP-AP'!B139 -> 0.25 | D119: ='SOGR Supporting AP-AP'!D139 -> 0
A120: Fair | B120: ='SOGR Supporting AP-AP'!C140 -> 0.64 | C120: ='SOGR Supporting AP-AP'!B140 -> 1 | D120: ='SOGR Supporting AP-AP'!D140 -> 0
A121: Poor | B121: ='SOGR Supporting AP-AP'!C141 -> 0.8 | C121: ='SOGR Supporting AP-AP'!B141 -> 1.5 | D121: ='SOGR Supporting AP-AP'!D141 -> 0
A122: Very Poor | B122: ='SOGR Supporting AP-AP'!C142 -> 1 | C122: ='SOGR Supporting AP-AP'!B142 -> 3 | D122: ='SOGR Supporting AP-AP'!D142 -> 0
A123: Annual Pavement Maintenance Costs by Life Cycle Phase
A126: Asphalt (AO-CP)
A127: Roadway Rehabilitation Schedule
A128: Roadway | B128: Pavement | C128: 1st Rehab | D128: 2nd Rehab | E128: 3rd Rehab | F128: 4th Rehab
A129: ='SOGR Supporting AP-CP'!$A$6 -> Aldine Westfield Rd | B129: Asphalt | C129: =IF(_xlfn.XLOOKUP("Rehab",'SOGR Supporting AP-CP'!$D$14:$D$54,'SOGR Supporting AP-CP'!$A$14:$A$54,,0)<'Major Assumption Key'!$B$4,_xlfn.XLOOKUP("Rehab",'SOGR Supporting AP-CP'!$D$14:$D$54,'SOGR Supporting AP-CP'!$A$14:$A$54,,0)+7,_xlfn.XLOOKUP("Rehab",'SOGR Supporting AP-CP'!$D$14:$D$54,'SOGR Supporting AP-CP'!$A$14:$A$54,,0)) -> 2025 | D129: =C129+7 -> 2032 | E129: =D129+7 -> 2039 | F129: 2046
A130: Concrete
A131: Roadway Rehabilitation Schedule
A132: Roadway | B132: Pavement | C132: 1st Rehab | D132: 2nd Rehab | E132: 3rd Rehab | F132: 4th Rehab | AM132: =AL132+1 -> 1 | AN132: 2 | AO132: 3 | AP132: 4 | AQ132: 5 | AR132: 6
A133: ='SOGR Supporting CP-CP'!A6 -> Name of Roadway 1 | B133: Concrete Panel | C133: =IF(_xlfn.XLOOKUP("Rehab",'SOGR Supporting CP-CP'!D14:D54,'SOGR Supporting CP-CP'!A14:A54,,0)<'Major Assumption Key'!$B$4,_xlfn.XLOOKUP("Rehab",'SOGR Supporting CP-CP'!D14:D54,'SOGR Supporting CP-CP'!A14:A54,,0)+15,_xlfn.XLOOKUP("Rehab",'SOGR Supporting CP-CP'!D14:D54,'SOGR Supporting CP-CP'!A14:A54,,0)) -> 2025 | D133: =C133+15 -> 2040 | E133: =D133+15 -> 2055 | F133: 2070
A134: Asphalt
A135: Roadway Rehabilitation Schedule
A136: Roadway | B136: Pavement | C136: 1st Rehab | D136: 2nd Rehab | E136: 3rd Rehab | F136: 4th Rehab
A137: ='SOGR Supporting AP-AP'!A6 -> Name of Roadway | B137: Asphalt | C137: =IF(_xlfn.XLOOKUP("Rehab",'SOGR Supporting AP-AP'!D14:D54,'SOGR Supporting AP-AP'!A14:A54,,0)<'Major Assumption Key'!$B$4,_xlfn.XLOOKUP("Rehab",'SOGR Supporting AP-AP'!D14:D54,'SOGR Supporting AP-AP'!A14:A54,,0)+7,_xlfn.XLOOKUP("Rehab",'SOGR Supporting AP-AP'!D14:D54,'SOGR Supporting AP-AP'!A14:A54,,0)) -> 2024 | D137: =C137+7 -> 2031 | E137: =D137+7 -> 2038 | F137: 2045
A138: Roadway Rehabilitation Schedule
A141: Asphalt (AO-CP)
A142: Asphalt Pavement Mill & Overlay Costs
A143: Roadway | B143: Lane-miles | C143: 1st Mill & Overlay | D143: 2nd Mill & Overlay | E143: 3rd Mill & Overlay | F143: 4th Mill & Overlay | G143: Residual Life Remaining | H143: Total Cost
A145: ='SOGR Supporting AP-CP'!$A$6 -> Aldine Westfield Rd | B145: =SUM('SOGR Supporting AP-CP'!H108:H109) -> 9.2 | C145: =ROUND(_xlfn.XLOOKUP(C129,'SOGR Supporting AP-CP'!$A$14:$A$54,'SOGR Supporting AP-CP'!$F$14:$F$54,,0),-3) -> 2835000 | D145: =ROUND(_xlfn.XLOOKUP(D129,'SOGR Supporting AP-CP'!$A$14:$A$54,'SOGR Supporting AP-CP'!$F$14:$F$54,,0),-3) -> 3437000 | E145: =ROUND(_xlfn.XLOOKUP(E129,'SOGR Supporting AP-CP'!$A$14:$A$54,'SOGR Supporting AP-CP'!$F$14:$F$54,,0),-3) -> 4167000 | F145: =ROUND(_xlfn.XLOOKUP(F129,'SOGR Supporting AP-CP'!$A$14:$A$54,'SOGR Supporting AP-CP'!$F$14:$F$54,,0),-3) -> 5052000 | G145: =ROUND(_xlfn.XLOOKUP('Major Assumption Key'!$B$6,'SOGR Supporting AP-CP'!$A$14:$A$54,'SOGR Supporting AP-CP'!$G$14:$G$54,,0),-3) -> -2526000 | H145: =ROUND('SOGR Supporting AP-CP'!$F$55+'SOGR Supporting AP-CP'!$G$55,-3) -> 12966000
A146: Concrete
A147: Concrete Panel Replacement Costs
A148: Roadway | B148: Lane-miles | C148: 1st Mill & Overlay | D148: 2nd Mill & Overlay | E148: 3rd Mill & Overlay | F148: 4th Mill & Overlay | G148: Residual Life Remaining | H148: Total Cost
A149: ='SOGR Supporting CP-CP'!A6 -> Name of Roadway 1 | B149: =SUM('SOGR Supporting CP-CP'!H108:H109) -> 0 | C149: =IFERROR(ROUND(_xlfn.XLOOKUP(C129,'SOGR Supporting CP-CP'!$A$14:$A$54,'SOGR Supporting CP-CP'!$F$14:$F$54,,0),-3),0) -> 0 | D149: =IFERROR(ROUND(_xlfn.XLOOKUP(D129,'SOGR Supporting CP-CP'!$A$14:$A$54,'SOGR Supporting CP-CP'!$F$14:$F$54,,0),-3),0) -> 0 | E149: =IFERROR(ROUND(_xlfn.XLOOKUP(E129,'SOGR Supporting CP-CP'!$A$14:$A$54,'SOGR Supporting CP-CP'!$F$14:$F$54,,0),-3),0) -> 0 | F149: =IFERROR(ROUND(_xlfn.XLOOKUP(F129,'SOGR Supporting CP-CP'!$A$14:$A$54,'SOGR Supporting CP-CP'!$F$14:$F$54,,0),-3),0) -> 0 | G149: =ROUND(_xlfn.XLOOKUP('Major Assumption Key'!$B$6,'SOGR Supporting CP-CP'!$A$14:$A$54,'SOGR Supporting CP-CP'!$G$14:$G$54,,0),-3) -> 0 | H149: =ROUND('SOGR Supporting CP-CP'!F55+'SOGR Supporting CP-CP'!G55,-3) -> 0
A150: Asphalt
A151: Asphalt Pavement Mill & Overlay Costs
A152: Roadway | B152: Lane-miles | C152: 1st Mill & Overlay | D152: 2nd Mill & Overlay | E152: 3rd Mill & Overlay | F152: 4th Mill & Overlay | G152: Residual Life Remaining | H152: Total Cost
A154: ='SOGR Supporting AP-AP'!A6 -> Name of Roadway | B154: =SUM('SOGR Supporting AP-AP'!H108:H109) -> 0 | C154: =ROUND(_xlfn.XLOOKUP(C137,'SOGR Supporting AP-AP'!$A$14:$A$54,'SOGR Supporting AP-AP'!$F$14:$F$54,,0),-3) -> 0 | D154: =ROUND(_xlfn.XLOOKUP(D137,'SOGR Supporting AP-AP'!$A$14:$A$54,'SOGR Supporting AP-AP'!$F$14:$F$54,,0),-3) -> 0 | E154: =ROUND(_xlfn.XLOOKUP(E137,'SOGR Supporting AP-AP'!$A$14:$A$54,'SOGR Supporting AP-AP'!$F$14:$F$54,,0),-3) -> 0 | F154: =ROUND(_xlfn.XLOOKUP(F137,'SOGR Supporting AP-AP'!$A$14:$A$54,'SOGR Supporting AP-AP'!$F$14:$F$54,,0),-3) -> 0 | G154: =ROUND(_xlfn.XLOOKUP('Major Assumption Key'!$B$6,'SOGR Supporting AP-AP'!A14:A54,'SOGR Supporting AP-AP'!G14:G54,,0),-3) -> 0 | H154: =ROUND('SOGR Supporting AP-AP'!F55+'SOGR Supporting AP-AP'!G55,-3) -> 0
A157: Asphalt (AO-CP)
A158: Summary of Maintenance & Rehabilitation Costs
A159: Roadway | B159: “No Build” Scenario | E159: “Build” Scenario
B160: Annual Maintenance | C160: Scheduled Rehab | D160: Roadway Subtotal | E160: Annual Maintenance | F160: Scheduled Rehab | G160: Roadway Subtotal
A161: ='SOGR Supporting AP-CP'!$A$6 -> Aldine Westfield Rd | B161: =ROUND('SOGR Supporting AP-CP'!E55,-3) -> 1519000 | C161: =ROUND('SOGR Supporting AP-CP'!F55+'SOGR Supporting AP-CP'!G55,-3) -> 12966000 | D161: =ROUND(B161+C161,-3) -> 14485000 | E161: =ROUND('SOGR Supporting AP-CP'!E101,-3) -> 440000 | F161: =ROUND('SOGR Supporting AP-CP'!F101+'SOGR Supporting AP-CP'!G101,-3) -> 0 | G161: =ROUND(E161+F161,-3) -> 440000
A162: Asphalt
A163: Summary of Maintenance & Rehabilitation Costs
A164: Roadway | B164: “No Build” Scenario | E164: “Build” Scenario
B165: Annual Maintenance | C165: Scheduled Rehab | D165: Roadway Subtotal | E165: Annual Maintenance | F165: Scheduled Rehab | G165: Roadway Subtotal
A166: ='SOGR Supporting AP-AP'!A6 -> Name of Roadway | B166: =ROUND('SOGR Supporting AP-AP'!E55,-3) -> 0 | C166: =ROUND('SOGR Supporting AP-AP'!F55+'SOGR Supporting AP-AP'!G55,-3) -> 0 | D166: =ROUND(B166+C166,-3) -> 0 | E166: =ROUND('SOGR Supporting AP-AP'!E101,-3) -> 0 | F166: =ROUND('SOGR Supporting AP-AP'!F101+'SOGR Supporting AP-AP'!G101,-3) -> 0 | G166: =ROUND(E166+F166,-3) -> 0
A167: Concrete
A168: Summary of Maintenance & Rehabilitation Costs
A169: Roadway | B169: “No Build” Scenario | E169: “Build” Scenario
B170: Annual Maintenance | C170: Scheduled Rehab | D170: Roadway Subtotal | E170: Annual Maintenance | F170: Scheduled Rehab | G170: Roadway Subtotal
A171: ='SOGR Supporting CP-CP'!A6 -> Name of Roadway 1 | B171: =ROUND('SOGR Supporting CP-CP'!E55,-3) -> 0 | C171: =ROUND('SOGR Supporting CP-CP'!F55+'SOGR Supporting CP-CP'!G55,-3) -> 0 | D171: =ROUND(B171+C171,-3) -> 0 | E171: =ROUND('SOGR Supporting CP-CP'!E101,-3) -> 0 | F171: =ROUND('SOGR Supporting CP-CP'!F101+'SOGR Supporting CP-CP'!G101,-3) -> 0 | G171: =ROUND(F171+E171,-3) -> 0
A172: Summary of Maintenance & Rehabilitation Costs
A175: Asphalt (AO-CP)
A176: Summary of Vehicle Operating Cost Differential Disbenefit
A177: Roadway | B177: “No Build” Scenario | E177: “Build” Scenario
B178: Car | C178: Truck | D178: Total Vehicle | E178: Car | F178: Truck | G178: Total Vehicle
A179: ='SOGR Supporting AP-CP'!$A$6 -> Aldine Westfield Rd | B179: =ROUND('SOGR Supporting AP-CP'!I55,-3) -> 6155000 | C179: =ROUND('SOGR Supporting AP-CP'!J55,-3) -> 489000 | D179: =ROUND('SOGR Supporting AP-CP'!K55,-3) -> 6644000 | E179: =ROUND('SOGR Supporting AP-CP'!I101,-3) -> 717000 | F179: =ROUND('SOGR Supporting AP-CP'!J101,-3) -> 62000 | G179: =ROUND('SOGR Supporting AP-CP'!K101,-3) -> 779000
A180: Asphalt
A181: Summary of Vehicle Operating Cost Differential Disbenefit
A182: Roadway | B182: “No Build” Scenario | E182: “Build” Scenario
B183: Car | C183: Truck | D183: Total Vehicle | E183: Car | F183: Truck | G183: Total Vehicle
A184: ='SOGR Supporting AP-AP'!A6 -> Name of Roadway | B184: =ROUND('SOGR Supporting AP-AP'!I55,-3) -> 0 | C184: =ROUND('SOGR Supporting AP-AP'!J55,-3) -> 0 | D184: =ROUND('SOGR Supporting AP-AP'!K55,-3) -> 0 | E184: =ROUND('SOGR Supporting AP-AP'!I101,-3) -> 0 | F184: =ROUND('SOGR Supporting AP-AP'!J101,-3) -> 0 | G184: =ROUND('SOGR Supporting AP-AP'!K101,-3) -> 0
A185: Concrete
A186: Summary of Vehicle Operating Cost Differential Disbenefit
A187: Roadway | B187: “No Build” Scenario | E187: “Build” Scenario
B188: Car | C188: Truck | D188: Total Vehicle | E188: Car | F188: Truck | G188: Total Vehicle
A189: ='SOGR Supporting AP-AP'!A13 -> Year | B189: =ROUND('SOGR Supporting CP-CP'!I55,-3) -> 0 | C189: =ROUND('SOGR Supporting CP-CP'!J55,-3) -> 0 | D189: =ROUND('SOGR Supporting CP-CP'!K55,-3) -> 0 | E189: =ROUND('SOGR Supporting CP-CP'!I101,-3) -> 0 | F189: =ROUND('SOGR Supporting CP-CP'!J101,-3) -> 0 | G189: =ROUND('SOGR Supporting CP-CP'!K101,-3) -> 0
A190: Summary of Vehicle Operating Cost Differential Disbenefit
A193: Asphalt (AO-CP)
A194: Summary of Value of Travel Time Costs
A195: Scenario | B195: ='SOGR Supporting AP-CP'!$A$6 -> Aldine Westfield Rd
A196: No Build | B196: =ROUND('SOGR Supporting AP-CP'!H55,-3) -> 74458000
A197: Build | B197: =ROUND('SOGR Supporting AP-CP'!H101,-3) -> 34318000
A198: Asphalt
A199: Summary of Value of Travel Time Costs
A200: Scenario | B200: ='SOGR Supporting AP-AP'!A6 -> Name of Roadway
A201: No Build | B201: =ROUND('SOGR Supporting AP-AP'!H55,-3) -> 0
A202: Build | B202: =ROUND('SOGR Supporting AP-AP'!H101,-3) -> 0
A203: Concrete
A204: Summary of Value of Travel Time Costs
A205: Scenario | B205: ='SOGR Supporting CP-CP'!A6 -> Name of Roadway 1
A206: No Build | B206: =ROUND('SOGR Supporting CP-CP'!H55,-3) -> 0
A207: Build | B207: =ROUND('SOGR Supporting CP-CP'!H101,-3) -> 0
A210: Asphalt (AO-CP)
A211: State of Good Repair Benefit
A212: Scenario | B212: Monetized Value
A213: No Build | B213: =ROUND('State of Good Repair AP-CP'!L48,-3) -> 95588000
A214: Build | B214: =ROUND('State of Good Repair AP-CP'!R48,-3) -> 35537000
A215: Net Benefit | B215: =ROUND('State of Good Repair AP-CP'!S48,-3) -> 60051000
A216: Discounted Net Benefit | B216: =ROUND('State of Good Repair AP-CP'!T48,-3) -> 32021000
A217: Asphalt
A218: State of Good Repair Benefit
A219: Scenario | B219: Monetized Value
A220: No Build | B220: =ROUND('State of Good Repair - AP-AP'!L48,-3) -> 0
A221: Build | B221: =ROUND('State of Good Repair - AP-AP'!R48,-3) -> 0
A222: Net Benefit | B222: =ROUND('State of Good Repair - AP-AP'!S48,-3) -> 0
A223: Discounted Net Benefit | B223: =ROUND('State of Good Repair - AP-AP'!T48,-3) -> 0
A224: Concrete
A225: State of Good Repair Benefit
A226: Scenario | B226: Monetized Value
A227: No Build | B227: =ROUND('State of Good Repair CP-CP '!L48,-3) -> 0
A228: Build | B228: =ROUND('State of Good Repair CP-CP '!R48,-3) -> 0
... 164 more rows

Sheet Master Key (hidden)
B1: Worksheet | C1: Title/Description | D1: Worksheet - Color Key | E1: Hyperlink to Sheet
A2: 1 | B2: =INDEX(SheetNames,A2) -> Change Log | D2: Document Changes | E2: =HYPERLINK("#'"&B2&"'!A1","Go To Sheet") -> Go To Sheet
A3: 2 | B3: =INDEX(SheetNames,A3) -> Tables for Memo HGAC | C3: =IF(INDIRECT("'"&B3&"'!B1")=0,"",INDIRECT("'"&B3&"'!B1")) ->  | D3: Summary | E3: =HYPERLINK("#'"&B3&"'!A1","Go To Sheet") -> Go To Sheet
A4: 3 | B4: =INDEX(SheetNames,A4) -> Tables for Memo | C4: =IF(INDIRECT("'"&B4&"'!B1")=0,"",INDIRECT("'"&B4&"'!B1")) ->  | D4: Master Key | E4: Go To Sheet
A5: 4 | B5: =INDEX(SheetNames,A5) -> Master Key | C5: Worksheet | D5: Major Assumptions | E5: Go To Sheet
A6: 5 | B6: =INDEX(SheetNames,A6) -> Major Assumption Key | C6: Assumptions Throughout Analysis | D6: Supporting Information | E6: Go To Sheet
A7: 6 | B7: =INDEX(SheetNames,A7) -> BCA Guide - Parameter Values | C7: USDOT Benefit-Cost Analysis Guidance for Discretionary Grant Programs | D7: Summary | E7: Go To Sheet
A8: 7 | B8: =INDEX(SheetNames,A8) -> BCA Summary | C8: Summary of costs and benefits | D8: Summary | E8: Go To Sheet
A9: 8 | B9: =INDEX(SheetNames,A9) -> Cost Summary | C9: Summary of all costs | D9: Summary | E9: Go To Sheet
A10: 9 | B10: =INDEX(SheetNames,A10) -> Benefits Summary | C10: Summary of all benefits | D10: Break Note | E10: Go To Sheet
A11: 10 | B11: =INDEX(SheetNames,A11) -> Break Note 1 | D11: Benefit | E11: Go To Sheet
A12: 11 | B12: =INDEX(SheetNames,A12) -> Useful Life | C12: Useful Life Benefit | D12: Benefit | E12: Go To Sheet
A13: 12 | B13: =INDEX(SheetNames,A13) -> Non-Roadway Maintenance | C13: Summary of Maintenance as a Disbenefit | D13: Benefit | E13: Go To Sheet
A14: 13 | B14: =INDEX(SheetNames,A14) -> State of Good Repair AP-CP | C14: State of Good Repair - Asphalt to Concrete | D14: Supporting Information | E14: Go To Sheet
A15: 14 | B15: =INDEX(SheetNames,A15) -> SOGR Supporting AP-CP | C15: Traffic growth rate and rehabilitation/vehicle costs - Asphalt | D15: Benefit | E15: Go To Sheet
A16: 15 | B16: =INDEX(SheetNames,A16) -> State of Good Repair - AP-AP | C16: State of Good Repair - Asphalt to Asphalt | D16: Supporting Information | E16: Go To Sheet
A17: 16 | B17: =INDEX(SheetNames,A17) -> SOGR Supporting AP-AP | C17: Traffic growth rate and rehabilitation/vehicle costs - Asphalt | D17: Benefit | E17: Go To Sheet
A18: 17 | B18: =INDEX(SheetNames,A18) -> State of Good Repair CP-CP | C18: State of Good Repair - Concrete to Concrete | D18: Supporting Information | E18: Go To Sheet
A19: 18 | B19: =INDEX(SheetNames,A19) -> SOGR Supporting CP-CP | C19: Traffic growth rate and rehabilitation/vehicle costs - Concrete | D19: Supporting Information | E19: Go To Sheet
A20: 19 | B20: =INDEX(SheetNames,A20) -> Cost of Rehab | C20: Costs for Preventive Maintenance and Rehibilitation | D20: Supporting Information | E20: Go To Sheet
A21: 20 | B21: =INDEX(SheetNames,A21) -> Life Cycle of Rehabilitation | C21: Life Cycle of Rehabilitation Supporting Sheet | D21: Supporting Information | E21: Go To Sheet
A22: 21 | B22: =INDEX(SheetNames,A22) -> Pavement Data | C22: Pavement Condition Data | D22: Break Note | E22: Go To Sheet
A23: 22 | B23: =INDEX(SheetNames,A23) -> Break Note 2 | D23: Benefit | E23: Go To Sheet
A24: 23 | B24: =INDEX(SheetNames,A24) -> Roadway Safety | C24: Roadway Safety Improvements | D24: Supporting Information | E24: Go To Sheet
A25: 24 | B25: =INDEX(SheetNames,A25) -> Road Safety CRTMeasure | C25: Roadway Safety Benefit supporting calculations | D25: Supporting Information | E25: Go To Sheet
A26: 25 | B26: =INDEX(SheetNames,A26) -> Road S Data CRTMeasure | C26: Traffic Crash Data except for Pedestrian and Bicycle Crashes | D26: Benefit | E26: Go To Sheet
A27: 26 | B27: =INDEX(SheetNames,A27) -> Pedestrian Safety | C27: Pedestrian Safety Improvements | D27: Supporting Information | E27: Go To Sheet
A28: 27 | B28: =INDEX(SheetNames,A28) -> Ped Safety CRTMeasure | C28: Pedestrian Safety Benefit supporting calculations | D28: Supporting Information | E28: Go To Sheet
A29: 28 | B29: =INDEX(SheetNames,A29) -> Ped S Data CRTMeasure | C29: Counter Measure _ Pedestrian Crash Data | D29: Benefit | E29: Go To Sheet
A30: 29 | B30: =INDEX(SheetNames,A30) -> Bike Safety | C30: Bike Safety Improvements | D30: Supporting Information | E30: Go To Sheet
A31: 30 | B31: =INDEX(SheetNames,A31) -> Bike Safety CRTMeasure | C31: Bike Safety Benefit supporting calculations | D31: Supporting Information | E31: Go To Sheet
A32: 31 | B32: =INDEX(SheetNames,A32) -> Bike S Data CRTMeasure | C32: Counter Measure _ Bike Crash Data | D32: Supporting Information | E32: Go To Sheet
A33: 32 | B33: =INDEX(SheetNames,A33) -> Safety Ref. - All Crash Data | C33: Crash data used for the safety benefits calculation extracted from the TxDOT Crash Record Information System (CRIS). | D33: Supporting Information | E33: Go To Sheet
A34: 33 | B34: =INDEX(SheetNames,A34) -> Safety Ref. CRIS Codes | C34: Texas Department of Transportation Crash Codes | D34: Break Note | E34: Go To Sheet
A35: 34 | B35: =INDEX(SheetNames,A35) -> Break Note 3 | D35: Benefit | E35: Go To Sheet
A36: 35 | B36: =INDEX(SheetNames,A36) -> Facility Improve - Ped | C36: Facility Improvement Benefit - Sidewalk | D36: Benefit | E36: Go To Sheet
A37: 36 | B37: =INDEX(SheetNames,A37) -> Facility Improve - Bike | C37: Facility Improvement Benefit - Bicycle Facility | D37: Benefit | E37: Go To Sheet
A38: 37 | B38: =INDEX(SheetNames,A38) -> Facility Improve - Transit Stop | C38: Transit Facility Amenity Improvement - Transit Stops | D38: Benefit | E38: Go To Sheet
A39: 38 | B39: =INDEX(SheetNames,A39) -> Serve Improve - Transit Mode | C39: Facility Improvement Benefit - Sidewalk | D39: Benefit | E39: Go To Sheet
A40: 39 | B40: =INDEX(SheetNames,A40) -> Amenity Improve - Transit Veh | C40: Transit Modal Shift Benefits | D40: Demand Methodology | E40: Go To Sheet
A41: 40 | B41: =INDEX(SheetNames,A41) -> Pedestrian Demand | D41: Demand Methodology | E41: Go To Sheet
A42: 41 | B42: =INDEX(SheetNames,A42) -> Bike Demand | C42: Estimating Bike/Shared Use Path Build Demand | D42: Demand Methodology | E42: Go To Sheet
A43: 42 | B43: =INDEX(SheetNames,A43) -> Transit Demand | C43: Estimating Change of Passenger Trips Due to Transit Facility Amenity or Transit Vehicle Improvement | D43: Demand Methodology | E43: Go To Sheet
A44: 43 | B44: =INDEX(SheetNames,A44) -> Transit Demand - Modal | C44: Estimating Change of Boardings and Passenger Hours due to Transit Modal Shift | D44: Supporting Information | E44: Go To Sheet
A45: 44 | B45: =INDEX(SheetNames,A45) -> Amenity Condition | C45: Existence of amenities collected through field visit. | D45: Supporting Information | E45: Go To Sheet
A46: 45 | B46: =INDEX(SheetNames,A46) -> BOOST Pilot Segment | C46: Change of Ridership on BOOST Pilot segment. | D46: Supporting Information | E46: Go To Sheet
A47: 46 | B47: =INDEX(SheetNames,A47) -> Metro_Ridership | C47: Houston Metro Ridership Data | D47: Break Note | E47: Go To Sheet
A48: 47 | B48: =INDEX(SheetNames,A48) -> Break Note 4 | D48: Benefit | E48: Go To Sheet
A49: 48 | B49: =INDEX(SheetNames,A49) -> Value of Travel Time | C49: Value of Travel Time Benefits | D49: Supporting Information | E49: Go To Sheet
A50: 49 | B50: =INDEX(SheetNames,A50) -> VOTT Supporting - Auto | C50: Traffic growth rate and micro simulation model results | D50: Supporting Information | E50: Go To Sheet
A51: 50 | B51: =INDEX(SheetNames,A51) -> VOTT Supporting - Transit TSP | C51: Transit delay reduction due to active TSP | D51: Supporting Information | E51: Go To Sheet
A52: 51 | B52: =INDEX(SheetNames,A52) -> VOTT Supporting - Transit | C52: Travel time savings result from transit service improvement (reduce waiting, standing, and transfer time) | D52: Supporting Information | E52: Go To Sheet
A53: 52 | B53: =INDEX(SheetNames,A53) -> VOTT Supporting - Walking | C53: Pedestrian Travel Time Saving | D53: Supporting Information | E53: Go To Sheet
A54: 53 | B54: =INDEX(SheetNames,A54) -> VOTT Supporting - Cycling | C54: Bicyclists Travel Time Saving | D54: Break Note | E54: Go To Sheet
A55: 54 | B55: =INDEX(SheetNames,A55) -> Break Note 5 | D55: Benefit | E55: Go To Sheet
A56: 55 | B56: =INDEX(SheetNames,A56) -> Operating Cost Savings | C56: Auto Benefit - Sidewalk | D56: Break Note | E56: Go To Sheet
A57: 56 | B57: =INDEX(SheetNames,A57) -> Break Note 6 | D57: Benefit | E57: Go To Sheet
A58: 57 | B58: =INDEX(SheetNames,A58) -> Mortality Reduction - Walk | C58: Mortality Reduction Benefit - Walking | D58: Benefit | E58: Go To Sheet
A59: 58 | B59: =INDEX(SheetNames,A59) -> Mortality Reduction - Bike | C59: Mortality Reduction Benefit of Induced Active Transportation - Cycling | D59: Break Note | E59: Go To Sheet
A60: 59 | B60: =INDEX(SheetNames,A60) -> Break Note 7 | D60: Benefit | E60: Go To Sheet
A61: 60 | B61: =INDEX(SheetNames,A61) -> Emission Reduction (VMT) | C61: Emission Reduction based on VMT reduction | D61: Benefit | E61: Go To Sheet
A62: 61 | B62: =INDEX(SheetNames,A62) -> Emission Reduction (Metric Ton) | C62: Emission Reduction based on calculation of metric ton | D62: Benefit | E62: Go To Sheet
A63: 62 | B63: =INDEX(SheetNames,A63) -> Other Highway Use Externalities | C63: Noise Congestion Reduction | D63: Supporting Information | E63: Go To Sheet
A64: 63 | B64: =INDEX(SheetNames,A64) -> VMT Reduction Supporting | C64: VMT reduction Calculation | D64: Supporting Information | E64: Go To Sheet
A65: 64 | B65: =INDEX(SheetNames,A65) -> Emissions and Fuel | C65: Summary of Reduced Emissions, Fuel, VMT | D65: Supporting Information | E65: Go To Sheet
A66: 65 | B66: =INDEX(SheetNames,A66) -> Emission Factors | C66: Passenger Car - Gas Only | D66: Break Note | E66: Go To Sheet
A67: 66 | B67: =INDEX(SheetNames,A67) -> Break Note 8 | D67: Benefit | E67: =HYPERLINK("#'"&B67&"'!A1","Go To Sheet") -> Go To Sheet
A68: 67 | B68: =INDEX(SheetNames,A68) -> Auto Idling Benefit - Fuel | C68: =IF(INDIRECT("'"&B68&"'!B1")=0,"",INDIRECT("'"&B68&"'!B1")) -> Auto Benefit - Fuel | D68: Benefit | E68: Go To Sheet
A69: 68 | B69: =INDEX(SheetNames,A69) -> Auto Idling Env. Benefits | C69: Auto Idling - Environmental Benefit | D69: Supporting Information | E69: Go To Sheet
A70: 69 | B70: =INDEX(SheetNames,A70) -> Auto Idling Supporting | C70: Environmental micro simulation model results | D70: Break Note | E70: Go To Sheet
A71: 70 | B71: =INDEX(SheetNames,A71) -> Break Note 9 | D71: Benefit | E71: Go To Sheet
A72: 71 | B72: =INDEX(SheetNames,A72) -> Repurposed ROW | C72: Repurposed Right-Of-Way | D72: Supporting Information | E72: Go To Sheet
A73: 72 | B73: =INDEX(SheetNames,A73) -> Break Note 10 | D73: Benefit | E73: Go To Sheet
A74: 73 | B74: =INDEX(SheetNames,A74) -> Prop. Tax Inc Sidewalk | C74: Property Tax Revenue Increase - Sidewalk | D74: Supporting Information | E74: Go To Sheet
A75: 74 | B75: =INDEX(SheetNames,A75) -> Prop. Tax Inc Sidewalk Supp | C75: Appraisal District Data - Sidewalk | D75: Benefit | E75: Go To Sheet
A76: 75 | B76: =INDEX(SheetNames,A76) -> Prop. Tax Inc Bike Lane | C76: Property Tax Revenue Increased - Bike Lane | D76: Supporting Information | E76: Go To Sheet
A77: 76 | B77: =INDEX(SheetNames,A77) -> Prop. Tax Inc Bike Lane Supp | C77: Appraisal District Data - Bike Lane | D77: Benefit | E77: Go To Sheet
A78: 77 | B78: =INDEX(SheetNames,A78) -> Prop. Tax Inc Sidewalk & Bike | C78: Property Tax Revenue Increased - Sidewalk & Bike Lane | D78: Supporting Information | E78: Go To Sheet
A79: 78 | B79: =INDEX(SheetNames,A79) -> P. Tax Inc Sidewalk & Bike Supp | C79: Appraisal District Data - Sidewalk & Bike Lane | D79: Benefit | E79: Go To Sheet
A80: 79 | B80: =INDEX(SheetNames,A80) -> Prop. Tax Inc Shared Use Path | C80: =IF(INDIRECT("'"&B80&"'!B1")=0,"",INDIRECT("'"&B80&"'!B1")) -> Property Tax Revenue Increased - Shared Use Path | D80: Supporting Information | E80: =HYPERLINK("#'"&B80&"'!A1","Go To Sheet") -> Go To Sheet
A81: 80 | B81: =INDEX(SheetNames,A81) -> P. Tax Inc Shared Use Path Supp | C81: Appraisal District Data - Shared Use Path | D81: Supporting Information | E81: Go To Sheet
A82: 81 | B82: =INDEX(SheetNames,A82) -> HCAD Data | C82: Appraisal District Data | D82: Supporting Information | E82: Go To Sheet

Sheet Major Assumption Key
A1: Worksheet Title: | B1: Assumptions Throughout Analysis | F1: Go To Master Key Click → | G1: =HYPERLINK("#'"&INDEX('Master Key'!$B:$B,MATCH("Master Key",'Master Key'!$B:$B,0),1)&"'!A1","Go To Sheet") -> Go To Sheet
A3: Project Open Year: | B3: 2031
A4: Planning Horizon Begin Year: | B4: 2024
A5: Operating Period: | B5: 20
A6: Planning Horizon End Year: | B6: =B3+B5-1 -> 2050
A7: Discount Year | B7: 2022 | C7: Source: USDOT Benefit-Cost Analysis Guidance for Discretionary Grant Programs | K7: 2022 | L7: 12064
A8: Discount | B8: 0.031 | C8: Source: USDOT Benefit-Cost Analysis Guidance for Discretionary Grant Programs | K8: 2042 | L8: 16890
A9: Discount Rate for CO2 Emission Damages | B9: 0.02 | C9: Source: USDOT Benefit-Cost Analysis Guidance for Discretionary Grant Programs. Table A-6: Damage Costs for Emissions per Metric Ton | L9: =(L8/L7)^(1/(K8-K7))-1 -> 0.01696712998
A10: Inflation Rate | B10: =('Major Assumption Key'!$B$64-1)/('Major Assumption Key'!$A$83-'Major Assumption Key'!$A$64) -> 0.02789473684 | C10: Source: USDOT Benefit-Cost Analysis Guidance for Discretionary Grant Programs
A11: Truck Traffic Percentage | B11: 0.032 | C11: Source: TxDOT State Planning Map, "Future Traffic & Percent Truck" https://www.txdot.gov/apps/statewide_mapping/StatewidePlanningMap.html | L11: 12064
A12: Traffic Growth Rate | B12: =L13 -> 0.01696712998 | C12: Source: TxDOT State Planning Map, "Future Traffic & Percent Truck" https://www.txdot.gov/apps/statewide_mapping/StatewidePlanningMap.html | L12: 16890
A13: Length of Project Corridor (Mile) | B13: 4.6 | C13: Enter the entire length of the project | L13: =(L12/L11)^(1/(K8-K7))-1 -> 0.01696712998
A14: Sidewalk Improvement Benefit Length (Mile) | B14: 4.6 | C14: Enter the length of roadway segment with new/improved sidewalks | L14: =(2042/2022)^(1/(2042-2022))-1 -> 0.000492251073
A15: Bike Facility Improvement Benefit Length (Mile) | B15: 4.6 | C15: Enter the length of roadway segment with new/improved bicycle facilities
A18: Planning Horizon
A19: 2020
A20: 2021
A21: 2022
A22: 2023
A23: 2024
A24: 2025
A25: 2026
A26: 2027
A27: 2028
A28: 2029
A29: 2030
A30: 2031
A31: 2032
A32: 2033
A33: 2034
A34: 2035
A35: 2036
A36: 2037
A37: 2038
A38: 2039
A39: 2040
A40: 2041
A41: 2042
A42: 2043
A43: 2044
A44: 2045
A45: 2046
A46: 2047
A47: 2048
A48: 2049
A49: 2050
A50: 2051
A51: 2052
A52: 2053
A53: 2054
A54: 2055
A55: 2056
A56: 2057
A57: 2058
A58: 2059
A59: 2060
A62: Inflation:
A63: Base Year of Nominal Dollar | B63: ="Multiplier to Adjust to Real $"&B7 -> Multiplier to Adjust to Real $2022
A64: ='BCA Guide - Parameter Values'!B120 -> 2003 | B64: ='BCA Guide - Parameter Values'!C120 -> 1.53
A65: ='BCA Guide - Parameter Values'!B121 -> 2004 | B65: ='BCA Guide - Parameter Values'!C121 -> 1.49
A66: ='BCA Guide - Parameter Values'!B122 -> 2005 | B66: ='BCA Guide - Parameter Values'!C122 -> 1.45
A67: ='BCA Guide - Parameter Values'!B123 -> 2006 | B67: ='BCA Guide - Parameter Values'!C123 -> 1.4
A68: ='BCA Guide - Parameter Values'!B124 -> 2007 | B68: ='BCA Guide - Parameter Values'!C124 -> 1.37
A69: ='BCA Guide - Parameter Values'!B125 -> 2008 | B69: ='BCA Guide - Parameter Values'!C125 -> 1.34
A70: ='BCA Guide - Parameter Values'!B126 -> 2009 | B70: ='BCA Guide - Parameter Values'!C126 -> 1.33
A71: ='BCA Guide - Parameter Values'!B127 -> 2010 | B71: ='BCA Guide - Parameter Values'!C127 -> 1.32
A72: ='BCA Guide - Parameter Values'!B128 -> 2011 | B72: ='BCA Guide - Parameter Values'!C128 -> 1.29
A73: ='BCA Guide - Parameter Values'!B129 -> 2012 | B73: ='BCA Guide - Parameter Values'!C129 -> 1.27
A74: ='BCA Guide - Parameter Values'!B130 -> 2013 | B74: ='BCA Guide - Parameter Values'!C130 -> 1.24
A75: ='BCA Guide - Parameter Values'!B131 -> 2014 | B75: ='BCA Guide - Parameter Values'!C131 -> 1.22
A76: ='BCA Guide - Parameter Values'!B132 -> 2015 | B76: ='BCA Guide - Parameter Values'!C132 -> 1.21
A77: ='BCA Guide - Parameter Values'!B133 -> 2016 | B77: ='BCA Guide - Parameter Values'!C133 -> 1.2
A78: ='BCA Guide - Parameter Values'!B134 -> 2017 | B78: ='BCA Guide - Parameter Values'!C134 -> 1.18
A79: ='BCA Guide - Parameter Values'!B135 -> 2018 | B79: ='BCA Guide - Parameter Values'!C135 -> 1.15
A80: ='BCA Guide - Parameter Values'!B136 -> 2019 | B80: ='BCA Guide - Parameter Values'!C136 -> 1.13
A81: ='BCA Guide - Parameter Values'!B137 -> 2020 | B81: ='BCA Guide - Parameter Values'!C137 -> 1.12
A82: ='BCA Guide - Parameter Values'!B138 -> 2021 | B82: ='BCA Guide - Parameter Values'!C138 -> 1.07
A83: ='BCA Guide - Parameter Values'!B139 -> 2022 | B83: ='BCA Guide - Parameter Values'!C139 -> 1

Sheet BCA Guide - Parameter Values
A1: Source: | B1: USDOT Benefit-Cost Analysis Guidance for Discretionary Grant Programs
A2: Value Year: | B2: ='Major Assumption Key'!B7 -> 2022
A4: Table A-1a: | B4: Value of Reduced Fatalities, Injuries, and Crashes
B5: KABCO Level | C5: Monetized Value
B6: O – No Injury | C6: 5000
B7: C – Possible Injury | C7: 111700
B8: B – Non-incapacitating | C8: 233800
B9: A – Incapacitating | C9: 1188200
B10: K – Killed | C10: 12500000
B11: U – Injured (Severity Unknown) | C11: 217600
A12: Table A-1b: | B12: Value of Reduced Fatal, Injury, and PDO Crashes
B13: Crash Type | C13: Monetized Value
B14: PDO Crash | C14: 9100
B15: Injury Crash | C15: 313000
B16: Fatal Crash | C16: 14022900
A19: Table A-2: | B19: Value of Travel Time Savings
B20: Category | C20: Hourly Value (Travel Time Savings per person-hour)
B21: General Travel Time
B22: Personal1 | C22: 17.9
B23: Business2 | C23: 32.3
B24: All Purpose3 | C24: 19.6
B26: Walking, Cycling, Waiting, Standing, and Transfer Time4 | C26: 35.8
B28: Commercial Vehicle Operators5
B29: Truck Drivers | C29: 33.5
B30: Bus Drivers | C30: 36.5
B31: Transit Rail Operators | C31: 63.3
B32: Locomotive Engineers | C32: 53.5
B34: 1) Values for personal travel based on local travel values as described in USDOT’s Value of Travel Time guidance. Where applicants also have specific information on the mix of local versus long-distance travel (i.e., trips over 50 miles in length) on a facility, then the local travel values of time may be blended with the long-distance personal travel value of $25.10 per hour.
B35: 2) Weighted average based on a typical distribution of local travel by surface modes (88.2% personal, 11.8% business). Applicants should apply their own distribution of business versus personal travel where such information is available.
B36: 3) Note that business travel does not include commuting travel, which should be valued at the personal travel rate. Travel on high-speed rail service that would be competitive with air travel should be valued at $47.70 per hour for personal travel and $80.20 for business travel.
B37: 4) Should be applied only when actions affect those elements of travel time.
B38: 5) Includes only the value of time for the operator, not passengers or freight.
A41: Table A-3: | B41: Average Vehicle Occupancy Rates for Highway Passenger Vehicles
B42: Vehicle Type | C42: Average Occupancy
B43: Passenger Vehicles (Weekday Peak)1 | C43: 1.48
B44: Passenger Vehicles (Weekday Off-Peak) | C44: 1.58
B45: Passenger Vehicles (Weekend) | C45: 2.02
B46: Passenger Vehicles (All Travel) | C46: 1.67
B48: 1) Weekday peak period values calculated for trips starting between 6:00 AM-8:59 AM and 4:00 PM-6:59 PM.
A51: Table A-4: | B51: Vehicle Operating Costs
B52: Vehicle Type | C52: Recommended Value per Mile
B53: Light Duty Vehicles1 | C53: 0.52
B54: Commercial Trucks2 | C54: 1.32
B56: 1) Based on an average light duty vehicle and includes operating costs such as gasoline, maintenance, tires, and depreciation (assuming an average of 15,000 miles driven per year). The value omits other ownership costs that are mostly fixed or transfers (insurance, license, registration, taxes, and financing charges).
B57: 2) Value includes fuel costs, truck/trailer lease or purchase payments, repair and maintenance, truck insurance premiums, permits and licenses, and tires. The value omits tolls (which are transfers), and driver wages and benefits (which are already included in the value of travel time savings).
A60: Table A-5: | B60: Train Operating and Social Costs
C61: Recommended Value per Hour
B62: Train and Movement Type | C62: Operating Costs1 | D62: Non-CO2 Emission Costs2 | E62: CO2 Costs2
B63: Idling
B64: Freight Train | C64: 273 | D64: 749 | E64: 28
B65: Commuter Train | C65: 299 | D65: 102 | E65: 26
B66: Amtrak Long-Distance | C66: 747 | D66: 102 | E66: 26
B67: Amtrak State-Supported | C67: 331 | D67: 102 | E67: 26
B68: Hauling
B69: Freight Train | C69: 799 | D69: 2202 | E69: 280
B70: Commuter Train | C70: 778 | D70: 727 | E70: 218
B71: Amtrak Long-Distance | C71: 1226 | D71: 727 | E71: 218
B72: Amtrak State-Supported | C72: 810 | D72: 727 | E72: 218
B73: All Movements
B74: Freight Railcar | C74: 1.03 | D74: * | E74: *
B76: 1) Includes fuel cost, depreciation, and labor cost which should be discounted at 3.1 percent.
B77: 2) Emissions are based on the current diesel-electric locomotive fleet average, and thus the emission values above should not be applied in cases where new locomotives are being acquired or in cases of electrified rail. The monetization applies the 2035-year emission value to approximate increasing emission damage costs over time. Non-CO2 emission costs should be discounted at 3.1 percent and CO2 emission costs should be discounted at 2.0 percent.
A80: Table A-6: | B80: Damage Costs for Emissions per Metric Ton*
B81: Emission Type | C81: NOx | D81: SOx | E81: PM2.5** | F81: CO2 (2% discount rate)
B82: 2023 | C82: 19800 | D82: 52900 | E82: 951000 | F82: 228.3760071
B83: 2024 | C83: 20100 | D83: 53800 | E83: 963200 | F83: 232.853968
B84: 2025 | C84: 20300 | D84: 54800 | E84: 975500 | F84: 237.3319289
B85: 2026 | C85: 20600 | D85: 56100 | E85: 993500 | F85: 240.6903996
B86: 2027 | C86: 21000 | D86: 57400 | E86: 1011900 | F86: 245.1683605
B87: 2028 | C87: 21300 | D87: 58700 | E87: 1030600 | F87: 249.6463214
B88: 2029 | C88: 21700 | D88: 60100 | E88: 1049600 | F88: 253.0047921
B89: 2030 | C89: 22000 | D89: 61500 | E89: 1069000 | F89: 257.4827531
B90: 2031 | C90: 22000 | D90: 61500 | E90: 1069000 | F90: 261.960714
B91: 2032 | C91: 22000 | D91: 61500 | E91: 1069000 | F91: 265.3191847
B92: 2033 | C92: 22000 | D92: 61500 | E92: 1069000 | F92: 269.7971456
B93: 2034 | C93: 22000 | D93: 61500 | E93: 1069000 | F93: 274.2751065
B94: 2035 | C94: 22000 | D94: 61500 | E94: 1069000 | F94: 277.6335772
B95: 2036 | C95: 22000 | D95: 61500 | E95: 1069000 | F95: 282.1115381
B96: 2037 | C96: 22000 | D96: 61500 | E96: 1069000 | F96: 286.5894991
B97: 2038 | C97: 22000 | D97: 61500 | E97: 1069000 | F97: 289.9479697
B98: 2039 | C98: 22000 | D98: 61500 | E98: 1069000 | F98: 294.4259307
B99: 2040 | C99: 22000 | D99: 61500 | E99: 1069000 | F99: 298.9038916
B100: 2041 | C100: 22000 | D100: 61500 | E100: 1069000 | F100: 303.3818525
B101: 2042 | C101: 22000 | D101: 61500 | E101: 1069000 | F101: 307.8598134
B102: 2043 | C102: 22000 | D102: 61500 | E102: 1069000 | F102: 312.3377744
B103: 2044 | C103: 22000 | D103: 61500 | E103: 1069000 | F103: 316.8157353
B104: 2045 | C104: 22000 | D104: 61500 | E104: 1069000 | F104: 321.2936962
B105: 2046 | C105: 22000 | D105: 61500 | E105: 1069000 | F105: 325.7716571
B106: 2047 | C106: 22000 | D106: 61500 | E106: 1069000 | F106: 331.3691083
B107: 2048 | C107: 22000 | D107: 61500 | E107: 1069000 | F107: 335.8470692
B108: 2049 | C108: 22000 | D108: 61500 | E108: 1069000 | F108: 340.3250301
B109: 2050 | C109: 22000 | D109: 61500 | E109: 1069000 | F109: 344.8029911
B110: 2051 | C110: 22000 | D110: 61500 | E110: 1069000 | F110: 349.280952
B111: 2052 | C111: 22000 | D111: 61500 | E111: 1069000 | F111: 352.6394227
B112: 2053 | C112: 22000 | D112: 61500 | E112: 1069000 | F112: 357.1173836
B114: *Applicants should carefully note whether their emissions data is reported in short tons or metric tons. A metric ton is equal to 1.1023 short tons.
B115: **Applicants should be careful to not apply the PM2.5 value to estimates of total emissions of PM10.
A118: Table A-7: | B118: Inflation Adjustment Values
B119: Base Year of Nominal Dollar | C119: Multiplier to Adjust to Real 2022 $
B120: 2003 | C120: 1.53
B121: 2004 | C121: 1.49
B122: 2005 | C122: 1.45
B123: 2006 | C123: 1.4
B124: 2007 | C124: 1.37
B125: 2008 | C125: 1.34
B126: 2009 | C126: 1.33
B127: 2010 | C127: 1.32
B128: 2011 | C128: 1.29
B129: 2012 | C129: 1.27
B130: 2013 | C130: 1.24
B131: 2014 | C131: 1.22
B132: 2015 | C132: 1.21
B133: 2016 | C133: 1.2
B134: 2017 | C134: 1.18
B135: 2018 | C135: 1.15
B136: 2019 | C136: 1.13
B137: 2020 | C137: 1.12
B138: 2021 | C138: 1.07
B139: 2022 | C139: 1
A142: Table A-8: | B142: Pedestrian Facility Improvements Revealed Preference Values
B143: Improvement Type | C143: Recommended Value per Person-Mile Walked1 | D143: Current Maximum Width of Sidewalk (feet)
B144: Expand Sidewalk (per foot of added width)2 | C144: 0.11 | D144: 31
B145: Reducing Upslope by 1% | C145: 1.11
B146: Reducing Traffic Speed by 1 mph (for speeds ≤45 mph) | C146: 0.09
B147: Reducing Traffic Volume by 1 Vehicle per Hour (for ADT <55,000) | C147: 0.001
B149: Improvement Type | C149: Recommended Value per Use1
B150: Install Marked-Crosswalk on Roadway with Volumes ≥10,000 Vehicle per Day | C150: 0.19
B151: Install Signal for Pedestrian Crossing on Roadway with Volumes ≥13,000 Vehicles per Day | C151: 0.51
B153: 1) These values assume an average walking trip speed of 3.2 miles per hour. For the mile-based benefits, the estimated value per user should be capped at 0.86 miles, the average length of a walking trip in the 2017 National Household Travel Survey, unless the applicant has specific documentation suggesting longer trips or that a trip shorter than 0.86 miles is not feasible on the facility in question. In other words, applicants should not assume all pedestrians travel the full distance of a proposed facility if the facility is longer than 0.86 miles without a clear justification for doing so.
B154: 2) Value for sidewalk width expansion applicable for sidewalks up to approximately 31 feet, benefits for expansions beyond this width should be described qualitatively.
A157: Table A-9: | B157: Cycling Facility Improvement Revealed Preference Values
B158: Facility Type | C158: Recommended Value per Cycling Mile1
B159: Cycling Path with At-Grade Crossings | C159: 1.57
B160: Cycling Path with no At-Grade Crossings2 | C160: 1.97
B161: Dedicated Cycling Lane | C161: 1.86
B162: Cycling Boulevard/“Sharrow” | C162: 0.29
B163: Separated Cycle Track | C163: 1.86
B165: 1) Values should only be applied over sections for which a comparable parallel facility is not available, and only applies to miles cycled on the project facility. These values assume an average cycling trip speed of 9.8 miles per hour or, in the case of off-street paths with no at-grade crossings, a free-flow cycling speed of 12.1 miles per hour. The estimated value per cyclist should be capped at 2.38 miles, the average length of a cycling trip in the 2017 National Household Travel Survey, unless the applicant has specific documentation suggesting longer trips or that a trip shorter than 2.38 miles is not feasible on the facility in question. In other words, applicants should not assume all cyclists travel the full distance of a proposed facility if the facility is longer than 2.38 miles without a clear justification for doing so.
B166: 2) The value for a cycling path with no at-grade intersections is higher due to an assumption of higher average speed of 12.1 miles per hour, resulting in less time on the facility, which lowers journey quality benefits but increases travel time savings.
A169: Table A-10: | B169: Transit Facility Amenity Revealed and Stated Preference Values
B170: Amenity Type | C170: Recommended Value per User Trip
C171: Bus Stop | D171: Light Rail/Streetcar Stop | E171: Rail Station
B172: Clocks | C172: 0.03 | D172: 0.03 | E172: 0.07
B173: Electronic Real-Time Information Displays | C173: 0.32 | D173: 0.16 | E173: 0.9
B174: Information /Emergency Button | C174: 0.25 | D174: 0.25 | E174: 0.11
B175: PA System | C175: 0.32 | D175: 0.05 | E175: 0.1
B176: Platform/Stop Seating Availability1 | C176: 0.2 | D176: 0.14 | E176: 0.13
B177: Platform/Stop Weather Protection1 | C177: 0.26 | D177: 0.17 | E177: 0.13
B178: Restroom Availability | C178: 0.15 | D178: 0.15 | E178: 0.11
B179: Retail/Food Outlet Availability | C179: 0.11 | D179: 0.11 | E179: 0.06
B180: Staff Availability | C180: 0.08 | D180: 0.03 | E180: 0.19
B181: Step-Free Access to Station/Stop | C181: 0.33 | D181: 0.33 | E181: 0.21
B182: Step-Free Access to Vehicle | C182: 0.43 | D182: 0.08 | E182: 0.07
B183: Surveillance Cameras | C183: 0.32 | D183: 0.32 | E183: 0.33
B184: Temperature Controlled Environment1 | C184: 0.65 | D184: 0.65 | E184: 0.65
B185: Ticket Machines | C185: 0.11 | D185: 0.11 | E185: 0.07
B186: Timetables | C186: 0.24 | D186: 0.1 | E186: 0.5
B187: Bike Facilities | C187: * | D187: * | E187: 0.1
B188: Car Access Facilities | C188: * | D188: * | E188: 0.12
B189: Elevator | C189: * | D189: * | E189: 0.07
B190: Escalators | C190: * | D190: * | E190: 0.04
B191: On-Site Ticket Office | C191: * | D191: * | E191: 0.1
B192: Taxi Pickup/Dropoff | C192: * | D192: * | E192: 0.05
B193: Waiting Room1 | C193: * | D193: * | E193: 0.21
B195: 1) Note that seating availability and weather protection refer to seats, canopies, or wind shelters on the platforms themselves, whereas temperature-controlled environment refers to an indoor facility with heating and air conditioning availability. A waiting room refers to a designated indoor environment with seating availability, separate from platform seating, which may or may not be temperature controlled.
A198: Table A-11: | B198: Transit Vehicle Amenity Values
B199: Attribute Type | C199: Recommended Value per User Trip
C200: Bus | D200: Light Rail/Streetcar | E200: Rail
B201: Electronic Real-Time Information Displays | C201: 0.23 | D201: 0.23 | E201: 0.23
B202: Handrails | C202: 0.13 | D202: 0.13 | E202: 0.32
B203: Luggage Storage | C203: 0.09 | D203: 0.09 | E203: 0.09
B204: PA System | C204: 0.4 | D204: 0.4 | E204: 0.41
B205: Surveillance Cameras | C205: 0.23 | D205: 0.23 | E205: 0.65
B206: Temperature Control | C206: 0.33 | D206: 0.13 | E206: 0.49
B207: Wheelchair Space | C207: 0.05 | D207: 0.05 | E207: 0.05
B208: Food Service Availability | C208: * | D208: * | E208: 0.03
B209: Restroom Availability | C209: * | D209: * | E209: 0.2
A212: Table A-12: | B212: Transit Mode Ride and Boarding Quality Revealed Preference Values
B213: Transit Mode | C213: Boarding Quality Benefit (Per Boarding)1 | D213: Vehicle Ride Quality Benefit (Per Passenger Hour)1
B214: Standard On-street Bus | C214: 0 | D214: 0 | E214: This is the base case that is not in the original Table A-12. It is added to facilitate the calculation in the "Facility Improvement - Transit Mode" worksheet.
B215: Low-Intensive BRT2 | C215: 0.33 | D215: 0.39
B216: Medium-Intensive BRT2 | C216: 0.65 | D216: 0.78
B217: High-Intensive BRT2,3 | C217: 1.63 | D217: 1.57
B218: Streetcar or On-Street Light Rail Transit | C218: 1.96 | D218: 1.96
B219: Off-Street Light Rail Transit | C219: 3.27 | D219: 3.53
B220: Heavy Rail | C220: 3.59 | D220: 3.92
B221: Commuter Rail | C221: 5.23 | D221: 3.92
B222: Ferry3 | C222: 3.59 | D222: 3.92
B224: 1) Values applicable when base case is transit use of standard on-street bus, the reference case used to create these values. When comparing other types of modal shift, the differences between the relevant modal values above should be used.
B225: 2) Low-intensive BRT would include special service branding, low floor vehicles, at least 50 percent of route in dedicated lanes and potentially shared turns and the remainder in mixed-traffic, some signal priority, level boarding, off-board fare collection, and visually distinct stations. Medium-intensive BRT would include features of Low-intensive BRT but have 100 percent of the route in dedicated lanes, traffic signal priority throughout the corridor, and median-running service or right-turn prohibitions. High-intensive BRT would have a completely sealed right-of-way with no traffic interference and traffic signal preemption, akin to a “rubber-tired railroad.”
B226: 3) The Capital Investment Grant program has to date not completed a before-and-after study of ridership on a ferry project or a high-intensive BRT as described above, and thus does not have a calibrated estimate for the fixedguideway setting for those modes. Thus, these values represent the current best estimates, considering average station and ride quality relative to other transit modes.
A229: Table A-13: | B229: Mortality Reduction Benefits of Induced Active Transportation Values
B230: Mode | C230: Applicable Age Range3 | D230: Recommended Value per Induced Trip4 | E230: Average Trip Distance (Mile) | F230: % of Induced trips falling into the age ranges | G230: % of Induced Trips from Non-active Transportation Mode
B231: Walking1 | C231: Ages 20-74 | D231: 7.63 | E231: 0.86 | F231: 0.68 | G231: 0.89
B232: Cycling2 | C232: Ages 20-64 | D232: 6.8 | E232: 2.38 | F232: 0.59 | G232: 0.89
B234: 1) Based on an assumed average walking speed of 3.2 miles per hour, an assumed average age of the relevant age range (20-74 years) of 45, a corresponding baseline mortality risk of 267.1 per 100,000, an annual risk reduction of 8.6 percent per daily mile walked, and an average walking trip distance of 0.86 miles.
B235: 2) Based on an assumed average cycling speed of 9.8 miles per hour, an assumed average age of the relevant age range (20-64 years) of 42, a corresponding baseline mortality risk of 217.9 per 100,000, an annual risk reduction of 4.3 percent per daily mile cycled, and an average cycling trip distance of 2.38 miles.
B236: 3) Absent more localized data on the proportion of the expected users falling into the age ranges above, applicants may apply a general assumption of 68% and 59% of overall induced trips falling into the walking and cycling age ranges, respectively, assuming a distribution matching the national average.
B237: 4) Applicants should ensure these monetization values are only applied to trips induced from non-active transportation modes within the relevant age ranges for each mode. Absent more localized data on the proportion of induced trips coming from non-active transportation modes, applicants may apply a general assumption of 89% of induced trips falling into that category, assuming a distribution matching the national average travel pattern.
A240: Table A-14: | B240: External Highway Use Costs
... 13 more rows

Sheet BCA Summary
A1: Worksheet Description: | B1: Summary of costs and benefits
A2: BCA and NPV
A3: Calendar Year | B3: Benefits | C3: =_xlfn.CONCAT("Discounted @",TEXT('Major Assumption Key'!B8,"0.0%")) -> Discounted @3.1% | D3: Costs | E3: =_xlfn.CONCAT("Discounted @",TEXT('Major Assumption Key'!B8,"0.0%")) -> Discounted @3.1% | G3: Summary
A4: ='Major Assumption Key'!A19 -> 2020 | B4: ='Benefits Summary'!AV5 -> 0 | C4: ='Benefits Summary'!AW5 -> 0 | D4: ='Cost Summary'!V4 -> 0 | E4: ='Cost Summary'!W4 -> 0 | G4: Measure | H4: No Discount | I4: =_xlfn.CONCAT("Discounted @",TEXT('Major Assumption Key'!B8,"0.0%")) -> Discounted @3.1%
A5: ='Major Assumption Key'!A21 -> 2022 | B5: ='Benefits Summary'!AV6 -> 0 | C5: ='Benefits Summary'!AW6 -> 0 | D5: ='Cost Summary'!V5 -> 0 | E5: ='Cost Summary'!W5 -> 0 | G5: Benefits | H5: =B44 -> 549087669.6 | I5: =C44 -> 299547903.8
A6: ='Major Assumption Key'!A22 -> 2023 | B6: ='Benefits Summary'!AV7 -> 0 | C6: ='Benefits Summary'!AW7 -> 0 | D6: ='Cost Summary'!V6 -> 0 | E6: ='Cost Summary'!W6 -> 0 | G6: Costs | H6: =D44 -> 179652046.9 | I6: =E44 -> 149272921.8
A7: ='Major Assumption Key'!A23 -> 2024 | B7: ='Benefits Summary'!AV8 -> 0 | C7: ='Benefits Summary'!AW8 -> 0 | D7: ='Cost Summary'!V7 -> 0 | E7: ='Cost Summary'!W7 -> 0 | G7: BCA | H7: =IFERROR(B44/D44,0) -> 3.056395289 | I7: =IFERROR(C44/E44,0) -> 2.006712939
A8: ='Major Assumption Key'!A24 -> 2025 | B8: ='Benefits Summary'!AV9 -> 494716.5971 | C8: ='Benefits Summary'!AW9 -> 465413.686 | D8: ='Cost Summary'!V8 -> 770921.0526 | E8: ='Cost Summary'!W8 -> 725258.0787 | G8: NPV | H8: =B44-D44 -> 369435622.8 | I8: =C44-E44 -> 150274981.9
A9: ='Major Assumption Key'!A25 -> 2026 | B9: ='Benefits Summary'!AV10 -> 13847317.58 | C9: ='Benefits Summary'!AW10 -> 12635419.25 | D9: ='Cost Summary'!V9 -> 11357531.8 | E9: ='Cost Summary'!W9 -> 10363536.12
A10: ='Major Assumption Key'!A26 -> 2027 | B10: ='Benefits Summary'!AV11 -> 68953.89873 | C10: ='Benefits Summary'!AW11 -> 61027.30133 | D10: ='Cost Summary'!V10 -> 11357531.8 | E10: ='Cost Summary'!W10 -> 10051926.4
A11: ='Major Assumption Key'!A27 -> 2028 | B11: ='Benefits Summary'!AV12 -> -8158537.023 | C11: ='Benefits Summary'!AW12 -> -7003561.751 | D11: ='Cost Summary'!V11 -> 39041515.55 | E11: ='Cost Summary'!W11 -> 33514546.09 | G11: Rounded
A12: ='Major Assumption Key'!A28 -> 2029 | B12: ='Benefits Summary'!AV13 -> -8351226.727 | C12: ='Benefits Summary'!AW13 -> -6953417.124 | D12: ='Cost Summary'!V12 -> 39041515.55 | E12: ='Cost Summary'!W12 -> 32506834.23 | G12: Summary
A13: ='Major Assumption Key'!A29 -> 2030 | B13: ='Benefits Summary'!AV14 -> -8440303.657 | C13: ='Benefits Summary'!AW14 -> -6816279.881 | D13: ='Cost Summary'!V13 -> 39041515.55 | E13: ='Cost Summary'!W13 -> 31529422.14 | G13: Measure | H13: No Discount | I13: =_xlfn.CONCAT("Discounted @",TEXT('Major Assumption Key'!B8,"0.0%")) -> Discounted @3.1%
A14: ='Major Assumption Key'!A30 -> 2031 | B14: ='Benefits Summary'!AV15 -> -8389391.651 | C14: ='Benefits Summary'!AW15 -> -6571449.083 | D14: ='Cost Summary'!V14 -> 39041515.55 | E14: ='Cost Summary'!W14 -> 30581398.78 | G14: Benefits | H14: =ROUND(H5,-3) -> 549088000 | I14: =ROUND(I5,-3) -> 299548000
A15: ='Major Assumption Key'!A31 -> 2032 | B15: ='Benefits Summary'!AV16 -> 19939304.98 | C15: ='Benefits Summary'!AW16 -> 15172323.54 | D15: ='Cost Summary'!V15 -> 0 | E15: ='Cost Summary'!W15 -> 0 | G15: Costs | H15: =ROUND(H6,-3) -> 179652000 | I15: =ROUND(I6,-3) -> 149273000
A16: ='Major Assumption Key'!A32 -> 2033 | B16: ='Benefits Summary'!AV17 -> 38137077.64 | C16: ='Benefits Summary'!AW17 -> 28130628.75 | D16: ='Cost Summary'!V16 -> 0 | E16: ='Cost Summary'!W16 -> 0 | G16: BCA | H16: =ROUND(H7,1) -> 3.1 | I16: =ROUND(I7,1) -> 2
A17: ='Major Assumption Key'!A33 -> 2034 | B17: ='Benefits Summary'!AV18 -> 20072217.45 | C17: ='Benefits Summary'!AW18 -> 14377842.18 | D17: ='Cost Summary'!V18 -> 0 | E17: ='Cost Summary'!W18 -> 0 | G17: NPV | H17: =ROUND(H8,-3) -> 369436000 | I17: =ROUND(I8,-3) -> 150275000
A18: ='Major Assumption Key'!A34 -> 2035 | B18: ='Benefits Summary'!AV19 -> 20404838.67 | C18: ='Benefits Summary'!AW19 -> 14181461.76 | D18: ='Cost Summary'!V19 -> 0 | E18: ='Cost Summary'!W19 -> 0
A19: ='Major Assumption Key'!A35 -> 2036 | B19: ='Benefits Summary'!AV20 -> 17435922.38 | C19: ='Benefits Summary'!AW20 -> 11764330.53 | D19: ='Cost Summary'!V20 -> 0 | E19: ='Cost Summary'!W20 -> 0
A20: ='Major Assumption Key'!A36 -> 2037 | B20: ='Benefits Summary'!AV21 -> 18039510.85 | C20: ='Benefits Summary'!AW21 -> 11810484.13 | D20: ='Cost Summary'!V21 -> 0 | E20: ='Cost Summary'!W21 -> 0
A21: ='Major Assumption Key'!A37 -> 2038 | B21: ='Benefits Summary'!AV22 -> 18807237.96 | C21: ='Benefits Summary'!AW22 -> 11947731.7 | D21: ='Cost Summary'!V22 -> 0 | E21: ='Cost Summary'!W22 -> 0
A22: ='Major Assumption Key'!A38 -> 2039 | B22: ='Benefits Summary'!AV23 -> 19225162.24 | C22: ='Benefits Summary'!AW23 -> 11851354.26 | D22: ='Cost Summary'!V23 -> 0 | E22: ='Cost Summary'!W23 -> 0
A23: ='Major Assumption Key'!A39 -> 2040 | B23: ='Benefits Summary'!AV24 -> 43531530.51 | C23: ='Benefits Summary'!AW24 -> 25967207.55 | D23: ='Cost Summary'!V24 -> 0 | E23: ='Cost Summary'!W24 -> 0
A24: ='Major Assumption Key'!A40 -> 2041 | B24: ='Benefits Summary'!AV25 -> 19418460.52 | C24: ='Benefits Summary'!AW25 -> 11275290.4 | D24: ='Cost Summary'!V25 -> 0 | E24: ='Cost Summary'!W25 -> 0
A25: ='Major Assumption Key'!A41 -> 2042 | B25: ='Benefits Summary'!AV26 -> 17968257.9 | C25: ='Benefits Summary'!AW26 -> 10132295.09 | D25: ='Cost Summary'!V26 -> 0 | E25: ='Cost Summary'!W26 -> 0
A26: ='Major Assumption Key'!A42 -> 2043 | B26: ='Benefits Summary'!AV27 -> 18548225.63 | C26: ='Benefits Summary'!AW27 -> 10151006.26 | D26: ='Cost Summary'!V27 -> 0 | E26: ='Cost Summary'!W27 -> 0
A27: ='Major Assumption Key'!A43 -> 2044 | B27: ='Benefits Summary'!AV28 -> 19262894.82 | C27: ='Benefits Summary'!AW28 -> 10231127.91 | D27: ='Cost Summary'!V28 -> 0 | E27: ='Cost Summary'!W28 -> 0
A28: ='Major Assumption Key'!A44 -> 2045 | B28: ='Benefits Summary'!AV29 -> 20259243.72 | C28: ='Benefits Summary'!AW29 -> 10441938.13 | D28: ='Cost Summary'!V29 -> 0 | E28: ='Cost Summary'!W29 -> 0
A29: ='Major Assumption Key'!A45 -> 2046 | B29: ='Benefits Summary'!AV30 -> 20871319.02 | C29: ='Benefits Summary'!AW30 -> 10441229.25 | D29: ='Cost Summary'!V30 -> 0 | E29: ='Cost Summary'!W30 -> 0
A30: ='Major Assumption Key'!A46 -> 2047 | B30: ='Benefits Summary'!AV31 -> 53609134.6 | C30: ='Benefits Summary'!AW31 -> 25871902.95 | D30: ='Cost Summary'!V31 -> 0 | E30: ='Cost Summary'!W31 -> 0
A31: ='Major Assumption Key'!A47 -> 2048 | B31: ='Benefits Summary'!AV32 -> 21594202.04 | C31: ='Benefits Summary'!AW32 -> 10196106.66 | D31: ='Cost Summary'!V32 -> 0 | E31: ='Cost Summary'!W32 -> 0
A32: ='Major Assumption Key'!A48 -> 2049 | B32: ='Benefits Summary'!AV33 -> 22309230.18 | C32: ='Benefits Summary'!AW33 -> 10226019.21 | D32: ='Cost Summary'!V33 -> 0 | E32: ='Cost Summary'!W33 -> 0
A33: ='Major Assumption Key'!A49 -> 2050 | B33: ='Benefits Summary'!AV34 -> 23149239.27 | C33: ='Benefits Summary'!AW34 -> 10300819.17 | D33: ='Cost Summary'!V34 -> 0 | E33: ='Cost Summary'!W34 -> 0
A34: ='Major Assumption Key'!A50 -> 2051 | B34: ='Benefits Summary'!AV35 -> 115433130.2 | C34: ='Benefits Summary'!AW35 -> 49259651.94 | D34: ='Cost Summary'!V35 -> 0 | E34: ='Cost Summary'!W35 -> 0
A35: ='Major Assumption Key'!A51 -> 2052 | B35: ='Benefits Summary'!AV36 -> 0 | C35: ='Benefits Summary'!AW36 -> 0 | D35: ='Cost Summary'!V36 -> 0 | E35: ='Cost Summary'!W36 -> 0
A36: ='Major Assumption Key'!A52 -> 2053 | B36: ='Benefits Summary'!AV37 -> 0 | C36: ='Benefits Summary'!AW37 -> 0 | D36: ='Cost Summary'!V37 -> 0 | E36: ='Cost Summary'!W37 -> 0
A37: ='Major Assumption Key'!A53 -> 2054 | B37: ='Benefits Summary'!AV38 -> 0 | C37: ='Benefits Summary'!AW38 -> 0 | D37: ='Cost Summary'!V38 -> 0 | E37: ='Cost Summary'!W38 -> 0
A38: ='Major Assumption Key'!A54 -> 2055 | B38: ='Benefits Summary'!AV39 -> 0 | C38: ='Benefits Summary'!AW39 -> 0 | D38: ='Cost Summary'!V39 -> 0 | E38: ='Cost Summary'!W39 -> 0
A39: ='Major Assumption Key'!A55 -> 2056 | B39: ='Benefits Summary'!AV40 -> 0 | C39: ='Benefits Summary'!AW40 -> 0 | D39: ='Cost Summary'!V40 -> 0 | E39: ='Cost Summary'!W40 -> 0
A40: ='Major Assumption Key'!A56 -> 2057 | B40: ='Benefits Summary'!AV41 -> 0 | C40: ='Benefits Summary'!AW41 -> 0 | D40: ='Cost Summary'!V41 -> 0 | E40: ='Cost Summary'!W41 -> 0
A41: ='Major Assumption Key'!A57 -> 2058 | B41: ='Benefits Summary'!AV42 -> 0 | C41: ='Benefits Summary'!AW42 -> 0 | D41: ='Cost Summary'!V42 -> 0 | E41: ='Cost Summary'!W42 -> 0
A42: ='Major Assumption Key'!A58 -> 2059 | B42: ='Benefits Summary'!AV43 -> 0 | C42: ='Benefits Summary'!AW43 -> 0 | D42: ='Cost Summary'!V43 -> 0 | E42: ='Cost Summary'!W43 -> 0
A43: ='Major Assumption Key'!A59 -> 2060 | B43: ='Benefits Summary'!AV44 -> 0 | C43: ='Benefits Summary'!AW44 -> 0 | D43: ='Cost Summary'!V44 -> 0 | E43: ='Cost Summary'!W44 -> 0
A44: Totals | B44: =SUM(B4:B43) -> 549087669.6 | C44: =SUM(C4:C43) -> 299547903.8 | D44: 179652046.9 | E44: 149272921.8
A46: Internal Rate of Return
A47: Calendar Year | B47: Benefits | C47: Costs | D47: =_xlfn.CONCAT("Discounted @",TEXT('Major Assumption Key'!B8,"0.0%")) -> Discounted @3.1% | E47: =_xlfn.CONCAT("Discounted @",TEXT('Major Assumption Key'!B8,"0.0%")) -> Discounted @3.1%
A48: =A4 -> 2020 | B48: =B4 -> 0 | C48: =D4*-1 -> 0 | D48: =C4 -> 0 | E48: =E4*-1 -> 0
A49: =A5 -> 2022 | B49: 0 | C49: =D5*-1 -> 0 | D49: =C5 -> 0 | E49: =E5*-1 -> 0
A50: =A6 -> 2023 | B50: 0 | C50: 0 | D50: 0 | E50: 0
A51: =A7 -> 2024 | B51: 0 | C51: 0 | D51: 0 | E51: 0
A52: =A8 -> 2025 | B52: 494716.5971 | C52: -770921.0526 | D52: 465413.686 | E52: -725258.0787
A53: =A9 -> 2026 | B53: 13847317.58 | C53: -11357531.8 | D53: 12635419.25 | E53: -10363536.12
A54: =A10 -> 2027 | B54: 68953.89873 | C54: -11357531.8 | D54: 61027.30133 | E54: -10051926.4
A55: =A11 -> 2028 | B55: -8158537.023 | C55: -39041515.55 | D55: -7003561.751 | E55: -33514546.09
A56: =A12 -> 2029 | B56: -8351226.727 | C56: -39041515.55 | D56: -6953417.124 | E56: -32506834.23
A57: =A13 -> 2030 | B57: -8440303.657 | C57: -39041515.55 | D57: -6816279.881 | E57: -31529422.14
A58: =A14 -> 2031 | B58: -8389391.651 | C58: -39041515.55 | D58: -6571449.083 | E58: -30581398.78
A59: =A15 -> 2032 | B59: 19939304.98 | C59: 0 | D59: 15172323.54 | E59: 0
A60: =A16 -> 2033 | B60: 38137077.64 | C60: 0 | D60: 28130628.75 | E60: 0
A61: =A17 -> 2034 | B61: 20072217.45 | C61: 0 | D61: 14377842.18 | E61: 0
A62: =A18 -> 2035 | B62: 20404838.67 | C62: 0 | D62: 14181461.76 | E62: 0
A63: =A19 -> 2036 | B63: 17435922.38 | C63: 0 | D63: 11764330.53 | E63: 0
A64: =A20 -> 2037 | B64: 18039510.85 | C64: 0 | D64: 11810484.13 | E64: 0
A65: =A21 -> 2038 | B65: 18807237.96 | C65: 0 | D65: 11947731.7 | E65: 0
A66: =A22 -> 2039 | B66: 19225162.24 | C66: 0 | D66: 11851354.26 | E66: 0
A67: =A23 -> 2040 | B67: 43531530.51 | C67: 0 | D67: 25967207.55 | E67: 0
A68: =A24 -> 2041 | B68: 19418460.52 | C68: 0 | D68: 11275290.4 | E68: 0
A69: =A25 -> 2042 | B69: 17968257.9 | C69: 0 | D69: 10132295.09 | E69: 0
A70: =A26 -> 2043 | B70: 18548225.63 | C70: 0 | D70: 10151006.26 | E70: 0
A71: =A27 -> 2044 | B71: 19262894.82 | C71: 0 | D71: 10231127.91 | E71: 0
A72: =A28 -> 2045 | B72: 20259243.72 | C72: 0 | D72: 10441938.13 | E72: 0
A73: =A29 -> 2046 | B73: 20871319.02 | C73: 0 | D73: 10441229.25 | E73: 0
A74: =A30 -> 2047 | B74: 53609134.6 | C74: 0 | D74: 25871902.95 | E74: 0
A75: =A31 -> 2048 | B75: 21594202.04 | C75: 0 | D75: 10196106.66 | E75: 0
A76: =A32 -> 2049 | B76: 22309230.18 | C76: 0 | D76: 10226019.21 | E76: 0
A77: =A33 -> 2050 | B77: 23149239.27 | C77: 0 | D77: 10300819.17 | E77: 0
A78: =A34 -> 2051 | B78: 115433130.2 | C78: 0 | D78: 49259651.94 | E78: 0
A79: =A35 -> 2052 | B79: 0 | C79: 0 | D79: 0 | E79: 0
A80: =A36 -> 2053 | B80: 0 | C80: 0 | D80: 0 | E80: 0
A81: =A37 -> 2054 | B81: 0 | C81: 0 | D81: 0 | E81: 0
A82: =A38 -> 2055 | B82: 0 | C82: 0 | D82: 0 | E82: 0
A83: =A39 -> 2056 | B83: 0 | C83: 0 | D83: 0 | E83: 0
A84: =A40 -> 2057 | B84: 0 | C84: 0 | D84: 0 | E84: 0
A85: =A41 -> 2058 | B85: 0 | C85: 0 | D85: 0 | E85: 0
A86: =A42 -> 2059 | B86: 0 | C86: 0 | D86: 0 | E86: 0
A87: =A43 -> 2060 | B87: 0 | C87: 0 | D87: 0 | E87: 0
A88: Totals | B88: =SUM(B48:B87) -> 549087669.6 | C88: =SUM(C48:C87) -> -179652046.9 | D88: 299547903.8 | E88: -149272921.8

Sheet Cost Summary
A1: Worksheet Description: | B1: Summary of all costs
H3: Calendar Year | I3: Planning (Nominal $) YOE | J3: Planning (Real $) | K3: =_xlfn.CONCAT("Discounted @ ", TEXT('Major Assumption Key'!B8,"0.0%")) -> Discounted @ 3.1% | L3: Design/Environmental (Nominal $) YOE | M3: Design/Environmental (Real $) | N3: =_xlfn.CONCAT("Discounted @ ", TEXT('Major Assumption Key'!$B$8,"0.0%")) -> Discounted @ 3.1% | O3: Construction (Nominal $) YOE | P3: Construction (Real $) | Q3: =_xlfn.CONCAT("Discounted @ ", TEXT('Major Assumption Key'!$B$8,"0.0%")) -> Discounted @ 3.1% | U3: Project Costs (Nominal $) YOE | V3: Project Costs (Real $) | W3: =_xlfn.CONCAT("Project Costs Discounted @ ", TEXT('Major Assumption Key'!$B$8,"0.0%")) -> Project Costs Discounted @ 3.1%
H4: ='Major Assumption Key'!A19 -> 2020 | I4: =IF(AND(H4>=$C$24,H4<=$D$24),IF($C$24=$D$24,$B$24*(1+$B$19)^(H4-$E$24),$B$24/($D$24-$C$24+1)*(1+$B$19)^(H4-$E$24)),0) -> 0 | J4: =$I4/(1+$B$19)^($H4-$B$20) -> 0 | K4: =$J4/(1+$B$21)^($H4-$B$20) -> 0 | L4: =IF(AND(H4>=$C$25,H4<=$D$25),IF($C$25=$D$25,$B$25*(1+$B$19)^(H4-$E$25),$B$25/($D$25-$C$25+1)*(1+$B$19)^(H4-$E$25)),0) -> 0 | M4: =$L4/(1+$B$19)^($H4-$B$20) -> 0 | N4: =$M4/(1+$B$21)^($H4-$B$20) -> 0 | O4: =IF(AND(H4>=$C$26,H4<=$D$26),IF($C$26=$D$26,$B$26*(1+$B$19)^(H4-$E$26),$B$26/($D$26-$C$26+1)*(1+$B$19)^(H4-$E$26)),0) -> 0 | P4: =$O4/(1+$B$19)^($H4-$B$20) -> 0 | Q4: =$P4/(1+$B$21)^($H4-$B$20) -> 0 | U4: =I4+L4+O4 -> 0 | V4: =J4+M4+P4 -> 0 | W4: =K4+N4+Q4 -> 0
H5: ='Major Assumption Key'!A20 -> 2021 | I5: =IF(AND(H5>=$C$24,H5<=$D$24),IF($C$24=$D$24,$B$24*(1+$B$19)^(H5-$E$24),$B$24/($D$24-$C$24+1)*(1+$B$19)^(H5-$E$24)),0) -> 0 | J5: =$I5/(1+$B$19)^($H5-$B$20) -> 0 | K5: =$J5/(1+$B$21)^($H5-$B$20) -> 0 | L5: =IF(AND(H5>=$C$25,H5<=$D$25),IF($C$25=$D$25,$B$25*(1+$B$19)^(H5-$E$25),$B$25/($D$25-$C$25+1)*(1+$B$19)^(H5-$E$25)),0) -> 0 | M5: =$L5/(1+$B$19)^($H5-$B$20) -> 0 | N5: =$M5/(1+$B$21)^($H5-$B$20) -> 0 | O5: =IF(AND(H5>=$C$26,H5<=$D$26),IF($C$26=$D$26,$B$26*(1+$B$19)^(H5-$E$26),$B$26/($D$26-$C$26+1)*(1+$B$19)^(H5-$E$26)),0) -> 0 | P5: =$O5/(1+$B$19)^($H5-$B$20) -> 0 | Q5: =$P5/(1+$B$21)^($H5-$B$20) -> 0 | U5: =I5+L5+O5 -> 0 | V5: =J5+M5+P5 -> 0 | W5: =K5+N5+Q5 -> 0
H6: ='Major Assumption Key'!A21 -> 2022 | I6: =IF(AND(H6>=$C$24,H6<=$D$24),IF($C$24=$D$24,$B$24*(1+$B$19)^(H6-$E$24),$B$24/($D$24-$C$24+1)*(1+$B$19)^(H6-$E$24)),0) -> 0 | J6: 0 | K6: 0 | L6: 0 | M6: 0 | N6: 0 | O6: 0 | P6: 0 | Q6: 0 | U6: 0 | V6: 0 | W6: 0
H7: ='Major Assumption Key'!A22 -> 2023 | I7: 0 | J7: 0 | K7: 0 | L7: 0 | M7: 0 | N7: 0 | O7: 0 | P7: 0 | Q7: 0 | U7: =I7+L7+O7 -> 0 | V7: =J7+M7+P7 -> 0 | W7: =K7+N7+Q7 -> 0
H8: ='Major Assumption Key'!A23 -> 2024 | I8: =IF(AND(H8>=$C$24,H8<=$D$24),IF($C$24=$D$24,$B$24*(1+$B$19)^(H8-$E$24),$B$24/($D$24-$C$24+1)*(1+$B$19)^(H8-$E$24)),0) -> 814530.1987 | J8: =$I8/(1+$B$19)^($H8-$B$20) -> 770921.0526 | K8: =$J8/(1+$B$21)^($H8-$B$20) -> 725258.0787 | L8: 0 | M8: 0 | N8: 0 | O8: 0 | P8: 0 | Q8: 0 | U8: 814530.1987 | V8: 770921.0526 | W8: 725258.0787
A9: Sensitivity Analysis | H9: ='Major Assumption Key'!A24 -> 2025 | I9: 0 | J9: 0 | K9: 0 | L9: 12334736.84 | M9: 11357531.8 | N9: 10363536.12 | O9: 0 | P9: 0 | Q9: 0 | U9: 12334736.84 | V9: 11357531.8 | W9: 10363536.12
A10: Measure | C10: No Discount | D10: =_xlfn.CONCAT("Discounted @",TEXT('Major Assumption Key'!B8,"0.0%")) -> Discounted @3.1% | H10: ='Major Assumption Key'!A25 -> 2026 | I10: 0 | J10: 0 | K10: 0 | L10: 12678811.08 | M10: 11357531.8 | N10: 10051926.4 | O10: 0 | P10: 0 | Q10: 0 | U10: 12678811.08 | V10: 11357531.8 | W10: 10051926.4
A11: BCA | C11: ='BCA Summary'!$H$7 -> 3.056395289 | D11: ='BCA Summary'!$I$7 -> 2.006712939 | H11: ='Major Assumption Key'!A26 -> 2027 | I11: 0 | J11: 0 | K11: 0 | L11: 0 | M11: 0 | N11: 0 | O11: 44799160.93 | P11: 39041515.55 | Q11: 33514546.09 | U11: 44799160.93 | V11: 39041515.55 | W11: 33514546.09
A12: NPV | C12: ='BCA Summary'!$H$8 -> 369435622.8 | D12: ='BCA Summary'!$I$8 -> 150274981.9 | H12: ='Major Assumption Key'!A27 -> 2028 | I12: 0 | J12: 0 | K12: 0 | L12: 0 | M12: 0 | N12: 0 | O12: =IF(AND(H12>=$C$26,H12<=$D$26),IF($C$26=$D$26,$B$26*(1+$B$19)^(H12-$E$26),$B$26/($D$26-$C$26+1)*(1+$B$19)^(H12-$E$26)),0) -> 46048821.73 | P12: =$O12/(1+$B$19)^($H12-$B$20) -> 39041515.55 | Q12: =$P12/(1+$B$21)^($H12-$B$20) -> 32506834.23 | U12: 46048821.73 | V12: 39041515.55 | W12: 32506834.23
H13: ='Major Assumption Key'!A28 -> 2029 | I13: 0 | J13: 0 | K13: 0 | L13: 0 | M13: 0 | N13: 0 | O13: 47333341.5 | P13: 39041515.55 | Q13: 31529422.14 | U13: 47333341.5 | V13: 39041515.55 | W13: 31529422.14
H14: ='Major Assumption Key'!A29 -> 2030 | I14: 0 | J14: 0 | K14: 0 | L14: 0 | M14: 0 | N14: 0 | O14: 48653692.6 | P14: 39041515.55 | Q14: 30581398.78 | U14: 48653692.6 | V14: 39041515.55 | W14: 30581398.78
A15: Assumptions | B15: Data Point | C15: Data Source | H15: ='Major Assumption Key'!A30 -> 2031 | I15: 0 | J15: 0 | K15: 0 | L15: 0 | M15: 0 | N15: 0 | O15: 0 | P15: 0 | Q15: 0 | U15: 0 | V15: 0 | W15: 0
A16: ='Major Assumption Key'!A3 -> Project Open Year: | B16: ='Major Assumption Key'!B3 -> 2031 | C16: Major Assumption Key | H16: ='Major Assumption Key'!A31 -> 2032 | I16: 0 | J16: 0 | K16: 0 | L16: 0 | M16: 0 | N16: 0 | O16: 0 | P16: 0 | Q16: 0 | U16: 0 | V16: 0 | W16: 0
A17: ='Major Assumption Key'!A4 -> Planning Horizon Begin Year: | B17: ='Major Assumption Key'!B4 -> 2024 | C17: Major Assumption Key | H17: ='Major Assumption Key'!A32 -> 2033 | I17: 0 | J17: 0 | K17: 0 | L17: 0 | M17: 0 | N17: 0 | O17: 0 | P17: 0 | Q17: 0 | U17: 0 | V17: 0 | W17: 0
A18: ='Major Assumption Key'!A6 -> Planning Horizon End Year: | B18: ='Major Assumption Key'!B6 -> 2050 | C18: Major Assumption Key | H18: ='Major Assumption Key'!A33 -> 2034 | I18: 0 | J18: 0 | K18: 0 | L18: 0 | M18: 0 | N18: 0 | O18: 0 | P18: 0 | Q18: 0 | U18: 0 | V18: 0 | W18: 0
A19: ='Major Assumption Key'!$A$10 -> Inflation Rate | B19: ='Major Assumption Key'!$B$10 -> 0.02789473684 | C19: Major Assumption Key | H19: ='Major Assumption Key'!A34 -> 2035 | I19: 0 | J19: 0 | K19: 0 | L19: 0 | M19: 0 | N19: 0 | O19: 0 | P19: 0 | Q19: 0 | U19: 0 | V19: 0 | W19: 0
A20: ='Major Assumption Key'!$A$7 -> Discount Year | B20: ='Major Assumption Key'!$B$7 -> 2022 | C20: Major Assumption Key | H20: ='Major Assumption Key'!A35 -> 2036 | I20: 0 | J20: 0 | K20: 0 | L20: 0 | M20: 0 | N20: 0 | O20: 0 | P20: 0 | Q20: 0 | U20: 0 | V20: 0 | W20: 0
A21: ='Major Assumption Key'!$A$8 -> Discount | B21: ='Major Assumption Key'!$B$8 -> 0.031 | C21: Major Assumption Key | H21: ='Major Assumption Key'!A36 -> 2037 | I21: 0 | J21: 0 | K21: 0 | L21: 0 | M21: 0 | N21: 0 | O21: 0 | P21: 0 | Q21: 0 | U21: 0 | V21: 0 | W21: 0
H22: ='Major Assumption Key'!A37 -> 2038 | I22: 0 | J22: 0 | K22: 0 | L22: 0 | M22: 0 | N22: 0 | O22: 0 | P22: 0 | Q22: 0 | U22: 0 | V22: 0 | W22: 0
B23: Cost $ | C23: Start Year | D23: End Year | E23: Year of Cost Estimates | F23: Data Source | H23: ='Major Assumption Key'!A38 -> 2039 | I23: 0 | J23: 0 | K23: 0 | L23: 0 | M23: 0 | N23: 0 | O23: 0 | P23: 0 | Q23: 0 | U23: 0 | V23: 0 | W23: 0
A24: Planning Cost | B24: 750000 | C24: 2024 | D24: 2024 | E24: 2021 | H24: ='Major Assumption Key'!A39 -> 2040 | I24: 0 | J24: 0 | K24: 0 | L24: 0 | M24: 0 | N24: 0 | O24: 0 | P24: 0 | Q24: 0 | U24: 0 | V24: 0 | W24: 0
A25: Design/Environmental Cost | B25: 24000000 | C25: 2025 | D25: 2026 | E25: 2024 | F25: Cost Est. | H25: ='Major Assumption Key'!A40 -> 2041 | I25: 0 | J25: 0 | K25: 0 | L25: 0 | M25: 0 | N25: 0 | O25: 0 | P25: 0 | Q25: 0 | U25: 0 | V25: 0 | W25: 0
A26: Consutrction Cost | B26: =121000000+44000000 -> 165000000 | C26: 2027 | D26: 2030 | E26: 2024 | F26: Cost Est. | H26: ='Major Assumption Key'!A41 -> 2042 | I26: 0 | J26: 0 | K26: 0 | L26: 0 | M26: 0 | N26: 0 | O26: 0 | P26: 0 | Q26: 0 | U26: 0 | V26: 0 | W26: 0
H27: ='Major Assumption Key'!A42 -> 2043 | I27: 0 | J27: 0 | K27: 0 | L27: 0 | M27: 0 | N27: 0 | O27: 0 | P27: 0 | Q27: 0 | U27: 0 | V27: 0 | W27: 0
H28: ='Major Assumption Key'!A43 -> 2044 | I28: 0 | J28: 0 | K28: 0 | L28: 0 | M28: 0 | N28: 0 | O28: 0 | P28: 0 | Q28: 0 | U28: 0 | V28: 0 | W28: 0
H29: ='Major Assumption Key'!A44 -> 2045 | I29: 0 | J29: 0 | K29: 0 | L29: 0 | M29: 0 | N29: 0 | O29: 0 | P29: 0 | Q29: 0 | U29: 0 | V29: 0 | W29: 0
H30: ='Major Assumption Key'!A45 -> 2046 | I30: 0 | J30: 0 | K30: 0 | L30: 0 | M30: 0 | N30: 0 | O30: 0 | P30: 0 | Q30: 0 | U30: 0 | V30: 0 | W30: 0
H31: ='Major Assumption Key'!A46 -> 2047 | I31: 0 | J31: 0 | K31: 0 | L31: 0 | M31: 0 | N31: 0 | O31: 0 | P31: 0 | Q31: 0 | U31: 0 | V31: 0 | W31: 0
H32: ='Major Assumption Key'!A47 -> 2048 | I32: 0 | J32: 0 | K32: 0 | L32: 0 | M32: 0 | N32: 0 | O32: 0 | P32: 0 | Q32: 0 | U32: 0 | V32: 0 | W32: 0
H33: ='Major Assumption Key'!A48 -> 2049 | I33: 0 | J33: 0 | K33: 0 | L33: 0 | M33: 0 | N33: 0 | O33: 0 | P33: 0 | Q33: 0 | U33: 0 | V33: 0 | W33: 0
H34: ='Major Assumption Key'!A49 -> 2050 | I34: 0 | J34: 0 | K34: 0 | L34: 0 | M34: 0 | N34: 0 | O34: 0 | P34: 0 | Q34: 0 | U34: 0 | V34: 0 | W34: 0
H35: ='Major Assumption Key'!A50 -> 2051 | I35: 0 | J35: 0 | K35: 0 | L35: 0 | M35: 0 | N35: 0 | O35: 0 | P35: 0 | Q35: 0 | U35: 0 | V35: 0 | W35: 0
H36: ='Major Assumption Key'!A51 -> 2052 | I36: 0 | J36: 0 | K36: 0 | L36: 0 | M36: 0 | N36: 0 | O36: 0 | P36: 0 | Q36: 0 | U36: 0 | V36: 0 | W36: 0
H37: ='Major Assumption Key'!A52 -> 2053 | I37: 0 | J37: 0 | K37: 0 | L37: 0 | M37: 0 | N37: 0 | O37: 0 | P37: 0 | Q37: 0 | U37: 0 | V37: 0 | W37: 0
H38: ='Major Assumption Key'!A53 -> 2054 | I38: 0 | J38: 0 | K38: 0 | L38: 0 | M38: 0 | N38: 0 | O38: 0 | P38: 0 | Q38: 0 | U38: 0 | V38: 0 | W38: 0
H39: ='Major Assumption Key'!A54 -> 2055 | I39: 0 | J39: 0 | K39: 0 | L39: 0 | M39: 0 | N39: 0 | O39: 0 | P39: 0 | Q39: 0 | U39: 0 | V39: 0 | W39: 0
H40: ='Major Assumption Key'!A55 -> 2056 | I40: 0 | J40: 0 | K40: 0 | L40: 0 | M40: 0 | N40: 0 | O40: 0 | P40: 0 | Q40: 0 | U40: 0 | V40: 0 | W40: 0
H41: ='Major Assumption Key'!A56 -> 2057 | I41: 0 | J41: 0 | K41: 0 | L41: 0 | M41: 0 | N41: 0 | O41: 0 | P41: 0 | Q41: 0 | U41: 0 | V41: 0 | W41: 0
H42: ='Major Assumption Key'!A57 -> 2058 | I42: 0 | J42: 0 | K42: 0 | L42: 0 | M42: 0 | N42: 0 | O42: 0 | P42: 0 | Q42: 0 | U42: 0 | V42: 0 | W42: 0
H43: ='Major Assumption Key'!A58 -> 2059 | I43: 0 | J43: 0 | K43: 0 | L43: 0 | M43: 0 | N43: 0 | O43: 0 | P43: 0 | Q43: 0 | U43: 0 | V43: 0 | W43: 0
H44: ='Major Assumption Key'!A59 -> 2060 | I44: 0 | J44: 0 | K44: 0 | L44: 0 | M44: 0 | N44: 0 | O44: 0 | P44: 0 | Q44: 0 | U44: 0 | V44: 0 | W44: 0
H45: Totals | I45: =SUM(I4:I44) -> 814530.1987 | J45: =SUM(J4:J44) -> 770921.0526 | K45: 725258.0787 | L45: 25013547.92 | M45: 22715063.6 | N45: 20415462.53 | O45: 186835016.8 | P45: 156166062.2 | Q45: 128132201.2 | U45: =SUM(U4:U44) -> 212663094.9 | V45: =SUM(V4:V44) -> 179652046.9 | W45: =SUM(W4:W44) -> 149272921.8
H46: Rounded Total | I46: =ROUND(I45,-3) -> 815000 | J46: 771000 | K46: 725000 | L46: 25014000 | M46: 22715000 | N46: 20415000 | O46: 186835000 | P46: 156166000 | Q46: 128132000 | U46: =ROUND(U45,-3) -> 212663000 | V46: =ROUND(V45,-3) -> 179652000 | W46: =ROUND(W45,-3) -> 149273000

Sheet Benefits Summary
A1: Worksheet Description: | B1: Summary of all benefits
A2: Hyperlink | B2: =HYPERLINK("#'"&INDEX('Master Key'!$B:$B,MATCH(B3,'Master Key'!$B:$B,0),1)&"'!A1","Go To Sheet") -> Go To Sheet | D2: =HYPERLINK("#'"&INDEX('Master Key'!$B:$B,MATCH(D3,'Master Key'!$B:$B,0),1)&"'!A1","Go To Sheet") -> Go To Sheet | F2: =HYPERLINK("#'"&INDEX('Master Key'!$B:$B,MATCH(F3,'Master Key'!$B:$B,0),1)&"'!A1","Go To Sheet") -> Go To Sheet | H2: =HYPERLINK("#'"&INDEX('Master Key'!$B:$B,MATCH(H3,'Master Key'!$B:$B,0),1)&"'!A1","Go To Sheet") -> Go To Sheet | J2: =HYPERLINK("#'"&INDEX('Master Key'!$B:$B,MATCH(J3,'Master Key'!$B:$B,0),1)&"'!A1","Go To Sheet") -> Go To Sheet | L2: =HYPERLINK("#'"&INDEX('Master Key'!$B:$B,MATCH(L3,'Master Key'!$B:$B,0),1)&"'!A1","Go To Sheet") -> Go To Sheet | N2: =HYPERLINK("#'"&INDEX('Master Key'!$B:$B,MATCH(N3,'Master Key'!$B:$B,0),1)&"'!A1","Go To Sheet") -> Go To Sheet | P2: =HYPERLINK("#'"&INDEX('Master Key'!$B:$B,MATCH(P3,'Master Key'!$B:$B,0),1)&"'!A1","Go To Sheet") -> Go To Sheet | R2: =HYPERLINK("#'"&INDEX('Master Key'!$B:$B,MATCH("Facility Improve - Ped",'Master Key'!$B:$B,0),1)&"'!A1","Go To Sheet") -> Go To Sheet | T2: =HYPERLINK("#'"&INDEX('Master Key'!$B:$B,MATCH("Facility Improve - Bike",'Master Key'!$B:$B,0),1)&"'!A1","Go To Sheet") -> Go To Sheet | V2: =HYPERLINK("#'"&INDEX('Master Key'!$B:$B,MATCH("Facility Improve - Transit Stop",'Master Key'!$B:$B,0),1)&"'!A1","Go To Sheet") -> Go To Sheet | X2: =HYPERLINK("#'"&INDEX('Master Key'!$B:$B,MATCH(X3,'Master Key'!$B:$B,0),1)&"'!A1","Go To Sheet") -> Go To Sheet | Z2: =HYPERLINK("#'"&INDEX('Master Key'!$B:$B,MATCH("Amenity Improve - Transit Veh ",'Master Key'!$B:$B,0),1)&"'!A1","Go To Sheet") -> Go To Sheet | AB2: =HYPERLINK("#'"&INDEX('Master Key'!$B:$B,MATCH("Value of Travel Time",'Master Key'!$B:$B,0),1)&"'!A1","Go To Sheet") -> Go To Sheet | AD2: =HYPERLINK("#'"&INDEX('Master Key'!$B:$B,MATCH("Operating Cost Savings",'Master Key'!$B:$B,0),1)&"'!A1","Go To Sheet") -> Go To Sheet | AF2: =HYPERLINK("#'"&INDEX('Master Key'!$B:$B,MATCH("Mortality Reduction - Walk",'Master Key'!$B:$B,0),1)&"'!A1","Go To Sheet") -> Go To Sheet | AH2: =HYPERLINK("#'"&INDEX('Master Key'!$B:$B,MATCH("Mortality Reduction - Bike",'Master Key'!$B:$B,0),1)&"'!A1","Go To Sheet") -> Go To Sheet | AJ2: =HYPERLINK("#'"&INDEX('Master Key'!$B:$B,MATCH(AJ3,'Master Key'!$B:$B,0),1)&"'!A1","Go To Sheet") -> Go To Sheet | AL2: =HYPERLINK("#'"&INDEX('Master Key'!$B:$B,MATCH(AL3,'Master Key'!$B:$B,0),1)&"'!A1","Go To Sheet") -> Go To Sheet | AN2: =HYPERLINK("#'"&INDEX('Master Key'!$B:$B,MATCH(AN3,'Master Key'!$B:$B,0),1)&"'!A1","Go To Sheet") -> Go To Sheet | AP2: =HYPERLINK("#'"&INDEX('Master Key'!$B:$B,MATCH("Auto Idling Benefit - Fuel",'Master Key'!$B:$B,0),1)&"'!A1","Go To Sheet") -> Go To Sheet | AR2: =HYPERLINK("#'"&INDEX('Master Key'!$B:$B,MATCH("Auto Idling Env. Benefits",'Master Key'!$B:$B,0),1)&"'!A1","Go To Sheet") -> Go To Sheet | AT2: =HYPERLINK("#'"&INDEX('Master Key'!$B:$B,MATCH("Repurposed ROW",'Master Key'!$B:$B,0),1)&"'!A1","Go To Sheet") -> Go To Sheet | AY2: =HYPERLINK("#'"&INDEX('Master Key'!$B:$B,MATCH("Prop. Tax Inc Sidewalk",'Master Key'!$B:$B,0),1)&"'!A1","Go To Sheet") -> Go To Sheet | BA2: =HYPERLINK("#'"&INDEX('Master Key'!$B:$B,MATCH("Prop. Tax Inc Bike Lane",'Master Key'!$B:$B,0),1)&"'!A1","Go To Sheet") -> Go To Sheet | BC2: =HYPERLINK("#'"&INDEX('Master Key'!$B:$B,MATCH("Prop. Tax Inc Sidewalk & Bike",'Master Key'!$B:$B,0),1)&"'!A1","Go To Sheet") -> Go To Sheet | BE2: =HYPERLINK("#'"&INDEX('Master Key'!$B:$B,MATCH("Prop. Tax Inc Shared Use Path",'Master Key'!$B:$B,0),1)&"'!A1","Go To Sheet") -> Go To Sheet
A3: Benefit Type | B3: Useful Life | D3: Non-Roadway Maintenance | F3: SOGR Supporting AP-CP | H3: SOGR Supporting AP-AP | J3: SOGR Supporting CP-CP | L3: Roadway Safety | N3: Pedestrian Safety | P3: Bike Safety | R3: Facility Improvement - Pedestrian | T3: Facility Improvement - Bike | V3: Facility Improvement - Transit Stop | X3: Serve Improve - Transit Mode | Z3: Amenity Improvement - Transit Vehicle | AB3: Value of Time | AD3: Operation Cost Saving | AF3: Mortality - Pedestrian | AH3: Mortality - Bike | AJ3: Emission Reduction (VMT) | AL3: Emission Reduction (Metric Ton) | AN3: Other Highway Use Externalities | AP3: Auto Idling - Fuel Savings | AR3: Auto Idling- Environmental Benefit | AT3: Repurposed Right-of-Way | AV3: ALL | AY3: Sidewalk Property Tax Increase | BA3: Bike Lane Property Tax Increase | BC3: Sidewalk & Bike Lane Property Tax Increase | BE3: Shared Use Path Property Tax Increase
A4: Calendar Year | B4: No Discount | C4: ="Discounted @ "&TEXT('Major Assumption Key'!$B$8,"0.0%") -> Discounted @ 3.1% | D4: No Discount | E4: ="Discounted @ "&TEXT('Major Assumption Key'!$B$8,"0.0%") -> Discounted @ 3.1% | F4: No Discount | G4: ="Discounted @ "&TEXT('Major Assumption Key'!$B$8,"0.0%") -> Discounted @ 3.1% | H4: No Discount | I4: ="Discounted @ "&TEXT('Major Assumption Key'!$B$8,"0.0%") -> Discounted @ 3.1% | J4: No Discount | K4: ="Discounted @ "&TEXT('Major Assumption Key'!$B$8,"0.0%") -> Discounted @ 3.1% | L4: No Discount | M4: ="Discounted @ "&TEXT('Major Assumption Key'!$B$8,"0.0%") -> Discounted @ 3.1% | N4: No Discount | O4: ="Discounted @ "&TEXT('Major Assumption Key'!$B$8,"0.0%") -> Discounted @ 3.1% | P4: No Discount | Q4: ="Discounted @ "&TEXT('Major Assumption Key'!$B$8,"0.0%") -> Discounted @ 3.1% | R4: No Discount | S4: ="Discounted @ "&TEXT('Major Assumption Key'!$B$8,"0.0%") -> Discounted @ 3.1% | T4: No Discount | U4: ="Discounted @ "&TEXT('Major Assumption Key'!$B$8,"0.0%") -> Discounted @ 3.1% | V4: No Discount | W4: ="Discounted @ "&TEXT('Major Assumption Key'!$B$8,"0.0%") -> Discounted @ 3.1% | X4: No Discount | Y4: ="Discounted @ "&TEXT('Major Assumption Key'!$B$8,"0.0%") -> Discounted @ 3.1% | Z4: No Discount | AA4: ="Discounted @ "&TEXT('Major Assumption Key'!$B$8,"0.0%") -> Discounted @ 3.1% | AB4: No Discount | AC4: ="Discounted @ "&TEXT('Major Assumption Key'!$B$8,"0.0%") -> Discounted @ 3.1% | AD4: No Discount | AE4: ="Discounted @ "&TEXT('Major Assumption Key'!$B$8,"0.0%") -> Discounted @ 3.1% | AF4: No Discount | AG4: ="Discounted @ "&TEXT('Major Assumption Key'!$B$8,"0.0%") -> Discounted @ 3.1% | AH4: No Discount | AI4: ="Discounted @ "&TEXT('Major Assumption Key'!$B$8,"0.0%") -> Discounted @ 3.1% | AJ4: No Discount | AK4: ="Discounted @ "&TEXT('Major Assumption Key'!$B$8,"0.0%") -> Discounted @ 3.1% | AL4: No Discount | AM4: ="Discounted @ "&TEXT('Major Assumption Key'!$B$8,"0.0%") -> Discounted @ 3.1% | AN4: No Discount | AO4: ="Discounted @ "&TEXT('Major Assumption Key'!$B$8,"0.0%") -> Discounted @ 3.1% | AP4: No Discount | AQ4: ="Discounted @ "&TEXT('Major Assumption Key'!$B$8,"0.0%") -> Discounted @ 3.1% | AR4: Total - No Discount | AS4: ="Discounted @ "&TEXT('Major Assumption Key'!$B$8,"0.0%")&" & "&"2% (CO2)" -> Discounted @ 3.1% & 2% (CO2) | AT4: Total - No Discount | AU4: ="Discounted @ "&TEXT('Major Assumption Key'!$B$8,"0.0%") -> Discounted @ 3.1% | AV4: No Discount | AW4: ="Discounted @ "&TEXT('Major Assumption Key'!$B$8,"0.0%") -> Discounted @ 3.1% | AY4: No Discount | AZ4: ="Discounted @ "&TEXT('Major Assumption Key'!$B$8,"0.0%") -> Discounted @ 3.1% | BA4: No Discount | BB4: ="Discounted @ "&TEXT('Major Assumption Key'!$B$8,"0.0%") -> Discounted @ 3.1% | BC4: No Discount | BD4: ="Discounted @ "&TEXT('Major Assumption Key'!$B$8,"0.0%") -> Discounted @ 3.1% | BE4: No Discount | BF4: ="Discounted @ "&TEXT('Major Assumption Key'!$B$8,"0.0%") -> Discounted @ 3.1%
A5: ='Major Assumption Key'!A19 -> 2020 | B5: ='Useful Life'!N7 -> 0 | C5: ='Useful Life'!O7 -> 0 | D5: =_xlfn.XLOOKUP(A5,'Non-Roadway Maintenance'!$F$8:$F$48,'Non-Roadway Maintenance'!$K$8:$K$48,,0) -> 0 | E5: =_xlfn.XLOOKUP(A5,'Non-Roadway Maintenance'!$F$8:$F$48,'Non-Roadway Maintenance'!$L$8:$L$48,,0) -> 0 | F5: ='State of Good Repair AP-CP'!S7 -> 0 | G5: ='State of Good Repair AP-CP'!T7 -> 0 | H5: ='State of Good Repair - AP-AP'!S7 -> 0 | I5: ='State of Good Repair - AP-AP'!T7 -> 0 | J5: ='State of Good Repair CP-CP '!S7 -> 0 | K5: ='State of Good Repair CP-CP '!T7 -> 0 | L5: ='Roadway Safety'!AC7 -> 0 | M5: ='Roadway Safety'!AD7 -> 0 | N5: ='Pedestrian Safety'!Q7 -> 0 | O5: ='Pedestrian Safety'!R7 -> 0 | P5: ='Bike Safety'!S7 -> 0 | Q5: ='Bike Safety'!T7 -> 0 | R5: ='Facility Improve - Ped'!AK7 -> 0 | S5: ='Facility Improve - Ped'!AL7 -> 0 | T5: ='Facility Improve - Bike'!Q7 -> 0 | U5: ='Facility Improve - Bike'!R7 -> 0 | V5: ='Facility Improve - Transit Stop'!Y7 -> 0 | W5: ='Facility Improve - Transit Stop'!Z7 -> 0 | X5: =_xlfn.XLOOKUP(A5,'Serve Improve - Transit Mode'!F:F,'Serve Improve - Transit Mode'!Y:Y,,0) -> 0 | Y5: =_xlfn.XLOOKUP(A5,'Serve Improve - Transit Mode'!F:F,'Serve Improve - Transit Mode'!Z:Z,,0) -> 0 | Z5: ='Amenity Improve - Transit Veh '!Q7 -> 0 | AA5: ='Amenity Improve - Transit Veh '!R7 -> 0 | AB5: ='Value of Travel Time'!AD7 -> 0 | AC5: ='Value of Travel Time'!AE7 -> 0 | AD5: ='Operating Cost Savings'!P7 -> 0 | AE5: ='Operating Cost Savings'!Q7 -> 0 | AF5: ='Mortality Reduction - Walk'!O7 -> 0 | AG5: ='Mortality Reduction - Walk'!P7 -> 0 | AH5: ='Mortality Reduction - Bike'!O7 -> 0 | AI5: ='Mortality Reduction - Bike'!P7 -> 0 | AJ5: ='Emission Reduction (VMT)'!S7 -> 0 | AK5: ='Emission Reduction (VMT)'!T7 -> 0 | AL5: ='Emission Reduction (Metric Ton)'!AA7 -> 0 | AM5: ='Emission Reduction (Metric Ton)'!AB7 -> 0 | AN5: ='Other Highway Use Externalities'!Q7 -> 0 | AO5: ='Other Highway Use Externalities'!R7 -> 0 | AP5: ='Auto Idling Benefit - Fuel'!O7 -> 0 | AQ5: ='Auto Idling Benefit - Fuel'!P7 -> 0 | AR5: ='Auto Idling Env. Benefits'!Y7 -> 0 | AS5: ='Auto Idling Env. Benefits'!Z7 -> 0 | AT5: =_xlfn.XLOOKUP(A5,'Repurposed ROW'!F:F,'Repurposed ROW'!K:K,,0) -> 0 | AU5: =_xlfn.XLOOKUP(A5,'Repurposed ROW'!F:F,'Repurposed ROW'!L:L,,0) -> 0 | AV5: =SUM(B5,D5,F5,H5,J5,L5,N5,P5,R5,T5,V5,X5,Z5,AB5,AD5,AF5,AH5,AJ5,AL5,AN5,AP5,AR5,AT5) -> 0 | AW5: =SUM(C5,E5,G5,I5,K5,M5,O5,Q5,S5,U5,W5,Y5,AA5,AC5,AE5,AG5,AI5,AK5,AM5,AO5,AQ5,AS5,AU5) -> 0 | AY5: ='Prop. Tax Inc Sidewalk'!M7 -> 0 | AZ5: ='Prop. Tax Inc Sidewalk'!N7 -> 0 | BA5: ='Prop. Tax Inc Bike Lane'!M7 -> 0 | BB5: ='Prop. Tax Inc Bike Lane'!N7 -> 0 | BC5: ='Prop. Tax Inc Sidewalk & Bike'!M7 -> 0 | BD5: ='Prop. Tax Inc Sidewalk & Bike'!N7 -> 0 | BE5: ='Prop. Tax Inc Shared Use Path'!O7 -> 0 | BF5: ='Prop. Tax Inc Shared Use Path'!P7 -> 0
A6: ='Major Assumption Key'!A20 -> 2021 | B6: ='Useful Life'!N8 -> 0 | C6: ='Useful Life'!O8 -> 0 | D6: =_xlfn.XLOOKUP(A6,'Non-Roadway Maintenance'!$F$8:$F$48,'Non-Roadway Maintenance'!$K$8:$K$48,,0) -> 0 | E6: =_xlfn.XLOOKUP(A6,'Non-Roadway Maintenance'!$F$8:$F$48,'Non-Roadway Maintenance'!$L$8:$L$48,,0) -> 0 | F6: ='State of Good Repair AP-CP'!S8 -> 0 | G6: ='State of Good Repair AP-CP'!T8 -> 0 | H6: ='State of Good Repair - AP-AP'!S8 -> 0 | I6: ='State of Good Repair - AP-AP'!T8 -> 0 | J6: ='State of Good Repair CP-CP '!S8 -> 0 | K6: ='State of Good Repair CP-CP '!T8 -> 0 | L6: ='Roadway Safety'!AC8 -> 0 | M6: ='Roadway Safety'!AD8 -> 0 | N6: ='Pedestrian Safety'!Q8 -> 0 | O6: ='Pedestrian Safety'!R8 -> 0 | P6: ='Bike Safety'!S8 -> 0 | Q6: ='Bike Safety'!T8 -> 0 | R6: ='Facility Improve - Ped'!AK8 -> 0 | S6: ='Facility Improve - Ped'!AL8 -> 0 | T6: ='Facility Improve - Bike'!Q8 -> 0 | U6: ='Facility Improve - Bike'!R8 -> 0 | V6: ='Facility Improve - Transit Stop'!Y8 -> 0 | W6: ='Facility Improve - Transit Stop'!Z8 -> 0 | X6: =_xlfn.XLOOKUP(A6,'Serve Improve - Transit Mode'!F:F,'Serve Improve - Transit Mode'!Y:Y,,0) -> 0 | Y6: =_xlfn.XLOOKUP(A6,'Serve Improve - Transit Mode'!F:F,'Serve Improve - Transit Mode'!Z:Z,,0) -> 0 | Z6: ='Amenity Improve - Transit Veh '!Q8 -> 0 | AA6: ='Amenity Improve - Transit Veh '!R8 -> 0 | AB6: ='Value of Travel Time'!AD8 -> 0 | AC6: ='Value of Travel Time'!AE8 -> 0 | AD6: ='Operating Cost Savings'!P8 -> 0 | AE6: ='Operating Cost Savings'!Q8 -> 0 | AF6: ='Mortality Reduction - Walk'!O8 -> 0 | AG6: ='Mortality Reduction - Walk'!P8 -> 0 | AH6: ='Mortality Reduction - Bike'!O8 -> 0 | AI6: ='Mortality Reduction - Bike'!P8 -> 0 | AJ6: ='Emission Reduction (VMT)'!S8 -> 0 | AK6: ='Emission Reduction (VMT)'!T8 -> 0 | AL6: ='Emission Reduction (Metric Ton)'!AA8 -> 0 | AM6: ='Emission Reduction (Metric Ton)'!AB8 -> 0 | AN6: ='Other Highway Use Externalities'!Q8 -> 0 | AO6: ='Other Highway Use Externalities'!R8 -> 0 | AP6: ='Auto Idling Benefit - Fuel'!O8 -> 0 | AQ6: ='Auto Idling Benefit - Fuel'!P8 -> 0 | AR6: ='Auto Idling Env. Benefits'!Y8 -> 0 | AS6: ='Auto Idling Env. Benefits'!Z8 -> 0 | AT6: =_xlfn.XLOOKUP(A6,'Repurposed ROW'!F:F,'Repurposed ROW'!K:K,,0) -> 0 | AU6: =_xlfn.XLOOKUP(A6,'Repurposed ROW'!F:F,'Repurposed ROW'!L:L,,0) -> 0 | AV6: =SUM(B6,D6,F6,H6,J6,L6,N6,P6,R6,T6,V6,X6,Z6,AB6,AD6,AF6,AH6,AJ6,AL6,AN6,AP6,AR6,AT6) -> 0 | AW6: =SUM(C6,E6,G6,I6,K6,M6,O6,Q6,S6,U6,W6,Y6,AA6,AC6,AE6,AG6,AI6,AK6,AM6,AO6,AQ6,AS6,AU6) -> 0 | AY6: ='Prop. Tax Inc Sidewalk'!M8 -> 0 | AZ6: ='Prop. Tax Inc Sidewalk'!N8 -> 0 | BA6: ='Prop. Tax Inc Bike Lane'!M8 -> 0 | BB6: ='Prop. Tax Inc Bike Lane'!N8 -> 0 | BC6: ='Prop. Tax Inc Sidewalk & Bike'!M8 -> 0 | BD6: ='Prop. Tax Inc Sidewalk & Bike'!N8 -> 0 | BE6: ='Prop. Tax Inc Shared Use Path'!O8 -> 0 | BF6: ='Prop. Tax Inc Shared Use Path'!P8 -> 0
A7: ='Major Assumption Key'!A21 -> 2022 | B7: ='Useful Life'!N9 -> 0 | C7: ='Useful Life'!O9 -> 0 | D7: =_xlfn.XLOOKUP(A7,'Non-Roadway Maintenance'!$F$8:$F$48,'Non-Roadway Maintenance'!$K$8:$K$48,,0) -> 0 | E7: =_xlfn.XLOOKUP(A7,'Non-Roadway Maintenance'!$F$8:$F$48,'Non-Roadway Maintenance'!$L$8:$L$48,,0) -> 0 | F7: ='State of Good Repair AP-CP'!S9 -> 0 | G7: ='State of Good Repair AP-CP'!T9 -> 0 | H7: ='State of Good Repair - AP-AP'!S9 -> 0 | I7: ='State of Good Repair - AP-AP'!T9 -> 0 | J7: ='State of Good Repair CP-CP '!S9 -> 0 | K7: ='State of Good Repair CP-CP '!T9 -> 0 | L7: ='Roadway Safety'!AC9 -> 0 | M7: ='Roadway Safety'!AD9 -> 0 | N7: ='Pedestrian Safety'!Q9 -> 0 | O7: ='Pedestrian Safety'!R9 -> 0 | P7: ='Bike Safety'!S9 -> 0 | Q7: ='Bike Safety'!T9 -> 0 | R7: ='Facility Improve - Ped'!AK9 -> 0 | S7: ='Facility Improve - Ped'!AL9 -> 0 | T7: ='Facility Improve - Bike'!Q9 -> 0 | U7: ='Facility Improve - Bike'!R9 -> 0 | V7: ='Facility Improve - Transit Stop'!Y9 -> 0 | W7: ='Facility Improve - Transit Stop'!Z9 -> 0 | X7: =_xlfn.XLOOKUP(A7,'Serve Improve - Transit Mode'!F:F,'Serve Improve - Transit Mode'!Y:Y,,0) -> 0 | Y7: =_xlfn.XLOOKUP(A7,'Serve Improve - Transit Mode'!F:F,'Serve Improve - Transit Mode'!Z:Z,,0) -> 0 | Z7: ='Amenity Improve - Transit Veh '!Q9 -> 0 | AA7: ='Amenity Improve - Transit Veh '!R9 -> 0 | AB7: ='Value of Travel Time'!AD9 -> 0 | AC7: ='Value of Travel Time'!AE9 -> 0 | AD7: ='Operating Cost Savings'!P9 -> 0 | AE7: ='Operating Cost Savings'!Q9 -> 0 | AF7: ='Mortality Reduction - Walk'!O9 -> 0 | AG7: ='Mortality Reduction - Walk'!P9 -> 0 | AH7: ='Mortality Reduction - Bike'!O9 -> 0 | AI7: ='Mortality Reduction - Bike'!P9 -> 0 | AJ7: ='Emission Reduction (VMT)'!S9 -> 0 | AK7: ='Emission Reduction (VMT)'!T9 -> 0 | AL7: ='Emission Reduction (Metric Ton)'!AA9 -> 0 | AM7: ='Emission Reduction (Metric Ton)'!AB9 -> 0 | AN7: ='Other Highway Use Externalities'!Q9 -> 0 | AO7: ='Other Highway Use Externalities'!R9 -> 0 | AP7: ='Auto Idling Benefit - Fuel'!O9 -> 0 | AQ7: ='Auto Idling Benefit - Fuel'!P9 -> 0 | AR7: ='Auto Idling Env. Benefits'!Y9 -> 0 | AS7: ='Auto Idling Env. Benefits'!Z9 -> 0 | AT7: =_xlfn.XLOOKUP(A7,'Repurposed ROW'!F:F,'Repurposed ROW'!K:K,,0) -> 0 | AU7: =_xlfn.XLOOKUP(A7,'Repurposed ROW'!F:F,'Repurposed ROW'!L:L,,0) -> 0 | AV7: 0 | AW7: 0 | AY7: ='Prop. Tax Inc Sidewalk'!M9 -> 0 | AZ7: ='Prop. Tax Inc Sidewalk'!N9 -> 0 | BA7: ='Prop. Tax Inc Bike Lane'!M9 -> 0 | BB7: ='Prop. Tax Inc Bike Lane'!N9 -> 0 | BC7: ='Prop. Tax Inc Sidewalk & Bike'!M9 -> 0 | BD7: ='Prop. Tax Inc Sidewalk & Bike'!N9 -> 0 | BE7: ='Prop. Tax Inc Shared Use Path'!O9 -> 0 | BF7: ='Prop. Tax Inc Shared Use Path'!P9 -> 0
A8: ='Major Assumption Key'!A22 -> 2023 | B8: ='Useful Life'!N10 -> 0 | C8: ='Useful Life'!O10 -> 0 | D8: =_xlfn.XLOOKUP(A8,'Non-Roadway Maintenance'!$F$8:$F$48,'Non-Roadway Maintenance'!$K$8:$K$48,,0) -> 0 | E8: =_xlfn.XLOOKUP(A8,'Non-Roadway Maintenance'!$F$8:$F$48,'Non-Roadway Maintenance'!$L$8:$L$48,,0) -> 0 | F8: ='State of Good Repair AP-CP'!S10 -> 0 | G8: ='State of Good Repair AP-CP'!T10 -> 0 | H8: ='State of Good Repair - AP-AP'!S10 -> 0 | I8: ='State of Good Repair - AP-AP'!T10 -> 0 | J8: ='State of Good Repair CP-CP '!S10 -> 0 | K8: ='State of Good Repair CP-CP '!T10 -> 0 | L8: ='Roadway Safety'!AC10 -> 0 | M8: ='Roadway Safety'!AD10 -> 0 | N8: ='Pedestrian Safety'!Q10 -> 0 | O8: ='Pedestrian Safety'!R10 -> 0 | P8: ='Bike Safety'!S10 -> 0 | Q8: ='Bike Safety'!T10 -> 0 | R8: ='Facility Improve - Ped'!AK10 -> 0 | S8: ='Facility Improve - Ped'!AL10 -> 0 | T8: ='Facility Improve - Bike'!Q10 -> 0 | U8: ='Facility Improve - Bike'!R10 -> 0 | V8: ='Facility Improve - Transit Stop'!Y10 -> 0 | W8: ='Facility Improve - Transit Stop'!Z10 -> 0 | X8: =_xlfn.XLOOKUP(A8,'Serve Improve - Transit Mode'!F:F,'Serve Improve - Transit Mode'!Y:Y,,0) -> 0 | Y8: =_xlfn.XLOOKUP(A8,'Serve Improve - Transit Mode'!F:F,'Serve Improve - Transit Mode'!Z:Z,,0) -> 0 | Z8: ='Amenity Improve - Transit Veh '!Q10 -> 0 | AA8: ='Amenity Improve - Transit Veh '!R10 -> 0 | AB8: ='Value of Travel Time'!AD10 -> 0 | AC8: ='Value of Travel Time'!AE10 -> 0 | AD8: ='Operating Cost Savings'!P10 -> 0 | AE8: ='Operating Cost Savings'!Q10 -> 0 | AF8: ='Mortality Reduction - Walk'!O10 -> 0 | AG8: ='Mortality Reduction - Walk'!P10 -> 0 | AH8: ='Mortality Reduction - Bike'!O10 -> 0 | AI8: ='Mortality Reduction - Bike'!P10 -> 0 | AJ8: ='Emission Reduction (VMT)'!S10 -> 0 | AK8: ='Emission Reduction (VMT)'!T10 -> 0 | AL8: ='Emission Reduction (Metric Ton)'!AA10 -> 0 | AM8: ='Emission Reduction (Metric Ton)'!AB10 -> 0 | AN8: ='Other Highway Use Externalities'!Q10 -> 0 | AO8: ='Other Highway Use Externalities'!R10 -> 0 | AP8: ='Auto Idling Benefit - Fuel'!O10 -> 0 | AQ8: ='Auto Idling Benefit - Fuel'!P10 -> 0 | AR8: ='Auto Idling Env. Benefits'!Y10 -> 0 | AS8: ='Auto Idling Env. Benefits'!Z10 -> 0 | AT8: =_xlfn.XLOOKUP(A8,'Repurposed ROW'!F:F,'Repurposed ROW'!K:K,,0) -> 0 | AU8: =_xlfn.XLOOKUP(A8,'Repurposed ROW'!F:F,'Repurposed ROW'!L:L,,0) -> 0 | AV8: 0 | AW8: 0 | AY8: ='Prop. Tax Inc Sidewalk'!M10 -> 0 | AZ8: ='Prop. Tax Inc Sidewalk'!N10 -> 0 | BA8: ='Prop. Tax Inc Bike Lane'!M10 -> 0 | BB8: ='Prop. Tax Inc Bike Lane'!N10 -> 0 | BC8: ='Prop. Tax Inc Sidewalk & Bike'!M10 -> 0 | BD8: ='Prop. Tax Inc Sidewalk & Bike'!N10 -> 0 | BE8: ='Prop. Tax Inc Shared Use Path'!O10 -> 0 | BF8: ='Prop. Tax Inc Shared Use Path'!P10 -> 0
A9: ='Major Assumption Key'!A23 -> 2024 | B9: ='Useful Life'!N11 -> 0 | C9: ='Useful Life'!O11 -> 0 | D9: =_xlfn.XLOOKUP(A9,'Non-Roadway Maintenance'!$F$8:$F$48,'Non-Roadway Maintenance'!$K$8:$K$48,,0) -> 0 | E9: =_xlfn.XLOOKUP(A9,'Non-Roadway Maintenance'!$F$8:$F$48,'Non-Roadway Maintenance'!$L$8:$L$48,,0) -> 0 | F9: ='State of Good Repair AP-CP'!S11 -> 494716.5971 | G9: ='State of Good Repair AP-CP'!T11 -> 465413.686 | H9: ='State of Good Repair - AP-AP'!S11 -> 0 | I9: ='State of Good Repair - AP-AP'!T11 -> 0 | J9: ='State of Good Repair CP-CP '!S11 -> 0 | K9: ='State of Good Repair CP-CP '!T11 -> 0 | L9: ='Roadway Safety'!AC11 -> 0 | M9: ='Roadway Safety'!AD11 -> 0 | N9: ='Pedestrian Safety'!Q11 -> 0 | O9: ='Pedestrian Safety'!R11 -> 0 | P9: ='Bike Safety'!S11 -> 0 | Q9: ='Bike Safety'!T11 -> 0 | R9: ='Facility Improve - Ped'!AK11 -> 0 | S9: ='Facility Improve - Ped'!AL11 -> 0 | T9: ='Facility Improve - Bike'!Q11 -> 0 | U9: ='Facility Improve - Bike'!R11 -> 0 | V9: ='Facility Improve - Transit Stop'!Y11 -> 0 | W9: ='Facility Improve - Transit Stop'!Z11 -> 0 | X9: =_xlfn.XLOOKUP(A9,'Serve Improve - Transit Mode'!F:F,'Serve Improve - Transit Mode'!Y:Y,,0) -> 0 | Y9: =_xlfn.XLOOKUP(A9,'Serve Improve - Transit Mode'!F:F,'Serve Improve - Transit Mode'!Z:Z,,0) -> 0 | Z9: ='Amenity Improve - Transit Veh '!Q11 -> 0 | AA9: ='Amenity Improve - Transit Veh '!R11 -> 0 | AB9: ='Value of Travel Time'!AD11 -> 0 | AC9: ='Value of Travel Time'!AE11 -> 0 | AD9: ='Operating Cost Savings'!P11 -> 0 | AE9: ='Operating Cost Savings'!Q11 -> 0 | AF9: ='Mortality Reduction - Walk'!O11 -> 0 | AG9: ='Mortality Reduction - Walk'!P11 -> 0 | AH9: ='Mortality Reduction - Bike'!O11 -> 0 | AI9: ='Mortality Reduction - Bike'!P11 -> 0 | AJ9: ='Emission Reduction (VMT)'!S11 -> 0 | AK9: ='Emission Reduction (VMT)'!T11 -> 0 | AL9: ='Emission Reduction (Metric Ton)'!AA11 -> 0 | AM9: ='Emission Reduction (Metric Ton)'!AB11 -> 0 | AN9: ='Other Highway Use Externalities'!Q11 -> 0 | AO9: ='Other Highway Use Externalities'!R11 -> 0 | AP9: ='Auto Idling Benefit - Fuel'!O11 -> 0 | AQ9: ='Auto Idling Benefit - Fuel'!P11 -> 0 | AR9: ='Auto Idling Env. Benefits'!Y11 -> 0 | AS9: ='Auto Idling Env. Benefits'!Z11 -> 0 | AT9: =_xlfn.XLOOKUP(A9,'Repurposed ROW'!F:F,'Repurposed ROW'!K:K,,0) -> 0 | AU9: =_xlfn.XLOOKUP(A9,'Repurposed ROW'!F:F,'Repurposed ROW'!L:L,,0) -> 0 | AV9: =SUM(B9,D9,F9,H9,J9,L9,N9,P9,R9,T9,V9,X9,Z9,AB9,AD9,AF9,AH9,AJ9,AL9,AN9,AP9,AR9,AT9) -> 494716.5971 | AW9: 465413.686 | AY9: ='Prop. Tax Inc Sidewalk'!M11 -> 0 | AZ9: ='Prop. Tax Inc Sidewalk'!N11 -> 0 | BA9: ='Prop. Tax Inc Bike Lane'!M11 -> 0 | BB9: ='Prop. Tax Inc Bike Lane'!N11 -> 0 | BC9: ='Prop. Tax Inc Sidewalk & Bike'!M11 -> 0 | BD9: ='Prop. Tax Inc Sidewalk & Bike'!N11 -> 0 | BE9: ='Prop. Tax Inc Shared Use Path'!O11 -> 0 | BF9: ='Prop. Tax Inc Shared Use Path'!P11 -> 0
A10: ='Major Assumption Key'!A24 -> 2025 | B10: ='Useful Life'!N12 -> 0 | C10: ='Useful Life'!O12 -> 0 | D10: =_xlfn.XLOOKUP(A10,'Non-Roadway Maintenance'!$F$8:$F$48,'Non-Roadway Maintenance'!$K$8:$K$48,,0) -> 0 | E10: =_xlfn.XLOOKUP(A10,'Non-Roadway Maintenance'!$F$8:$F$48,'Non-Roadway Maintenance'!$L$8:$L$48,,0) -> 0 | F10: ='State of Good Repair AP-CP'!S12 -> 13847317.58 | G10: ='State of Good Repair AP-CP'!T12 -> 12635419.25 | H10: ='State of Good Repair - AP-AP'!S12 -> 0 | I10: ='State of Good Repair - AP-AP'!T12 -> 0 | J10: ='State of Good Repair CP-CP '!S12 -> 0 | K10: ='State of Good Repair CP-CP '!T12 -> 0 | L10: ='Roadway Safety'!AC12 -> 0 | M10: ='Roadway Safety'!AD12 -> 0 | N10: ='Pedestrian Safety'!Q12 -> 0 | O10: ='Pedestrian Safety'!R12 -> 0 | P10: ='Bike Safety'!S12 -> 0 | Q10: ='Bike Safety'!T12 -> 0 | R10: ='Facility Improve - Ped'!AK12 -> 0 | S10: ='Facility Improve - Ped'!AL12 -> 0 | T10: ='Facility Improve - Bike'!Q12 -> 0 | U10: ='Facility Improve - Bike'!R12 -> 0 | V10: ='Facility Improve - Transit Stop'!Y12 -> 0 | W10: ='Facility Improve - Transit Stop'!Z12 -> 0 | X10: =_xlfn.XLOOKUP(A10,'Serve Improve - Transit Mode'!F:F,'Serve Improve - Transit Mode'!Y:Y,,0) -> 0 | Y10: =_xlfn.XLOOKUP(A10,'Serve Improve - Transit Mode'!F:F,'Serve Improve - Transit Mode'!Z:Z,,0) -> 0 | Z10: ='Amenity Improve - Transit Veh '!Q12 -> 0 | AA10: ='Amenity Improve - Transit Veh '!R12 -> 0 | AB10: ='Value of Travel Time'!AD12 -> 0 | AC10: ='Value of Travel Time'!AE12 -> 0 | AD10: ='Operating Cost Savings'!P12 -> 0 | AE10: ='Operating Cost Savings'!Q12 -> 0 | AF10: ='Mortality Reduction - Walk'!O12 -> 0 | AG10: ='Mortality Reduction - Walk'!P12 -> 0 | AH10: ='Mortality Reduction - Bike'!O12 -> 0 | AI10: ='Mortality Reduction - Bike'!P12 -> 0 | AJ10: ='Emission Reduction (VMT)'!S12 -> 0 | AK10: ='Emission Reduction (VMT)'!T12 -> 0 | AL10: ='Emission Reduction (Metric Ton)'!AA12 -> 0 | AM10: ='Emission Reduction (Metric Ton)'!AB12 -> 0 | AN10: ='Other Highway Use Externalities'!Q12 -> 0 | AO10: ='Other Highway Use Externalities'!R12 -> 0 | AP10: ='Auto Idling Benefit - Fuel'!O12 -> 0 | AQ10: ='Auto Idling Benefit - Fuel'!P12 -> 0 | AR10: ='Auto Idling Env. Benefits'!Y12 -> 0 | AS10: ='Auto Idling Env. Benefits'!Z12 -> 0 | AT10: =_xlfn.XLOOKUP(A10,'Repurposed ROW'!F:F,'Repurposed ROW'!K:K,,0) -> 0 | AU10: =_xlfn.XLOOKUP(A10,'Repurposed ROW'!F:F,'Repurposed ROW'!L:L,,0) -> 0 | AV10: =SUM(B10,D10,F10,H10,J10,L10,N10,P10,R10,T10,V10,X10,Z10,AB10,AD10,AF10,AH10,AJ10,AL10,AN10,AP10,AR10,AT10) -> 13847317.58 | AW10: 12635419.25 | AY10: ='Prop. Tax Inc Sidewalk'!M12 -> 0 | AZ10: ='Prop. Tax Inc Sidewalk'!N12 -> 0 | BA10: ='Prop. Tax Inc Bike Lane'!M12 -> 0 | BB10: ='Prop. Tax Inc Bike Lane'!N12 -> 0 | BC10: ='Prop. Tax Inc Sidewalk & Bike'!M12 -> 0 | BD10: ='Prop. Tax Inc Sidewalk & Bike'!N12 -> 0 | BE10: ='Prop. Tax Inc Shared Use Path'!O12 -> 0 | BF10: ='Prop. Tax Inc Shared Use Path'!P12 -> 0
A11: ='Major Assumption Key'!A25 -> 2026 | B11: ='Useful Life'!N13 -> 0 | C11: ='Useful Life'!O13 -> 0 | D11: =_xlfn.XLOOKUP(A11,'Non-Roadway Maintenance'!$F$8:$F$48,'Non-Roadway Maintenance'!$K$8:$K$48,,0) -> 0 | E11: =_xlfn.XLOOKUP(A11,'Non-Roadway Maintenance'!$F$8:$F$48,'Non-Roadway Maintenance'!$L$8:$L$48,,0) -> 0 | F11: ='State of Good Repair AP-CP'!S13 -> 68953.89873 | G11: ='State of Good Repair AP-CP'!T13 -> 61027.30133 | H11: ='State of Good Repair - AP-AP'!S13 -> 0 | I11: ='State of Good Repair - AP-AP'!T13 -> 0 | J11: ='State of Good Repair CP-CP '!S13 -> 0 | K11: ='State of Good Repair CP-CP '!T13 -> 0 | L11: ='Roadway Safety'!AC13 -> 0 | M11: ='Roadway Safety'!AD13 -> 0 | N11: ='Pedestrian Safety'!Q13 -> 0 | O11: ='Pedestrian Safety'!R13 -> 0 | P11: ='Bike Safety'!S13 -> 0 | Q11: ='Bike Safety'!T13 -> 0 | R11: ='Facility Improve - Ped'!AK13 -> 0 | S11: ='Facility Improve - Ped'!AL13 -> 0 | T11: ='Facility Improve - Bike'!Q13 -> 0 | U11: ='Facility Improve - Bike'!R13 -> 0 | V11: ='Facility Improve - Transit Stop'!Y13 -> 0 | W11: ='Facility Improve - Transit Stop'!Z13 -> 0 | X11: =_xlfn.XLOOKUP(A11,'Serve Improve - Transit Mode'!F:F,'Serve Improve - Transit Mode'!Y:Y,,0) -> 0 | Y11: =_xlfn.XLOOKUP(A11,'Serve Improve - Transit Mode'!F:F,'Serve Improve - Transit Mode'!Z:Z,,0) -> 0 | Z11: ='Amenity Improve - Transit Veh '!Q13 -> 0 | AA11: ='Amenity Improve - Transit Veh '!R13 -> 0 | AB11: ='Value of Travel Time'!AD13 -> 0 | AC11: ='Value of Travel Time'!AE13 -> 0 | AD11: ='Operating Cost Savings'!P13 -> 0 | AE11: ='Operating Cost Savings'!Q13 -> 0 | AF11: ='Mortality Reduction - Walk'!O13 -> 0 | AG11: ='Mortality Reduction - Walk'!P13 -> 0 | AH11: ='Mortality Reduction - Bike'!O13 -> 0 | AI11: ='Mortality Reduction - Bike'!P13 -> 0 | AJ11: ='Emission Reduction (VMT)'!S13 -> 0 | AK11: ='Emission Reduction (VMT)'!T13 -> 0 | AL11: ='Emission Reduction (Metric Ton)'!AA13 -> 0 | AM11: ='Emission Reduction (Metric Ton)'!AB13 -> 0 | AN11: ='Other Highway Use Externalities'!Q13 -> 0 | AO11: ='Other Highway Use Externalities'!R13 -> 0 | AP11: ='Auto Idling Benefit - Fuel'!O13 -> 0 | AQ11: ='Auto Idling Benefit - Fuel'!P13 -> 0 | AR11: ='Auto Idling Env. Benefits'!Y13 -> 0 | AS11: ='Auto Idling Env. Benefits'!Z13 -> 0 | AT11: =_xlfn.XLOOKUP(A11,'Repurposed ROW'!F:F,'Repurposed ROW'!K:K,,0) -> 0 | AU11: =_xlfn.XLOOKUP(A11,'Repurposed ROW'!F:F,'Repurposed ROW'!L:L,,0) -> 0 | AV11: 68953.89873 | AW11: 61027.30133 | AY11: ='Prop. Tax Inc Sidewalk'!M13 -> 0 | AZ11: ='Prop. Tax Inc Sidewalk'!N13 -> 0 | BA11: ='Prop. Tax Inc Bike Lane'!M13 -> 0 | BB11: ='Prop. Tax Inc Bike Lane'!N13 -> 0 | BC11: ='Prop. Tax Inc Sidewalk & Bike'!M13 -> 0 | BD11: ='Prop. Tax Inc Sidewalk & Bike'!N13 -> 0 | BE11: ='Prop. Tax Inc Shared Use Path'!O13 -> 0 | BF11: ='Prop. Tax Inc Shared Use Path'!P13 -> 0
A12: ='Major Assumption Key'!A26 -> 2027 | B12: ='Useful Life'!N14 -> 0 | C12: ='Useful Life'!O14 -> 0 | D12: =_xlfn.XLOOKUP(A12,'Non-Roadway Maintenance'!$F$8:$F$48,'Non-Roadway Maintenance'!$K$8:$K$48,,0) -> 0 | E12: =_xlfn.XLOOKUP(A12,'Non-Roadway Maintenance'!$F$8:$F$48,'Non-Roadway Maintenance'!$L$8:$L$48,,0) -> 0 | F12: ='State of Good Repair AP-CP'!S14 -> -8158537.023 | G12: ='State of Good Repair AP-CP'!T14 -> -7003561.751 | H12: ='State of Good Repair - AP-AP'!S14 -> 0 | I12: ='State of Good Repair - AP-AP'!T14 -> 0 | J12: ='State of Good Repair CP-CP '!S14 -> 0 | K12: ='State of Good Repair CP-CP '!T14 -> 0 | L12: ='Roadway Safety'!AC14 -> 0 | M12: ='Roadway Safety'!AD14 -> 0 | N12: ='Pedestrian Safety'!Q14 -> 0 | O12: ='Pedestrian Safety'!R14 -> 0 | P12: ='Bike Safety'!S14 -> 0 | Q12: ='Bike Safety'!T14 -> 0 | R12: ='Facility Improve - Ped'!AK14 -> 0 | S12: ='Facility Improve - Ped'!AL14 -> 0 | T12: ='Facility Improve - Bike'!Q14 -> 0 | U12: ='Facility Improve - Bike'!R14 -> 0 | V12: ='Facility Improve - Transit Stop'!Y14 -> 0 | W12: ='Facility Improve - Transit Stop'!Z14 -> 0 | X12: =_xlfn.XLOOKUP(A12,'Serve Improve - Transit Mode'!F:F,'Serve Improve - Transit Mode'!Y:Y,,0) -> 0 | Y12: =_xlfn.XLOOKUP(A12,'Serve Improve - Transit Mode'!F:F,'Serve Improve - Transit Mode'!Z:Z,,0) -> 0 | Z12: ='Amenity Improve - Transit Veh '!Q14 -> 0 | AA12: ='Amenity Improve - Transit Veh '!R14 -> 0 | AB12: ='Value of Travel Time'!AD14 -> 0 | AC12: ='Value of Travel Time'!AE14 -> 0 | AD12: ='Operating Cost Savings'!P14 -> 0 | AE12: ='Operating Cost Savings'!Q14 -> 0 | AF12: ='Mortality Reduction - Walk'!O14 -> 0 | AG12: ='Mortality Reduction - Walk'!P14 -> 0 | AH12: ='Mortality Reduction - Bike'!O14 -> 0 | AI12: ='Mortality Reduction - Bike'!P14 -> 0 | AJ12: ='Emission Reduction (VMT)'!S14 -> 0 | AK12: ='Emission Reduction (VMT)'!T14 -> 0 | AL12: ='Emission Reduction (Metric Ton)'!AA14 -> 0 | AM12: ='Emission Reduction (Metric Ton)'!AB14 -> 0 | AN12: ='Other Highway Use Externalities'!Q14 -> 0 | AO12: ='Other Highway Use Externalities'!R14 -> 0 | AP12: ='Auto Idling Benefit - Fuel'!O14 -> 0 | AQ12: ='Auto Idling Benefit - Fuel'!P14 -> 0 | AR12: ='Auto Idling Env. Benefits'!Y14 -> 0 | AS12: ='Auto Idling Env. Benefits'!Z14 -> 0 | AT12: =_xlfn.XLOOKUP(A12,'Repurposed ROW'!F:F,'Repurposed ROW'!K:K,,0) -> 0 | AU12: =_xlfn.XLOOKUP(A12,'Repurposed ROW'!F:F,'Repurposed ROW'!L:L,,0) -> 0 | AV12: -8158537.023 | AW12: -7003561.751 | AY12: ='Prop. Tax Inc Sidewalk'!M14 -> 0 | AZ12: ='Prop. Tax Inc Sidewalk'!N14 -> 0 | BA12: ='Prop. Tax Inc Bike Lane'!M14 -> 0 | BB12: ='Prop. Tax Inc Bike Lane'!N14 -> 0 | BC12: ='Prop. Tax Inc Sidewalk & Bike'!M14 -> 0 | BD12: ='Prop. Tax Inc Sidewalk & Bike'!N14 -> 0 | BE12: ='Prop. Tax Inc Shared Use Path'!O14 -> 0 | BF12: ='Prop. Tax Inc Shared Use Path'!P14 -> 0
A13: ='Major Assumption Key'!A27 -> 2028 | B13: ='Useful Life'!N15 -> 0 | C13: ='Useful Life'!O15 -> 0 | D13: =_xlfn.XLOOKUP(A13,'Non-Roadway Maintenance'!$F$8:$F$48,'Non-Roadway Maintenance'!$K$8:$K$48,,0) -> 0 | E13: =_xlfn.XLOOKUP(A13,'Non-Roadway Maintenance'!$F$8:$F$48,'Non-Roadway Maintenance'!$L$8:$L$48,,0) -> 0 | F13: ='State of Good Repair AP-CP'!S15 -> -8351226.727 | G13: ='State of Good Repair AP-CP'!T15 -> -6953417.124 | H13: ='State of Good Repair - AP-AP'!S15 -> 0 | I13: ='State of Good Repair - AP-AP'!T15 -> 0 | J13: ='State of Good Repair CP-CP '!S15 -> 0 | K13: ='State of Good Repair CP-CP '!T15 -> 0 | L13: ='Roadway Safety'!AC15 -> 0 | M13: ='Roadway Safety'!AD15 -> 0 | N13: ='Pedestrian Safety'!Q15 -> 0 | O13: ='Pedestrian Safety'!R15 -> 0 | P13: ='Bike Safety'!S15 -> 0 | Q13: ='Bike Safety'!T15 -> 0 | R13: ='Facility Improve - Ped'!AK15 -> 0 | S13: ='Facility Improve - Ped'!AL15 -> 0 | T13: ='Facility Improve - Bike'!Q15 -> 0 | U13: ='Facility Improve - Bike'!R15 -> 0 | V13: ='Facility Improve - Transit Stop'!Y15 -> 0 | W13: ='Facility Improve - Transit Stop'!Z15 -> 0 | X13: =_xlfn.XLOOKUP(A13,'Serve Improve - Transit Mode'!F:F,'Serve Improve - Transit Mode'!Y:Y,,0) -> 0 | Y13: =_xlfn.XLOOKUP(A13,'Serve Improve - Transit Mode'!F:F,'Serve Improve - Transit Mode'!Z:Z,,0) -> 0 | Z13: ='Amenity Improve - Transit Veh '!Q15 -> 0 | AA13: ='Amenity Improve - Transit Veh '!R15 -> 0 | AB13: ='Value of Travel Time'!AD15 -> 0 | AC13: ='Value of Travel Time'!AE15 -> 0 | AD13: ='Operating Cost Savings'!P15 -> 0 | AE13: ='Operating Cost Savings'!Q15 -> 0 | AF13: ='Mortality Reduction - Walk'!O15 -> 0 | AG13: ='Mortality Reduction - Walk'!P15 -> 0 | AH13: ='Mortality Reduction - Bike'!O15 -> 0 | AI13: ='Mortality Reduction - Bike'!P15 -> 0 | AJ13: ='Emission Reduction (VMT)'!S15 -> 0 | AK13: ='Emission Reduction (VMT)'!T15 -> 0 | AL13: ='Emission Reduction (Metric Ton)'!AA15 -> 0 | AM13: ='Emission Reduction (Metric Ton)'!AB15 -> 0 | AN13: ='Other Highway Use Externalities'!Q15 -> 0 | AO13: ='Other Highway Use Externalities'!R15 -> 0 | AP13: ='Auto Idling Benefit - Fuel'!O15 -> 0 | AQ13: ='Auto Idling Benefit - Fuel'!P15 -> 0 | AR13: ='Auto Idling Env. Benefits'!Y15 -> 0 | AS13: ='Auto Idling Env. Benefits'!Z15 -> 0 | AT13: =_xlfn.XLOOKUP(A13,'Repurposed ROW'!F:F,'Repurposed ROW'!K:K,,0) -> 0 | AU13: =_xlfn.XLOOKUP(A13,'Repurposed ROW'!F:F,'Repurposed ROW'!L:L,,0) -> 0 | AV13: -8351226.727 | AW13: -6953417.124 | AY13: ='Prop. Tax Inc Sidewalk'!M15 -> 0 | AZ13: ='Prop. Tax Inc Sidewalk'!N15 -> 0 | BA13: ='Prop. Tax Inc Bike Lane'!M15 -> 0 | BB13: ='Prop. Tax Inc Bike Lane'!N15 -> 0 | BC13: ='Prop. Tax Inc Sidewalk & Bike'!M15 -> 0 | BD13: ='Prop. Tax Inc Sidewalk & Bike'!N15 -> 0 | BE13: ='Prop. Tax Inc Shared Use Path'!O15 -> 0 | BF13: ='Prop. Tax Inc Shared Use Path'!P15 -> 0
A14: ='Major Assumption Key'!A28 -> 2029 | B14: ='Useful Life'!N16 -> 0 | C14: ='Useful Life'!O16 -> 0 | D14: =_xlfn.XLOOKUP(A14,'Non-Roadway Maintenance'!$F$8:$F$48,'Non-Roadway Maintenance'!$K$8:$K$48,,0) -> 0 | E14: =_xlfn.XLOOKUP(A14,'Non-Roadway Maintenance'!$F$8:$F$48,'Non-Roadway Maintenance'!$L$8:$L$48,,0) -> 0 | F14: ='State of Good Repair AP-CP'!S16 -> -8440303.657 | G14: ='State of Good Repair AP-CP'!T16 -> -6816279.881 | H14: ='State of Good Repair - AP-AP'!S16 -> 0 | I14: ='State of Good Repair - AP-AP'!T16 -> 0 | J14: ='State of Good Repair CP-CP '!S16 -> 0 | K14: ='State of Good Repair CP-CP '!T16 -> 0 | L14: ='Roadway Safety'!AC16 -> 0 | M14: ='Roadway Safety'!AD16 -> 0 | N14: ='Pedestrian Safety'!Q16 -> 0 | O14: ='Pedestrian Safety'!R16 -> 0 | P14: ='Bike Safety'!S16 -> 0 | Q14: ='Bike Safety'!T16 -> 0 | R14: ='Facility Improve - Ped'!AK16 -> 0 | S14: ='Facility Improve - Ped'!AL16 -> 0 | T14: ='Facility Improve - Bike'!Q16 -> 0 | U14: ='Facility Improve - Bike'!R16 -> 0 | V14: ='Facility Improve - Transit Stop'!Y16 -> 0 | W14: ='Facility Improve - Transit Stop'!Z16 -> 0 | X14: =_xlfn.XLOOKUP(A14,'Serve Improve - Transit Mode'!F:F,'Serve Improve - Transit Mode'!Y:Y,,0) -> 0 | Y14: =_xlfn.XLOOKUP(A14,'Serve Improve - Transit Mode'!F:F,'Serve Improve - Transit Mode'!Z:Z,,0) -> 0 | Z14: ='Amenity Improve - Transit Veh '!Q16 -> 0 | AA14: ='Amenity Improve - Transit Veh '!R16 -> 0 | AB14: ='Value of Travel Time'!AD16 -> 0 | AC14: ='Value of Travel Time'!AE16 -> 0 | AD14: ='Operating Cost Savings'!P16 -> 0 | AE14: ='Operating Cost Savings'!Q16 -> 0 | AF14: ='Mortality Reduction - Walk'!O16 -> 0 | AG14: ='Mortality Reduction - Walk'!P16 -> 0 | AH14: ='Mortality Reduction - Bike'!O16 -> 0 | AI14: ='Mortality Reduction - Bike'!P16 -> 0 | AJ14: ='Emission Reduction (VMT)'!S16 -> 0 | AK14: ='Emission Reduction (VMT)'!T16 -> 0 | AL14: ='Emission Reduction (Metric Ton)'!AA16 -> 0 | AM14: ='Emission Reduction (Metric Ton)'!AB16 -> 0 | AN14: ='Other Highway Use Externalities'!Q16 -> 0 | AO14: ='Other Highway Use Externalities'!R16 -> 0 | AP14: ='Auto Idling Benefit - Fuel'!O16 -> 0 | AQ14: ='Auto Idling Benefit - Fuel'!P16 -> 0 | AR14: ='Auto Idling Env. Benefits'!Y16 -> 0 | AS14: ='Auto Idling Env. Benefits'!Z16 -> 0 | AT14: =_xlfn.XLOOKUP(A14,'Repurposed ROW'!F:F,'Repurposed ROW'!K:K,,0) -> 0 | AU14: =_xlfn.XLOOKUP(A14,'Repurposed ROW'!F:F,'Repurposed ROW'!L:L,,0) -> 0 | AV14: -8440303.657 | AW14: -6816279.881 | AY14: ='Prop. Tax Inc Sidewalk'!M16 -> 0 | AZ14: ='Prop. Tax Inc Sidewalk'!N16 -> 0 | BA14: ='Prop. Tax Inc Bike Lane'!M16 -> 0 | BB14: ='Prop. Tax Inc Bike Lane'!N16 -> 0 | BC14: ='Prop. Tax Inc Sidewalk & Bike'!M16 -> 0 | BD14: ='Prop. Tax Inc Sidewalk & Bike'!N16 -> 0 | BE14: ='Prop. Tax Inc Shared Use Path'!O16 -> 0 | BF14: ='Prop. Tax Inc Shared Use Path'!P16 -> 0
A15: ='Major Assumption Key'!A29 -> 2030 | B15: ='Useful Life'!N17 -> 0 | C15: ='Useful Life'!O17 -> 0 | D15: =_xlfn.XLOOKUP(A15,'Non-Roadway Maintenance'!$F$8:$F$48,'Non-Roadway Maintenance'!$K$8:$K$48,,0) -> 0 | E15: =_xlfn.XLOOKUP(A15,'Non-Roadway Maintenance'!$F$8:$F$48,'Non-Roadway Maintenance'!$L$8:$L$48,,0) -> 0 | F15: ='State of Good Repair AP-CP'!S17 -> -8389391.651 | G15: ='State of Good Repair AP-CP'!T17 -> -6571449.083 | H15: ='State of Good Repair - AP-AP'!S17 -> 0 | I15: ='State of Good Repair - AP-AP'!T17 -> 0 | J15: ='State of Good Repair CP-CP '!S17 -> 0 | K15: ='State of Good Repair CP-CP '!T17 -> 0 | L15: ='Roadway Safety'!AC17 -> 0 | M15: ='Roadway Safety'!AD17 -> 0 | N15: ='Pedestrian Safety'!Q17 -> 0 | O15: ='Pedestrian Safety'!R17 -> 0 | P15: ='Bike Safety'!S17 -> 0 | Q15: ='Bike Safety'!T17 -> 0 | R15: ='Facility Improve - Ped'!AK17 -> 0 | S15: ='Facility Improve - Ped'!AL17 -> 0 | T15: ='Facility Improve - Bike'!Q17 -> 0 | U15: ='Facility Improve - Bike'!R17 -> 0 | V15: ='Facility Improve - Transit Stop'!Y17 -> 0 | W15: ='Facility Improve - Transit Stop'!Z17 -> 0 | X15: =_xlfn.XLOOKUP(A15,'Serve Improve - Transit Mode'!F:F,'Serve Improve - Transit Mode'!Y:Y,,0) -> 0 | Y15: =_xlfn.XLOOKUP(A15,'Serve Improve - Transit Mode'!F:F,'Serve Improve - Transit Mode'!Z:Z,,0) -> 0 | Z15: ='Amenity Improve - Transit Veh '!Q17 -> 0 | AA15: ='Amenity Improve - Transit Veh '!R17 -> 0 | AB15: ='Value of Travel Time'!AD17 -> 0 | AC15: ='Value of Travel Time'!AE17 -> 0 | AD15: ='Operating Cost Savings'!P17 -> 0 | AE15: ='Operating Cost Savings'!Q17 -> 0 | AF15: ='Mortality Reduction - Walk'!O17 -> 0 | AG15: ='Mortality Reduction - Walk'!P17 -> 0 | AH15: ='Mortality Reduction - Bike'!O17 -> 0 | AI15: ='Mortality Reduction - Bike'!P17 -> 0 | AJ15: ='Emission Reduction (VMT)'!S17 -> 0 | AK15: ='Emission Reduction (VMT)'!T17 -> 0 | AL15: ='Emission Reduction (Metric Ton)'!AA17 -> 0 | AM15: ='Emission Reduction (Metric Ton)'!AB17 -> 0 | AN15: ='Other Highway Use Externalities'!Q17 -> 0 | AO15: ='Other Highway Use Externalities'!R17 -> 0 | AP15: ='Auto Idling Benefit - Fuel'!O17 -> 0 | AQ15: ='Auto Idling Benefit - Fuel'!P17 -> 0 | AR15: ='Auto Idling Env. Benefits'!Y17 -> 0 | AS15: ='Auto Idling Env. Benefits'!Z17 -> 0 | AT15: =_xlfn.XLOOKUP(A15,'Repurposed ROW'!F:F,'Repurposed ROW'!K:K,,0) -> 0 | AU15: =_xlfn.XLOOKUP(A15,'Repurposed ROW'!F:F,'Repurposed ROW'!L:L,,0) -> 0 | AV15: -8389391.651 | AW15: -6571449.083 | AY15: ='Prop. Tax Inc Sidewalk'!M17 -> 0 | AZ15: ='Prop. Tax Inc Sidewalk'!N17 -> 0 | BA15: ='Prop. Tax Inc Bike Lane'!M17 -> 0 | BB15: ='Prop. Tax Inc Bike Lane'!N17 -> 0 | BC15: ='Prop. Tax Inc Sidewalk & Bike'!M17 -> 0 | BD15: ='Prop. Tax Inc Sidewalk & Bike'!N17 -> 0 | BE15: ='Prop. Tax Inc Shared Use Path'!O17 -> 0 | BF15: ='Prop. Tax Inc Shared Use Path'!P17 -> 0
A16: ='Major Assumption Key'!A30 -> 2031 | B16: ='Useful Life'!N18 -> 0 | C16: ='Useful Life'!O18 -> 0 | D16: =_xlfn.XLOOKUP(A16,'Non-Roadway Maintenance'!$F$8:$F$48,'Non-Roadway Maintenance'!$K$8:$K$48,,0) -> 0 | E16: =_xlfn.XLOOKUP(A16,'Non-Roadway Maintenance'!$F$8:$F$48,'Non-Roadway Maintenance'!$L$8:$L$48,,0) -> 0 | F16: ='State of Good Repair AP-CP'!S18 -> 556550.9046 | G16: ='State of Good Repair AP-CP'!T18 -> 422840.8191 | H16: ='State of Good Repair - AP-AP'!S18 -> 0 | I16: ='State of Good Repair - AP-AP'!T18 -> 0 | J16: ='State of Good Repair CP-CP '!S18 -> 0 | K16: ='State of Good Repair CP-CP '!T18 -> 0 | L16: ='Roadway Safety'!AC18 -> 14037746.4 | M16: ='Roadway Safety'!AD18 -> 10665209.84 | N16: ='Pedestrian Safety'!Q18 -> 42809 | O16: ='Pedestrian Safety'!R18 -> 32524.23538 | P16: ='Bike Safety'!S18 -> 14704.2 | Q16: ='Bike Safety'!T18 -> 11171.54949 | R16: ='Facility Improve - Ped'!AK18 -> 23306.85443 | S16: ='Facility Improve - Ped'!AL18 -> 17707.43581 | T16: ='Facility Improve - Bike'!Q18 -> 127349.1289 | U16: ='Facility Improve - Bike'!R18 -> 96753.79113 | V16: ='Facility Improve - Transit Stop'!Y18 -> 0 | W16: ='Facility Improve - Transit Stop'!Z18 -> 0 | X16: =_xlfn.XLOOKUP(A16,'Serve Improve - Transit Mode'!F:F,'Serve Improve - Transit Mode'!Y:Y,,0) -> 0 | Y16: =_xlfn.XLOOKUP(A16,'Serve Improve - Transit Mode'!F:F,'Serve Improve - Transit Mode'!Z:Z,,0) -> 0 | Z16: ='Amenity Improve - Transit Veh '!Q18 -> 0 | AA16: ='Amenity Improve - Transit Veh '!R18 -> 0 | AB16: ='Value of Travel Time'!AD18 -> 4103412.45 | AC16: ='Value of Travel Time'!AE18 -> 3117576.968 | AD16: ='Operating Cost Savings'!P18 -> 0 | AE16: ='Operating Cost Savings'!Q18 -> 0 | AF16: ='Mortality Reduction - Walk'!O18 -> 91055.55826 | AG16: ='Mortality Reduction - Walk'!P18 -> 69179.66806 | AH16: ='Mortality Reduction - Bike'!O18 -> 194800.8164 | AI16: ='Mortality Reduction - Bike'!P18 -> 148000.3646 | AJ16: ='Emission Reduction (VMT)'!S18 -> 0 | AK16: ='Emission Reduction (VMT)'!T18 -> 0 | AL16: ='Emission Reduction (Metric Ton)'!AA18 -> 11291.69605 | AM16: ='Emission Reduction (Metric Ton)'!AB18 -> 8653.675152 | AN16: ='Other Highway Use Externalities'!Q18 -> 21587.26329 | AO16: ='Other Highway Use Externalities'!R18 -> 16400.97252 | AP16: ='Auto Idling Benefit - Fuel'!O18 -> 411786.5128 | AQ16: ='Auto Idling Benefit - Fuel'!P18 -> 312855.7423 | AR16: ='Auto Idling Env. Benefits'!Y18 -> 302904.1901 | AS16: ='Auto Idling Env. Benefits'!Z18 -> 253448.4751 | AT16: =_xlfn.XLOOKUP(A16,'Repurposed ROW'!F:F,'Repurposed ROW'!K:K,,0) -> 0 | AU16: =_xlfn.XLOOKUP(A16,'Repurposed ROW'!F:F,'Repurposed ROW'!L:L,,0) -> 0 | AV16: =SUM(B16,D16,F16,H16,J16,L16,N16,P16,R16,T16,V16,X16,Z16,AB16,AD16,AF16,AH16,AJ16,AL16,AN16,AP16,AR16,AT16) -> 19939304.98 | AW16: 15172323.54 | AY16: ='Prop. Tax Inc Sidewalk'!M18 -> 0 | AZ16: ='Prop. Tax Inc Sidewalk'!N18 -> 0 | BA16: ='Prop. Tax Inc Bike Lane'!M18 -> 0 | BB16: ='Prop. Tax Inc Bike Lane'!N18 -> 0 | BC16: ='Prop. Tax Inc Sidewalk & Bike'!M18 -> 0 | BD16: ='Prop. Tax Inc Sidewalk & Bike'!N18 -> 0 | BE16: ='Prop. Tax Inc Shared Use Path'!O18 -> 0 | BF16: ='Prop. Tax Inc Shared Use Path'!P18 -> 0
A17: ='Major Assumption Key'!A31 -> 2032 | B17: ='Useful Life'!N19 -> 0 | C17: ='Useful Life'!O19 -> 0 | D17: =_xlfn.XLOOKUP(A17,'Non-Roadway Maintenance'!$F$8:$F$48,'Non-Roadway Maintenance'!$K$8:$K$48,,0) -> 0 | E17: =_xlfn.XLOOKUP(A17,'Non-Roadway Maintenance'!$F$8:$F$48,'Non-Roadway Maintenance'!$L$8:$L$48,,0) -> 0 | F17: ='State of Good Repair AP-CP'!S19 -> 18457006.12 | G17: ='State of Good Repair AP-CP'!T19 -> 13601117.84 | H17: ='State of Good Repair - AP-AP'!S19 -> 0 | I17: ='State of Good Repair - AP-AP'!T19 -> 0 | J17: ='State of Good Repair CP-CP '!S19 -> 0 | K17: ='State of Good Repair CP-CP '!T19 -> 0 | L17: ='Roadway Safety'!AC19 -> 14037746.4 | M17: ='Roadway Safety'!AD19 -> 10344529.43 | N17: ='Pedestrian Safety'!Q19 -> 42809 | O17: ='Pedestrian Safety'!R19 -> 31546.30008 | P17: ='Bike Safety'!S19 -> 14704.2 | Q17: ='Bike Safety'!T19 -> 10835.64451 | R17: ='Facility Improve - Ped'!AK19 -> 23702.30486 | S17: ='Facility Improve - Ped'!AL19 -> 17466.42112 | T17: ='Facility Improve - Bike'!Q19 -> 129509.8781 | U17: ='Facility Improve - Bike'!R19 -> 95436.88194 | V17: ='Facility Improve - Transit Stop'!Y19 -> 0 | W17: ='Facility Improve - Transit Stop'!Z19 -> 0 | X17: =_xlfn.XLOOKUP(A17,'Serve Improve - Transit Mode'!F:F,'Serve Improve - Transit Mode'!Y:Y,,0) -> 0 | Y17: =_xlfn.XLOOKUP(A17,'Serve Improve - Transit Mode'!F:F,'Serve Improve - Transit Mode'!Z:Z,,0) -> 0 | Z17: ='Amenity Improve - Transit Veh '!Q19 -> 0 | AA17: ='Amenity Improve - Transit Veh '!R19 -> 0 | AB17: ='Value of Travel Time'!AD19 -> 4348562.877 | AC17: ='Value of Travel Time'!AE19 -> 3204491.332 | AD17: ='Operating Cost Savings'!P19 -> 0 | AE17: ='Operating Cost Savings'!Q19 -> 0 | AF17: ='Mortality Reduction - Walk'!O19 -> 92600.50976 | AG17: ='Mortality Reduction - Walk'!P19 -> 68238.06836 | AH17: ='Mortality Reduction - Bike'!O19 -> 198106.0272 | AI17: ='Mortality Reduction - Bike'!P19 -> 145985.9418 | AJ17: ='Emission Reduction (VMT)'!S19 -> 0 | AK17: ='Emission Reduction (VMT)'!T19 -> 0 | AL17: ='Emission Reduction (Metric Ton)'!AA19 -> 11521.96989 | AM17: ='Emission Reduction (Metric Ton)'!AB19 -> 8572.95493 | AN17: ='Other Highway Use Externalities'!Q19 -> 21953.53719 | AO17: ='Other Highway Use Externalities'!R19 -> 16177.74001 | AP17: ='Auto Idling Benefit - Fuel'!O19 -> 434870.6232 | AQ17: ='Auto Idling Benefit - Fuel'!P19 -> 320459.6971 | AR17: ='Auto Idling Env. Benefits'!Y19 -> 323984.1946 | AS17: ='Auto Idling Env. Benefits'!Z19 -> 265770.4962 | AT17: =_xlfn.XLOOKUP(A17,'Repurposed ROW'!F:F,'Repurposed ROW'!K:K,,0) -> 0 | AU17: =_xlfn.XLOOKUP(A17,'Repurposed ROW'!F:F,'Repurposed ROW'!L:L,,0) -> 0 | AV17: 38137077.64 | AW17: 28130628.75 | AY17: ='Prop. Tax Inc Sidewalk'!M19 -> 0 | AZ17: ='Prop. Tax Inc Sidewalk'!N19 -> 0 | BA17: ='Prop. Tax Inc Bike Lane'!M19 -> 0 | BB17: ='Prop. Tax Inc Bike Lane'!N19 -> 0 | BC17: ='Prop. Tax Inc Sidewalk & Bike'!M19 -> 0 | BD17: ='Prop. Tax Inc Sidewalk & Bike'!N19 -> 0 | BE17: ='Prop. Tax Inc Shared Use Path'!O19 -> 0 | BF17: ='Prop. Tax Inc Shared Use Path'!P19 -> 0
A18: ='Major Assumption Key'!A32 -> 2033 | B18: ='Useful Life'!N20 -> 0 | C18: ='Useful Life'!O20 -> 0 | D18: =_xlfn.XLOOKUP(A18,'Non-Roadway Maintenance'!$F$8:$F$48,'Non-Roadway Maintenance'!$K$8:$K$48,,0) -> 0 | E18: =_xlfn.XLOOKUP(A18,'Non-Roadway Maintenance'!$F$8:$F$48,'Non-Roadway Maintenance'!$L$8:$L$48,,0) -> 0 | F18: ='State of Good Repair AP-CP'!S20 -> 77572.40193 | G18: ='State of Good Repair AP-CP'!T20 -> 55444.94039 | H18: ='State of Good Repair - AP-AP'!S20 -> 0 | I18: ='State of Good Repair - AP-AP'!T20 -> 0 | J18: ='State of Good Repair CP-CP '!S20 -> 0 | K18: ='State of Good Repair CP-CP '!T20 -> 0 | L18: ='Roadway Safety'!AC20 -> 14037746.4 | M18: ='Roadway Safety'!AD20 -> 10033491.2 | N18: ='Pedestrian Safety'!Q20 -> 42809 | O18: ='Pedestrian Safety'!R20 -> 30597.76923 | P18: ='Bike Safety'!S20 -> 14704.2 | Q18: ='Bike Safety'!T20 -> 10509.83948 | R18: ='Facility Improve - Ped'!AK20 -> 24104.46494 | S18: ='Facility Improve - Ped'!AL20 -> 17228.68686 | T18: ='Facility Improve - Bike'!Q20 -> 131707.2891 | U18: ='Facility Improve - Bike'!R20 -> 94137.89711 | V18: ='Facility Improve - Transit Stop'!Y20 -> 0 | W18: ='Facility Improve - Transit Stop'!Z20 -> 0 | X18: =_xlfn.XLOOKUP(A18,'Serve Improve - Transit Mode'!F:F,'Serve Improve - Transit Mode'!Y:Y,,0) -> 0 | Y18: =_xlfn.XLOOKUP(A18,'Serve Improve - Transit Mode'!F:F,'Serve Improve - Transit Mode'!Z:Z,,0) -> 0 | Z18: ='Amenity Improve - Transit Veh '!Q20 -> 0 | AA18: ='Amenity Improve - Transit Veh '!R20 -> 0 | AB18: ='Value of Travel Time'!AD20 -> 4607018.817 | AC18: ='Value of Travel Time'!AE20 -> 3292870.626 | AD18: ='Operating Cost Savings'!P20 -> 0 | AE18: ='Operating Cost Savings'!Q20 -> 0 | AF18: ='Mortality Reduction - Walk'!O20 -> 94171.67464 | AG18: ='Mortality Reduction - Walk'!P20 -> 67309.28471 | AH18: ='Mortality Reduction - Bike'!O20 -> 201467.3179 | AI18: ='Mortality Reduction - Bike'!P20 -> 143998.9372 | AJ18: ='Emission Reduction (VMT)'!S20 -> 0 | AK18: ='Emission Reduction (VMT)'!T20 -> 0 | AL18: ='Emission Reduction (Metric Ton)'!AA20 -> 11805.23556 | AM18: ='Emission Reduction (Metric Ton)'!AB20 -> 8527.88221 | AN18: ='Other Highway Use Externalities'!Q20 -> 22326.02571 | AO18: ='Other Highway Use Externalities'!R20 -> 15957.54591 | AP18: ='Auto Idling Benefit - Fuel'!O20 -> 459030.8504 | AQ18: ='Auto Idling Benefit - Fuel'!P20 -> 328092.6915 | AR18: ='Auto Idling Env. Benefits'!Y20 -> 347753.7758 | AS18: ='Auto Idling Env. Benefits'!Z20 -> 279674.8767 | AT18: =_xlfn.XLOOKUP(A18,'Repurposed ROW'!F:F,'Repurposed ROW'!K:K,,0) -> 0 | AU18: =_xlfn.XLOOKUP(A18,'Repurposed ROW'!F:F,'Repurposed ROW'!L:L,,0) -> 0 | AV18: 20072217.45 | AW18: 14377842.18 | AY18: ='Prop. Tax Inc Sidewalk'!M20 -> 0 | AZ18: ='Prop. Tax Inc Sidewalk'!N20 -> 0 | BA18: ='Prop. Tax Inc Bike Lane'!M20 -> 0 | BB18: ='Prop. Tax Inc Bike Lane'!N20 -> 0 | BC18: ='Prop. Tax Inc Sidewalk & Bike'!M20 -> 0 | BD18: ='Prop. Tax Inc Sidewalk & Bike'!N20 -> 0 | BE18: ='Prop. Tax Inc Shared Use Path'!O20 -> 0 | BF18: ='Prop. Tax Inc Shared Use Path'!P20 -> 0
A19: ='Major Assumption Key'!A33 -> 2034 | B19: ='Useful Life'!N21 -> 0 | C19: ='Useful Life'!O21 -> 0 | D19: =_xlfn.XLOOKUP(A19,'Non-Roadway Maintenance'!$F$8:$F$48,'Non-Roadway Maintenance'!$K$8:$K$48,,0) -> 0 | E19: =_xlfn.XLOOKUP(A19,'Non-Roadway Maintenance'!$F$8:$F$48,'Non-Roadway Maintenance'!$L$8:$L$48,,0) -> 0 | F19: ='State of Good Repair AP-CP'!S21 -> 78888.58296 | G19: ='State of Good Repair AP-CP'!T21 -> 54690.28313 | H19: ='State of Good Repair - AP-AP'!S21 -> 0 | I19: ='State of Good Repair - AP-AP'!T21 -> 0 | J19: ='State of Good Repair CP-CP '!S21 -> 0 | K19: ='State of Good Repair CP-CP '!T21 -> 0 | L19: ='Roadway Safety'!AC21 -> 14037746.4 | M19: ='Roadway Safety'!AD21 -> 9731805.241 | N19: ='Pedestrian Safety'!Q21 -> 42809 | O19: ='Pedestrian Safety'!R21 -> 29677.75871 | P19: ='Bike Safety'!S21 -> 14704.2 | Q19: ='Bike Safety'!T21 -> 10193.83073 | R19: ='Facility Improve - Ped'!AK21 -> 24513.44853 | S19: ='Facility Improve - Ped'!AL21 -> 16994.18839 | T19: ='Facility Improve - Bike'!Q21 -> 133941.9838 | U19: ='Facility Improve - Bike'!R21 -> 92856.59268 | V19: ='Facility Improve - Transit Stop'!Y21 -> 0 | W19: ='Facility Improve - Transit Stop'!Z21 -> 0 | X19: =_xlfn.XLOOKUP(A19,'Serve Improve - Transit Mode'!F:F,'Serve Improve - Transit Mode'!Y:Y,,0) -> 0 | Y19: =_xlfn.XLOOKUP(A19,'Serve Improve - Transit Mode'!F:F,'Serve Improve - Transit Mode'!Z:Z,,0) -> 0 | Z19: ='Amenity Improve - Transit Veh '!Q21 -> 0 | AA19: ='Amenity Improve - Transit Veh '!R21 -> 0 | AB19: ='Value of Travel Time'!AD21 -> 4879472.276 | AC19: ='Value of Travel Time'!AE21 -> 3382741.967 | AD19: ='Operating Cost Savings'!P21 -> 0 | AE19: ='Operating Cost Savings'!Q21 -> 0 | AF19: ='Mortality Reduction - Walk'!O21 -> 95769.49769 | AG19: ='Mortality Reduction - Walk'!P21 -> 66393.14267 | AH19: ='Mortality Reduction - Bike'!O21 -> 204885.6401 | AI19: ='Mortality Reduction - Bike'!P21 -> 142038.9776 | AJ19: ='Emission Reduction (VMT)'!S21 -> 0 | AK19: ='Emission Reduction (VMT)'!T21 -> 0 | AL19: ='Emission Reduction (Metric Ton)'!AA21 -> 12093.61305 | AM19: ='Emission Reduction (Metric Ton)'!AB21 -> 8481.751232 | AN19: ='Other Highway Use Externalities'!Q21 -> 22704.83429 | AO19: ='Other Highway Use Externalities'!R21 -> 15740.34885 | AP19: ='Auto Idling Benefit - Fuel'!O21 -> 484313.7973 | AQ19: ='Auto Idling Benefit - Fuel'!P21 -> 335755.2855 | AR19: ='Auto Idling Env. Benefits'!Y21 -> 372995.3975 | AS19: ='Auto Idling Env. Benefits'!Z21 -> 294092.3884 | AT19: =_xlfn.XLOOKUP(A19,'Repurposed ROW'!F:F,'Repurposed ROW'!K:K,,0) -> 0 | AU19: =_xlfn.XLOOKUP(A19,'Repurposed ROW'!F:F,'Repurposed ROW'!L:L,,0) -> 0 | AV19: 20404838.67 | AW19: 14181461.76 | AY19: ='Prop. Tax Inc Sidewalk'!M21 -> 0 | AZ19: ='Prop. Tax Inc Sidewalk'!N21 -> 0 | BA19: ='Prop. Tax Inc Bike Lane'!M21 -> 0 | BB19: ='Prop. Tax Inc Bike Lane'!N21 -> 0 | BC19: ='Prop. Tax Inc Sidewalk & Bike'!M21 -> 0 | BD19: ='Prop. Tax Inc Sidewalk & Bike'!N21 -> 0 | BE19: ='Prop. Tax Inc Shared Use Path'!O21 -> 0 | BF19: ='Prop. Tax Inc Shared Use Path'!P21 -> 0
A20: ='Major Assumption Key'!A34 -> 2035 | B20: ='Useful Life'!N22 -> 0 | C20: ='Useful Life'!O22 -> 0 | D20: =_xlfn.XLOOKUP(A20,'Non-Roadway Maintenance'!$F$8:$F$48,'Non-Roadway Maintenance'!$K$8:$K$48,,0) -> 0 | E20: =_xlfn.XLOOKUP(A20,'Non-Roadway Maintenance'!$F$8:$F$48,'Non-Roadway Maintenance'!$L$8:$L$48,,0) -> 0 | F20: ='State of Good Repair AP-CP'!S22 -> 143181.8398 | G20: ='State of Good Repair AP-CP'!T22 -> 96277.60756 | H20: ='State of Good Repair - AP-AP'!S22 -> 0 | I20: ='State of Good Repair - AP-AP'!T22 -> 0 | J20: ='State of Good Repair CP-CP '!S22 -> 0 | K20: ='State of Good Repair CP-CP '!T22 -> 0 | L20: ='Roadway Safety'!AC22 -> 10657296.4 | M20: ='Roadway Safety'!AD22 -> 7166125.272 | N20: ='Pedestrian Safety'!Q22 -> 42809 | O20: ='Pedestrian Safety'!R22 -> 28785.41097 | P20: ='Bike Safety'!S22 -> 14704.2 | Q20: ='Bike Safety'!T22 -> 9887.323695 | R20: ='Facility Improve - Ped'!AK22 -> 24929.3714 | S20: ='Facility Improve - Ped'!AL22 -> 16762.88166 | T20: ='Facility Improve - Bike'!Q22 -> 136214.5948 | U20: ='Facility Improve - Bike'!R22 -> 91592.72799 | V20: ='Facility Improve - Transit Stop'!Y22 -> 0 | W20: ='Facility Improve - Transit Stop'!Z22 -> 0 | X20: =_xlfn.XLOOKUP(A20,'Serve Improve - Transit Mode'!F:F,'Serve Improve - Transit Mode'!Y:Y,,0) -> 0 | Y20: =_xlfn.XLOOKUP(A20,'Serve Improve - Transit Mode'!F:F,'Serve Improve - Transit Mode'!Z:Z,,0) -> 0 | Z20: ='Amenity Improve - Transit Veh '!Q22 -> 0 | AA20: ='Amenity Improve - Transit Veh '!R22 -> 0 | AB20: ='Value of Travel Time'!AD22 -> 5166650.502 | AC20: ='Value of Travel Time'!AE22 -> 3474132.964 | AD20: ='Operating Cost Savings'!P22 -> 0 | AE20: ='Operating Cost Savings'!Q22 -> 0 | AF20: ='Mortality Reduction - Walk'!O22 -> 97394.4312 | AG20: ='Mortality Reduction - Walk'!P22 -> 65489.47018 | AH20: ='Mortality Reduction - Bike'!O22 -> 208361.9614 | AI20: ='Mortality Reduction - Bike'!P22 -> 140105.6948 | AJ20: ='Emission Reduction (VMT)'!S22 -> 0 | AK20: ='Emission Reduction (VMT)'!T22 -> 0 | AL20: ='Emission Reduction (Metric Ton)'!AA22 -> 12337.64631 | AM20: ='Emission Reduction (Metric Ton)'!AB22 -> 8400.879777 | AN20: ='Other Highway Use Externalities'!Q22 -> 23090.07017 | AO20: ='Other Highway Use Externalities'!R22 -> 15526.10804 | AP20: ='Auto Idling Benefit - Fuel'!O22 -> 510768.0149 | AQ20: ='Auto Idling Benefit - Fuel'!P22 -> 343448.0418 | AR20: ='Auto Idling Env. Benefits'!Y22 -> 398184.3493 | AS20: ='Auto Idling Env. Benefits'!Z22 -> 307796.1494 | AT20: =_xlfn.XLOOKUP(A20,'Repurposed ROW'!F:F,'Repurposed ROW'!K:K,,0) -> 0 | AU20: =_xlfn.XLOOKUP(A20,'Repurposed ROW'!F:F,'Repurposed ROW'!L:L,,0) -> 0 | AV20: 17435922.38 | AW20: 11764330.53 | AY20: ='Prop. Tax Inc Sidewalk'!M22 -> 0 | AZ20: ='Prop. Tax Inc Sidewalk'!N22 -> 0 | BA20: ='Prop. Tax Inc Bike Lane'!M22 -> 0 | BB20: ='Prop. Tax Inc Bike Lane'!N22 -> 0 | BC20: ='Prop. Tax Inc Sidewalk & Bike'!M22 -> 0 | BD20: ='Prop. Tax Inc Sidewalk & Bike'!N22 -> 0 | BE20: ='Prop. Tax Inc Shared Use Path'!O22 -> 0 | BF20: ='Prop. Tax Inc Shared Use Path'!P22 -> 0
A21: ='Major Assumption Key'!A35 -> 2036 | B21: ='Useful Life'!N23 -> 0 | C21: ='Useful Life'!O23 -> 0 | D21: =_xlfn.XLOOKUP(A21,'Non-Roadway Maintenance'!$F$8:$F$48,'Non-Roadway Maintenance'!$K$8:$K$48,,0) -> 0 | E21: =_xlfn.XLOOKUP(A21,'Non-Roadway Maintenance'!$F$8:$F$48,'Non-Roadway Maintenance'!$L$8:$L$48,,0) -> 0 | F21: ='State of Good Repair AP-CP'!S23 -> 379471.0288 | G21: ='State of Good Repair AP-CP'!T23 -> 247489.8035 | H21: ='State of Good Repair - AP-AP'!S23 -> 0 | I21: ='State of Good Repair - AP-AP'!T23 -> 0 | J21: ='State of Good Repair CP-CP '!S23 -> 0 | K21: ='State of Good Repair CP-CP '!T23 -> 0 | L21: ='Roadway Safety'!AC23 -> 10657296.4 | M21: ='Roadway Safety'!AD23 -> 6950654.968 | N21: ='Pedestrian Safety'!Q23 -> 42809 | O21: ='Pedestrian Safety'!R23 -> 27919.89425 | P21: ='Bike Safety'!S23 -> 14704.2 | Q21: ='Bike Safety'!T23 -> 9590.032682 | R21: ='Facility Improve - Ped'!AK23 -> 25352.35129 | S21: ='Facility Improve - Ped'!AL23 -> 16534.72323 | T21: ='Facility Improve - Bike'!Q23 -> 138525.7655 | U21: ='Facility Improve - Bike'!R23 -> 90346.06567 | V21: ='Facility Improve - Transit Stop'!Y23 -> 0 | W21: ='Facility Improve - Transit Stop'!Z23 -> 0 | X21: =_xlfn.XLOOKUP(A21,'Serve Improve - Transit Mode'!F:F,'Serve Improve - Transit Mode'!Y:Y,,0) -> 0 | Y21: =_xlfn.XLOOKUP(A21,'Serve Improve - Transit Mode'!F:F,'Serve Improve - Transit Mode'!Z:Z,,0) -> 0 | Z21: ='Amenity Improve - Transit Veh '!Q23 -> 0 | AA21: ='Amenity Improve - Transit Veh '!R23 -> 0 | AB21: ='Value of Travel Time'!AD23 -> 5469317.763 | AC21: ='Value of Travel Time'!AE23 -> 3567071.728 | AD21: ='Operating Cost Savings'!P23 -> 0 | AE21: ='Operating Cost Savings'!Q23 -> 0 | AF21: ='Mortality Reduction - Walk'!O23 -> 99046.93518 | AG21: ='Mortality Reduction - Walk'!P23 -> 64598.09751 | AH21: ='Mortality Reduction - Bike'!O23 -> 211897.2659 | AI21: ='Mortality Reduction - Bike'!P23 -> 138198.7259 | AJ21: ='Emission Reduction (VMT)'!S23 -> 0 | AK21: ='Emission Reduction (VMT)'!T23 -> 0 | AL21: ='Emission Reduction (Metric Ton)'!AA23 -> 12636.06797 | AM21: ='Emission Reduction (Metric Ton)'!AB23 -> 8353.48364 | AN21: ='Other Highway Use Externalities'!Q23 -> 23481.84239 | AO21: ='Other Highway Use Externalities'!R23 -> 15314.78326 | AP21: ='Auto Idling Benefit - Fuel'!O23 -> 538444.0824 | AQ21: ='Auto Idling Benefit - Fuel'!P23 -> 351171.5256 | AR21: ='Auto Idling Env. Benefits'!Y23 -> 426528.1521 | AS21: ='Auto Idling Env. Benefits'!Z23 -> 323240.3009 | AT21: =_xlfn.XLOOKUP(A21,'Repurposed ROW'!F:F,'Repurposed ROW'!K:K,,0) -> 0 | AU21: =_xlfn.XLOOKUP(A21,'Repurposed ROW'!F:F,'Repurposed ROW'!L:L,,0) -> 0 | AV21: 18039510.85 | AW21: 11810484.13 | AY21: ='Prop. Tax Inc Sidewalk'!M23 -> 0 | AZ21: ='Prop. Tax Inc Sidewalk'!N23 -> 0 | BA21: ='Prop. Tax Inc Bike Lane'!M23 -> 0 | BB21: ='Prop. Tax Inc Bike Lane'!N23 -> 0 | BC21: ='Prop. Tax Inc Sidewalk & Bike'!M23 -> 0 | BD21: ='Prop. Tax Inc Sidewalk & Bike'!N23 -> 0 | BE21: ='Prop. Tax Inc Shared Use Path'!O23 -> 0 | BF21: ='Prop. Tax Inc Shared Use Path'!P23 -> 0
A22: ='Major Assumption Key'!A36 -> 2037 | B22: ='Useful Life'!N24 -> 0 | C22: ='Useful Life'!O24 -> 0 | D22: =_xlfn.XLOOKUP(A22,'Non-Roadway Maintenance'!$F$8:$F$48,'Non-Roadway Maintenance'!$K$8:$K$48,,0) -> 0 | E22: =_xlfn.XLOOKUP(A22,'Non-Roadway Maintenance'!$F$8:$F$48,'Non-Roadway Maintenance'!$L$8:$L$48,,0) -> 0 | F22: ='State of Good Repair AP-CP'!S24 -> 760464.3111 | G22: ='State of Good Repair AP-CP'!T24 -> 481059.5692 | H22: ='State of Good Repair - AP-AP'!S24 -> 0 | I22: ='State of Good Repair - AP-AP'!T24 -> 0 | J22: ='State of Good Repair CP-CP '!S24 -> 0 | K22: ='State of Good Repair CP-CP '!T24 -> 0 | L22: ='Roadway Safety'!AC24 -> 10657296.4 | M22: ='Roadway Safety'!AD24 -> 6741663.402 | N22: ='Pedestrian Safety'!Q24 -> 42809 | O22: ='Pedestrian Safety'!R24 -> 27080.4018 | P22: ='Bike Safety'!S24 -> 14704.2 | Q22: ='Bike Safety'!T24 -> 9301.680584 | R22: ='Facility Improve - Ped'!AK24 -> 25782.50793 | S22: ='Facility Improve - Ped'!AL24 -> 16309.67026 | T22: ='Facility Improve - Bike'!Q24 -> 140876.1502 | U22: ='Facility Improve - Bike'!R24 -> 89116.37159 | V22: ='Facility Improve - Transit Stop'!Y24 -> 0 | W22: ='Facility Improve - Transit Stop'!Z24 -> 0 | X22: =_xlfn.XLOOKUP(A22,'Serve Improve - Transit Mode'!F:F,'Serve Improve - Transit Mode'!Y:Y,,0) -> 0 | Y22: =_xlfn.XLOOKUP(A22,'Serve Improve - Transit Mode'!F:F,'Serve Improve - Transit Mode'!Z:Z,,0) -> 0 | Z22: ='Amenity Improve - Transit Veh '!Q24 -> 0 | AA22: ='Amenity Improve - Transit Veh '!R24 -> 0 | AB22: ='Value of Travel Time'!AD24 -> 5788277.213 | AC22: ='Value of Travel Time'!AE24 -> 3661586.878 | AD22: ='Operating Cost Savings'!P24 -> 0 | AE22: ='Operating Cost Savings'!Q24 -> 0 | AF22: ='Mortality Reduction - Walk'!O24 -> 100727.4774 | AG22: ='Mortality Reduction - Walk'!P24 -> 63718.85725 | AH22: ='Mortality Reduction - Bike'!O24 -> 215492.5543 | AI22: ='Mortality Reduction - Bike'!P24 -> 136317.7125 | AJ22: ='Emission Reduction (VMT)'!S24 -> 0 | AK22: ='Emission Reduction (VMT)'!T24 -> 0 | AL22: ='Emission Reduction (Metric Ton)'!AA24 -> 12939.83223 | AM22: ='Emission Reduction (Metric Ton)'!AB24 -> 8305.153096 | AN22: ='Other Highway Use Externalities'!Q24 -> 23880.26186 | AO22: ='Other Highway Use Externalities'!R24 -> 15106.33479 | AP22: ='Auto Idling Benefit - Fuel'!O24 -> 567394.69 | AQ22: ='Auto Idling Benefit - Fuel'!P24 -> 358926.3048 | AR22: ='Auto Idling Env. Benefits'!Y24 -> 456593.3632 | AS22: ='Auto Idling Env. Benefits'!Z24 -> 339239.3684 | AT22: =_xlfn.XLOOKUP(A22,'Repurposed ROW'!F:F,'Repurposed ROW'!K:K,,0) -> 0 | AU22: =_xlfn.XLOOKUP(A22,'Repurposed ROW'!F:F,'Repurposed ROW'!L:L,,0) -> 0 | AV22: 18807237.96 | AW22: 11947731.7 | AY22: ='Prop. Tax Inc Sidewalk'!M24 -> 0 | AZ22: ='Prop. Tax Inc Sidewalk'!N24 -> 0 | BA22: ='Prop. Tax Inc Bike Lane'!M24 -> 0 | BB22: ='Prop. Tax Inc Bike Lane'!N24 -> 0 | BC22: ='Prop. Tax Inc Sidewalk & Bike'!M24 -> 0 | BD22: ='Prop. Tax Inc Sidewalk & Bike'!N24 -> 0 | BE22: ='Prop. Tax Inc Shared Use Path'!O24 -> 0 | BF22: ='Prop. Tax Inc Shared Use Path'!P24 -> 0
A23: ='Major Assumption Key'!A37 -> 2038 | B23: ='Useful Life'!N25 -> 0 | C23: ='Useful Life'!O25 -> 0 | D23: =_xlfn.XLOOKUP(A23,'Non-Roadway Maintenance'!$F$8:$F$48,'Non-Roadway Maintenance'!$K$8:$K$48,,0) -> 0 | E23: =_xlfn.XLOOKUP(A23,'Non-Roadway Maintenance'!$F$8:$F$48,'Non-Roadway Maintenance'!$L$8:$L$48,,0) -> 0 | F23: ='State of Good Repair AP-CP'!S25 -> 774949.488 | G23: ='State of Good Repair AP-CP'!T25 -> 475482.7339 | H23: ='State of Good Repair - AP-AP'!S25 -> 0 | I23: ='State of Good Repair - AP-AP'!T25 -> 0 | J23: ='State of Good Repair CP-CP '!S25 -> 0 | K23: ='State of Good Repair CP-CP '!T25 -> 0 | L23: ='Roadway Safety'!AC25 -> 10657296.4 | M23: ='Roadway Safety'!AD25 -> 6538955.773 | N23: ='Pedestrian Safety'!Q25 -> 42809 | O23: ='Pedestrian Safety'!R25 -> 26266.15111 | P23: ='Bike Safety'!S25 -> 14704.2 | Q23: ='Bike Safety'!T25 -> 9021.998626 | R23: ='Facility Improve - Ped'!AK25 -> 26219.96309 | S23: ='Facility Improve - Ped'!AL25 -> 16087.68046 | T23: ='Facility Improve - Bike'!Q25 -> 143266.4142 | U23: ='Facility Improve - Bike'!R25 -> 87903.41479 | V23: ='Facility Improve - Transit Stop'!Y25 -> 0 | W23: ='Facility Improve - Transit Stop'!Z25 -> 0 | X23: =_xlfn.XLOOKUP(A23,'Serve Improve - Transit Mode'!F:F,'Serve Improve - Transit Mode'!Y:Y,,0) -> 0 | Y23: =_xlfn.XLOOKUP(A23,'Serve Improve - Transit Mode'!F:F,'Serve Improve - Transit Mode'!Z:Z,,0) -> 0 | Z23: ='Amenity Improve - Transit Veh '!Q25 -> 0 | AA23: ='Amenity Improve - Transit Veh '!R25 -> 0 | AB23: ='Value of Travel Time'!AD25 -> 6133478.925 | AC23: ='Value of Travel Time'!AE25 -> 3763294.734 | AD23: ='Operating Cost Savings'!P25 -> 0 | AE23: ='Operating Cost Savings'!Q25 -> 0 | AF23: ='Mortality Reduction - Walk'!O25 -> 102436.5336 | AG23: ='Mortality Reduction - Walk'!P25 -> 62851.58427 | AH23: ='Mortality Reduction - Bike'!O25 -> 219148.8445 | AI23: ='Mortality Reduction - Bike'!P25 -> 134462.3015 | AJ23: ='Emission Reduction (VMT)'!S25 -> 0 | AK23: ='Emission Reduction (VMT)'!T25 -> 0 | AL23: ='Emission Reduction (Metric Ton)'!AA25 -> 13198.23327 | AM23: ='Emission Reduction (Metric Ton)'!AB25 -> 8224.284362 | AN23: ='Other Highway Use Externalities'!Q25 -> 24285.44137 | AO23: ='Other Highway Use Externalities'!R25 -> 14900.72351 | AP23: ='Auto Idling Benefit - Fuel'!O25 -> 591664.9519 | AQ23: ='Auto Idling Benefit - Fuel'!P25 -> 363025.5562 | AR23: ='Auto Idling Env. Benefits'!Y25 -> 481703.8438 | AS23: ='Auto Idling Env. Benefits'!Z25 -> 350877.3219 | AT23: =_xlfn.XLOOKUP(A23,'Repurposed ROW'!F:F,'Repurposed ROW'!K:K,,0) -> 0 | AU23: =_xlfn.XLOOKUP(A23,'Repurposed ROW'!F:F,'Repurposed ROW'!L:L,,0) -> 0 | AV23: 19225162.24 | AW23: 11851354.26 | AY23: ='Prop. Tax Inc Sidewalk'!M25 -> 0 | AZ23: ='Prop. Tax Inc Sidewalk'!N25 -> 0 | BA23: ='Prop. Tax Inc Bike Lane'!M25 -> 0 | BB23: ='Prop. Tax Inc Bike Lane'!N25 -> 0 | BC23: ='Prop. Tax Inc Sidewalk & Bike'!M25 -> 0 | BD23: ='Prop. Tax Inc Sidewalk & Bike'!N25 -> 0 | BE23: ='Prop. Tax Inc Shared Use Path'!O25 -> 0 | BF23: ='Prop. Tax Inc Shared Use Path'!P25 -> 0
A24: ='Major Assumption Key'!A38 -> 2039 | B24: ='Useful Life'!N26 -> 0 | C24: ='Useful Life'!O26 -> 0 | D24: =_xlfn.XLOOKUP(A24,'Non-Roadway Maintenance'!$F$8:$F$48,'Non-Roadway Maintenance'!$K$8:$K$48,,0) -> 0 | E24: =_xlfn.XLOOKUP(A24,'Non-Roadway Maintenance'!$F$8:$F$48,'Non-Roadway Maintenance'!$L$8:$L$48,,0) -> 0 | F24: ='State of Good Repair AP-CP'!S26 -> 24653006.25 | G24: ='State of Good Repair AP-CP'!T26 -> 14671434.4 | H24: ='State of Good Repair - AP-AP'!S26 -> 0 | I24: ='State of Good Repair - AP-AP'!T26 -> 0 | J24: ='State of Good Repair CP-CP '!S26 -> 0 | K24: ='State of Good Repair CP-CP '!T26 -> 0 | L24: ='Roadway Safety'!AC26 -> 10657296.4 | M24: ='Roadway Safety'!AD26 -> 6342343.136 | N24: ='Pedestrian Safety'!Q26 -> 42809 | O24: ='Pedestrian Safety'!R26 -> 25476.38323 | P24: ='Bike Safety'!S26 -> 14704.2 | Q24: ='Bike Safety'!T26 -> 8750.726117 | R24: ='Facility Improve - Ped'!AK26 -> 26664.84061 | S24: ='Facility Improve - Ped'!AL26 -> 15868.71215 | T24: ='Facility Improve - Bike'!Q26 -> 145697.234 | U24: ='Facility Improve - Bike'!R26 -> 86706.96747 | V24: ='Facility Improve - Transit Stop'!Y26 -> 0 | W24: ='Facility Improve - Transit Stop'!Z26 -> 0 | X24: =_xlfn.XLOOKUP(A24,'Serve Improve - Transit Mode'!F:F,'Serve Improve - Transit Mode'!Y:Y,,0) -> 0 | Y24: =_xlfn.XLOOKUP(A24,'Serve Improve - Transit Mode'!F:F,'Serve Improve - Transit Mode'!Z:Z,,0) -> 0 | Z24: ='Amenity Improve - Transit Veh '!Q26 -> 0 | AA24: ='Amenity Improve - Transit Veh '!R26 -> 0 | AB24: ='Value of Travel Time'!AD26 -> 6499078.319 | AC24: ='Value of Travel Time'!AE26 -> 3867714.964 | AD24: ='Operating Cost Savings'!P26 -> 0 | AE24: ='Operating Cost Savings'!Q26 -> 0 | AF24: ='Mortality Reduction - Walk'!O26 -> 104174.5876 | AG24: ='Mortality Reduction - Walk'!P26 -> 61996.11568 | AH24: ='Mortality Reduction - Bike'!O26 -> 222867.1714 | AI24: ='Mortality Reduction - Bike'!P26 -> 132632.1444 | AJ24: ='Emission Reduction (VMT)'!S26 -> 0 | AK24: ='Emission Reduction (VMT)'!T26 -> 0 | AL24: ='Emission Reduction (Metric Ton)'!AA26 -> 13512.50495 | AM24: ='Emission Reduction (Metric Ton)'!AB26 -> 8174.885097 | AN24: ='Other Highway Use Externalities'!Q26 -> 24697.49561 | AO24: ='Other Highway Use Externalities'!R26 -> 14697.91079 | AP24: ='Auto Idling Benefit - Fuel'!O26 -> 616964.1983 | AQ24: ='Auto Idling Benefit - Fuel'!P26 -> 367166.165 | AR24: ='Auto Idling Env. Benefits'!Y26 -> 510058.3065 | AS24: ='Auto Idling Env. Benefits'!Z26 -> 364245.0415 | AT24: =_xlfn.XLOOKUP(A24,'Repurposed ROW'!F:F,'Repurposed ROW'!K:K,,0) -> 0 | AU24: =_xlfn.XLOOKUP(A24,'Repurposed ROW'!F:F,'Repurposed ROW'!L:L,,0) -> 0 | AV24: 43531530.51 | AW24: 25967207.55 | AY24: ='Prop. Tax Inc Sidewalk'!M26 -> 0 | AZ24: ='Prop. Tax Inc Sidewalk'!N26 -> 0 | BA24: ='Prop. Tax Inc Bike Lane'!M26 -> 0 | BB24: ='Prop. Tax Inc Bike Lane'!N26 -> 0 | BC24: ='Prop. Tax Inc Sidewalk & Bike'!M26 -> 0 | BD24: ='Prop. Tax Inc Sidewalk & Bike'!N26 -> 0 | BE24: ='Prop. Tax Inc Shared Use Path'!O26 -> 0 | BF24: ='Prop. Tax Inc Shared Use Path'!P26 -> 0
A25: ='Major Assumption Key'!A39 -> 2040 | B25: ='Useful Life'!N27 -> 0 | C25: ='Useful Life'!O27 -> 0 | D25: =_xlfn.XLOOKUP(A25,'Non-Roadway Maintenance'!$F$8:$F$48,'Non-Roadway Maintenance'!$K$8:$K$48,,0) -> 0 | E25: =_xlfn.XLOOKUP(A25,'Non-Roadway Maintenance'!$F$8:$F$48,'Non-Roadway Maintenance'!$L$8:$L$48,,0) -> 0 | F25: ='State of Good Repair AP-CP'!S27 -> 87268.12628 | G25: ='State of Good Repair AP-CP'!T27 -> 50373.21573 | H25: ='State of Good Repair - AP-AP'!S27 -> 0 | I25: ='State of Good Repair - AP-AP'!T27 -> 0 | J25: ='State of Good Repair CP-CP '!S27 -> 0 | K25: ='State of Good Repair CP-CP '!T27 -> 0 | L25: ='Roadway Safety'!AC27 -> 10657296.4 | M25: ='Roadway Safety'!AD27 -> 6151642.227 | N25: ='Pedestrian Safety'!Q27 -> 42809 | O25: ='Pedestrian Safety'!R27 -> 24710.36201 | P25: ='Bike Safety'!S27 -> 14704.2 | Q25: ='Bike Safety'!T27 -> 8487.6102 | R25: ='Facility Improve - Ped'!AK27 -> 27117.26643 | S25: ='Facility Improve - Ped'!AL27 -> 15652.7242 | T25: ='Facility Improve - Bike'!Q27 -> 148169.298 | U25: ='Facility Improve - Bike'!R27 -> 85526.8049 | V25: ='Facility Improve - Transit Stop'!Y27 -> 0 | W25: ='Facility Improve - Transit Stop'!Z27 -> 0 | X25: =_xlfn.XLOOKUP(A25,'Serve Improve - Transit Mode'!F:F,'Serve Improve - Transit Mode'!Y:Y,,0) -> 0 | Y25: =_xlfn.XLOOKUP(A25,'Serve Improve - Transit Mode'!F:F,'Serve Improve - Transit Mode'!Z:Z,,0) -> 0 | Z25: ='Amenity Improve - Transit Veh '!Q27 -> 0 | AA25: ='Amenity Improve - Transit Veh '!R27 -> 0 | AB25: ='Value of Travel Time'!AD27 -> 6886271.932 | AC25: ='Value of Travel Time'!AE27 -> 3974918.179 | AD25: ='Operating Cost Savings'!P27 -> 0 | AE25: ='Operating Cost Savings'!Q27 -> 0 | AF25: ='Mortality Reduction - Walk'!O27 -> 105942.1314 | AG25: ='Mortality Reduction - Walk'!P27 -> 61152.29082 | AH25: ='Mortality Reduction - Bike'!O27 -> 226648.5877 | AI25: ='Mortality Reduction - Bike'!P27 -> 130826.8974 | AJ25: ='Emission Reduction (VMT)'!S27 -> 0 | AK25: ='Emission Reduction (VMT)'!T27 -> 0 | AL25: ='Emission Reduction (Metric Ton)'!AA27 -> 13832.37266 | AM25: ='Emission Reduction (Metric Ton)'!AB27 -> 8124.674889 | AN25: ='Other Highway Use Externalities'!Q27 -> 25116.54123 | AO25: ='Other Highway Use Externalities'!R27 -> 14497.85854 | AP25: ='Auto Idling Benefit - Fuel'!O27 -> 643335.7392 | AQ25: ='Auto Idling Benefit - Fuel'!P27 -> 371348.5251 | AR25: ='Auto Idling Env. Benefits'!Y27 -> 539948.9203 | AS25: ='Auto Idling Env. Benefits'!Z27 -> 378029.0323 | AT25: =_xlfn.XLOOKUP(A25,'Repurposed ROW'!F:F,'Repurposed ROW'!K:K,,0) -> 0 | AU25: =_xlfn.XLOOKUP(A25,'Repurposed ROW'!F:F,'Repurposed ROW'!L:L,,0) -> 0 | AV25: 19418460.52 | AW25: 11275290.4 | AY25: ='Prop. Tax Inc Sidewalk'!M27 -> 0 | AZ25: ='Prop. Tax Inc Sidewalk'!N27 -> 0 | BA25: ='Prop. Tax Inc Bike Lane'!M27 -> 0 | BB25: ='Prop. Tax Inc Bike Lane'!N27 -> 0 | BC25: ='Prop. Tax Inc Sidewalk & Bike'!M27 -> 0 | BD25: ='Prop. Tax Inc Sidewalk & Bike'!N27 -> 0 | BE25: ='Prop. Tax Inc Shared Use Path'!O27 -> 0 | BF25: ='Prop. Tax Inc Shared Use Path'!P27 -> 0
A26: ='Major Assumption Key'!A40 -> 2041 | B26: ='Useful Life'!N28 -> 0 | C26: ='Useful Life'!O28 -> 0 | D26: =_xlfn.XLOOKUP(A26,'Non-Roadway Maintenance'!$F$8:$F$48,'Non-Roadway Maintenance'!$K$8:$K$48,,0) -> 0 | E26: =_xlfn.XLOOKUP(A26,'Non-Roadway Maintenance'!$F$8:$F$48,'Non-Roadway Maintenance'!$L$8:$L$48,,0) -> 0 | F26: ='State of Good Repair AP-CP'!S28 -> 88748.81592 | G26: ='State of Good Repair AP-CP'!T28 -> 49687.58936 | H26: ='State of Good Repair - AP-AP'!S28 -> 0 | I26: ='State of Good Repair - AP-AP'!T28 -> 0 | J26: ='State of Good Repair CP-CP '!S28 -> 0 | K26: ='State of Good Repair CP-CP '!T28 -> 0 | L26: ='Roadway Safety'!AC28 -> 8770001.8 | M26: ='Roadway Safety'!AD28 -> 4910040.135 | N26: ='Pedestrian Safety'!Q28 -> 0 | O26: ='Pedestrian Safety'!R28 -> 0 | P26: ='Bike Safety'!S28 -> 14704.2 | Q26: ='Bike Safety'!T28 -> 8232.405626 | R26: ='Facility Improve - Ped'!AK28 -> 27577.36861 | S26: ='Facility Improve - Ped'!AL28 -> 15439.67605 | T26: ='Facility Improve - Bike'!Q28 -> 150683.3057 | U26: ='Facility Improve - Bike'!R28 -> 84362.70545 | V26: ='Facility Improve - Transit Stop'!Y28 -> 0 | W26: ='Facility Improve - Transit Stop'!Z28 -> 0 | X26: =_xlfn.XLOOKUP(A26,'Serve Improve - Transit Mode'!F:F,'Serve Improve - Transit Mode'!Y:Y,,0) -> 0 | Y26: =_xlfn.XLOOKUP(A26,'Serve Improve - Transit Mode'!F:F,'Serve Improve - Transit Mode'!Z:Z,,0) -> 0 | Z26: ='Amenity Improve - Transit Veh '!Q28 -> 0 | AA26: ='Amenity Improve - Transit Veh '!R28 -> 0 | AB26: ='Value of Travel Time'!AD28 -> 7296326.081 | AC26: ='Value of Travel Time'!AE28 -> 4084976.801 | AD26: ='Operating Cost Savings'!P28 -> 0 | AE26: ='Operating Cost Savings'!Q28 -> 0 | AF26: ='Mortality Reduction - Walk'!O28 -> 107739.6653 | AG26: ='Mortality Reduction - Walk'!P28 -> 60319.9512 | AH26: ='Mortality Reduction - Bike'!O28 -> 230494.1637 | AI26: ='Mortality Reduction - Bike'!P28 -> 129046.2215 | AJ26: ='Emission Reduction (VMT)'!S28 -> 0 | AK26: ='Emission Reduction (VMT)'!T28 -> 0 | AL26: ='Emission Reduction (Metric Ton)'!AA28 -> 14160.5354 | AM26: ='Emission Reduction (Metric Ton)'!AB28 -> 8075.158963 | AN26: ='Other Highway Use Externalities'!Q28 -> 25542.69685 | AO26: ='Other Highway Use Externalities'!R28 -> 14300.52918 | AP26: ='Auto Idling Benefit - Fuel'!O28 -> 670824.6969 | AQ26: ='Auto Idling Benefit - Fuel'!P28 -> 375573.0342 | AR26: ='Auto Idling Env. Benefits'!Y28 -> 571454.5698 | AS26: ='Auto Idling Env. Benefits'!Z28 -> 392240.8835 | AT26: =_xlfn.XLOOKUP(A26,'Repurposed ROW'!F:F,'Repurposed ROW'!K:K,,0) -> 0 | AU26: =_xlfn.XLOOKUP(A26,'Repurposed ROW'!F:F,'Repurposed ROW'!L:L,,0) -> 0 | AV26: 17968257.9 | AW26: 10132295.09 | AY26: ='Prop. Tax Inc Sidewalk'!M28 -> 0 | AZ26: ='Prop. Tax Inc Sidewalk'!N28 -> 0 | BA26: ='Prop. Tax Inc Bike Lane'!M28 -> 0 | BB26: ='Prop. Tax Inc Bike Lane'!N28 -> 0 | BC26: ='Prop. Tax Inc Sidewalk & Bike'!M28 -> 0 | BD26: ='Prop. Tax Inc Sidewalk & Bike'!N28 -> 0 | BE26: ='Prop. Tax Inc Shared Use Path'!O28 -> 0 | BF26: ='Prop. Tax Inc Shared Use Path'!P28 -> 0
A27: ='Major Assumption Key'!A41 -> 2042 | B27: ='Useful Life'!N29 -> 0 | C27: ='Useful Life'!O29 -> 0 | D27: =_xlfn.XLOOKUP(A27,'Non-Roadway Maintenance'!$F$8:$F$48,'Non-Roadway Maintenance'!$K$8:$K$48,,0) -> 0 | E27: =_xlfn.XLOOKUP(A27,'Non-Roadway Maintenance'!$F$8:$F$48,'Non-Roadway Maintenance'!$L$8:$L$48,,0) -> 0 | F27: ='State of Good Repair AP-CP'!S29 -> 163074.2627 | G27: ='State of Good Repair AP-CP'!T29 -> 88554.80235 | H27: ='State of Good Repair - AP-AP'!S29 -> 0 | I27: ='State of Good Repair - AP-AP'!T29 -> 0 | J27: ='State of Good Repair CP-CP '!S29 -> 0 | K27: ='State of Good Repair CP-CP '!T29 -> 0 | L27: ='Roadway Safety'!AC29 -> 8770001.8 | M27: ='Roadway Safety'!AD29 -> 4762405.563 | N27: ='Pedestrian Safety'!Q29 -> 0 | O27: ='Pedestrian Safety'!R29 -> 0 | P27: ='Bike Safety'!S29 -> 14704.2 | Q27: ='Bike Safety'!T29 -> 7984.874516 | R27: ='Facility Improve - Ped'!AK29 -> 28045.27741 | S27: ='Facility Improve - Ped'!AL29 -> 15229.52768 | T27: ='Facility Improve - Bike'!Q29 -> 153239.9689 | U27: ='Facility Improve - Bike'!R29 -> 83214.45048 | V27: ='Facility Improve - Transit Stop'!Y29 -> 0 | W27: ='Facility Improve - Transit Stop'!Z29 -> 0 | X27: =_xlfn.XLOOKUP(A27,'Serve Improve - Transit Mode'!F:F,'Serve Improve - Transit Mode'!Y:Y,,0) -> 0 | Y27: =_xlfn.XLOOKUP(A27,'Serve Improve - Transit Mode'!F:F,'Serve Improve - Transit Mode'!Z:Z,,0) -> 0 | Z27: ='Amenity Improve - Transit Veh '!Q29 -> 0 | AA27: ='Amenity Improve - Transit Veh '!R29 -> 0 | AB27: ='Value of Travel Time'!AD29 -> 7730580.916 | AC27: ='Value of Travel Time'!AE29 -> 4197965.108 | AD27: ='Operating Cost Savings'!P29 -> 0 | AE27: ='Operating Cost Savings'!Q29 -> 0 | AF27: ='Mortality Reduction - Walk'!O29 -> 109567.6982 | AG27: ='Mortality Reduction - Walk'!P29 -> 59498.9405 | AH27: ='Mortality Reduction - Bike'!O29 -> 234404.9882 | AI27: ='Mortality Reduction - Bike'!P29 -> 127289.7823 | AJ27: ='Emission Reduction (VMT)'!S29 -> 0 | AK27: ='Emission Reduction (VMT)'!T29 -> 0 | AL27: ='Emission Reduction (Metric Ton)'!AA29 -> 14494.31294 | AM27: ='Emission Reduction (Metric Ton)'!AB29 -> 8024.743706 | AN27: ='Other Highway Use Externalities'!Q29 -> 25976.0831 | AO27: ='Other Highway Use Externalities'!R29 -> 14105.88567 | AP27: ='Auto Idling Benefit - Fuel'!O29 -> 699478.081 | AQ27: ='Auto Idling Benefit - Fuel'!P29 -> 379840.0935 | AR27: ='Auto Idling Env. Benefits'!Y29 -> 604658.0407 | AS27: ='Auto Idling Env. Benefits'!Z29 -> 406892.4846 | AT27: =_xlfn.XLOOKUP(A27,'Repurposed ROW'!F:F,'Repurposed ROW'!K:K,,0) -> 0 | AU27: =_xlfn.XLOOKUP(A27,'Repurposed ROW'!F:F,'Repurposed ROW'!L:L,,0) -> 0 | AV27: 18548225.63 | AW27: 10151006.26 | AY27: ='Prop. Tax Inc Sidewalk'!M29 -> 0 | AZ27: ='Prop. Tax Inc Sidewalk'!N29 -> 0 | BA27: ='Prop. Tax Inc Bike Lane'!M29 -> 0 | BB27: ='Prop. Tax Inc Bike Lane'!N29 -> 0 | BC27: ='Prop. Tax Inc Sidewalk & Bike'!M29 -> 0 | BD27: ='Prop. Tax Inc Sidewalk & Bike'!N29 -> 0 | BE27: ='Prop. Tax Inc Shared Use Path'!O29 -> 0 | BF27: ='Prop. Tax Inc Shared Use Path'!P29 -> 0
A28: ='Major Assumption Key'!A42 -> 2043 | B28: ='Useful Life'!N30 -> 0 | C28: ='Useful Life'!O30 -> 0 | D28: =_xlfn.XLOOKUP(A28,'Non-Roadway Maintenance'!$F$8:$F$48,'Non-Roadway Maintenance'!$K$8:$K$48,,0) -> 0 | E28: =_xlfn.XLOOKUP(A28,'Non-Roadway Maintenance'!$F$8:$F$48,'Non-Roadway Maintenance'!$L$8:$L$48,,0) -> 0 | F28: ='State of Good Repair AP-CP'!S30 -> 343322.3536 | G28: ='State of Good Repair AP-CP'!T30 -> 180829.8451 | H28: ='State of Good Repair - AP-AP'!S30 -> 0 | I28: ='State of Good Repair - AP-AP'!T30 -> 0 | J28: ='State of Good Repair CP-CP '!S30 -> 0 | K28: ='State of Good Repair CP-CP '!T30 -> 0 | L28: ='Roadway Safety'!AC30 -> 8770001.8 | M28: ='Roadway Safety'!AD30 -> 4619210.051 | N28: ='Pedestrian Safety'!Q30 -> 0 | O28: ='Pedestrian Safety'!R30 -> 0 | P28: ='Bike Safety'!S30 -> 14704.2 | Q28: ='Bike Safety'!T30 -> 7744.786145 | R28: ='Facility Improve - Ped'!AK30 -> 28521.12528 | S28: ='Facility Improve - Ped'!AL30 -> 15022.23962 | T28: ='Facility Improve - Bike'!Q30 -> 155840.0114 | U28: ='Facility Improve - Bike'!R30 -> 82081.82432 | V28: ='Facility Improve - Transit Stop'!Y30 -> 0 | W28: ='Facility Improve - Transit Stop'!Z30 -> 0 | X28: =_xlfn.XLOOKUP(A28,'Serve Improve - Transit Mode'!F:F,'Serve Improve - Transit Mode'!Y:Y,,0) -> 0 | Y28: =_xlfn.XLOOKUP(A28,'Serve Improve - Transit Mode'!F:F,'Serve Improve - Transit Mode'!Z:Z,,0) -> 0 | Z28: ='Amenity Improve - Transit Veh '!Q30 -> 0 | AA28: ='Amenity Improve - Transit Veh '!R30 -> 0 | AB28: ='Value of Travel Time'!AD30 -> 8190454.702 | AC28: ='Value of Travel Time'!AE30 -> 4313959.284 | AD28: ='Operating Cost Savings'!P30 -> 0 | AE28: ='Operating Cost Savings'!Q30 -> 0 | AF28: ='Mortality Reduction - Walk'!O30 -> 111426.7475 | AG28: ='Mortality Reduction - Walk'!P30 -> 58689.10452 | AH28: ='Mortality Reduction - Bike'!O30 -> 238382.1681 | AI28: ='Mortality Reduction - Bike'!P30 -> 125557.2498 | AJ28: ='Emission Reduction (VMT)'!S30 -> 0 | AK28: ='Emission Reduction (VMT)'!T30 -> 0 | AL28: ='Emission Reduction (Metric Ton)'!AA30 -> 14833.81299 | AM28: ='Emission Reduction (Metric Ton)'!AB30 -> 7973.490867 | AN28: ='Other Highway Use Externalities'!Q30 -> 26416.82268 | AO28: ='Other Highway Use Externalities'!R30 -> 13913.89143 | AP28: ='Auto Idling Benefit - Fuel'!O30 -> 729344.867 | AQ28: ='Auto Idling Benefit - Fuel'!P30 -> 384150.1082 | AR28: ='Auto Idling Env. Benefits'!Y30 -> 639646.207 | AS28: ='Auto Idling Env. Benefits'!Z30 -> 421996.0333 | AT28: =_xlfn.XLOOKUP(A28,'Repurposed ROW'!F:F,'Repurposed ROW'!K:K,,0) -> 0 | AU28: =_xlfn.XLOOKUP(A28,'Repurposed ROW'!F:F,'Repurposed ROW'!L:L,,0) -> 0 | AV28: 19262894.82 | AW28: 10231127.91 | AY28: ='Prop. Tax Inc Sidewalk'!M30 -> 0 | AZ28: ='Prop. Tax Inc Sidewalk'!N30 -> 0 | BA28: ='Prop. Tax Inc Bike Lane'!M30 -> 0 | BB28: ='Prop. Tax Inc Bike Lane'!N30 -> 0 | BC28: ='Prop. Tax Inc Sidewalk & Bike'!M30 -> 0 | BD28: ='Prop. Tax Inc Sidewalk & Bike'!N30 -> 0 | BE28: ='Prop. Tax Inc Shared Use Path'!O30 -> 0 | BF28: ='Prop. Tax Inc Shared Use Path'!P30 -> 0
A29: ='Major Assumption Key'!A43 -> 2044 | B29: ='Useful Life'!N31 -> 0 | C29: ='Useful Life'!O31 -> 0 | D29: =_xlfn.XLOOKUP(A29,'Non-Roadway Maintenance'!$F$8:$F$48,'Non-Roadway Maintenance'!$K$8:$K$48,,0) -> 0 | E29: =_xlfn.XLOOKUP(A29,'Non-Roadway Maintenance'!$F$8:$F$48,'Non-Roadway Maintenance'!$L$8:$L$48,,0) -> 0 | F29: ='State of Good Repair AP-CP'!S31 -> 774825.4855 | G29: ='State of Good Repair AP-CP'!T31 -> 395834.1511 | H29: ='State of Good Repair - AP-AP'!S31 -> 0 | I29: ='State of Good Repair - AP-AP'!T31 -> 0 | J29: ='State of Good Repair CP-CP '!S31 -> 0 | K29: ='State of Good Repair CP-CP '!T31 -> 0 | L29: ='Roadway Safety'!AC31 -> 8770001.8 | M29: ='Roadway Safety'!AD31 -> 4480320.127 | N29: ='Pedestrian Safety'!Q31 -> 0 | O29: ='Pedestrian Safety'!R31 -> 0 | P29: ='Bike Safety'!S31 -> 14704.2 | Q29: ='Bike Safety'!T31 -> 7511.916727 | R29: ='Facility Improve - Ped'!AK31 -> 29005.04692 | S29: ='Facility Improve - Ped'!AL31 -> 14817.77296 | T29: ='Facility Improve - Bike'!Q31 -> 158484.1691 | U29: ='Facility Improve - Bike'!R31 -> 80964.61426 | V29: ='Facility Improve - Transit Stop'!Y31 -> 0 | W29: ='Facility Improve - Transit Stop'!Z31 -> 0 | X29: =_xlfn.XLOOKUP(A29,'Serve Improve - Transit Mode'!F:F,'Serve Improve - Transit Mode'!Y:Y,,0) -> 0 | Y29: =_xlfn.XLOOKUP(A29,'Serve Improve - Transit Mode'!F:F,'Serve Improve - Transit Mode'!Z:Z,,0) -> 0 | Z29: ='Amenity Improve - Transit Veh '!Q31 -> 0 | AA29: ='Amenity Improve - Transit Veh '!R31 -> 0 | AB29: ='Value of Travel Time'!AD31 -> 8677448.357 | AC29: ='Value of Travel Time'!AE31 -> 4433037.463 | AD29: ='Operating Cost Savings'!P31 -> 0 | AE29: ='Operating Cost Savings'!Q31 -> 0 | AF29: ='Mortality Reduction - Walk'!O31 -> 113317.3397 | AG29: ='Mortality Reduction - Walk'!P31 -> 57890.29115 | AH29: ='Mortality Reduction - Bike'!O31 -> 242426.8293 | AI29: ='Mortality Reduction - Bike'!P31 -> 123848.2987 | AJ29: ='Emission Reduction (VMT)'!S31 -> 0 | AK29: ='Emission Reduction (VMT)'!T31 -> 0 | AL29: ='Emission Reduction (Metric Ton)'!AA31 -> 15179.14491 | AM29: ='Emission Reduction (Metric Ton)'!AB31 -> 7921.45949 | AN29: ='Other Highway Use Externalities'!Q31 -> 26865.04035 | AO29: ='Other Highway Use Externalities'!R31 -> 13724.51041 | AP29: ='Auto Idling Benefit - Fuel'!O31 -> 760476.0782 | AQ29: ='Auto Idling Benefit - Fuel'!P31 -> 388503.4869 | AR29: ='Auto Idling Env. Benefits'!Y31 -> 676510.2277 | AS29: ='Auto Idling Env. Benefits'!Z31 -> 437564.0424 | AT29: =_xlfn.XLOOKUP(A29,'Repurposed ROW'!F:F,'Repurposed ROW'!K:K,,0) -> 0 | AU29: =_xlfn.XLOOKUP(A29,'Repurposed ROW'!F:F,'Repurposed ROW'!L:L,,0) -> 0 | AV29: 20259243.72 | AW29: 10441938.13 | AY29: ='Prop. Tax Inc Sidewalk'!M31 -> 0 | AZ29: ='Prop. Tax Inc Sidewalk'!N31 -> 0 | BA29: ='Prop. Tax Inc Bike Lane'!M31 -> 0 | BB29: ='Prop. Tax Inc Bike Lane'!N31 -> 0 | BC29: ='Prop. Tax Inc Sidewalk & Bike'!M31 -> 0 | BD29: ='Prop. Tax Inc Sidewalk & Bike'!N31 -> 0 | BE29: ='Prop. Tax Inc Shared Use Path'!O31 -> 0 | BF29: ='Prop. Tax Inc Shared Use Path'!P31 -> 0
A30: ='Major Assumption Key'!A44 -> 2045 | B30: ='Useful Life'!N32 -> 0 | C30: ='Useful Life'!O32 -> 0 | D30: =_xlfn.XLOOKUP(A30,'Non-Roadway Maintenance'!$F$8:$F$48,'Non-Roadway Maintenance'!$K$8:$K$48,,0) -> 0 | E30: =_xlfn.XLOOKUP(A30,'Non-Roadway Maintenance'!$F$8:$F$48,'Non-Roadway Maintenance'!$L$8:$L$48,,0) -> 0 | F30: ='State of Good Repair AP-CP'!S32 -> 789890.3827 | G30: ='State of Good Repair AP-CP'!T32 -> 391397.0289 | H30: ='State of Good Repair - AP-AP'!S32 -> 0 | I30: ='State of Good Repair - AP-AP'!T32 -> 0 | J30: ='State of Good Repair CP-CP '!S32 -> 0 | K30: ='State of Good Repair CP-CP '!T32 -> 0 | L30: ='Roadway Safety'!AC32 -> 8770001.8 | M30: ='Roadway Safety'!AD32 -> 4345606.331 | N30: ='Pedestrian Safety'!Q32 -> 0 | O30: ='Pedestrian Safety'!R32 -> 0 | P30: ='Bike Safety'!S32 -> 14704.2 | Q30: ='Bike Safety'!T32 -> 7286.049202 | R30: ='Facility Improve - Ped'!AK32 -> 29497.17932 | S30: ='Facility Improve - Ped'!AL32 -> 14616.08927 | T30: ='Facility Improve - Bike'!Q32 -> 161173.1906 | U30: ='Facility Improve - Bike'!R32 -> 79862.61047 | V30: ='Facility Improve - Transit Stop'!Y32 -> 0 | W30: ='Facility Improve - Transit Stop'!Z32 -> 0 | X30: =_xlfn.XLOOKUP(A30,'Serve Improve - Transit Mode'!F:F,'Serve Improve - Transit Mode'!Y:Y,,0) -> 0 | Y30: =_xlfn.XLOOKUP(A30,'Serve Improve - Transit Mode'!F:F,'Serve Improve - Transit Mode'!Z:Z,,0) -> 0 | Z30: ='Amenity Improve - Transit Veh '!Q32 -> 0 | AA30: ='Amenity Improve - Transit Veh '!R32 -> 0 | AB30: ='Value of Travel Time'!AD32 -> 9193150.239 | AC30: ='Value of Travel Time'!AE32 -> 4555279.781 | AD30: ='Operating Cost Savings'!P32 -> 0 | AE30: ='Operating Cost Savings'!Q32 -> 0 | AF30: ='Mortality Reduction - Walk'!O32 -> 115240.0097 | AG30: ='Mortality Reduction - Walk'!P32 -> 57102.35039 | AH30: ='Mortality Reduction - Bike'!O32 -> 246540.1168 | AI30: ='Mortality Reduction - Bike'!P32 -> 122162.6081 | AJ30: ='Emission Reduction (VMT)'!S32 -> 0 | AK30: ='Emission Reduction (VMT)'!T32 -> 0 | AL30: ='Emission Reduction (Metric Ton)'!AA32 -> 15530.41975 | AM30: ='Emission Reduction (Metric Ton)'!AB32 -> 7868.706029 | AN30: ='Other Highway Use Externalities'!Q32 -> 27320.86298 | AO30: ='Other Highway Use Externalities'!R32 -> 13537.70704 | AP30: ='Auto Idling Benefit - Fuel'!O32 -> 792924.8709 | AQ30: ='Auto Idling Benefit - Fuel'!P32 -> 392900.6421 | AR30: ='Auto Idling Env. Benefits'!Y32 -> 715345.7521 | AS30: ='Auto Idling Env. Benefits'!Z32 -> 453609.3483 | AT30: =_xlfn.XLOOKUP(A30,'Repurposed ROW'!F:F,'Repurposed ROW'!K:K,,0) -> 0 | AU30: =_xlfn.XLOOKUP(A30,'Repurposed ROW'!F:F,'Repurposed ROW'!L:L,,0) -> 0 | AV30: 20871319.02 | AW30: 10441229.25 | AY30: ='Prop. Tax Inc Sidewalk'!M32 -> 0 | AZ30: ='Prop. Tax Inc Sidewalk'!N32 -> 0 | BA30: ='Prop. Tax Inc Bike Lane'!M32 -> 0 | BB30: ='Prop. Tax Inc Bike Lane'!N32 -> 0 | BC30: ='Prop. Tax Inc Sidewalk & Bike'!M32 -> 0 | BD30: ='Prop. Tax Inc Sidewalk & Bike'!N32 -> 0 | BE30: ='Prop. Tax Inc Shared Use Path'!O32 -> 0 | BF30: ='Prop. Tax Inc Shared Use Path'!P32 -> 0
A31: ='Major Assumption Key'!A45 -> 2046 | B31: ='Useful Life'!N33 -> 0 | C31: ='Useful Life'!O33 -> 0 | D31: =_xlfn.XLOOKUP(A31,'Non-Roadway Maintenance'!$F$8:$F$48,'Non-Roadway Maintenance'!$K$8:$K$48,,0) -> 0 | E31: =_xlfn.XLOOKUP(A31,'Non-Roadway Maintenance'!$F$8:$F$48,'Non-Roadway Maintenance'!$L$8:$L$48,,0) -> 0 | F31: ='State of Good Repair AP-CP'!S33 -> 32896691.45 | G31: ='State of Good Repair AP-CP'!T33 -> 15810450.86 | H31: ='State of Good Repair - AP-AP'!S33 -> 0 | I31: ='State of Good Repair - AP-AP'!T33 -> 0 | J31: ='State of Good Repair CP-CP '!S33 -> 0 | K31: ='State of Good Repair CP-CP '!T33 -> 0 | L31: ='Roadway Safety'!AC33 -> 8770001.8 | M31: ='Roadway Safety'!AD33 -> 4214943.095 | N31: ='Pedestrian Safety'!Q33 -> 0 | O31: ='Pedestrian Safety'!R33 -> 0 | P31: ='Bike Safety'!S33 -> 14704.2 | Q31: ='Bike Safety'!T33 -> 7066.973037 | R31: ='Facility Improve - Ped'!AK33 -> 29997.66179 | S31: ='Facility Improve - Ped'!AL33 -> 14417.15068 | T31: ='Facility Improve - Bike'!Q33 -> 163907.8371 | U31: ='Facility Improve - Bike'!R33 -> 78775.60598 | V31: ='Facility Improve - Transit Stop'!Y33 -> 0 | W31: ='Facility Improve - Transit Stop'!Z33 -> 0 | X31: =_xlfn.XLOOKUP(A31,'Serve Improve - Transit Mode'!F:F,'Serve Improve - Transit Mode'!Y:Y,,0) -> 0 | Y31: =_xlfn.XLOOKUP(A31,'Serve Improve - Transit Mode'!F:F,'Serve Improve - Transit Mode'!Z:Z,,0) -> 0 | Z31: ='Amenity Improve - Transit Veh '!Q33 -> 0 | AA31: ='Amenity Improve - Transit Veh '!R33 -> 0 | AB31: ='Value of Travel Time'!AD33 -> 9739241.225 | AC31: ='Value of Travel Time'!AE33 -> 4680768.429 | AD31: ='Operating Cost Savings'!P33 -> 0 | AE31: ='Operating Cost Savings'!Q33 -> 0 | AF31: ='Mortality Reduction - Walk'!O33 -> 117195.3019 | AG31: ='Mortality Reduction - Walk'!P33 -> 56325.13423 | AH31: ='Mortality Reduction - Bike'!O33 -> 250723.195 | AI31: ='Mortality Reduction - Bike'!P33 -> 120499.8612 | AJ31: ='Emission Reduction (VMT)'!S33 -> 0 | AK31: ='Emission Reduction (VMT)'!T33 -> 0 | AL31: ='Emission Reduction (Metric Ton)'!AA33 -> 15887.7503 | AM31: ='Emission Reduction (Metric Ton)'!AB33 -> 7815.284463 | AN31: ='Other Highway Use Externalities'!Q33 -> 27784.41961 | AO31: ='Other Highway Use Externalities'!R33 -> 13353.44624 | AP31: ='Auto Idling Benefit - Fuel'!O33 -> 826746.623 | AQ31: ='Auto Idling Benefit - Fuel'!P33 -> 397341.9903 | AR31: ='Auto Idling Env. Benefits'!Y33 -> 756253.1352 | AS31: ='Auto Idling Env. Benefits'!Z33 -> 470145.1184 | AT31: =_xlfn.XLOOKUP(A31,'Repurposed ROW'!F:F,'Repurposed ROW'!K:K,,0) -> 0 | AU31: =_xlfn.XLOOKUP(A31,'Repurposed ROW'!F:F,'Repurposed ROW'!L:L,,0) -> 0 | AV31: 53609134.6 | AW31: 25871902.95 | AY31: ='Prop. Tax Inc Sidewalk'!M33 -> 0 | AZ31: ='Prop. Tax Inc Sidewalk'!N33 -> 0 | BA31: ='Prop. Tax Inc Bike Lane'!M33 -> 0 | BB31: ='Prop. Tax Inc Bike Lane'!N33 -> 0 | BC31: ='Prop. Tax Inc Sidewalk & Bike'!M33 -> 0 | BD31: ='Prop. Tax Inc Sidewalk & Bike'!N33 -> 0 | BE31: ='Prop. Tax Inc Shared Use Path'!O33 -> 0 | BF31: ='Prop. Tax Inc Shared Use Path'!P33 -> 0
A32: ='Major Assumption Key'!A46 -> 2047 | B32: ='Useful Life'!N34 -> 0 | C32: ='Useful Life'!O34 -> 0 | D32: =_xlfn.XLOOKUP(A32,'Non-Roadway Maintenance'!$F$8:$F$48,'Non-Roadway Maintenance'!$K$8:$K$48,,0) -> 0 | E32: =_xlfn.XLOOKUP(A32,'Non-Roadway Maintenance'!$F$8:$F$48,'Non-Roadway Maintenance'!$L$8:$L$48,,0) -> 0 | F32: ='State of Good Repair AP-CP'!S34 -> 0 | G32: ='State of Good Repair AP-CP'!T34 -> 0 | H32: ='State of Good Repair - AP-AP'!S34 -> 0 | I32: ='State of Good Repair - AP-AP'!T34 -> 0 | J32: ='State of Good Repair CP-CP '!S34 -> 0 | K32: ='State of Good Repair CP-CP '!T34 -> 0 | L32: ='Roadway Safety'!AC34 -> 8770001.8 | M32: ='Roadway Safety'!AD34 -> 4088208.628 | N32: ='Pedestrian Safety'!Q34 -> 0 | O32: ='Pedestrian Safety'!R34 -> 0 | P32: ='Bike Safety'!S34 -> 14704.2 | Q32: ='Bike Safety'!T34 -> 6854.484032 | R32: ='Facility Improve - Ped'!AK34 -> 30506.63602 | S32: ='Facility Improve - Ped'!AL34 -> 14220.91984 | T32: ='Facility Improve - Bike'!Q34 -> 166688.8827 | U32: ='Facility Improve - Bike'!R34 -> 77703.39663 | V32: ='Facility Improve - Transit Stop'!Y34 -> 0 | W32: ='Facility Improve - Transit Stop'!Z34 -> 0 | X32: =_xlfn.XLOOKUP(A32,'Serve Improve - Transit Mode'!F:F,'Serve Improve - Transit Mode'!Y:Y,,0) -> 0 | Y32: =_xlfn.XLOOKUP(A32,'Serve Improve - Transit Mode'!F:F,'Serve Improve - Transit Mode'!Z:Z,,0) -> 0 | Z32: ='Amenity Improve - Transit Veh '!Q34 -> 0 | AA32: ='Amenity Improve - Transit Veh '!R34 -> 0 | AB32: ='Value of Travel Time'!AD34 -> 10317500.07 | AC32: ='Value of Travel Time'!AE34 -> 4809587.701 | AD32: ='Operating Cost Savings'!P34 -> 0 | AE32: ='Operating Cost Savings'!Q34 -> 0 | AF32: ='Mortality Reduction - Walk'!O34 -> 119183.7698 | AG32: ='Mortality Reduction - Walk'!P34 -> 55558.4967 | AH32: ='Mortality Reduction - Bike'!O34 -> 254977.2481 | AI32: ='Mortality Reduction - Bike'!P34 -> 118859.7459 | AJ32: ='Emission Reduction (VMT)'!S34 -> 0 | AK32: ='Emission Reduction (VMT)'!T34 -> 0 | AL32: ='Emission Reduction (Metric Ton)'!AA34 -> 16306.20931 | AM32: ='Emission Reduction (Metric Ton)'!AB34 -> 7787.494752 | AN32: ='Other Highway Use Externalities'!Q34 -> 28255.84147 | AO32: ='Other Highway Use Externalities'!R34 -> 13171.69341 | AP32: ='Auto Idling Benefit - Fuel'!O34 -> 971851.19 | AQ32: ='Auto Idling Benefit - Fuel'!P34 -> 453036.4429 | AR32: ='Auto Idling Env. Benefits'!Y34 -> 904226.1937 | AS32: ='Auto Idling Env. Benefits'!Z34 -> 551117.6572 | AT32: =_xlfn.XLOOKUP(A32,'Repurposed ROW'!F:F,'Repurposed ROW'!K:K,,0) -> 0 | AU32: =_xlfn.XLOOKUP(A32,'Repurposed ROW'!F:F,'Repurposed ROW'!L:L,,0) -> 0 | AV32: 21594202.04 | AW32: 10196106.66 | AY32: ='Prop. Tax Inc Sidewalk'!M34 -> 0 | AZ32: ='Prop. Tax Inc Sidewalk'!N34 -> 0 | BA32: ='Prop. Tax Inc Bike Lane'!M34 -> 0 | BB32: ='Prop. Tax Inc Bike Lane'!N34 -> 0 | BC32: ='Prop. Tax Inc Sidewalk & Bike'!M34 -> 0 | BD32: ='Prop. Tax Inc Sidewalk & Bike'!N34 -> 0 | BE32: ='Prop. Tax Inc Shared Use Path'!O34 -> 0 | BF32: ='Prop. Tax Inc Shared Use Path'!P34 -> 0
A33: ='Major Assumption Key'!A47 -> 2048 | B33: ='Useful Life'!N35 -> 0 | C33: ='Useful Life'!O35 -> 0 | D33: =_xlfn.XLOOKUP(A33,'Non-Roadway Maintenance'!$F$8:$F$48,'Non-Roadway Maintenance'!$K$8:$K$48,,0) -> 0 | E33: =_xlfn.XLOOKUP(A33,'Non-Roadway Maintenance'!$F$8:$F$48,'Non-Roadway Maintenance'!$L$8:$L$48,,0) -> 0 | F33: ='State of Good Repair AP-CP'!S35 -> 0 | G33: ='State of Good Repair AP-CP'!T35 -> 0 | H33: ='State of Good Repair - AP-AP'!S35 -> 0 | I33: ='State of Good Repair - AP-AP'!T35 -> 0 | J33: ='State of Good Repair CP-CP '!S35 -> 0 | K33: ='State of Good Repair CP-CP '!T35 -> 0 | L33: ='Roadway Safety'!AC35 -> 8770001.8 | M33: ='Roadway Safety'!AD35 -> 3965284.799 | N33: ='Pedestrian Safety'!Q35 -> 0 | O33: ='Pedestrian Safety'!R35 -> 0 | P33: ='Bike Safety'!S35 -> 14704.2 | Q33: ='Bike Safety'!T35 -> 6648.384125 | R33: ='Facility Improve - Ped'!AK35 -> 31024.24608 | S33: ='Facility Improve - Ped'!AL35 -> 14027.35988 | T33: ='Facility Improve - Bike'!Q35 -> 169517.1146 | U33: ='Facility Improve - Bike'!R35 -> 76645.78105 | V33: ='Facility Improve - Transit Stop'!Y35 -> 0 | W33: ='Facility Improve - Transit Stop'!Z35 -> 0 | X33: =_xlfn.XLOOKUP(A33,'Serve Improve - Transit Mode'!F:F,'Serve Improve - Transit Mode'!Y:Y,,0) -> 0 | Y33: =_xlfn.XLOOKUP(A33,'Serve Improve - Transit Mode'!F:F,'Serve Improve - Transit Mode'!Z:Z,,0) -> 0 | Z33: ='Amenity Improve - Transit Veh '!Q35 -> 0 | AA33: ='Amenity Improve - Transit Veh '!R35 -> 0 | AB33: ='Value of Travel Time'!AD35 -> 10929809.08 | AC33: ='Value of Travel Time'!AE35 -> 4941824.049 | AD33: ='Operating Cost Savings'!P35 -> 0 | AE33: ='Operating Cost Savings'!Q35 -> 0 | AF33: ='Mortality Reduction - Walk'!O35 -> 121205.9763 | AG33: ='Mortality Reduction - Walk'!P35 -> 54802.29383 | AH33: ='Mortality Reduction - Bike'!O35 -> 259303.4802 | AI33: ='Mortality Reduction - Bike'!P35 -> 117241.9541 | AJ33: ='Emission Reduction (VMT)'!S35 -> 0 | AK33: ='Emission Reduction (VMT)'!T35 -> 0 | AL33: ='Emission Reduction (Metric Ton)'!AA35 -> 16676.49794 | AM33: ='Emission Reduction (Metric Ton)'!AB35 -> 7732.357453 | AN33: ='Other Highway Use Externalities'!Q35 -> 28735.26201 | AO33: ='Other Highway Use Externalities'!R35 -> 12992.41439 | AP33: ='Auto Idling Benefit - Fuel'!O35 -> 1013002.373 | AQ33: ='Auto Idling Benefit - Fuel'!P35 -> 458020.7625 | AR33: ='Auto Idling Env. Benefits'!Y35 -> 955250.1529 | AS33: ='Auto Idling Env. Benefits'!Z35 -> 570799.0585 | AT33: =_xlfn.XLOOKUP(A33,'Repurposed ROW'!F:F,'Repurposed ROW'!K:K,,0) -> 0 | AU33: =_xlfn.XLOOKUP(A33,'Repurposed ROW'!F:F,'Repurposed ROW'!L:L,,0) -> 0 | AV33: 22309230.18 | AW33: 10226019.21 | AY33: ='Prop. Tax Inc Sidewalk'!M35 -> 0 | AZ33: ='Prop. Tax Inc Sidewalk'!N35 -> 0 | BA33: ='Prop. Tax Inc Bike Lane'!M35 -> 0 | BB33: ='Prop. Tax Inc Bike Lane'!N35 -> 0 | BC33: ='Prop. Tax Inc Sidewalk & Bike'!M35 -> 0 | BD33: ='Prop. Tax Inc Sidewalk & Bike'!N35 -> 0 | BE33: ='Prop. Tax Inc Shared Use Path'!O35 -> 0 | BF33: ='Prop. Tax Inc Shared Use Path'!P35 -> 0
A34: ='Major Assumption Key'!A48 -> 2049 | B34: ='Useful Life'!N36 -> 0 | C34: ='Useful Life'!O36 -> 0 | D34: =_xlfn.XLOOKUP(A34,'Non-Roadway Maintenance'!$F$8:$F$48,'Non-Roadway Maintenance'!$K$8:$K$48,,0) -> 0 | E34: =_xlfn.XLOOKUP(A34,'Non-Roadway Maintenance'!$F$8:$F$48,'Non-Roadway Maintenance'!$L$8:$L$48,,0) -> 0 | F34: ='State of Good Repair AP-CP'!S36 -> 84341.49679 | G34: ='State of Good Repair AP-CP'!T36 -> 36987.70127 | H34: ='State of Good Repair - AP-AP'!S36 -> 0 | I34: ='State of Good Repair - AP-AP'!T36 -> 0 | J34: ='State of Good Repair CP-CP '!S36 -> 0 | K34: ='State of Good Repair CP-CP '!T36 -> 0 | L34: ='Roadway Safety'!AC36 -> 8770001.8 | M34: ='Roadway Safety'!AD36 -> 3846057.031 | N34: ='Pedestrian Safety'!Q36 -> 0 | O34: ='Pedestrian Safety'!R36 -> 0 | P34: ='Bike Safety'!S36 -> 14704.2 | Q34: ='Bike Safety'!T36 -> 6448.481207 | R34: ='Facility Improve - Ped'!AK36 -> 31550.63849 | S34: ='Facility Improve - Ped'!AL36 -> 13836.43445 | T34: ='Facility Improve - Bike'!Q36 -> 172393.3335 | U34: ='Facility Improve - Bike'!R36 -> 75602.5606 | V34: ='Facility Improve - Transit Stop'!Y36 -> 0 | W34: ='Facility Improve - Transit Stop'!Z36 -> 0 | X34: =_xlfn.XLOOKUP(A34,'Serve Improve - Transit Mode'!F:F,'Serve Improve - Transit Mode'!Y:Y,,0) -> 0 | Y34: =_xlfn.XLOOKUP(A34,'Serve Improve - Transit Mode'!F:F,'Serve Improve - Transit Mode'!Z:Z,,0) -> 0 | Z34: ='Amenity Improve - Transit Veh '!Q36 -> 0 | AA34: ='Amenity Improve - Transit Veh '!R36 -> 0 | AB34: ='Value of Travel Time'!AD36 -> 11578160.13 | AC34: ='Value of Travel Time'!AE36 -> 5077566.138 | AD34: ='Operating Cost Savings'!P36 -> 0 | AE34: ='Operating Cost Savings'!Q36 -> 0 | AF34: ='Mortality Reduction - Walk'!O36 -> 123262.4939 | AG34: ='Mortality Reduction - Walk'!P36 -> 54056.38358 | AH34: ='Mortality Reduction - Bike'!O36 -> 263703.116 | AI34: ='Mortality Reduction - Bike'!P36 -> 115646.1819 | AJ34: ='Emission Reduction (VMT)'!S36 -> 0 | AK34: ='Emission Reduction (VMT)'!T36 -> 0 | AL34: ='Emission Reduction (Metric Ton)'!AA36 -> 17053.19924 | AM34: ='Emission Reduction (Metric Ton)'!AB36 -> 7676.712481 | AN34: ='Other Highway Use Externalities'!Q36 -> 29222.81693 | AO34: ='Other Highway Use Externalities'!R36 -> 12815.57554 | AP34: ='Auto Idling Benefit - Fuel'!O36 -> 1055883.803 | AQ34: ='Auto Idling Benefit - Fuel'!P36 -> 463054.5601 | AR34: ='Auto Idling Env. Benefits'!Y36 -> 1008962.246 | AS34: ='Auto Idling Env. Benefits'!Z36 -> 591071.4057 | AT34: =_xlfn.XLOOKUP(A34,'Repurposed ROW'!F:F,'Repurposed ROW'!K:K,,0) -> 0 | AU34: =_xlfn.XLOOKUP(A34,'Repurposed ROW'!F:F,'Repurposed ROW'!L:L,,0) -> 0 | AV34: 23149239.27 | AW34: 10300819.17 | AY34: ='Prop. Tax Inc Sidewalk'!M36 -> 0 | AZ34: ='Prop. Tax Inc Sidewalk'!N36 -> 0 | BA34: ='Prop. Tax Inc Bike Lane'!M36 -> 0 | BB34: ='Prop. Tax Inc Bike Lane'!N36 -> 0 | BC34: ='Prop. Tax Inc Sidewalk & Bike'!M36 -> 0 | BD34: ='Prop. Tax Inc Sidewalk & Bike'!N36 -> 0 | BE34: ='Prop. Tax Inc Shared Use Path'!O36 -> 0 | BF34: ='Prop. Tax Inc Shared Use Path'!P36 -> 0
A35: ='Major Assumption Key'!A49 -> 2050 | B35: ='Useful Life'!N37 -> 93699637.33 | C35: ='Useful Life'!O37 -> 39856144.25 | D35: =_xlfn.XLOOKUP(A35,'Non-Roadway Maintenance'!$F$8:$F$48,'Non-Roadway Maintenance'!$K$8:$K$48,,0) -> 0 | E35: =_xlfn.XLOOKUP(A35,'Non-Roadway Maintenance'!$F$8:$F$48,'Non-Roadway Maintenance'!$L$8:$L$48,,0) -> 0 | F35: ='State of Good Repair AP-CP'!S37 -> -2130030.338 | G35: ='State of Good Repair AP-CP'!T37 -> -906031.2166 | H35: ='State of Good Repair - AP-AP'!S37 -> 0 | I35: ='State of Good Repair - AP-AP'!T37 -> 0 | J35: ='State of Good Repair CP-CP '!S37 -> 0 | K35: ='State of Good Repair CP-CP '!T37 -> 0 | L35: ='Roadway Safety'!AC37 -> 8770001.8 | M35: ='Roadway Safety'!AD37 -> 3730414.191 | N35: ='Pedestrian Safety'!Q37 -> 0 | O35: ='Pedestrian Safety'!R37 -> 0 | P35: ='Bike Safety'!S37 -> 14704.2 | Q35: ='Bike Safety'!T37 -> 6254.58895 | R35: ='Facility Improve - Ped'!AK37 -> 32085.96228 | S35: ='Facility Improve - Ped'!AL37 -> 13648.10769 | T35: ='Facility Improve - Bike'!Q37 -> 175318.3536 | U35: ='Facility Improve - Bike'!R37 -> 74573.53935 | V35: ='Facility Improve - Transit Stop'!Y37 -> 0 | W35: ='Facility Improve - Transit Stop'!Z37 -> 0 | X35: =_xlfn.XLOOKUP(A35,'Serve Improve - Transit Mode'!F:F,'Serve Improve - Transit Mode'!Y:Y,,0) -> 0 | Y35: =_xlfn.XLOOKUP(A35,'Serve Improve - Transit Mode'!F:F,'Serve Improve - Transit Mode'!Z:Z,,0) -> 0 | Z35: ='Amenity Improve - Transit Veh '!Q37 -> 0 | AA35: ='Amenity Improve - Transit Veh '!R37 -> 0 | AB35: ='Value of Travel Time'!AD37 -> 12264660.99 | AC35: ='Value of Travel Time'!AE37 -> 5216904.903 | AD35: ='Operating Cost Savings'!P37 -> 0 | AE35: ='Operating Cost Savings'!Q37 -> 0 | AF35: ='Mortality Reduction - Walk'!O37 -> 125353.9047 | AG35: ='Mortality Reduction - Walk'!P37 -> 53320.62587 | AH35: ='Mortality Reduction - Bike'!O37 -> 268177.4011 | AI35: ='Mortality Reduction - Bike'!P37 -> 114072.1297 | AJ35: ='Emission Reduction (VMT)'!S37 -> 0 | AK35: ='Emission Reduction (VMT)'!T37 -> 0 | AL35: ='Emission Reduction (Metric Ton)'!AA37 -> 17436.43338 | AM35: ='Emission Reduction (Metric Ton)'!AB37 -> 7620.604613 | AN35: ='Other Highway Use Externalities'!Q37 -> 29718.64427 | AO35: ='Other Highway Use Externalities'!R37 -> 12641.14362 | AP35: ='Auto Idling Benefit - Fuel'!O37 -> 1100567.806 | AQ35: ='Auto Idling Benefit - Fuel'!P37 -> 468138.3033 | AR35: ='Auto Idling Env. Benefits'!Y37 -> 1065497.758 | AS35: ='Auto Idling Env. Benefits'!Z37 -> 611950.7722 | AT35: =_xlfn.XLOOKUP(A35,'Repurposed ROW'!F:F,'Repurposed ROW'!K:K,,0) -> 0 | AU35: =_xlfn.XLOOKUP(A35,'Repurposed ROW'!F:F,'Repurposed ROW'!L:L,,0) -> 0 | AV35: 115433130.2 | AW35: 49259651.94 | AY35: ='Prop. Tax Inc Sidewalk'!M37 -> 0 | AZ35: ='Prop. Tax Inc Sidewalk'!N37 -> 0 | BA35: ='Prop. Tax Inc Bike Lane'!M37 -> 0 | BB35: ='Prop. Tax Inc Bike Lane'!N37 -> 0 | BC35: ='Prop. Tax Inc Sidewalk & Bike'!M37 -> 0 | BD35: ='Prop. Tax Inc Sidewalk & Bike'!N37 -> 0 | BE35: ='Prop. Tax Inc Shared Use Path'!O37 -> 0 | BF35: ='Prop. Tax Inc Shared Use Path'!P37 -> 0
A36: ='Major Assumption Key'!A50 -> 2051 | B36: ='Useful Life'!N38 -> 0 | C36: ='Useful Life'!O38 -> 0 | D36: =_xlfn.XLOOKUP(A36,'Non-Roadway Maintenance'!$F$8:$F$48,'Non-Roadway Maintenance'!$K$8:$K$48,,0) -> 0 | E36: =_xlfn.XLOOKUP(A36,'Non-Roadway Maintenance'!$F$8:$F$48,'Non-Roadway Maintenance'!$L$8:$L$48,,0) -> 0 | F36: ='State of Good Repair AP-CP'!S38 -> 0 | G36: ='State of Good Repair AP-CP'!T38 -> 0 | H36: ='State of Good Repair - AP-AP'!S38 -> 0 | I36: ='State of Good Repair - AP-AP'!T38 -> 0 | J36: ='State of Good Repair CP-CP '!S38 -> 0 | K36: ='State of Good Repair CP-CP '!T38 -> 0 | L36: ='Roadway Safety'!AC38 -> 0 | M36: ='Roadway Safety'!AD38 -> 0 | N36: ='Pedestrian Safety'!Q38 -> 0 | O36: ='Pedestrian Safety'!R38 -> 0 | P36: ='Bike Safety'!S38 -> 0 | Q36: ='Bike Safety'!T38 -> 0 | R36: ='Facility Improve - Ped'!AK38 -> 0 | S36: ='Facility Improve - Ped'!AL38 -> 0 | T36: ='Facility Improve - Bike'!Q38 -> 0 | U36: ='Facility Improve - Bike'!R38 -> 0 | V36: ='Facility Improve - Transit Stop'!Y38 -> 0 | W36: ='Facility Improve - Transit Stop'!Z38 -> 0 | X36: =_xlfn.XLOOKUP(A36,'Serve Improve - Transit Mode'!F:F,'Serve Improve - Transit Mode'!Y:Y,,0) -> 0 | Y36: =_xlfn.XLOOKUP(A36,'Serve Improve - Transit Mode'!F:F,'Serve Improve - Transit Mode'!Z:Z,,0) -> 0 | Z36: ='Amenity Improve - Transit Veh '!Q38 -> 0 | AA36: ='Amenity Improve - Transit Veh '!R38 -> 0 | AB36: ='Value of Travel Time'!AD38 -> 0 | AC36: ='Value of Travel Time'!AE38 -> 0 | AD36: ='Operating Cost Savings'!P38 -> 0 | AE36: ='Operating Cost Savings'!Q38 -> 0 | AF36: ='Mortality Reduction - Walk'!O38 -> 0 | AG36: ='Mortality Reduction - Walk'!P38 -> 0 | AH36: ='Mortality Reduction - Bike'!O38 -> 0 | AI36: ='Mortality Reduction - Bike'!P38 -> 0 | AJ36: ='Emission Reduction (VMT)'!S38 -> 0 | AK36: ='Emission Reduction (VMT)'!T38 -> 0 | AL36: ='Emission Reduction (Metric Ton)'!AA38 -> 0 | AM36: ='Emission Reduction (Metric Ton)'!AB38 -> 0 | AN36: ='Other Highway Use Externalities'!Q38 -> 0 | AO36: ='Other Highway Use Externalities'!R38 -> 0 | AP36: ='Auto Idling Benefit - Fuel'!O38 -> 0 | AQ36: ='Auto Idling Benefit - Fuel'!P38 -> 0 | AR36: ='Auto Idling Env. Benefits'!Y38 -> 0 | AS36: ='Auto Idling Env. Benefits'!Z38 -> 0 | AT36: =_xlfn.XLOOKUP(A36,'Repurposed ROW'!F:F,'Repurposed ROW'!K:K,,0) -> 0 | AU36: =_xlfn.XLOOKUP(A36,'Repurposed ROW'!F:F,'Repurposed ROW'!L:L,,0) -> 0 | AV36: 0 | AW36: 0 | AY36: ='Prop. Tax Inc Sidewalk'!M38 -> 0 | AZ36: ='Prop. Tax Inc Sidewalk'!N38 -> 0 | BA36: ='Prop. Tax Inc Bike Lane'!M38 -> 0 | BB36: ='Prop. Tax Inc Bike Lane'!N38 -> 0 | BC36: ='Prop. Tax Inc Sidewalk & Bike'!M38 -> 0 | BD36: ='Prop. Tax Inc Sidewalk & Bike'!N38 -> 0 | BE36: ='Prop. Tax Inc Shared Use Path'!O38 -> 0 | BF36: ='Prop. Tax Inc Shared Use Path'!P38 -> 0
A37: ='Major Assumption Key'!A51 -> 2052 | B37: ='Useful Life'!N39 -> 0 | C37: ='Useful Life'!O39 -> 0 | D37: =_xlfn.XLOOKUP(A37,'Non-Roadway Maintenance'!$F$8:$F$48,'Non-Roadway Maintenance'!$K$8:$K$48,,0) -> 0 | E37: =_xlfn.XLOOKUP(A37,'Non-Roadway Maintenance'!$F$8:$F$48,'Non-Roadway Maintenance'!$L$8:$L$48,,0) -> 0 | F37: ='State of Good Repair AP-CP'!S39 -> 0 | G37: ='State of Good Repair AP-CP'!T39 -> 0 | H37: ='State of Good Repair - AP-AP'!S39 -> 0 | I37: ='State of Good Repair - AP-AP'!T39 -> 0 | J37: ='State of Good Repair CP-CP '!S39 -> 0 | K37: ='State of Good Repair CP-CP '!T39 -> 0 | L37: ='Roadway Safety'!AC39 -> 0 | M37: ='Roadway Safety'!AD39 -> 0 | N37: ='Pedestrian Safety'!Q39 -> 0 | O37: ='Pedestrian Safety'!R39 -> 0 | P37: ='Bike Safety'!S39 -> 0 | Q37: ='Bike Safety'!T39 -> 0 | R37: ='Facility Improve - Ped'!AK39 -> 0 | S37: ='Facility Improve - Ped'!AL39 -> 0 | T37: ='Facility Improve - Bike'!Q39 -> 0 | U37: ='Facility Improve - Bike'!R39 -> 0 | V37: ='Facility Improve - Transit Stop'!Y39 -> 0 | W37: ='Facility Improve - Transit Stop'!Z39 -> 0 | X37: =_xlfn.XLOOKUP(A37,'Serve Improve - Transit Mode'!F:F,'Serve Improve - Transit Mode'!Y:Y,,0) -> 0 | Y37: =_xlfn.XLOOKUP(A37,'Serve Improve - Transit Mode'!F:F,'Serve Improve - Transit Mode'!Z:Z,,0) -> 0 | Z37: ='Amenity Improve - Transit Veh '!Q39 -> 0 | AA37: ='Amenity Improve - Transit Veh '!R39 -> 0 | AB37: ='Value of Travel Time'!AD39 -> 0 | AC37: ='Value of Travel Time'!AE39 -> 0 | AD37: ='Operating Cost Savings'!P39 -> 0 | AE37: ='Operating Cost Savings'!Q39 -> 0 | AF37: ='Mortality Reduction - Walk'!O39 -> 0 | AG37: ='Mortality Reduction - Walk'!P39 -> 0 | AH37: ='Mortality Reduction - Bike'!O39 -> 0 | AI37: ='Mortality Reduction - Bike'!P39 -> 0 | AJ37: ='Emission Reduction (VMT)'!S39 -> 0 | AK37: ='Emission Reduction (VMT)'!T39 -> 0 | AL37: ='Emission Reduction (Metric Ton)'!AA39 -> 0 | AM37: ='Emission Reduction (Metric Ton)'!AB39 -> 0 | AN37: ='Other Highway Use Externalities'!Q39 -> 0 | AO37: ='Other Highway Use Externalities'!R39 -> 0 | AP37: ='Auto Idling Benefit - Fuel'!O39 -> 0 | AQ37: ='Auto Idling Benefit - Fuel'!P39 -> 0 | AR37: ='Auto Idling Env. Benefits'!Y39 -> 0 | AS37: ='Auto Idling Env. Benefits'!Z39 -> 0 | AT37: =_xlfn.XLOOKUP(A37,'Repurposed ROW'!F:F,'Repurposed ROW'!K:K,,0) -> 0 | AU37: =_xlfn.XLOOKUP(A37,'Repurposed ROW'!F:F,'Repurposed ROW'!L:L,,0) -> 0 | AV37: 0 | AW37: 0 | AY37: ='Prop. Tax Inc Sidewalk'!M39 -> 0 | AZ37: ='Prop. Tax Inc Sidewalk'!N39 -> 0 | BA37: ='Prop. Tax Inc Bike Lane'!M39 -> 0 | BB37: ='Prop. Tax Inc Bike Lane'!N39 -> 0 | BC37: ='Prop. Tax Inc Sidewalk & Bike'!M39 -> 0 | BD37: ='Prop. Tax Inc Sidewalk & Bike'!N39 -> 0 | BE37: ='Prop. Tax Inc Shared Use Path'!O39 -> 0 | BF37: ='Prop. Tax Inc Shared Use Path'!P39 -> 0
A38: ='Major Assumption Key'!A52 -> 2053 | B38: ='Useful Life'!N40 -> 0 | C38: ='Useful Life'!O40 -> 0 | D38: =_xlfn.XLOOKUP(A38,'Non-Roadway Maintenance'!$F$8:$F$48,'Non-Roadway Maintenance'!$K$8:$K$48,,0) -> 0 | E38: =_xlfn.XLOOKUP(A38,'Non-Roadway Maintenance'!$F$8:$F$48,'Non-Roadway Maintenance'!$L$8:$L$48,,0) -> 0 | F38: ='State of Good Repair AP-CP'!S40 -> 0 | G38: ='State of Good Repair AP-CP'!T40 -> 0 | H38: ='State of Good Repair - AP-AP'!S40 -> 0 | I38: ='State of Good Repair - AP-AP'!T40 -> 0 | J38: ='State of Good Repair CP-CP '!S40 -> 0 | K38: ='State of Good Repair CP-CP '!T40 -> 0 | L38: ='Roadway Safety'!AC40 -> 0 | M38: ='Roadway Safety'!AD40 -> 0 | N38: ='Pedestrian Safety'!Q40 -> 0 | O38: ='Pedestrian Safety'!R40 -> 0 | P38: ='Bike Safety'!S40 -> 0 | Q38: ='Bike Safety'!T40 -> 0 | R38: ='Facility Improve - Ped'!AK40 -> 0 | S38: ='Facility Improve - Ped'!AL40 -> 0 | T38: ='Facility Improve - Bike'!Q40 -> 0 | U38: ='Facility Improve - Bike'!R40 -> 0 | V38: ='Facility Improve - Transit Stop'!Y40 -> 0 | W38: ='Facility Improve - Transit Stop'!Z40 -> 0 | X38: =_xlfn.XLOOKUP(A38,'Serve Improve - Transit Mode'!F:F,'Serve Improve - Transit Mode'!Y:Y,,0) -> 0 | Y38: =_xlfn.XLOOKUP(A38,'Serve Improve - Transit Mode'!F:F,'Serve Improve - Transit Mode'!Z:Z,,0) -> 0 | Z38: ='Amenity Improve - Transit Veh '!Q40 -> 0 | AA38: ='Amenity Improve - Transit Veh '!R40 -> 0 | AB38: ='Value of Travel Time'!AD40 -> 0 | AC38: ='Value of Travel Time'!AE40 -> 0 | AD38: ='Operating Cost Savings'!P40 -> 0 | AE38: ='Operating Cost Savings'!Q40 -> 0 | AF38: ='Mortality Reduction - Walk'!O40 -> 0 | AG38: ='Mortality Reduction - Walk'!P40 -> 0 | AH38: ='Mortality Reduction - Bike'!O40 -> 0 | AI38: ='Mortality Reduction - Bike'!P40 -> 0 | AJ38: ='Emission Reduction (VMT)'!S40 -> 0 | AK38: ='Emission Reduction (VMT)'!T40 -> 0 | AL38: ='Emission Reduction (Metric Ton)'!AA40 -> 0 | AM38: ='Emission Reduction (Metric Ton)'!AB40 -> 0 | AN38: ='Other Highway Use Externalities'!Q40 -> 0 | AO38: ='Other Highway Use Externalities'!R40 -> 0 | AP38: ='Auto Idling Benefit - Fuel'!O40 -> 0 | AQ38: ='Auto Idling Benefit - Fuel'!P40 -> 0 | AR38: ='Auto Idling Env. Benefits'!Y40 -> 0 | AS38: ='Auto Idling Env. Benefits'!Z40 -> 0 | AT38: =_xlfn.XLOOKUP(A38,'Repurposed ROW'!F:F,'Repurposed ROW'!K:K,,0) -> 0 | AU38: =_xlfn.XLOOKUP(A38,'Repurposed ROW'!F:F,'Repurposed ROW'!L:L,,0) -> 0 | AV38: 0 | AW38: 0 | AY38: ='Prop. Tax Inc Sidewalk'!M40 -> 0 | AZ38: ='Prop. Tax Inc Sidewalk'!N40 -> 0 | BA38: ='Prop. Tax Inc Bike Lane'!M40 -> 0 | BB38: ='Prop. Tax Inc Bike Lane'!N40 -> 0 | BC38: ='Prop. Tax Inc Sidewalk & Bike'!M40 -> 0 | BD38: ='Prop. Tax Inc Sidewalk & Bike'!N40 -> 0 | BE38: ='Prop. Tax Inc Shared Use Path'!O40 -> 0 | BF38: ='Prop. Tax Inc Shared Use Path'!P40 -> 0
A39: ='Major Assumption Key'!A53 -> 2054 | B39: ='Useful Life'!N41 -> 0 | C39: ='Useful Life'!O41 -> 0 | D39: =_xlfn.XLOOKUP(A39,'Non-Roadway Maintenance'!$F$8:$F$48,'Non-Roadway Maintenance'!$K$8:$K$48,,0) -> 0 | E39: =_xlfn.XLOOKUP(A39,'Non-Roadway Maintenance'!$F$8:$F$48,'Non-Roadway Maintenance'!$L$8:$L$48,,0) -> 0 | F39: ='State of Good Repair AP-CP'!S41 -> 0 | G39: ='State of Good Repair AP-CP'!T41 -> 0 | H39: ='State of Good Repair - AP-AP'!S41 -> 0 | I39: ='State of Good Repair - AP-AP'!T41 -> 0 | J39: ='State of Good Repair CP-CP '!S41 -> 0 | K39: ='State of Good Repair CP-CP '!T41 -> 0 | L39: ='Roadway Safety'!AC41 -> 0 | M39: ='Roadway Safety'!AD41 -> 0 | N39: ='Pedestrian Safety'!Q41 -> 0 | O39: ='Pedestrian Safety'!R41 -> 0 | P39: ='Bike Safety'!S41 -> 0 | Q39: ='Bike Safety'!T41 -> 0 | R39: ='Facility Improve - Ped'!AK41 -> 0 | S39: ='Facility Improve - Ped'!AL41 -> 0 | T39: ='Facility Improve - Bike'!Q41 -> 0 | U39: ='Facility Improve - Bike'!R41 -> 0 | V39: ='Facility Improve - Transit Stop'!Y41 -> 0 | W39: ='Facility Improve - Transit Stop'!Z41 -> 0 | X39: =_xlfn.XLOOKUP(A39,'Serve Improve - Transit Mode'!F:F,'Serve Improve - Transit Mode'!Y:Y,,0) -> 0 | Y39: =_xlfn.XLOOKUP(A39,'Serve Improve - Transit Mode'!F:F,'Serve Improve - Transit Mode'!Z:Z,,0) -> 0 | Z39: ='Amenity Improve - Transit Veh '!Q41 -> 0 | AA39: ='Amenity Improve - Transit Veh '!R41 -> 0 | AB39: ='Value of Travel Time'!AD41 -> 0 | AC39: ='Value of Travel Time'!AE41 -> 0 | AD39: ='Operating Cost Savings'!P41 -> 0 | AE39: ='Operating Cost Savings'!Q41 -> 0 | AF39: ='Mortality Reduction - Walk'!O41 -> 0 | AG39: ='Mortality Reduction - Walk'!P41 -> 0 | AH39: ='Mortality Reduction - Bike'!O41 -> 0 | AI39: ='Mortality Reduction - Bike'!P41 -> 0 | AJ39: ='Emission Reduction (VMT)'!S41 -> 0 | AK39: ='Emission Reduction (VMT)'!T41 -> 0 | AL39: ='Emission Reduction (Metric Ton)'!AA41 -> 0 | AM39: ='Emission Reduction (Metric Ton)'!AB41 -> 0 | AN39: ='Other Highway Use Externalities'!Q41 -> 0 | AO39: ='Other Highway Use Externalities'!R41 -> 0 | AP39: ='Auto Idling Benefit - Fuel'!O41 -> 0 | AQ39: ='Auto Idling Benefit - Fuel'!P41 -> 0 | AR39: ='Auto Idling Env. Benefits'!Y41 -> 0 | AS39: ='Auto Idling Env. Benefits'!Z41 -> 0 | AT39: =_xlfn.XLOOKUP(A39,'Repurposed ROW'!F:F,'Repurposed ROW'!K:K,,0) -> 0 | AU39: =_xlfn.XLOOKUP(A39,'Repurposed ROW'!F:F,'Repurposed ROW'!L:L,,0) -> 0 | AV39: 0 | AW39: 0 | AY39: ='Prop. Tax Inc Sidewalk'!M41 -> 0 | AZ39: ='Prop. Tax Inc Sidewalk'!N41 -> 0 | BA39: ='Prop. Tax Inc Bike Lane'!M41 -> 0 | BB39: ='Prop. Tax Inc Bike Lane'!N41 -> 0 | BC39: ='Prop. Tax Inc Sidewalk & Bike'!M41 -> 0 | BD39: ='Prop. Tax Inc Sidewalk & Bike'!N41 -> 0 | BE39: ='Prop. Tax Inc Shared Use Path'!O41 -> 0 | BF39: ='Prop. Tax Inc Shared Use Path'!P41 -> 0
A40: ='Major Assumption Key'!A54 -> 2055 | B40: ='Useful Life'!N42 -> 0 | C40: ='Useful Life'!O42 -> 0 | D40: =_xlfn.XLOOKUP(A40,'Non-Roadway Maintenance'!$F$8:$F$48,'Non-Roadway Maintenance'!$K$8:$K$48,,0) -> 0 | E40: =_xlfn.XLOOKUP(A40,'Non-Roadway Maintenance'!$F$8:$F$48,'Non-Roadway Maintenance'!$L$8:$L$48,,0) -> 0 | F40: ='State of Good Repair AP-CP'!S42 -> 0 | G40: ='State of Good Repair AP-CP'!T42 -> 0 | H40: ='State of Good Repair - AP-AP'!S42 -> 0 | I40: ='State of Good Repair - AP-AP'!T42 -> 0 | J40: ='State of Good Repair CP-CP '!S42 -> 0 | K40: ='State of Good Repair CP-CP '!T42 -> 0 | L40: ='Roadway Safety'!AC42 -> 0 | M40: ='Roadway Safety'!AD42 -> 0 | N40: ='Pedestrian Safety'!Q42 -> 0 | O40: ='Pedestrian Safety'!R42 -> 0 | P40: ='Bike Safety'!S42 -> 0 | Q40: ='Bike Safety'!T42 -> 0 | R40: ='Facility Improve - Ped'!AK42 -> 0 | S40: ='Facility Improve - Ped'!AL42 -> 0 | T40: ='Facility Improve - Bike'!Q42 -> 0 | U40: ='Facility Improve - Bike'!R42 -> 0 | V40: ='Facility Improve - Transit Stop'!Y42 -> 0 | W40: ='Facility Improve - Transit Stop'!Z42 -> 0 | X40: =_xlfn.XLOOKUP(A40,'Serve Improve - Transit Mode'!F:F,'Serve Improve - Transit Mode'!Y:Y,,0) -> 0 | Y40: =_xlfn.XLOOKUP(A40,'Serve Improve - Transit Mode'!F:F,'Serve Improve - Transit Mode'!Z:Z,,0) -> 0 | Z40: ='Amenity Improve - Transit Veh '!Q42 -> 0 | AA40: ='Amenity Improve - Transit Veh '!R42 -> 0 | AB40: ='Value of Travel Time'!AD42 -> 0 | AC40: ='Value of Travel Time'!AE42 -> 0 | AD40: ='Operating Cost Savings'!P42 -> 0 | AE40: ='Operating Cost Savings'!Q42 -> 0 | AF40: ='Mortality Reduction - Walk'!O42 -> 0 | AG40: ='Mortality Reduction - Walk'!P42 -> 0 | AH40: ='Mortality Reduction - Bike'!O42 -> 0 | AI40: ='Mortality Reduction - Bike'!P42 -> 0 | AJ40: ='Emission Reduction (VMT)'!S42 -> 0 | AK40: ='Emission Reduction (VMT)'!T42 -> 0 | AL40: ='Emission Reduction (Metric Ton)'!AA42 -> 0 | AM40: ='Emission Reduction (Metric Ton)'!AB42 -> 0 | AN40: ='Other Highway Use Externalities'!Q42 -> 0 | AO40: ='Other Highway Use Externalities'!R42 -> 0 | AP40: ='Auto Idling Benefit - Fuel'!O42 -> 0 | AQ40: ='Auto Idling Benefit - Fuel'!P42 -> 0 | AR40: ='Auto Idling Env. Benefits'!Y42 -> 0 | AS40: ='Auto Idling Env. Benefits'!Z42 -> 0 | AT40: =_xlfn.XLOOKUP(A40,'Repurposed ROW'!F:F,'Repurposed ROW'!K:K,,0) -> 0 | AU40: =_xlfn.XLOOKUP(A40,'Repurposed ROW'!F:F,'Repurposed ROW'!L:L,,0) -> 0 | AV40: 0 | AW40: 0 | AY40: ='Prop. Tax Inc Sidewalk'!M42 -> 0 | AZ40: ='Prop. Tax Inc Sidewalk'!N42 -> 0 | BA40: ='Prop. Tax Inc Bike Lane'!M42 -> 0 | BB40: ='Prop. Tax Inc Bike Lane'!N42 -> 0 | BC40: ='Prop. Tax Inc Sidewalk & Bike'!M42 -> 0 | BD40: ='Prop. Tax Inc Sidewalk & Bike'!N42 -> 0 | BE40: ='Prop. Tax Inc Shared Use Path'!O42 -> 0 | BF40: ='Prop. Tax Inc Shared Use Path'!P42 -> 0
A41: ='Major Assumption Key'!A55 -> 2056 | B41: ='Useful Life'!N43 -> 0 | C41: ='Useful Life'!O43 -> 0 | D41: =_xlfn.XLOOKUP(A41,'Non-Roadway Maintenance'!$F$8:$F$48,'Non-Roadway Maintenance'!$K$8:$K$48,,0) -> 0 | E41: =_xlfn.XLOOKUP(A41,'Non-Roadway Maintenance'!$F$8:$F$48,'Non-Roadway Maintenance'!$L$8:$L$48,,0) -> 0 | F41: ='State of Good Repair AP-CP'!S43 -> 0 | G41: ='State of Good Repair AP-CP'!T43 -> 0 | H41: ='State of Good Repair - AP-AP'!S43 -> 0 | I41: ='State of Good Repair - AP-AP'!T43 -> 0 | J41: ='State of Good Repair CP-CP '!S43 -> 0 | K41: ='State of Good Repair CP-CP '!T43 -> 0 | L41: ='Roadway Safety'!AC43 -> 0 | M41: ='Roadway Safety'!AD43 -> 0 | N41: ='Pedestrian Safety'!Q43 -> 0 | O41: ='Pedestrian Safety'!R43 -> 0 | P41: ='Bike Safety'!S43 -> 0 | Q41: ='Bike Safety'!T43 -> 0 | R41: ='Facility Improve - Ped'!AK43 -> 0 | S41: ='Facility Improve - Ped'!AL43 -> 0 | T41: ='Facility Improve - Bike'!Q43 -> 0 | U41: ='Facility Improve - Bike'!R43 -> 0 | V41: ='Facility Improve - Transit Stop'!Y43 -> 0 | W41: ='Facility Improve - Transit Stop'!Z43 -> 0 | X41: =_xlfn.XLOOKUP(A41,'Serve Improve - Transit Mode'!F:F,'Serve Improve - Transit Mode'!Y:Y,,0) -> 0 | Y41: =_xlfn.XLOOKUP(A41,'Serve Improve - Transit Mode'!F:F,'Serve Improve - Transit Mode'!Z:Z,,0) -> 0 | Z41: ='Amenity Improve - Transit Veh '!Q43 -> 0 | AA41: ='Amenity Improve - Transit Veh '!R43 -> 0 | AB41: ='Value of Travel Time'!AD43 -> 0 | AC41: ='Value of Travel Time'!AE43 -> 0 | AD41: ='Operating Cost Savings'!P43 -> 0 | AE41: ='Operating Cost Savings'!Q43 -> 0 | AF41: ='Mortality Reduction - Walk'!O43 -> 0 | AG41: ='Mortality Reduction - Walk'!P43 -> 0 | AH41: ='Mortality Reduction - Bike'!O43 -> 0 | AI41: ='Mortality Reduction - Bike'!P43 -> 0 | AJ41: ='Emission Reduction (VMT)'!S43 -> 0 | AK41: ='Emission Reduction (VMT)'!T43 -> 0 | AL41: ='Emission Reduction (Metric Ton)'!AA43 -> 0 | AM41: ='Emission Reduction (Metric Ton)'!AB43 -> 0 | AN41: ='Other Highway Use Externalities'!Q43 -> 0 | AO41: ='Other Highway Use Externalities'!R43 -> 0 | AP41: ='Auto Idling Benefit - Fuel'!O43 -> 0 | AQ41: ='Auto Idling Benefit - Fuel'!P43 -> 0 | AR41: ='Auto Idling Env. Benefits'!Y43 -> 0 | AS41: ='Auto Idling Env. Benefits'!Z43 -> 0 | AT41: =_xlfn.XLOOKUP(A41,'Repurposed ROW'!F:F,'Repurposed ROW'!K:K,,0) -> 0 | AU41: =_xlfn.XLOOKUP(A41,'Repurposed ROW'!F:F,'Repurposed ROW'!L:L,,0) -> 0 | AV41: 0 | AW41: 0 | AY41: ='Prop. Tax Inc Sidewalk'!M43 -> 0 | AZ41: ='Prop. Tax Inc Sidewalk'!N43 -> 0 | BA41: ='Prop. Tax Inc Bike Lane'!M43 -> 0 | BB41: ='Prop. Tax Inc Bike Lane'!N43 -> 0 | BC41: ='Prop. Tax Inc Sidewalk & Bike'!M43 -> 0 | BD41: ='Prop. Tax Inc Sidewalk & Bike'!N43 -> 0 | BE41: ='Prop. Tax Inc Shared Use Path'!O43 -> 0 | BF41: ='Prop. Tax Inc Shared Use Path'!P43 -> 0
A42: ='Major Assumption Key'!A56 -> 2057 | B42: ='Useful Life'!N44 -> 0 | C42: ='Useful Life'!O44 -> 0 | D42: =_xlfn.XLOOKUP(A42,'Non-Roadway Maintenance'!$F$8:$F$48,'Non-Roadway Maintenance'!$K$8:$K$48,,0) -> 0 | E42: =_xlfn.XLOOKUP(A42,'Non-Roadway Maintenance'!$F$8:$F$48,'Non-Roadway Maintenance'!$L$8:$L$48,,0) -> 0 | F42: ='State of Good Repair AP-CP'!S44 -> 0 | G42: ='State of Good Repair AP-CP'!T44 -> 0 | H42: ='State of Good Repair - AP-AP'!S44 -> 0 | I42: ='State of Good Repair - AP-AP'!T44 -> 0 | J42: ='State of Good Repair CP-CP '!S44 -> 0 | K42: ='State of Good Repair CP-CP '!T44 -> 0 | L42: ='Roadway Safety'!AC44 -> 0 | M42: ='Roadway Safety'!AD44 -> 0 | N42: ='Pedestrian Safety'!Q44 -> 0 | O42: ='Pedestrian Safety'!R44 -> 0 | P42: ='Bike Safety'!S44 -> 0 | Q42: ='Bike Safety'!T44 -> 0 | R42: ='Facility Improve - Ped'!AK44 -> 0 | S42: ='Facility Improve - Ped'!AL44 -> 0 | T42: ='Facility Improve - Bike'!Q44 -> 0 | U42: ='Facility Improve - Bike'!R44 -> 0 | V42: ='Facility Improve - Transit Stop'!Y44 -> 0 | W42: ='Facility Improve - Transit Stop'!Z44 -> 0 | X42: =_xlfn.XLOOKUP(A42,'Serve Improve - Transit Mode'!F:F,'Serve Improve - Transit Mode'!Y:Y,,0) -> 0 | Y42: =_xlfn.XLOOKUP(A42,'Serve Improve - Transit Mode'!F:F,'Serve Improve - Transit Mode'!Z:Z,,0) -> 0 | Z42: ='Amenity Improve - Transit Veh '!Q44 -> 0 | AA42: ='Amenity Improve - Transit Veh '!R44 -> 0 | AB42: ='Value of Travel Time'!AD44 -> 0 | AC42: ='Value of Travel Time'!AE44 -> 0 | AD42: ='Operating Cost Savings'!P44 -> 0 | AE42: ='Operating Cost Savings'!Q44 -> 0 | AF42: ='Mortality Reduction - Walk'!O44 -> 0 | AG42: ='Mortality Reduction - Walk'!P44 -> 0 | AH42: ='Mortality Reduction - Bike'!O44 -> 0 | AI42: ='Mortality Reduction - Bike'!P44 -> 0 | AJ42: ='Emission Reduction (VMT)'!S44 -> 0 | AK42: ='Emission Reduction (VMT)'!T44 -> 0 | AL42: ='Emission Reduction (Metric Ton)'!AA44 -> 0 | AM42: ='Emission Reduction (Metric Ton)'!AB44 -> 0 | AN42: ='Other Highway Use Externalities'!Q44 -> 0 | AO42: ='Other Highway Use Externalities'!R44 -> 0 | AP42: ='Auto Idling Benefit - Fuel'!O44 -> 0 | AQ42: ='Auto Idling Benefit - Fuel'!P44 -> 0 | AR42: ='Auto Idling Env. Benefits'!Y44 -> 0 | AS42: ='Auto Idling Env. Benefits'!Z44 -> 0 | AT42: =_xlfn.XLOOKUP(A42,'Repurposed ROW'!F:F,'Repurposed ROW'!K:K,,0) -> 0 | AU42: =_xlfn.XLOOKUP(A42,'Repurposed ROW'!F:F,'Repurposed ROW'!L:L,,0) -> 0 | AV42: 0 | AW42: 0 | AY42: ='Prop. Tax Inc Sidewalk'!M44 -> 0 | AZ42: ='Prop. Tax Inc Sidewalk'!N44 -> 0 | BA42: ='Prop. Tax Inc Bike Lane'!M44 -> 0 | BB42: ='Prop. Tax Inc Bike Lane'!N44 -> 0 | BC42: ='Prop. Tax Inc Sidewalk & Bike'!M44 -> 0 | BD42: ='Prop. Tax Inc Sidewalk & Bike'!N44 -> 0 | BE42: ='Prop. Tax Inc Shared Use Path'!O44 -> 0 | BF42: ='Prop. Tax Inc Shared Use Path'!P44 -> 0
A43: ='Major Assumption Key'!A57 -> 2058 | B43: ='Useful Life'!N45 -> 0 | C43: ='Useful Life'!O45 -> 0 | D43: =_xlfn.XLOOKUP(A43,'Non-Roadway Maintenance'!$F$8:$F$48,'Non-Roadway Maintenance'!$K$8:$K$48,,0) -> 0 | E43: =_xlfn.XLOOKUP(A43,'Non-Roadway Maintenance'!$F$8:$F$48,'Non-Roadway Maintenance'!$L$8:$L$48,,0) -> 0 | F43: ='State of Good Repair AP-CP'!S45 -> 0 | G43: ='State of Good Repair AP-CP'!T45 -> 0 | H43: ='State of Good Repair - AP-AP'!S45 -> 0 | I43: ='State of Good Repair - AP-AP'!T45 -> 0 | J43: ='State of Good Repair CP-CP '!S45 -> 0 | K43: ='State of Good Repair CP-CP '!T45 -> 0 | L43: ='Roadway Safety'!AC45 -> 0 | M43: ='Roadway Safety'!AD45 -> 0 | N43: ='Pedestrian Safety'!Q45 -> 0 | O43: ='Pedestrian Safety'!R45 -> 0 | P43: ='Bike Safety'!S45 -> 0 | Q43: ='Bike Safety'!T45 -> 0 | R43: ='Facility Improve - Ped'!AK45 -> 0 | S43: ='Facility Improve - Ped'!AL45 -> 0 | T43: ='Facility Improve - Bike'!Q45 -> 0 | U43: ='Facility Improve - Bike'!R45 -> 0 | V43: ='Facility Improve - Transit Stop'!Y45 -> 0 | W43: ='Facility Improve - Transit Stop'!Z45 -> 0 | X43: =_xlfn.XLOOKUP(A43,'Serve Improve - Transit Mode'!F:F,'Serve Improve - Transit Mode'!Y:Y,,0) -> 0 | Y43: =_xlfn.XLOOKUP(A43,'Serve Improve - Transit Mode'!F:F,'Serve Improve - Transit Mode'!Z:Z,,0) -> 0 | Z43: ='Amenity Improve - Transit Veh '!Q45 -> 0 | AA43: ='Amenity Improve - Transit Veh '!R45 -> 0 | AB43: ='Value of Travel Time'!AD45 -> 0 | AC43: ='Value of Travel Time'!AE45 -> 0 | AD43: ='Operating Cost Savings'!P45 -> 0 | AE43: ='Operating Cost Savings'!Q45 -> 0 | AF43: ='Mortality Reduction - Walk'!O45 -> 0 | AG43: ='Mortality Reduction - Walk'!P45 -> 0 | AH43: ='Mortality Reduction - Bike'!O45 -> 0 | AI43: ='Mortality Reduction - Bike'!P45 -> 0 | AJ43: ='Emission Reduction (VMT)'!S45 -> 0 | AK43: ='Emission Reduction (VMT)'!T45 -> 0 | AL43: ='Emission Reduction (Metric Ton)'!AA45 -> 0 | AM43: ='Emission Reduction (Metric Ton)'!AB45 -> 0 | AN43: ='Other Highway Use Externalities'!Q45 -> 0 | AO43: ='Other Highway Use Externalities'!R45 -> 0 | AP43: ='Auto Idling Benefit - Fuel'!O45 -> 0 | AQ43: ='Auto Idling Benefit - Fuel'!P45 -> 0 | AR43: ='Auto Idling Env. Benefits'!Y45 -> 0 | AS43: ='Auto Idling Env. Benefits'!Z45 -> 0 | AT43: =_xlfn.XLOOKUP(A43,'Repurposed ROW'!F:F,'Repurposed ROW'!K:K,,0) -> 0 | AU43: =_xlfn.XLOOKUP(A43,'Repurposed ROW'!F:F,'Repurposed ROW'!L:L,,0) -> 0 | AV43: 0 | AW43: 0 | AY43: ='Prop. Tax Inc Sidewalk'!M45 -> 0 | AZ43: ='Prop. Tax Inc Sidewalk'!N45 -> 0 | BA43: ='Prop. Tax Inc Bike Lane'!M45 -> 0 | BB43: ='Prop. Tax Inc Bike Lane'!N45 -> 0 | BC43: ='Prop. Tax Inc Sidewalk & Bike'!M45 -> 0 | BD43: ='Prop. Tax Inc Sidewalk & Bike'!N45 -> 0 | BE43: ='Prop. Tax Inc Shared Use Path'!O45 -> 0 | BF43: ='Prop. Tax Inc Shared Use Path'!P45 -> 0
A44: ='Major Assumption Key'!A58 -> 2059 | B44: ='Useful Life'!N46 -> 0 | C44: ='Useful Life'!O46 -> 0 | D44: =_xlfn.XLOOKUP(A44,'Non-Roadway Maintenance'!$F$8:$F$48,'Non-Roadway Maintenance'!$K$8:$K$48,,0) -> 0 | E44: =_xlfn.XLOOKUP(A44,'Non-Roadway Maintenance'!$F$8:$F$48,'Non-Roadway Maintenance'!$L$8:$L$48,,0) -> 0 | F44: ='State of Good Repair AP-CP'!S46 -> 0 | G44: ='State of Good Repair AP-CP'!T46 -> 0 | H44: ='State of Good Repair - AP-AP'!S46 -> 0 | I44: ='State of Good Repair - AP-AP'!T46 -> 0 | J44: ='State of Good Repair CP-CP '!S46 -> 0 | K44: ='State of Good Repair CP-CP '!T46 -> 0 | L44: ='Roadway Safety'!AC46 -> 0 | M44: ='Roadway Safety'!AD46 -> 0 | N44: ='Pedestrian Safety'!Q46 -> 0 | O44: ='Pedestrian Safety'!R46 -> 0 | P44: ='Bike Safety'!S46 -> 0 | Q44: ='Bike Safety'!T46 -> 0 | R44: ='Facility Improve - Ped'!AK46 -> 0 | S44: ='Facility Improve - Ped'!AL46 -> 0 | T44: ='Facility Improve - Bike'!Q46 -> 0 | U44: ='Facility Improve - Bike'!R46 -> 0 | V44: ='Facility Improve - Transit Stop'!Y46 -> 0 | W44: ='Facility Improve - Transit Stop'!Z46 -> 0 | X44: =_xlfn.XLOOKUP(A44,'Serve Improve - Transit Mode'!F:F,'Serve Improve - Transit Mode'!Y:Y,,0) -> 0 | Y44: =_xlfn.XLOOKUP(A44,'Serve Improve - Transit Mode'!F:F,'Serve Improve - Transit Mode'!Z:Z,,0) -> 0 | Z44: ='Amenity Improve - Transit Veh '!Q46 -> 0 | AA44: ='Amenity Improve - Transit Veh '!R46 -> 0 | AB44: ='Value of Travel Time'!AD46 -> 0 | AC44: ='Value of Travel Time'!AE46 -> 0 | AD44: ='Operating Cost Savings'!P46 -> 0 | AE44: ='Operating Cost Savings'!Q46 -> 0 | AF44: ='Mortality Reduction - Walk'!O46 -> 0 | AG44: ='Mortality Reduction - Walk'!P46 -> 0 | AH44: ='Mortality Reduction - Bike'!O46 -> 0 | AI44: ='Mortality Reduction - Bike'!P46 -> 0 | AJ44: ='Emission Reduction (VMT)'!S46 -> 0 | AK44: ='Emission Reduction (VMT)'!T46 -> 0 | AL44: ='Emission Reduction (Metric Ton)'!AA46 -> 0 | AM44: ='Emission Reduction (Metric Ton)'!AB46 -> 0 | AN44: ='Other Highway Use Externalities'!Q46 -> 0 | AO44: ='Other Highway Use Externalities'!R46 -> 0 | AP44: ='Auto Idling Benefit - Fuel'!O46 -> 0 | AQ44: ='Auto Idling Benefit - Fuel'!P46 -> 0 | AR44: ='Auto Idling Env. Benefits'!Y46 -> 0 | AS44: ='Auto Idling Env. Benefits'!Z46 -> 0 | AT44: =_xlfn.XLOOKUP(A44,'Repurposed ROW'!F:F,'Repurposed ROW'!K:K,,0) -> 0 | AU44: =_xlfn.XLOOKUP(A44,'Repurposed ROW'!F:F,'Repurposed ROW'!L:L,,0) -> 0 | AV44: 0 | AW44: 0 | AY44: ='Prop. Tax Inc Sidewalk'!M46 -> 0 | AZ44: ='Prop. Tax Inc Sidewalk'!N46 -> 0 | BA44: ='Prop. Tax Inc Bike Lane'!M46 -> 0 | BB44: ='Prop. Tax Inc Bike Lane'!N46 -> 0 | BC44: ='Prop. Tax Inc Sidewalk & Bike'!M46 -> 0 | BD44: ='Prop. Tax Inc Sidewalk & Bike'!N46 -> 0 | BE44: ='Prop. Tax Inc Shared Use Path'!O46 -> 0 | BF44: ='Prop. Tax Inc Shared Use Path'!P46 -> 0
A45: ='Major Assumption Key'!A59 -> 2060 | B45: ='Useful Life'!N47 -> 0 | C45: ='Useful Life'!O47 -> 0 | D45: =_xlfn.XLOOKUP(A45,'Non-Roadway Maintenance'!$F$8:$F$48,'Non-Roadway Maintenance'!$K$8:$K$48,,0) -> 0 | E45: =_xlfn.XLOOKUP(A45,'Non-Roadway Maintenance'!$F$8:$F$48,'Non-Roadway Maintenance'!$L$8:$L$48,,0) -> 0 | F45: ='State of Good Repair AP-CP'!S47 -> 0 | G45: ='State of Good Repair AP-CP'!T47 -> 0 | H45: ='State of Good Repair - AP-AP'!S47 -> 0 | I45: ='State of Good Repair - AP-AP'!T47 -> 0 | J45: ='State of Good Repair CP-CP '!S47 -> 0 | K45: ='State of Good Repair CP-CP '!T47 -> 0 | L45: ='Roadway Safety'!AC47 -> 0 | M45: ='Roadway Safety'!AD47 -> 0 | N45: ='Pedestrian Safety'!Q47 -> 0 | O45: ='Pedestrian Safety'!R47 -> 0 | P45: ='Bike Safety'!S47 -> 0 | Q45: ='Bike Safety'!T47 -> 0 | R45: ='Facility Improve - Ped'!AK47 -> 0 | S45: ='Facility Improve - Ped'!AL47 -> 0 | T45: ='Facility Improve - Bike'!Q47 -> 0 | U45: ='Facility Improve - Bike'!R47 -> 0 | V45: ='Facility Improve - Transit Stop'!Y47 -> 0 | W45: ='Facility Improve - Transit Stop'!Z47 -> 0 | X45: =_xlfn.XLOOKUP(A45,'Serve Improve - Transit Mode'!F:F,'Serve Improve - Transit Mode'!Y:Y,,0) -> 0 | Y45: =_xlfn.XLOOKUP(A45,'Serve Improve - Transit Mode'!F:F,'Serve Improve - Transit Mode'!Z:Z,,0) -> 0 | Z45: ='Amenity Improve - Transit Veh '!Q47 -> 0 | AA45: ='Amenity Improve - Transit Veh '!R47 -> 0 | AB45: ='Value of Travel Time'!AD47 -> 0 | AC45: ='Value of Travel Time'!AE47 -> 0 | AD45: ='Operating Cost Savings'!P47 -> 0 | AE45: ='Operating Cost Savings'!Q47 -> 0 | AF45: ='Mortality Reduction - Walk'!O47 -> 0 | AG45: ='Mortality Reduction - Walk'!P47 -> 0 | AH45: ='Mortality Reduction - Bike'!O47 -> 0 | AI45: ='Mortality Reduction - Bike'!P47 -> 0 | AJ45: ='Emission Reduction (VMT)'!S47 -> 0 | AK45: ='Emission Reduction (VMT)'!T47 -> 0 | AL45: ='Emission Reduction (Metric Ton)'!AA47 -> 0 | AM45: ='Emission Reduction (Metric Ton)'!AB47 -> 0 | AN45: ='Other Highway Use Externalities'!Q47 -> 0 | AO45: ='Other Highway Use Externalities'!R47 -> 0 | AP45: ='Auto Idling Benefit - Fuel'!O47 -> 0 | AQ45: ='Auto Idling Benefit - Fuel'!P47 -> 0 | AR45: ='Auto Idling Env. Benefits'!Y47 -> 0 | AS45: ='Auto Idling Env. Benefits'!Z47 -> 0 | AT45: =_xlfn.XLOOKUP(A45,'Repurposed ROW'!F:F,'Repurposed ROW'!K:K,,0) -> 0 | AU45: =_xlfn.XLOOKUP(A45,'Repurposed ROW'!F:F,'Repurposed ROW'!L:L,,0) -> 0 | AV45: 0 | AW45: 0 | AY45: ='Prop. Tax Inc Sidewalk'!M47 -> 0 | AZ45: ='Prop. Tax Inc Sidewalk'!N47 -> 0 | BA45: ='Prop. Tax Inc Bike Lane'!M47 -> 0 | BB45: ='Prop. Tax Inc Bike Lane'!N47 -> 0 | BC45: ='Prop. Tax Inc Sidewalk & Bike'!M47 -> 0 | BD45: ='Prop. Tax Inc Sidewalk & Bike'!N47 -> 0 | BE45: ='Prop. Tax Inc Shared Use Path'!O47 -> 0 | BF45: ='Prop. Tax Inc Shared Use Path'!P47 -> 0
A46: Total | B46: =SUM(B5:B45) -> 93699637.33 | C46: 39856144.25 | D46: 0 | E46: 0 | F46: 60050751.98 | G46: 32021074.37 | H46: 0 | I46: 0 | J46: 0 | K46: 0 | L46: 207794782 | M46: 123628910.4 | N46: =SUM(N5:N45) -> 428090 | O46: 284584.6668 | P46: 294084 | Q46: 169783.1797 | R46: 549504.5157 | S46: 311888.4022 | T46: 3002503.904 | U46: 1704164.604 | V46: 0 | W46: 0 | X46: 0 | Y46: 0 | Z46: 0 | AA46: 0 | AB46: 149798872.9 | AC46: 81618270 | AD46: 0 | AE46: 0 | AF46: 2146812.244 | AG46: 1218490.151 | AH46: 4592808.893 | AI46: 2606791.731 | AJ46: =SUM(AJ5:AJ45) -> 0 | AK46: =SUM(AK5:AK45) -> 0 | AL46: =SUM(AL5:AL45) -> 282727.4881 | AM46: =SUM(AM5:AM45) -> 162315.6372 | AN46: =SUM(AN5:AN45) -> 508961.8034 | AO46: =SUM(AO5:AO45) -> 288877.1231 | AP46: 13879673.85 | AQ46: 7612808.959 | AR46: 12058458.78 | AS46: 8063800.255 | AT46: 0 | AU46: 0 | AV46: 549087669.6 | AW46: =SUM(AW5:AW45) -> 299547903.8 | AY46: =SUM(AY5:AY45) -> 0 | AZ46: =SUM(AZ5:AZ45) -> 0 | BA46: =SUM(BA5:BA45) -> 0 | BB46: 0 | BC46: 0 | BD46: 0 | BE46: 0 | BF46: 0
A47: Rounded Total | B47: =ROUND(B46,-3) -> 93700000 | C47: 39856000 | D47: 0 | E47: 0 | F47: 60051000 | G47: 32021000 | H47: =ROUND(H46,-3) -> 0 | I47: 0 | J47: 0 | K47: 0 | L47: 207795000 | M47: 123629000 | N47: 428000 | O47: 285000 | P47: 294000 | Q47: 170000 | R47: =ROUND(R46,-3) -> 550000 | S47: 312000 | T47: 3003000 | U47: 1704000 | V47: =ROUND(V46,-3) -> 0 | W47: =ROUND(W46,-3) -> 0 | X47: 0 | Y47: 0 | Z47: =ROUND(Z46,-3) -> 0 | AA47: 0 | AB47: 149799000 | AC47: 81618000 | AD47: 0 | AE47: 0 | AF47: 2147000 | AG47: 1218000 | AH47: 4593000 | AI47: 2607000 | AJ47: =ROUND(AJ46,-3) -> 0 | AK47: 0 | AL47: 283000 | AM47: 162000 | AN47: 509000 | AO47: 289000 | AP47: 13880000 | AQ47: 7613000 | AR47: =ROUND(AR46,-3) -> 12058000 | AS47: =ROUND(AS46,-3) -> 8064000 | AT47: =ROUND(AT46,-3) -> 0 | AU47: =ROUND(AU46,-3) -> 0 | AV47: =ROUND(AV46,-3) -> 549088000 | AW47: =ROUND(AW46,-3) -> 299548000 | AY47: =ROUND(AY46,-3) -> 0 | AZ47: =ROUND(AZ46,-3) -> 0 | BA47: 0 | BB47: 0 | BC47: 0 | BD47: 0 | BE47: 0 | BF47: 0
R49: =R47+T47 -> 3553000 | S49: =S47+U47 -> 2016000 | AF49: =AF47+AH47 -> 6740000 | AG49: =AG47+AI47 -> 3825000 | AL49: =AL47+AR47 -> 12341000 | AM49: =AM47+AS47 -> 8226000
D50: Rounded
A51: Benefit | B51: No Discount | C51: ="Discounted @ "&TEXT('Major Assumption Key'!$B$8,"0.0%") -> Discounted @ 3.1% | D51: No Discount | E51: ="Discounted @ "&TEXT('Major Assumption Key'!$B$8,"0.0%") -> Discounted @ 3.1%
A52: Useful Life | B52: =B46 -> 93699637.33 | C52: =C46 -> 39856144.25 | D52: =ROUND(B52,-3) -> 93700000 | E52: =ROUND(C52,-3) -> 39856000
A53: Maintenance | B53: =D46 -> 0 | C53: =E46 -> 0 | D53: =ROUND(B53,-3) -> 0 | E53: =ROUND(C53,-3) -> 0
A54: State of Good Repair - Asphalt to Concrete | B54: =F46 -> 60050751.98 | C54: =G46 -> 32021074.37 | D54: 60051000 | E54: 32021000
A55: State of Good Repair - Asphalt | B55: =H46 -> 0 | C55: =I46 -> 0 | D55: 0 | E55: 0
A56: State of Good Repair - Concrete | B56: =J46 -> 0 | C56: =K46 -> 0 | D56: =ROUND(B56,-3) -> 0 | E56: =ROUND(C56,-3) -> 0
A57: Roadway Safety | B57: =L46 -> 207794782 | C57: =M46 -> 123628910.4 | D57: 207795000 | E57: 123629000
A58: Pedestrian Safety | B58: =N46 -> 428090 | C58: =O46 -> 284584.6668 | D58: 428000 | E58: 285000
A59: Bike Safety | B59: =P46 -> 294084 | C59: =Q46 -> 169783.1797 | D59: 294000 | E59: 170000
A60: Facility Improvement - Pedestrian | B60: =R46 -> 549504.5157 | C60: =S46 -> 311888.4022 | D60: 550000 | E60: 312000
A61: Facility Improvement - Bike | B61: =T46 -> 3002503.904 | C61: =U46 -> 1704164.604 | D61: 3003000 | E61: 1704000
A62: Facility Improvement - Transit Mode | B62: =X46 -> 0 | C62: =Y46 -> 0 | D62: 0 | E62: 0
A63: Facility Improvement - Transit Stop | B63: =V46 -> 0 | C63: =W46 -> 0 | D63: 0 | E63: 0
A64: Amenity Improvement - Transit Vehicle | B64: =Z46 -> 0 | C64: =AA46 -> 0 | D64: 0 | E64: 0
A65: Value of Time | B65: =AB46 -> 149798872.9 | C65: =AC46 -> 81618270 | D65: 149799000 | E65: 81618000
A66: Operation Cost Saving | B66: =AD46 -> 0 | C66: =AE46 -> 0 | D66: 0 | E66: 0
A67: Mortality - Pedestrian | B67: =AF46 -> 2146812.244 | C67: =AG46 -> 1218490.151 | D67: 2147000 | E67: 1218000
A68: Mortality - Bike | B68: =AH46 -> 4592808.893 | C68: =AI46 -> 2606791.731 | D68: 4593000 | E68: 2607000
A69: Emission Reduction (VMT) | B69: =AJ46 -> 0 | C69: =AK46 -> 0 | D69: =ROUND(B69,-3) -> 0 | E69: =ROUND(C69,-3) -> 0
A70: Emission Reduction (Metric Ton) | B70: =AL46 -> 282727.4881 | C70: =AM46 -> 162315.6372 | D70: 283000 | E70: 162000
A71: Other Highway Use Externalities | B71: =AN46 -> 508961.8034 | C71: =AO46 -> 288877.1231 | D71: 509000 | E71: 289000
A72: Auto - Fuel Savings | B72: =AP46 -> 13879673.85 | C72: =AQ46 -> 7612808.959 | D72: 13880000 | E72: 7613000
A73: Auto - Environmental Benefit | B73: =AR46 -> 12058458.78 | C73: =AS46 -> 8063800.255 | D73: 12058000 | E73: 8064000
A74: Repurposed Right-of-Way | B74: =AT46 -> 0 | C74: =AU46 -> 0 | D74: 0 | E74: 0
A75: Total | B75: =SUM(B52:B74) -> 549087669.6 | C75: =SUM(C52:C74) -> 299547903.8 | D75: =ROUND(B75,-3) -> 549088000 | E75: =ROUND(C75,-3) -> 299548000

Sheet Break Note 1
A1: Note: the following worksheet calculates useful life and state of good repair

Sheet Useful Life
A1: Worksheet Title: | B1: Useful Life Benefit
A3: No Build Scenario | B3: The authority would continue repairing the asset throughout the planning horizon. | F3: Benefit Calculations | Q3: Rounded
F4: Scenario → | G4: Both | H4: No Build | I4: No Build | J4: No Build | K4: Build | L4: Build | M4: Build | N4: Build - No Build Net Benefit | Q4: No Build | R4: Build | S4: Build - No Build Net Benefit
A5: Build Scenario | B5: The asset will be built with a useful life of 50 years, therefore there will be remaining useful life at the end of the planning horizon. | F5: Step → | G5: Data | H5: Assumption | I5: Step 1 Calculation | J5: Benefit | K5: Assumption | L5: Step 1 Calculation | M5: Benefit | Q5: Benefit | R5: Benefit
G6: Cost of Asset (Real $) | H6: Life of Asset Remaining | I6: Asset Cost X Life of Asset Remaining Remaining Useful Life | J6: Useful Life | K6: Life of Asset Remaining | L6: Asset Cost X Life of Asset Remaining Remaining Useful Life | M6: Useful Life | N6: No Discount | O6: ="Discounted @ "&TEXT('Major Assumption Key'!$B$8,"0.0%") -> Discounted @ 3.1% | Q6: Useful Life | R6: Useful Life | S6: No Discount | T6: ="Discounted @ "&TEXT('Major Assumption Key'!$B$8,"0.0%") -> Discounted @ 3.1%
F7: ='Major Assumption Key'!A19 -> 2020 | G7: =_xlfn.XLOOKUP(F7,'Cost Summary'!H:H,'Cost Summary'!P:P,,0) -> 0 | H7: 0 | I7: =G7*H7 -> 0 | J7: =IF(AND(F7>=$B$17,F7<=$B$18),I7,0) -> 0 | K7: =IF(F7='Major Assumption Key'!$B$6,$B$21,0%) -> 0 | L7: =IF(F7=$B$18,K7*SUM($G$7:$G$47),0) -> 0 | M7: =L7 -> 0 | N7: =M7-J7 -> 0 | O7: =N7/(1+'Major Assumption Key'!$B$8)^($F7-'Major Assumption Key'!$B$7) -> 0 | Q7: =ROUND(J7,-3) -> 0 | R7: =ROUND(M7,-3) -> 0 | S7: =ROUND(N7,-3) -> 0 | T7: =ROUND(O7,-3) -> 0
F8: ='Major Assumption Key'!A20 -> 2021 | G8: =_xlfn.XLOOKUP(F8,'Cost Summary'!H:H,'Cost Summary'!P:P,,0) -> 0 | H8: 0 | I8: =G8*H8 -> 0 | J8: =IF(AND(F8>=$B$17,F8<=$B$18),I8,0) -> 0 | K8: =IF(F8='Major Assumption Key'!$B$6,$B$21,0%) -> 0 | L8: =IF(F8=$B$18,K8*SUM($G$7:$G$47),0) -> 0 | M8: =L8 -> 0 | N8: =M8-J8 -> 0 | O8: =N8/(1+'Major Assumption Key'!$B$8)^($F8-'Major Assumption Key'!$B$7) -> 0 | Q8: =ROUND(J8,-3) -> 0 | R8: =ROUND(M8,-3) -> 0 | S8: =ROUND(N8,-3) -> 0 | T8: =ROUND(O8,-3) -> 0
A9: Sensitivity Analysis | F9: ='Major Assumption Key'!A21 -> 2022 | G9: =_xlfn.XLOOKUP(F9,'Cost Summary'!H:H,'Cost Summary'!P:P,,0) -> 0 | H9: 0 | I9: 0 | J9: 0 | K9: =IF(F9='Major Assumption Key'!$B$6,$B$21,0%) -> 0 | L9: 0 | M9: 0 | N9: 0 | O9: =N9/(1+'Major Assumption Key'!$B$8)^($F9-'Major Assumption Key'!$B$7) -> 0 | Q9: 0 | R9: 0 | S9: 0 | T9: 0
A10: Measure | C10: No Discount | D10: =_xlfn.CONCAT("Discounted @",TEXT('Major Assumption Key'!B8,"0.0%")) -> Discounted @3.1% | F10: ='Major Assumption Key'!A22 -> 2023 | G10: =_xlfn.XLOOKUP(F10,'Cost Summary'!H:H,'Cost Summary'!P:P,,0) -> 0 | H10: 0 | I10: 0 | J10: 0 | K10: =IF(F10='Major Assumption Key'!$B$6,$B$21,0%) -> 0 | L10: 0 | M10: 0 | N10: 0 | O10: =N10/(1+'Major Assumption Key'!$B$8)^($F10-'Major Assumption Key'!$B$7) -> 0 | Q10: 0 | R10: 0 | S10: 0 | T10: 0
A11: BCA | C11: ='BCA Summary'!$H$7 -> 3.056395289 | D11: ='BCA Summary'!$I$7 -> 2.006712939 | F11: ='Major Assumption Key'!A23 -> 2024 | G11: =_xlfn.XLOOKUP(F11,'Cost Summary'!H:H,'Cost Summary'!P:P,,0) -> 0 | H11: 0 | I11: 0 | J11: 0 | K11: =IF(F11='Major Assumption Key'!$B$6,$B$21,0%) -> 0 | L11: 0 | M11: 0 | N11: 0 | O11: =N11/(1+'Major Assumption Key'!$B$8)^($F11-'Major Assumption Key'!$B$7) -> 0 | Q11: 0 | R11: 0 | S11: 0 | T11: 0
A12: NPV | C12: ='BCA Summary'!$H$8 -> 369435622.8 | D12: ='BCA Summary'!$I$8 -> 150274981.9 | F12: ='Major Assumption Key'!A24 -> 2025 | G12: =_xlfn.XLOOKUP(F12,'Cost Summary'!H:H,'Cost Summary'!P:P,,0) -> 0 | H12: 0 | I12: 0 | J12: 0 | K12: =IF(F12='Major Assumption Key'!$B$6,$B$21,0%) -> 0 | L12: 0 | M12: 0 | N12: 0 | O12: =N12/(1+'Major Assumption Key'!$B$8)^($F12-'Major Assumption Key'!$B$7) -> 0 | Q12: 0 | R12: 0 | S12: 0 | T12: 0
F13: ='Major Assumption Key'!A25 -> 2026 | G13: =_xlfn.XLOOKUP(F13,'Cost Summary'!H:H,'Cost Summary'!P:P,,0) -> 0 | H13: 0 | I13: 0 | J13: 0 | K13: =IF(F13='Major Assumption Key'!$B$6,$B$21,0%) -> 0 | L13: 0 | M13: 0 | N13: 0 | O13: =N13/(1+'Major Assumption Key'!$B$8)^($F13-'Major Assumption Key'!$B$7) -> 0 | Q13: 0 | R13: 0 | S13: 0 | T13: 0
F14: ='Major Assumption Key'!A26 -> 2027 | G14: =_xlfn.XLOOKUP(F14,'Cost Summary'!H:H,'Cost Summary'!P:P,,0) -> 39041515.55 | H14: 0 | I14: 0 | J14: 0 | K14: =IF(F14='Major Assumption Key'!$B$6,$B$21,0%) -> 0 | L14: 0 | M14: 0 | N14: 0 | O14: =N14/(1+'Major Assumption Key'!$B$8)^($F14-'Major Assumption Key'!$B$7) -> 0 | Q14: 0 | R14: 0 | S14: 0 | T14: 0
A15: Assumptions | B15: Data Point | C15: Source | F15: ='Major Assumption Key'!A27 -> 2028 | G15: =_xlfn.XLOOKUP(F15,'Cost Summary'!H:H,'Cost Summary'!P:P,,0) -> 39041515.55 | H15: 0 | I15: 0 | J15: 0 | K15: =IF(F15='Major Assumption Key'!$B$6,$B$21,0%) -> 0 | L15: 0 | M15: 0 | N15: 0 | O15: =N15/(1+'Major Assumption Key'!$B$8)^($F15-'Major Assumption Key'!$B$7) -> 0 | Q15: 0 | R15: 0 | S15: 0 | T15: 0
A16: ='Major Assumption Key'!$A$3 -> Project Open Year: | B16: ='Major Assumption Key'!B3 -> 2031 | C16: Major Assumption Key | F16: ='Major Assumption Key'!A28 -> 2029 | G16: =_xlfn.XLOOKUP(F16,'Cost Summary'!H:H,'Cost Summary'!P:P,,0) -> 39041515.55 | H16: 0 | I16: 0 | J16: 0 | K16: =IF(F16='Major Assumption Key'!$B$6,$B$21,0%) -> 0 | L16: 0 | M16: 0 | N16: 0 | O16: =N16/(1+'Major Assumption Key'!$B$8)^($F16-'Major Assumption Key'!$B$7) -> 0 | Q16: 0 | R16: 0 | S16: 0 | T16: 0
A17: ='Major Assumption Key'!$A$4 -> Planning Horizon Begin Year: | B17: ='Major Assumption Key'!$B$4 -> 2024 | C17: Major Assumption Key | F17: ='Major Assumption Key'!A29 -> 2030 | G17: =_xlfn.XLOOKUP(F17,'Cost Summary'!H:H,'Cost Summary'!P:P,,0) -> 39041515.55 | H17: 0 | I17: 0 | J17: 0 | K17: =IF(F17='Major Assumption Key'!$B$6,$B$21,0%) -> 0 | L17: 0 | M17: 0 | N17: 0 | O17: =N17/(1+'Major Assumption Key'!$B$8)^($F17-'Major Assumption Key'!$B$7) -> 0 | Q17: 0 | R17: 0 | S17: 0 | T17: 0
A18: ='Major Assumption Key'!$A$6 -> Planning Horizon End Year: | B18: ='Major Assumption Key'!$B$6 -> 2050 | C18: Major Assumption Key | F18: ='Major Assumption Key'!A30 -> 2031 | G18: =_xlfn.XLOOKUP(F18,'Cost Summary'!H:H,'Cost Summary'!P:P,,0) -> 0 | H18: 0 | I18: 0 | J18: 0 | K18: =IF(F18='Major Assumption Key'!$B$6,$B$21,0%) -> 0 | L18: 0 | M18: 0 | N18: 0 | O18: =N18/(1+'Major Assumption Key'!$B$8)^($F18-'Major Assumption Key'!$B$7) -> 0 | Q18: 0 | R18: 0 | S18: 0 | T18: 0
A19: Useful Life of Asset - Years | B19: 50 | C19: City of Houston Public Works Infrastructure Design Manual (IDM). 2021. Retrieved in March 2022 from https://www.houstonpermittingcenter.org/media/6371/download | F19: ='Major Assumption Key'!A31 -> 2032 | G19: =_xlfn.XLOOKUP(F19,'Cost Summary'!H:H,'Cost Summary'!P:P,,0) -> 0 | H19: 0 | I19: 0 | J19: 0 | K19: =IF(F19='Major Assumption Key'!$B$6,$B$21,0%) -> 0 | L19: 0 | M19: 0 | N19: 0 | O19: =N19/(1+'Major Assumption Key'!$B$8)^($F19-'Major Assumption Key'!$B$7) -> 0 | Q19: 0 | R19: 0 | S19: 0 | T19: 0
A20: Useful Life Remaining at the End of Planning Horizon | B20: =B19-(B18-B16)-1 -> 30 | F20: ='Major Assumption Key'!A32 -> 2033 | G20: =_xlfn.XLOOKUP(F20,'Cost Summary'!H:H,'Cost Summary'!P:P,,0) -> 0 | H20: 0 | I20: 0 | J20: 0 | K20: =IF(F20='Major Assumption Key'!$B$6,$B$21,0%) -> 0 | L20: 0 | M20: 0 | N20: 0 | O20: =N20/(1+'Major Assumption Key'!$B$8)^($F20-'Major Assumption Key'!$B$7) -> 0 | Q20: 0 | R20: 0 | S20: 0 | T20: 0
A21: Share of Life Remaining | B21: =B20/B19 -> 0.6 | C21: Calculation | F21: ='Major Assumption Key'!A33 -> 2034 | G21: =_xlfn.XLOOKUP(F21,'Cost Summary'!H:H,'Cost Summary'!P:P,,0) -> 0 | H21: 0 | I21: 0 | J21: 0 | K21: =IF(F21='Major Assumption Key'!$B$6,$B$21,0%) -> 0 | L21: 0 | M21: 0 | N21: 0 | O21: =N21/(1+'Major Assumption Key'!$B$8)^($F21-'Major Assumption Key'!$B$7) -> 0 | Q21: 0 | R21: 0 | S21: 0 | T21: 0
F22: ='Major Assumption Key'!A34 -> 2035 | G22: =_xlfn.XLOOKUP(F22,'Cost Summary'!H:H,'Cost Summary'!P:P,,0) -> 0 | H22: 0 | I22: 0 | J22: 0 | K22: =IF(F22='Major Assumption Key'!$B$6,$B$21,0%) -> 0 | L22: 0 | M22: 0 | N22: 0 | O22: =N22/(1+'Major Assumption Key'!$B$8)^($F22-'Major Assumption Key'!$B$7) -> 0 | Q22: 0 | R22: 0 | S22: 0 | T22: 0
F23: ='Major Assumption Key'!A35 -> 2036 | G23: =_xlfn.XLOOKUP(F23,'Cost Summary'!H:H,'Cost Summary'!P:P,,0) -> 0 | H23: 0 | I23: 0 | J23: 0 | K23: =IF(F23='Major Assumption Key'!$B$6,$B$21,0%) -> 0 | L23: 0 | M23: 0 | N23: 0 | O23: =N23/(1+'Major Assumption Key'!$B$8)^($F23-'Major Assumption Key'!$B$7) -> 0 | Q23: 0 | R23: 0 | S23: 0 | T23: 0
F24: ='Major Assumption Key'!A36 -> 2037 | G24: =_xlfn.XLOOKUP(F24,'Cost Summary'!H:H,'Cost Summary'!P:P,,0) -> 0 | H24: 0 | I24: 0 | J24: 0 | K24: =IF(F24='Major Assumption Key'!$B$6,$B$21,0%) -> 0 | L24: 0 | M24: 0 | N24: 0 | O24: =N24/(1+'Major Assumption Key'!$B$8)^($F24-'Major Assumption Key'!$B$7) -> 0 | Q24: 0 | R24: 0 | S24: 0 | T24: 0
F25: ='Major Assumption Key'!A37 -> 2038 | G25: =_xlfn.XLOOKUP(F25,'Cost Summary'!H:H,'Cost Summary'!P:P,,0) -> 0 | H25: 0 | I25: 0 | J25: 0 | K25: =IF(F25='Major Assumption Key'!$B$6,$B$21,0%) -> 0 | L25: 0 | M25: 0 | N25: 0 | O25: =N25/(1+'Major Assumption Key'!$B$8)^($F25-'Major Assumption Key'!$B$7) -> 0 | Q25: 0 | R25: 0 | S25: 0 | T25: 0
F26: ='Major Assumption Key'!A38 -> 2039 | G26: =_xlfn.XLOOKUP(F26,'Cost Summary'!H:H,'Cost Summary'!P:P,,0) -> 0 | H26: 0 | I26: 0 | J26: 0 | K26: =IF(F26='Major Assumption Key'!$B$6,$B$21,0%) -> 0 | L26: 0 | M26: 0 | N26: 0 | O26: =N26/(1+'Major Assumption Key'!$B$8)^($F26-'Major Assumption Key'!$B$7) -> 0 | Q26: 0 | R26: 0 | S26: 0 | T26: 0
F27: ='Major Assumption Key'!A39 -> 2040 | G27: =_xlfn.XLOOKUP(F27,'Cost Summary'!H:H,'Cost Summary'!P:P,,0) -> 0 | H27: 0 | I27: 0 | J27: 0 | K27: =IF(F27='Major Assumption Key'!$B$6,$B$21,0%) -> 0 | L27: 0 | M27: 0 | N27: 0 | O27: =N27/(1+'Major Assumption Key'!$B$8)^($F27-'Major Assumption Key'!$B$7) -> 0 | Q27: 0 | R27: 0 | S27: 0 | T27: 0
F28: ='Major Assumption Key'!A40 -> 2041 | G28: =_xlfn.XLOOKUP(F28,'Cost Summary'!H:H,'Cost Summary'!P:P,,0) -> 0 | H28: 0 | I28: 0 | J28: 0 | K28: =IF(F28='Major Assumption Key'!$B$6,$B$21,0%) -> 0 | L28: 0 | M28: 0 | N28: 0 | O28: =N28/(1+'Major Assumption Key'!$B$8)^($F28-'Major Assumption Key'!$B$7) -> 0 | Q28: 0 | R28: 0 | S28: 0 | T28: 0
F29: ='Major Assumption Key'!A41 -> 2042 | G29: =_xlfn.XLOOKUP(F29,'Cost Summary'!H:H,'Cost Summary'!P:P,,0) -> 0 | H29: 0 | I29: 0 | J29: 0 | K29: =IF(F29='Major Assumption Key'!$B$6,$B$21,0%) -> 0 | L29: 0 | M29: 0 | N29: 0 | O29: =N29/(1+'Major Assumption Key'!$B$8)^($F29-'Major Assumption Key'!$B$7) -> 0 | Q29: 0 | R29: 0 | S29: 0 | T29: 0
F30: ='Major Assumption Key'!A42 -> 2043 | G30: =_xlfn.XLOOKUP(F30,'Cost Summary'!H:H,'Cost Summary'!P:P,,0) -> 0 | H30: 0 | I30: 0 | J30: 0 | K30: =IF(F30='Major Assumption Key'!$B$6,$B$21,0%) -> 0 | L30: 0 | M30: 0 | N30: 0 | O30: =N30/(1+'Major Assumption Key'!$B$8)^($F30-'Major Assumption Key'!$B$7) -> 0 | Q30: 0 | R30: 0 | S30: 0 | T30: 0
F31: ='Major Assumption Key'!A43 -> 2044 | G31: =_xlfn.XLOOKUP(F31,'Cost Summary'!H:H,'Cost Summary'!P:P,,0) -> 0 | H31: 0 | I31: 0 | J31: 0 | K31: =IF(F31='Major Assumption Key'!$B$6,$B$21,0%) -> 0 | L31: 0 | M31: 0 | N31: 0 | O31: =N31/(1+'Major Assumption Key'!$B$8)^($F31-'Major Assumption Key'!$B$7) -> 0 | Q31: 0 | R31: 0 | S31: 0 | T31: 0
F32: ='Major Assumption Key'!A44 -> 2045 | G32: =_xlfn.XLOOKUP(F32,'Cost Summary'!H:H,'Cost Summary'!P:P,,0) -> 0 | H32: 0 | I32: 0 | J32: 0 | K32: =IF(F32='Major Assumption Key'!$B$6,$B$21,0%) -> 0 | L32: 0 | M32: 0 | N32: 0 | O32: =N32/(1+'Major Assumption Key'!$B$8)^($F32-'Major Assumption Key'!$B$7) -> 0 | Q32: 0 | R32: 0 | S32: 0 | T32: 0
F33: ='Major Assumption Key'!A45 -> 2046 | G33: =_xlfn.XLOOKUP(F33,'Cost Summary'!H:H,'Cost Summary'!P:P,,0) -> 0 | H33: 0 | I33: 0 | J33: 0 | K33: =IF(F33='Major Assumption Key'!$B$6,$B$21,0%) -> 0 | L33: 0 | M33: 0 | N33: 0 | O33: =N33/(1+'Major Assumption Key'!$B$8)^($F33-'Major Assumption Key'!$B$7) -> 0 | Q33: 0 | R33: 0 | S33: 0 | T33: 0
F34: ='Major Assumption Key'!A46 -> 2047 | G34: =_xlfn.XLOOKUP(F34,'Cost Summary'!H:H,'Cost Summary'!P:P,,0) -> 0 | H34: 0 | I34: 0 | J34: 0 | K34: =IF(F34='Major Assumption Key'!$B$6,$B$21,0%) -> 0 | L34: 0 | M34: 0 | N34: 0 | O34: =N34/(1+'Major Assumption Key'!$B$8)^($F34-'Major Assumption Key'!$B$7) -> 0 | Q34: 0 | R34: 0 | S34: 0 | T34: 0
F35: ='Major Assumption Key'!A47 -> 2048 | G35: =_xlfn.XLOOKUP(F35,'Cost Summary'!H:H,'Cost Summary'!P:P,,0) -> 0 | H35: 0 | I35: 0 | J35: 0 | K35: =IF(F35='Major Assumption Key'!$B$6,$B$21,0%) -> 0 | L35: 0 | M35: 0 | N35: 0 | O35: =N35/(1+'Major Assumption Key'!$B$8)^($F35-'Major Assumption Key'!$B$7) -> 0 | Q35: 0 | R35: 0 | S35: 0 | T35: 0
F36: ='Major Assumption Key'!A48 -> 2049 | G36: =_xlfn.XLOOKUP(F36,'Cost Summary'!H:H,'Cost Summary'!P:P,,0) -> 0 | H36: 0 | I36: 0 | J36: 0 | K36: =IF(F36='Major Assumption Key'!$B$6,$B$21,0%) -> 0 | L36: 0 | M36: 0 | N36: 0 | O36: =N36/(1+'Major Assumption Key'!$B$8)^($F36-'Major Assumption Key'!$B$7) -> 0 | Q36: 0 | R36: 0 | S36: 0 | T36: 0
F37: ='Major Assumption Key'!A49 -> 2050 | G37: =_xlfn.XLOOKUP(F37,'Cost Summary'!H:H,'Cost Summary'!P:P,,0) -> 0 | H37: 0 | I37: 0 | J37: 0 | K37: =IF(F37='Major Assumption Key'!$B$6,$B$21,0%) -> 0.6 | L37: 93699637.33 | M37: 93699637.33 | N37: 93699637.33 | O37: =N37/(1+'Major Assumption Key'!$B$8)^($F37-'Major Assumption Key'!$B$7) -> 39856144.25 | Q37: 0 | R37: 93700000 | S37: 93700000 | T37: 39856000
F38: ='Major Assumption Key'!A50 -> 2051 | G38: =_xlfn.XLOOKUP(F38,'Cost Summary'!H:H,'Cost Summary'!P:P,,0) -> 0 | H38: 0 | I38: 0 | J38: 0 | K38: =IF(F38='Major Assumption Key'!$B$6,$B$21,0%) -> 0 | L38: 0 | M38: 0 | N38: 0 | O38: =N38/(1+'Major Assumption Key'!$B$8)^($F38-'Major Assumption Key'!$B$7) -> 0 | Q38: 0 | R38: 0 | S38: 0 | T38: 0
F39: ='Major Assumption Key'!A51 -> 2052 | G39: =_xlfn.XLOOKUP(F39,'Cost Summary'!H:H,'Cost Summary'!P:P,,0) -> 0 | H39: 0 | I39: 0 | J39: 0 | K39: =IF(F39='Major Assumption Key'!$B$6,$B$21,0%) -> 0 | L39: 0 | M39: 0 | N39: 0 | O39: =N39/(1+'Major Assumption Key'!$B$8)^($F39-'Major Assumption Key'!$B$7) -> 0 | Q39: 0 | R39: 0 | S39: 0 | T39: 0
F40: ='Major Assumption Key'!A52 -> 2053 | G40: =_xlfn.XLOOKUP(F40,'Cost Summary'!H:H,'Cost Summary'!P:P,,0) -> 0 | H40: 0 | I40: 0 | J40: 0 | K40: =IF(F40='Major Assumption Key'!$B$6,$B$21,0%) -> 0 | L40: 0 | M40: 0 | N40: 0 | O40: =N40/(1+'Major Assumption Key'!$B$8)^($F40-'Major Assumption Key'!$B$7) -> 0 | Q40: 0 | R40: 0 | S40: 0 | T40: 0
F41: ='Major Assumption Key'!A53 -> 2054 | G41: =_xlfn.XLOOKUP(F41,'Cost Summary'!H:H,'Cost Summary'!P:P,,0) -> 0 | H41: 0 | I41: 0 | J41: 0 | K41: =IF(F41='Major Assumption Key'!$B$6,$B$21,0%) -> 0 | L41: 0 | M41: 0 | N41: 0 | O41: =N41/(1+'Major Assumption Key'!$B$8)^($F41-'Major Assumption Key'!$B$7) -> 0 | Q41: 0 | R41: 0 | S41: 0 | T41: 0
F42: ='Major Assumption Key'!A54 -> 2055 | G42: =_xlfn.XLOOKUP(F42,'Cost Summary'!H:H,'Cost Summary'!P:P,,0) -> 0 | H42: 0 | I42: 0 | J42: 0 | K42: =IF(F42='Major Assumption Key'!$B$6,$B$21,0%) -> 0 | L42: 0 | M42: 0 | N42: 0 | O42: =N42/(1+'Major Assumption Key'!$B$8)^($F42-'Major Assumption Key'!$B$7) -> 0 | Q42: 0 | R42: 0 | S42: 0 | T42: 0
F43: ='Major Assumption Key'!A55 -> 2056 | G43: =_xlfn.XLOOKUP(F43,'Cost Summary'!H:H,'Cost Summary'!P:P,,0) -> 0 | H43: 0 | I43: 0 | J43: 0 | K43: =IF(F43='Major Assumption Key'!$B$6,$B$21,0%) -> 0 | L43: 0 | M43: 0 | N43: 0 | O43: =N43/(1+'Major Assumption Key'!$B$8)^($F43-'Major Assumption Key'!$B$7) -> 0 | Q43: 0 | R43: 0 | S43: 0 | T43: 0
F44: ='Major Assumption Key'!A56 -> 2057 | G44: =_xlfn.XLOOKUP(F44,'Cost Summary'!H:H,'Cost Summary'!P:P,,0) -> 0 | H44: 0 | I44: 0 | J44: 0 | K44: =IF(F44='Major Assumption Key'!$B$6,$B$21,0%) -> 0 | L44: 0 | M44: 0 | N44: 0 | O44: =N44/(1+'Major Assumption Key'!$B$8)^($F44-'Major Assumption Key'!$B$7) -> 0 | Q44: 0 | R44: 0 | S44: 0 | T44: 0
F45: ='Major Assumption Key'!A57 -> 2058 | G45: =_xlfn.XLOOKUP(F45,'Cost Summary'!H:H,'Cost Summary'!P:P,,0) -> 0 | H45: 0 | I45: 0 | J45: 0 | K45: =IF(F45='Major Assumption Key'!$B$6,$B$21,0%) -> 0 | L45: 0 | M45: 0 | N45: 0 | O45: =N45/(1+'Major Assumption Key'!$B$8)^($F45-'Major Assumption Key'!$B$7) -> 0 | Q45: 0 | R45: 0 | S45: 0 | T45: 0
F46: ='Major Assumption Key'!A58 -> 2059 | G46: =_xlfn.XLOOKUP(F46,'Cost Summary'!H:H,'Cost Summary'!P:P,,0) -> 0 | H46: 0 | I46: 0 | J46: 0 | K46: =IF(F46='Major Assumption Key'!$B$6,$B$21,0%) -> 0 | L46: 0 | M46: 0 | N46: 0 | O46: =N46/(1+'Major Assumption Key'!$B$8)^($F46-'Major Assumption Key'!$B$7) -> 0 | Q46: 0 | R46: 0 | S46: 0 | T46: 0
F47: ='Major Assumption Key'!A59 -> 2060 | G47: =_xlfn.XLOOKUP(F47,'Cost Summary'!H:H,'Cost Summary'!P:P,,0) -> 0 | H47: 0 | I47: 0 | J47: 0 | K47: =IF(F47='Major Assumption Key'!$B$6,$B$21,0%) -> 0 | L47: =IF(F47=$B$18,K47*SUM($G$7:$G$47),0) -> 0 | M47: 0 | N47: 0 | O47: =N47/(1+'Major Assumption Key'!$B$8)^($F47-'Major Assumption Key'!$B$7) -> 0 | Q47: 0 | R47: 0 | S47: 0 | T47: 0
F48: Planning Horizon Totals | G48: =ROUND(SUM(G7:G47),-3) -> 156166000 | J48: =SUMIFS($J$7:$J$47,$F$7:$F$47,">="&$B$17,$F$7:$F$47,"<="&$B$18) -> 0 | L48: =ROUND(SUM(L8:L47),-3) -> 93700000 | M48: =SUMIFS($M$7:$M$47,$F$7:$F$47,">="&$B$17,$F$7:$F$47,"<="&$B$18) -> 93699637.33 | N48: =SUMIFS($N$7:$N$47,$F$7:$F$47,">="&$B$17,$F$7:$F$47,"<="&$B$18) -> 93699637.33 | O48: =SUMIFS($O$7:$O$47,$F$7:$F$47,">="&$B$17,$F$7:$F$47,"<="&$B$18) -> 39856144.25 | Q48: 0 | R48: 93700000 | S48: =ROUND(N48,-3) -> 93700000 | T48: =ROUND(O48,-3) -> 39856000

Sheet Non-Roadway Maintenance (hidden)
A1: Worksheet Description: | B1: Summary of Maintenance as a Disbenefit
A3: No Build Scenario | B3: Maintain existing facilities.
A5: Build Scenario | B5: Maintain new facilities. | F5: Benefit Calculations
F6: Scenario → | G6: No Build | H6: No Build | I6: Build | J6: Build | K6: Build - No Build Net Benefit
F7: Year | G7: On-Going Maintenance (YOE) | H7: Monetized | I7: On-Going Maintenance (YOE) | J7: Monetized
A8: Sensitivity Analysis | F8: ='Major Assumption Key'!A19 -> 2020 | G8: =IF(F8<$B$18,"",$B$22*(1+$B$19)^(F8-$B$18)) ->  | H8: =IF(AND(F8>=$B$16,F8<=$B$17),G8,0) -> 0 | I8: =IF(F8>=$B$15,$B$23,0)*(1+$B$19)^(F8-$B$18) -> 0 | J8: =IF(AND(I8>=$B$16,F8<=$B$17),I8,0) -> 0 | K8: =IF(AND(I8>=$B$16,F8<=$B$17),G8-I8,0) -> 0 | L8: =K8/(1+'Major Assumption Key'!$B$8)^(F8-'Major Assumption Key'!$B$7) -> 0
A9: Measure | C9: No Discount | D9: =_xlfn.CONCAT("Discounted @",TEXT('Major Assumption Key'!B8,"0.0%")) -> Discounted @3.1% | F9: ='Major Assumption Key'!A20 -> 2021 | G9: =IF(F9<$B$18,"",$B$22*(1+$B$19)^(F9-$B$18)) ->  | H9: =IF(AND(F9>=$B$16,F9<=$B$17),G9,0) -> 0 | I9: =IF(F9>=$B$15,$B$23,0)*(1+$B$19)^(F9-$B$18) -> 0 | J9: =IF(AND(I9>=$B$16,F9<=$B$17),I9,0) -> 0 | K9: =IF(AND(I9>=$B$16,F9<=$B$17),G9-I9,0) -> 0 | L9: =K9/(1+'Major Assumption Key'!$B$8)^(F9-'Major Assumption Key'!$B$7) -> 0
A10: BCA | C10: ='BCA Summary'!$H$7 -> 3.056395289 | D10: ='BCA Summary'!$I$7 -> 2.006712939 | F10: ='Major Assumption Key'!A21 -> 2022 | H10: 0 | I10: 0 | J10: 0 | K10: 0 | L10: =K10/(1+'Major Assumption Key'!$B$8)^(F10-'Major Assumption Key'!$B$7) -> 0
A11: NPV | C11: ='BCA Summary'!$H$8 -> 369435622.8 | D11: ='BCA Summary'!$I$8 -> 150274981.9 | F11: ='Major Assumption Key'!A22 -> 2023 | H11: 0 | I11: 0 | J11: 0 | K11: 0 | L11: =K11/(1+'Major Assumption Key'!$B$8)^(F11-'Major Assumption Key'!$B$7) -> 0
F12: ='Major Assumption Key'!A23 -> 2024 | G12: 0 | H12: 0 | I12: 0 | J12: 0 | K12: 0 | L12: =K12/(1+'Major Assumption Key'!$B$8)^(F12-'Major Assumption Key'!$B$7) -> 0
F13: ='Major Assumption Key'!A24 -> 2025 | G13: 0 | H13: 0 | I13: 0 | J13: 0 | K13: 0 | L13: =K13/(1+'Major Assumption Key'!$B$8)^(F13-'Major Assumption Key'!$B$7) -> 0
A14: Assumptions | B14: Data Point | C14: Source | F14: ='Major Assumption Key'!A25 -> 2026 | G14: 0 | H14: 0 | I14: 0 | J14: 0 | K14: 0 | L14: =K14/(1+'Major Assumption Key'!$B$8)^(F14-'Major Assumption Key'!$B$7) -> 0
A15: ='Major Assumption Key'!$A$3 -> Project Open Year: | B15: ='Major Assumption Key'!B3 -> 2031 | C15: Major Assumption Key | F15: ='Major Assumption Key'!A26 -> 2027 | G15: 0 | H15: 0 | I15: 0 | J15: 0 | K15: 0 | L15: =K15/(1+'Major Assumption Key'!$B$8)^(F15-'Major Assumption Key'!$B$7) -> 0
A16: ='Major Assumption Key'!$A$4 -> Planning Horizon Begin Year: | B16: ='Major Assumption Key'!$B$4 -> 2024 | C16: Major Assumption Key | F16: ='Major Assumption Key'!A27 -> 2028 | G16: 0 | H16: 0 | I16: 0 | J16: 0 | K16: 0 | L16: =K16/(1+'Major Assumption Key'!$B$8)^(F16-'Major Assumption Key'!$B$7) -> 0
A17: ='Major Assumption Key'!$A$6 -> Planning Horizon End Year: | B17: ='Major Assumption Key'!$B$6 -> 2050 | C17: Major Assumption Key | F17: ='Major Assumption Key'!A28 -> 2029 | G17: 0 | H17: 0 | I17: 0 | J17: 0 | K17: 0 | L17: =K17/(1+'Major Assumption Key'!$B$8)^(F17-'Major Assumption Key'!$B$7) -> 0
A18: Year of Cost Estimates | B18: ='Cost Summary'!E26 -> 2024 | C18: Project Information | F18: ='Major Assumption Key'!A29 -> 2030 | G18: 0 | H18: 0 | I18: 0 | J18: 0 | K18: 0 | L18: =K18/(1+'Major Assumption Key'!$B$8)^(F18-'Major Assumption Key'!$B$7) -> 0
A19: ='Major Assumption Key'!$A$10 -> Inflation Rate | B19: ='Major Assumption Key'!$B$10 -> 0.02789473684 | C19: Major Assumption Key | F19: ='Major Assumption Key'!A30 -> 2031 | G19: 0 | H19: 0 | I19: 0 | J19: 0 | K19: 0 | L19: =K19/(1+'Major Assumption Key'!$B$8)^(F19-'Major Assumption Key'!$B$7) -> 0
A20: ='Major Assumption Key'!$A$7 -> Discount Year | B20: ='Major Assumption Key'!$B$7 -> 2022 | C20: Major Assumption Key | F20: ='Major Assumption Key'!A31 -> 2032 | G20: 0 | H20: 0 | I20: 0 | J20: 0 | K20: 0 | L20: =K20/(1+'Major Assumption Key'!$B$8)^(F20-'Major Assumption Key'!$B$7) -> 0
A21: ='Major Assumption Key'!$A$8 -> Discount | B21: ='Major Assumption Key'!$B$8 -> 0.031 | C21: Major Assumption Key | F21: ='Major Assumption Key'!A32 -> 2033 | G21: 0 | H21: 0 | I21: 0 | J21: 0 | K21: 0 | L21: =K21/(1+'Major Assumption Key'!$B$8)^(F21-'Major Assumption Key'!$B$7) -> 0
A22: No Build Annual Maintenance Cost | B22: 0 | C22: Project Information | F22: ='Major Assumption Key'!A33 -> 2034 | G22: 0 | H22: 0 | I22: 0 | J22: 0 | K22: 0 | L22: =K22/(1+'Major Assumption Key'!$B$8)^(F22-'Major Assumption Key'!$B$7) -> 0
A23: Build Annual Maintenance Cost | B23: 0 | C23: Project Information | F23: ='Major Assumption Key'!A34 -> 2035 | G23: 0 | H23: 0 | I23: 0 | J23: 0 | K23: 0 | L23: =K23/(1+'Major Assumption Key'!$B$8)^(F23-'Major Assumption Key'!$B$7) -> 0
F24: ='Major Assumption Key'!A35 -> 2036 | G24: 0 | H24: 0 | I24: 0 | J24: 0 | K24: 0 | L24: =K24/(1+'Major Assumption Key'!$B$8)^(F24-'Major Assumption Key'!$B$7) -> 0
F25: ='Major Assumption Key'!A36 -> 2037 | G25: 0 | H25: 0 | I25: 0 | J25: 0 | K25: 0 | L25: =K25/(1+'Major Assumption Key'!$B$8)^(F25-'Major Assumption Key'!$B$7) -> 0
F26: ='Major Assumption Key'!A37 -> 2038 | G26: 0 | H26: 0 | I26: 0 | J26: 0 | K26: 0 | L26: =K26/(1+'Major Assumption Key'!$B$8)^(F26-'Major Assumption Key'!$B$7) -> 0
F27: ='Major Assumption Key'!A38 -> 2039 | G27: 0 | H27: 0 | I27: 0 | J27: 0 | K27: 0 | L27: =K27/(1+'Major Assumption Key'!$B$8)^(F27-'Major Assumption Key'!$B$7) -> 0
F28: ='Major Assumption Key'!A39 -> 2040 | G28: 0 | H28: 0 | I28: 0 | J28: 0 | K28: 0 | L28: =K28/(1+'Major Assumption Key'!$B$8)^(F28-'Major Assumption Key'!$B$7) -> 0
F29: ='Major Assumption Key'!A40 -> 2041 | G29: 0 | H29: 0 | I29: 0 | J29: 0 | K29: 0 | L29: =K29/(1+'Major Assumption Key'!$B$8)^(F29-'Major Assumption Key'!$B$7) -> 0
F30: ='Major Assumption Key'!A41 -> 2042 | G30: 0 | H30: 0 | I30: 0 | J30: 0 | K30: 0 | L30: =K30/(1+'Major Assumption Key'!$B$8)^(F30-'Major Assumption Key'!$B$7) -> 0
F31: ='Major Assumption Key'!A42 -> 2043 | G31: 0 | H31: 0 | I31: 0 | J31: 0 | K31: 0 | L31: =K31/(1+'Major Assumption Key'!$B$8)^(F31-'Major Assumption Key'!$B$7) -> 0
F32: ='Major Assumption Key'!A43 -> 2044 | G32: 0 | H32: 0 | I32: 0 | J32: 0 | K32: 0 | L32: =K32/(1+'Major Assumption Key'!$B$8)^(F32-'Major Assumption Key'!$B$7) -> 0
F33: ='Major Assumption Key'!A44 -> 2045 | G33: 0 | H33: 0 | I33: 0 | J33: 0 | K33: 0 | L33: =K33/(1+'Major Assumption Key'!$B$8)^(F33-'Major Assumption Key'!$B$7) -> 0
F34: ='Major Assumption Key'!A45 -> 2046 | G34: 0 | H34: 0 | I34: 0 | J34: 0 | K34: 0 | L34: =K34/(1+'Major Assumption Key'!$B$8)^(F34-'Major Assumption Key'!$B$7) -> 0
F35: ='Major Assumption Key'!A46 -> 2047 | G35: 0 | H35: 0 | I35: 0 | J35: 0 | K35: 0 | L35: =K35/(1+'Major Assumption Key'!$B$8)^(F35-'Major Assumption Key'!$B$7) -> 0
F36: ='Major Assumption Key'!A47 -> 2048 | G36: 0 | H36: 0 | I36: 0 | J36: 0 | K36: 0 | L36: =K36/(1+'Major Assumption Key'!$B$8)^(F36-'Major Assumption Key'!$B$7) -> 0
F37: ='Major Assumption Key'!A48 -> 2049 | G37: 0 | H37: 0 | I37: 0 | J37: 0 | K37: 0 | L37: =K37/(1+'Major Assumption Key'!$B$8)^(F37-'Major Assumption Key'!$B$7) -> 0
F38: ='Major Assumption Key'!A49 -> 2050 | G38: 0 | H38: 0 | I38: 0 | J38: 0 | K38: 0 | L38: =K38/(1+'Major Assumption Key'!$B$8)^(F38-'Major Assumption Key'!$B$7) -> 0
F39: ='Major Assumption Key'!A50 -> 2051 | G39: 0 | H39: 0 | I39: 0 | J39: 0 | K39: 0 | L39: =K39/(1+'Major Assumption Key'!$B$8)^(F39-'Major Assumption Key'!$B$7) -> 0
F40: ='Major Assumption Key'!A51 -> 2052 | G40: 0 | H40: 0 | I40: 0 | J40: 0 | K40: 0 | L40: =K40/(1+'Major Assumption Key'!$B$8)^(F40-'Major Assumption Key'!$B$7) -> 0
F41: ='Major Assumption Key'!A52 -> 2053 | G41: 0 | H41: 0 | I41: 0 | J41: 0 | K41: 0 | L41: =K41/(1+'Major Assumption Key'!$B$8)^(F41-'Major Assumption Key'!$B$7) -> 0
F42: ='Major Assumption Key'!A53 -> 2054 | G42: 0 | H42: 0 | I42: 0 | J42: 0 | K42: 0 | L42: =K42/(1+'Major Assumption Key'!$B$8)^(F42-'Major Assumption Key'!$B$7) -> 0
F43: ='Major Assumption Key'!A54 -> 2055 | G43: 0 | H43: 0 | I43: 0 | J43: 0 | K43: 0 | L43: =K43/(1+'Major Assumption Key'!$B$8)^(F43-'Major Assumption Key'!$B$7) -> 0
F44: ='Major Assumption Key'!A55 -> 2056 | G44: 0 | H44: 0 | I44: 0 | J44: 0 | K44: 0 | L44: =K44/(1+'Major Assumption Key'!$B$8)^(F44-'Major Assumption Key'!$B$7) -> 0
F45: ='Major Assumption Key'!A56 -> 2057 | G45: 0 | H45: 0 | I45: 0 | J45: 0 | K45: 0 | L45: =K45/(1+'Major Assumption Key'!$B$8)^(F45-'Major Assumption Key'!$B$7) -> 0
F46: ='Major Assumption Key'!A57 -> 2058 | G46: 0 | H46: 0 | I46: 0 | J46: 0 | K46: 0 | L46: =K46/(1+'Major Assumption Key'!$B$8)^(F46-'Major Assumption Key'!$B$7) -> 0
F47: ='Major Assumption Key'!A58 -> 2059 | G47: 0 | H47: 0 | I47: 0 | J47: 0 | K47: 0 | L47: =K47/(1+'Major Assumption Key'!$B$8)^(F47-'Major Assumption Key'!$B$7) -> 0
F48: ='Major Assumption Key'!A59 -> 2060 | G48: 0 | H48: 0 | I48: 0 | J48: 0 | K48: 0 | L48: =K48/(1+'Major Assumption Key'!$B$8)^(F48-'Major Assumption Key'!$B$7) -> 0
F49: Planning Horizon Totals | H49: =SUMIFS($H$8:$H$48,$F$8:$F$48,">="&$B$16,$F$8:$F$48,"<="&$B$17) -> 0 | J49: =SUMIFS($J$8:$J$48,$F$8:$F$48,">="&$B$16,$F$8:$F$48,"<="&$B$17) -> 0 | K49: =SUMIFS($K$8:$K$48,$F$8:$F$48,">="&$B$16,$F$8:$F$48,"<="&$B$17) -> 0 | L49: =SUMIFS($L$8:$L$48,$F$8:$F$48,">="&$B$16,$F$8:$F$48,"<="&$B$17) -> 0

Sheet State of Good Repair AP-CP
A1: Worksheet Title: | B1: State of Good Repair - Asphalt to Concrete
A3: No Build Scenario | B3: Continue maintenance strategy through remaining life of facility. | F3: Benefit Calculations | V3: Rounded
F4: Scenario → | G4: No Build | H4: No Build | I4: No Build | J4: No Build | K4: No Build | L4: No Build | M4: Build | N4: Build | O4: Build | P4: Build | Q4: Build | R4: Build | S4: Build - No Build Net Benefit | V4: No Build | W4: Build | X4: Build - No Build Net Benefit
A5: Build Scenario | B5: Replace current facility with new concrete pavement. Incur up-front capital project costs but realize benefits of reduced pavement rehabilitation and vehicle operating costs. | F5: Step → | G5: See Calculation on worksheet B2 - SOGR Supporting | L5: Monetized | M5: See Calculation on worksheet B2 - SOGR Supporting | R5: Monetized | V5: Monetized | W5: Monetized
F6: Year | G6: On-Going Maintenance | H6: Major Rehab Strategy | I6: Residual Life of Rehab | J6: VoTT Delay | K6: Vehicle Wear and Tear | L6: Maintenance Strategy | M6: On-Going Maintenance | N6: Reconstruction Strategy | O6: Residual Life of Rehab | P6: VoTT Delay | Q6: Vehicle Wear and Tear | R6: Replace Strategy | S6: No Discount | T6: ="Discounted @ "&TEXT('Major Assumption Key'!$B$8,"0.0%") -> Discounted @ 3.1% | V6: Maintenance Strategy | W6: Replace Strategy | X6: No Discount | Y6: ="Discounted @ "&TEXT('Major Assumption Key'!$B$8,"0.0%") -> Discounted @ 3.1%
F7: ='Major Assumption Key'!A19 -> 2020 | G7: ='SOGR Supporting AP-CP'!E14 -> 0 | H7: ='SOGR Supporting AP-CP'!F14 -> 0 | I7: ='SOGR Supporting AP-CP'!G14 -> 0 | J7: ='SOGR Supporting AP-CP'!H14 -> 0 | K7: ='SOGR Supporting AP-CP'!K14 -> 0 | L7: =IF(AND($F7>=MIN($F7),$F7<=MAX('Major Assumption Key'!$B$6)),SUM(G7:K7),0) -> 0 | M7: ='SOGR Supporting AP-CP'!E60 -> 0 | N7: ='SOGR Supporting AP-CP'!F60 -> 0 | O7: ='SOGR Supporting AP-CP'!G61 -> 0 | P7: ='SOGR Supporting AP-CP'!H60 -> 0 | Q7: ='SOGR Supporting AP-CP'!K60 -> 0 | R7: =IF(AND($F7>=MIN('Major Assumption Key'!$B$4),$F7<=MAX('Major Assumption Key'!$B$6)),SUM(M7:Q7),0) -> 0 | S7: =(R7-L7)*-1 -> 0 | T7: =S7/(1+'Major Assumption Key'!$B$8)^($F7-'Major Assumption Key'!$B$7) -> 0 | V7: =ROUND(L7,-3) -> 0 | W7: =ROUND(R7,-3) -> 0 | X7: 0 | Y7: 0
F8: ='Major Assumption Key'!A20 -> 2021 | G8: ='SOGR Supporting AP-CP'!E15 -> 0 | H8: ='SOGR Supporting AP-CP'!F15 -> 0 | I8: ='SOGR Supporting AP-CP'!G15 -> 0 | J8: ='SOGR Supporting AP-CP'!H15 -> 0 | K8: ='SOGR Supporting AP-CP'!K15 -> 0 | L8: =IF(AND($F8>=MIN($F8),$F8<=MAX('Major Assumption Key'!$B$6)),SUM(G8:K8),0) -> 0 | M8: ='SOGR Supporting AP-CP'!E61 -> 0 | N8: ='SOGR Supporting AP-CP'!F61 -> 0 | O8: ='SOGR Supporting AP-CP'!G62 -> 0 | P8: ='SOGR Supporting AP-CP'!H61 -> 0 | Q8: ='SOGR Supporting AP-CP'!K61 -> 0 | R8: =IF(AND($F8>=MIN('Major Assumption Key'!$B$4),$F8<=MAX('Major Assumption Key'!$B$6)),SUM(M8:Q8),0) -> 0 | S8: =(R8-L8)*-1 -> 0 | T8: =S8/(1+'Major Assumption Key'!$B$8)^($F8-'Major Assumption Key'!$B$7) -> 0 | V8: =ROUND(L8,-3) -> 0 | W8: =ROUND(R8,-3) -> 0 | X8: =ROUND(S8,-3) -> 0 | Y8: =ROUND(T8,-3) -> 0
A9: Sensitivity Analysis | F9: ='Major Assumption Key'!A21 -> 2022 | G9: ='SOGR Supporting AP-CP'!E16 -> 0 | H9: ='SOGR Supporting AP-CP'!F16 -> 0 | I9: ='SOGR Supporting AP-CP'!G16 -> 0 | J9: ='SOGR Supporting AP-CP'!H16 -> 0 | K9: ='SOGR Supporting AP-CP'!K16 -> 0 | L9: =IF(AND($F9>=MIN($F9),$F9<=MAX('Major Assumption Key'!$B$6)),SUM(G9:K9),0) -> 0 | M9: ='SOGR Supporting AP-CP'!E62 -> 0 | N9: ='SOGR Supporting AP-CP'!F62 -> 0 | O9: ='SOGR Supporting AP-CP'!G63 -> 0 | P9: ='SOGR Supporting AP-CP'!H62 -> 0 | Q9: ='SOGR Supporting AP-CP'!K62 -> 0 | R9: =IF(AND($F9>=MIN('Major Assumption Key'!$B$4),$F9<=MAX('Major Assumption Key'!$B$6)),SUM(M9:Q9),0) -> 0 | S9: 0 | T9: =S9/(1+'Major Assumption Key'!$B$8)^($F9-'Major Assumption Key'!$B$7) -> 0 | V9: 0 | W9: 0 | X9: 0 | Y9: 0
A10: Measure | C10: No Discount | D10: =_xlfn.CONCAT("Discounted @",TEXT('Major Assumption Key'!B8,"0.0%")) -> Discounted @3.1% | F10: ='Major Assumption Key'!A22 -> 2023 | G10: ='SOGR Supporting AP-CP'!E17 -> 0 | H10: ='SOGR Supporting AP-CP'!F17 -> 0 | I10: ='SOGR Supporting AP-CP'!G17 -> 0 | J10: ='SOGR Supporting AP-CP'!H17 -> 0 | K10: ='SOGR Supporting AP-CP'!K17 -> 0 | L10: =IF(AND($F10>=MIN($F10),$F10<=MAX('Major Assumption Key'!$B$6)),SUM(G10:K10),0) -> 0 | M10: ='SOGR Supporting AP-CP'!E63 -> 0 | N10: ='SOGR Supporting AP-CP'!F63 -> 0 | O10: ='SOGR Supporting AP-CP'!G64 -> 0 | P10: ='SOGR Supporting AP-CP'!H63 -> 0 | Q10: ='SOGR Supporting AP-CP'!K63 -> 0 | R10: =IF(AND($F10>=MIN('Major Assumption Key'!$B$4),$F10<=MAX('Major Assumption Key'!$B$6)),SUM(M10:Q10),0) -> 0 | S10: 0 | T10: =S10/(1+'Major Assumption Key'!$B$8)^($F10-'Major Assumption Key'!$B$7) -> 0 | V10: 0 | W10: 0 | X10: 0 | Y10: 0
A11: BCA | C11: ='BCA Summary'!$H$7 -> 3.056395289 | D11: ='BCA Summary'!$I$7 -> 2.006712939 | F11: ='Major Assumption Key'!A23 -> 2024 | G11: ='SOGR Supporting AP-CP'!E18 -> 101257.2116 | H11: ='SOGR Supporting AP-CP'!F18 -> 0 | I11: ='SOGR Supporting AP-CP'!G18 -> 0 | J11: ='SOGR Supporting AP-CP'!H18 -> 0 | K11: ='SOGR Supporting AP-CP'!K18 -> 494716.5971 | L11: =IF(AND($F11>=MIN($F11),$F11<=MAX('Major Assumption Key'!$B$6)),SUM(G11:K11),0) -> 595973.8086 | M11: ='SOGR Supporting AP-CP'!E64 -> 101257.2116 | N11: ='SOGR Supporting AP-CP'!F64 -> 0 | O11: ='SOGR Supporting AP-CP'!G65 -> 0 | P11: ='SOGR Supporting AP-CP'!H64 -> 0 | Q11: ='SOGR Supporting AP-CP'!K64 -> 0 | R11: =IF(AND($F11>=MIN('Major Assumption Key'!$B$4),$F11<=MAX('Major Assumption Key'!$B$6)),SUM(M11:Q11),0) -> 101257.2116 | S11: 494716.5971 | T11: =S11/(1+'Major Assumption Key'!$B$8)^($F11-'Major Assumption Key'!$B$7) -> 465413.686 | V11: 596000 | W11: 101000 | X11: 495000 | Y11: 465000
A12: NPV | C12: ='BCA Summary'!$H$8 -> 369435622.8 | D12: ='BCA Summary'!$I$8 -> 150274981.9 | F12: ='Major Assumption Key'!A24 -> 2025 | G12: ='SOGR Supporting AP-CP'!E19 -> 0 | H12: ='SOGR Supporting AP-CP'!F19 -> 2835168.061 | I12: ='SOGR Supporting AP-CP'!G19 -> 0 | J12: ='SOGR Supporting AP-CP'!H19 -> 11012149.52 | K12: ='SOGR Supporting AP-CP'!K19 -> 0 | L12: =IF(AND($F12>=MIN($F12),$F12<=MAX('Major Assumption Key'!$B$6)),SUM(G12:K12),0) -> 13847317.58 | M12: ='SOGR Supporting AP-CP'!E65 -> 0 | N12: ='SOGR Supporting AP-CP'!F65 -> 0 | O12: ='SOGR Supporting AP-CP'!G66 -> 0 | P12: ='SOGR Supporting AP-CP'!H65 -> 0 | Q12: ='SOGR Supporting AP-CP'!K65 -> 0 | R12: =IF(AND($F12>=MIN('Major Assumption Key'!$B$4),$F12<=MAX('Major Assumption Key'!$B$6)),SUM(M12:Q12),0) -> 0 | S12: 13847317.58 | T12: =S12/(1+'Major Assumption Key'!$B$8)^($F12-'Major Assumption Key'!$B$7) -> 12635419.25 | V12: 13847000 | W12: 0 | X12: 13847000 | Y12: 12635000
F13: ='Major Assumption Key'!A25 -> 2026 | G13: ='SOGR Supporting AP-CP'!E20 -> 0 | H13: ='SOGR Supporting AP-CP'!F20 -> 0 | I13: ='SOGR Supporting AP-CP'!G20 -> 0 | J13: ='SOGR Supporting AP-CP'!H20 -> 0 | K13: ='SOGR Supporting AP-CP'!K20 -> 68953.89873 | L13: =IF(AND($F13>=MIN($F13),$F13<=MAX('Major Assumption Key'!$B$6)),SUM(G13:K13),0) -> 68953.89873 | M13: ='SOGR Supporting AP-CP'!E66 -> 0 | N13: ='SOGR Supporting AP-CP'!F66 -> 0 | O13: ='SOGR Supporting AP-CP'!G67 -> 0 | P13: ='SOGR Supporting AP-CP'!H66 -> 0 | Q13: ='SOGR Supporting AP-CP'!K66 -> 0 | R13: =IF(AND($F13>=MIN('Major Assumption Key'!$B$4),$F13<=MAX('Major Assumption Key'!$B$6)),SUM(M13:Q13),0) -> 0 | S13: 68953.89873 | T13: =S13/(1+'Major Assumption Key'!$B$8)^($F13-'Major Assumption Key'!$B$7) -> 61027.30133 | V13: 69000 | W13: 0 | X13: 69000 | Y13: 61000
F14: ='Major Assumption Key'!A26 -> 2027 | G14: ='SOGR Supporting AP-CP'!E21 -> 0 | H14: ='SOGR Supporting AP-CP'!F21 -> 0 | I14: ='SOGR Supporting AP-CP'!G21 -> 0 | J14: ='SOGR Supporting AP-CP'!H21 -> 0 | K14: ='SOGR Supporting AP-CP'!K21 -> 70123.84849 | L14: =IF(AND($F14>=MIN($F14),$F14<=MAX('Major Assumption Key'!$B$6)),SUM(G14:K14),0) -> 70123.84849 | M14: ='SOGR Supporting AP-CP'!E67 -> 0 | N14: ='SOGR Supporting AP-CP'!F67 -> 0 | O14: ='SOGR Supporting AP-CP'!G68 -> 0 | P14: ='SOGR Supporting AP-CP'!H67 -> 8228660.871 | Q14: ='SOGR Supporting AP-CP'!K67 -> 0 | R14: =IF(AND($F14>=MIN('Major Assumption Key'!$B$4),$F14<=MAX('Major Assumption Key'!$B$6)),SUM(M14:Q14),0) -> 8228660.871 | S14: -8158537.023 | T14: =S14/(1+'Major Assumption Key'!$B$8)^($F14-'Major Assumption Key'!$B$7) -> -7003561.751 | V14: 70000 | W14: 8229000 | X14: -8159000 | Y14: -7004000
A15: Major Assumptions | B15: Data Point | C15: Source | F15: ='Major Assumption Key'!A27 -> 2028 | G15: ='SOGR Supporting AP-CP'!E22 -> 18839.88926 | H15: ='SOGR Supporting AP-CP'!F22 -> 0 | I15: ='SOGR Supporting AP-CP'!G22 -> 0 | J15: ='SOGR Supporting AP-CP'!H22 -> 0 | K15: ='SOGR Supporting AP-CP'!K22 -> 106970.4734 | L15: =IF(AND($F15>=MIN($F15),$F15<=MAX('Major Assumption Key'!$B$6)),SUM(G15:K15),0) -> 125810.3627 | M15: ='SOGR Supporting AP-CP'!E68 -> 18839.88926 | N15: ='SOGR Supporting AP-CP'!F68 -> 0 | O15: ='SOGR Supporting AP-CP'!G69 -> 0 | P15: ='SOGR Supporting AP-CP'!H68 -> 8458197.201 | Q15: ='SOGR Supporting AP-CP'!K68 -> 0 | R15: =IF(AND($F15>=MIN('Major Assumption Key'!$B$4),$F15<=MAX('Major Assumption Key'!$B$6)),SUM(M15:Q15),0) -> 8477037.09 | S15: -8351226.727 | T15: =S15/(1+'Major Assumption Key'!$B$8)^($F15-'Major Assumption Key'!$B$7) -> -6953417.124 | V15: 126000 | W15: 8477000 | X15: -8351000 | Y15: -6953000
A16: ='Major Assumption Key'!$A$3 -> Project Open Year: | B16: ='Major Assumption Key'!$B$3 -> 2031 | C16: Major Assumption Key | F16: ='Major Assumption Key'!A28 -> 2029 | G16: ='SOGR Supporting AP-CP'!E23 -> 77460.47966 | H16: ='SOGR Supporting AP-CP'!F23 -> 0 | I16: ='SOGR Supporting AP-CP'!G23 -> 0 | J16: ='SOGR Supporting AP-CP'!H23 -> 0 | K16: ='SOGR Supporting AP-CP'!K23 -> 253832.7291 | L16: =IF(AND($F16>=MIN($F16),$F16<=MAX('Major Assumption Key'!$B$6)),SUM(G16:K16),0) -> 331293.2088 | M16: ='SOGR Supporting AP-CP'!E69 -> 77460.47966 | N16: ='SOGR Supporting AP-CP'!F69 -> 0 | O16: ='SOGR Supporting AP-CP'!G70 -> 0 | P16: ='SOGR Supporting AP-CP'!H69 -> 8694136.386 | Q16: ='SOGR Supporting AP-CP'!K69 -> 0 | R16: =IF(AND($F16>=MIN('Major Assumption Key'!$B$4),$F16<=MAX('Major Assumption Key'!$B$6)),SUM(M16:Q16),0) -> 8771596.865 | S16: -8440303.657 | T16: =S16/(1+'Major Assumption Key'!$B$8)^($F16-'Major Assumption Key'!$B$7) -> -6816279.881 | V16: 331000 | W16: 8772000 | X16: -8440000 | Y16: -6816000
A17: ='Major Assumption Key'!$A$4 -> Planning Horizon Begin Year: | B17: ='Major Assumption Key'!$B$4 -> 2024 | C17: Major Assumption Key | F17: ='Major Assumption Key'!A29 -> 2030 | G17: ='SOGR Supporting AP-CP'!E24 -> 119431.2059 | H17: ='SOGR Supporting AP-CP'!F24 -> 0 | I17: ='SOGR Supporting AP-CP'!G24 -> 0 | J17: ='SOGR Supporting AP-CP'!H24 -> 0 | K17: ='SOGR Supporting AP-CP'!K24 -> 547265.3817 | L17: =IF(AND($F17>=MIN($F17),$F17<=MAX('Major Assumption Key'!$B$6)),SUM(G17:K17),0) -> 666696.5877 | M17: ='SOGR Supporting AP-CP'!E70 -> 119431.2059 | N17: ='SOGR Supporting AP-CP'!F70 -> 0 | O17: ='SOGR Supporting AP-CP'!G71 -> 0 | P17: ='SOGR Supporting AP-CP'!H70 -> 8936657.032 | Q17: ='SOGR Supporting AP-CP'!K70 -> 0 | R17: =IF(AND($F17>=MIN('Major Assumption Key'!$B$4),$F17<=MAX('Major Assumption Key'!$B$6)),SUM(M17:Q17),0) -> 9056088.238 | S17: -8389391.651 | T17: =S17/(1+'Major Assumption Key'!$B$8)^($F17-'Major Assumption Key'!$B$7) -> -6571449.083 | V17: 667000 | W17: 9056000 | X17: -8389000 | Y17: -6571000
A18: ='Major Assumption Key'!$A$6 -> Planning Horizon End Year: | B18: ='Major Assumption Key'!$B$6 -> 2050 | C18: Major Assumption Key | F18: ='Major Assumption Key'!A30 -> 2031 | G18: ='SOGR Supporting AP-CP'!E25 -> 122762.708 | H18: ='SOGR Supporting AP-CP'!F25 -> 0 | I18: ='SOGR Supporting AP-CP'!G25 -> 0 | J18: ='SOGR Supporting AP-CP'!H25 -> 0 | K18: ='SOGR Supporting AP-CP'!K25 -> 556550.9046 | L18: =IF(AND($F18>=MIN($F18),$F18<=MAX('Major Assumption Key'!$B$6)),SUM(G18:K18),0) -> 679313.6126 | M18: ='SOGR Supporting AP-CP'!E71 -> 122762.708 | N18: ='SOGR Supporting AP-CP'!F71 -> 0 | O18: ='SOGR Supporting AP-CP'!G72 -> 0 | P18: ='SOGR Supporting AP-CP'!H71 -> 0 | Q18: ='SOGR Supporting AP-CP'!K71 -> 0 | R18: =IF(AND($F18>=MIN('Major Assumption Key'!$B$4),$F18<=MAX('Major Assumption Key'!$B$6)),SUM(M18:Q18),0) -> 122762.708 | S18: 556550.9046 | T18: =S18/(1+'Major Assumption Key'!$B$8)^($F18-'Major Assumption Key'!$B$7) -> 422840.8191 | V18: 679000 | W18: 123000 | X18: 557000 | Y18: 423000
A19: Vehicle Occupancy - Weighted Average | B19: =C32 -> 1.64856 | C19: USDOT Benefit-Cost Analysis Guidance for Discretionary Grant Programs | F19: ='Major Assumption Key'!A31 -> 2032 | G19: ='SOGR Supporting AP-CP'!E26 -> 0 | H19: ='SOGR Supporting AP-CP'!F26 -> 3437314.769 | I19: ='SOGR Supporting AP-CP'!G26 -> 0 | J19: ='SOGR Supporting AP-CP'!H26 -> 15019691.35 | K19: ='SOGR Supporting AP-CP'!K26 -> 0 | L19: =IF(AND($F19>=MIN($F19),$F19<=MAX('Major Assumption Key'!$B$6)),SUM(G19:K19),0) -> 18457006.12 | M19: ='SOGR Supporting AP-CP'!E72 -> 0 | N19: ='SOGR Supporting AP-CP'!F72 -> 0 | O19: ='SOGR Supporting AP-CP'!G73 -> 0 | P19: ='SOGR Supporting AP-CP'!H72 -> 0 | Q19: ='SOGR Supporting AP-CP'!K72 -> 0 | R19: =IF(AND($F19>=MIN('Major Assumption Key'!$B$4),$F19<=MAX('Major Assumption Key'!$B$6)),SUM(M19:Q19),0) -> 0 | S19: 18457006.12 | T19: =S19/(1+'Major Assumption Key'!$B$8)^($F19-'Major Assumption Key'!$B$7) -> 13601117.84 | V19: 18457000 | W19: 0 | X19: 18457000 | Y19: 13601000
A20: Value of Travel Time (VoTT) Weighted Average | B20: =D32 -> 20.0448 | C20: USDOT Benefit-Cost Analysis Guidance for Discretionary Grant Programs | F20: ='Major Assumption Key'!A32 -> 2033 | G20: ='SOGR Supporting AP-CP'!E27 -> 0 | H20: ='SOGR Supporting AP-CP'!F27 -> 0 | I20: ='SOGR Supporting AP-CP'!G27 -> 0 | J20: ='SOGR Supporting AP-CP'!H27 -> 0 | K20: ='SOGR Supporting AP-CP'!K27 -> 77572.40193 | L20: =IF(AND($F20>=MIN($F20),$F20<=MAX('Major Assumption Key'!$B$6)),SUM(G20:K20),0) -> 77572.40193 | M20: ='SOGR Supporting AP-CP'!E73 -> 0 | N20: ='SOGR Supporting AP-CP'!F73 -> 0 | O20: ='SOGR Supporting AP-CP'!G74 -> 0 | P20: ='SOGR Supporting AP-CP'!H73 -> 0 | Q20: ='SOGR Supporting AP-CP'!K73 -> 0 | R20: =IF(AND($F20>=MIN('Major Assumption Key'!$B$4),$F20<=MAX('Major Assumption Key'!$B$6)),SUM(M20:Q20),0) -> 0 | S20: 77572.40193 | T20: =S20/(1+'Major Assumption Key'!$B$8)^($F20-'Major Assumption Key'!$B$7) -> 55444.94039 | V20: 78000 | W20: 0 | X20: 78000 | Y20: 55000
A21: Reconstruction days | B21: 240 | C21: Per Mile - City of Houston Averages | F21: ='Major Assumption Key'!A33 -> 2034 | G21: ='SOGR Supporting AP-CP'!E28 -> 0 | H21: ='SOGR Supporting AP-CP'!F28 -> 0 | I21: ='SOGR Supporting AP-CP'!G28 -> 0 | J21: ='SOGR Supporting AP-CP'!H28 -> 0 | K21: ='SOGR Supporting AP-CP'!K28 -> 78888.58296 | L21: =IF(AND($F21>=MIN($F21),$F21<=MAX('Major Assumption Key'!$B$6)),SUM(G21:K21),0) -> 78888.58296 | M21: ='SOGR Supporting AP-CP'!E74 -> 0 | N21: ='SOGR Supporting AP-CP'!F74 -> 0 | O21: ='SOGR Supporting AP-CP'!G75 -> 0 | P21: ='SOGR Supporting AP-CP'!H74 -> 0 | Q21: ='SOGR Supporting AP-CP'!K74 -> 0 | R21: =IF(AND($F21>=MIN('Major Assumption Key'!$B$4),$F21<=MAX('Major Assumption Key'!$B$6)),SUM(M21:Q21),0) -> 0 | S21: 78888.58296 | T21: =S21/(1+'Major Assumption Key'!$B$8)^($F21-'Major Assumption Key'!$B$7) -> 54690.28313 | V21: 79000 | W21: 0 | X21: 79000 | Y21: 55000
A22: Rehabilitation days | B22: =B21/2 -> 120 | C22: Assume 1/2 of the 240 days of reconstruction | F22: ='Major Assumption Key'!A34 -> 2035 | G22: ='SOGR Supporting AP-CP'!E29 -> 22841.19608 | H22: ='SOGR Supporting AP-CP'!F29 -> 0 | I22: ='SOGR Supporting AP-CP'!G29 -> 0 | J22: ='SOGR Supporting AP-CP'!H29 -> 0 | K22: ='SOGR Supporting AP-CP'!K29 -> 120340.6437 | L22: =IF(AND($F22>=MIN($F22),$F22<=MAX('Major Assumption Key'!$B$6)),SUM(G22:K22),0) -> 143181.8398 | M22: ='SOGR Supporting AP-CP'!E75 -> 0 | N22: ='SOGR Supporting AP-CP'!F75 -> 0 | O22: ='SOGR Supporting AP-CP'!G76 -> 0 | P22: ='SOGR Supporting AP-CP'!H75 -> 0 | Q22: ='SOGR Supporting AP-CP'!K75 -> 0 | R22: =IF(AND($F22>=MIN('Major Assumption Key'!$B$4),$F22<=MAX('Major Assumption Key'!$B$6)),SUM(M22:Q22),0) -> 0 | S22: 143181.8398 | T22: =S22/(1+'Major Assumption Key'!$B$8)^($F22-'Major Assumption Key'!$B$7) -> 96277.60756 | V22: 143000 | W22: 0 | X22: 143000 | Y22: 96000
A23: Speed Reduced to xx% of Posted Speed Limit | B23: 0.75 | C23: Reduction during construction or rehabilitation | F23: ='Major Assumption Key'!A35 -> 2036 | G23: ='SOGR Supporting AP-CP'!E30 -> 93911.91106 | H23: ='SOGR Supporting AP-CP'!F30 -> 0 | I23: ='SOGR Supporting AP-CP'!G30 -> 0 | J23: ='SOGR Supporting AP-CP'!H30 -> 0 | K23: ='SOGR Supporting AP-CP'!K30 -> 285559.1178 | L23: =IF(AND($F23>=MIN($F23),$F23<=MAX('Major Assumption Key'!$B$6)),SUM(G23:K23),0) -> 379471.0288 | M23: ='SOGR Supporting AP-CP'!E76 -> 0 | N23: ='SOGR Supporting AP-CP'!F76 -> 0 | O23: ='SOGR Supporting AP-CP'!G77 -> 0 | P23: ='SOGR Supporting AP-CP'!H76 -> 0 | Q23: ='SOGR Supporting AP-CP'!K76 -> 0 | R23: =IF(AND($F23>=MIN('Major Assumption Key'!$B$4),$F23<=MAX('Major Assumption Key'!$B$6)),SUM(M23:Q23),0) -> 0 | S23: 379471.0288 | T23: =S23/(1+'Major Assumption Key'!$B$8)^($F23-'Major Assumption Key'!$B$7) -> 247489.8035 | V23: 379000 | W23: 0 | X23: 379000 | Y23: 247000
A24: Current Speed Limit (mph) | B24: 35 | F24: ='Major Assumption Key'!A36 -> 2037 | G24: ='SOGR Supporting AP-CP'!E31 -> 144796.5832 | H24: ='SOGR Supporting AP-CP'!F31 -> 0 | I24: ='SOGR Supporting AP-CP'!G31 -> 0 | J24: ='SOGR Supporting AP-CP'!H31 -> 0 | K24: ='SOGR Supporting AP-CP'!K31 -> 615667.7279 | L24: =IF(AND($F24>=MIN($F24),$F24<=MAX('Major Assumption Key'!$B$6)),SUM(G24:K24),0) -> 760464.3111 | M24: ='SOGR Supporting AP-CP'!E77 -> 0 | N24: ='SOGR Supporting AP-CP'!F77 -> 0 | O24: ='SOGR Supporting AP-CP'!G78 -> 0 | P24: ='SOGR Supporting AP-CP'!H77 -> 0 | Q24: ='SOGR Supporting AP-CP'!K77 -> 0 | R24: =IF(AND($F24>=MIN('Major Assumption Key'!$B$4),$F24<=MAX('Major Assumption Key'!$B$6)),SUM(M24:Q24),0) -> 0 | S24: 760464.3111 | T24: =S24/(1+'Major Assumption Key'!$B$8)^($F24-'Major Assumption Key'!$B$7) -> 481059.5692 | V24: 760000 | W24: 0 | X24: 760000 | Y24: 481000
A25: Light Rehabilitation Per Lane Mile ($2021) | B25: ='Cost of Rehab'!C10 -> 283756 | C25: See "Cost of Rehab" tab | F25: ='Major Assumption Key'!A37 -> 2038 | G25: ='SOGR Supporting AP-CP'!E32 -> 148835.6458 | H25: ='SOGR Supporting AP-CP'!F32 -> 0 | I25: ='SOGR Supporting AP-CP'!G32 -> 0 | J25: ='SOGR Supporting AP-CP'!H32 -> 0 | K25: ='SOGR Supporting AP-CP'!K32 -> 626113.8422 | L25: =IF(AND($F25>=MIN($F25),$F25<=MAX('Major Assumption Key'!$B$6)),SUM(G25:K25),0) -> 774949.488 | M25: ='SOGR Supporting AP-CP'!E78 -> 0 | N25: ='SOGR Supporting AP-CP'!F78 -> 0 | O25: ='SOGR Supporting AP-CP'!G79 -> 0 | P25: ='SOGR Supporting AP-CP'!H78 -> 0 | Q25: ='SOGR Supporting AP-CP'!K78 -> 0 | R25: =IF(AND($F25>=MIN('Major Assumption Key'!$B$4),$F25<=MAX('Major Assumption Key'!$B$6)),SUM(M25:Q25),0) -> 0 | S25: 774949.488 | T25: =S25/(1+'Major Assumption Key'!$B$8)^($F25-'Major Assumption Key'!$B$7) -> 475482.7339 | V25: 775000 | W25: 0 | X25: 775000 | Y25: 475000
A26: Working Days in a Year | B26: 260 | C26: Planning Standard | F26: ='Major Assumption Key'!A38 -> 2039 | G26: ='SOGR Supporting AP-CP'!E33 -> 0 | H26: ='SOGR Supporting AP-CP'!F33 -> 4167348.308 | I26: ='SOGR Supporting AP-CP'!G33 -> 0 | J26: ='SOGR Supporting AP-CP'!H33 -> 20485657.95 | K26: ='SOGR Supporting AP-CP'!K33 -> 0 | L26: =IF(AND($F26>=MIN($F26),$F26<=MAX('Major Assumption Key'!$B$6)),SUM(G26:K26),0) -> 24653006.25 | M26: ='SOGR Supporting AP-CP'!E79 -> 0 | N26: ='SOGR Supporting AP-CP'!F79 -> 0 | O26: ='SOGR Supporting AP-CP'!G80 -> 0 | P26: ='SOGR Supporting AP-CP'!H79 -> 0 | Q26: ='SOGR Supporting AP-CP'!K79 -> 0 | R26: =IF(AND($F26>=MIN('Major Assumption Key'!$B$4),$F26<=MAX('Major Assumption Key'!$B$6)),SUM(M26:Q26),0) -> 0 | S26: 24653006.25 | T26: =S26/(1+'Major Assumption Key'!$B$8)^($F26-'Major Assumption Key'!$B$7) -> 14671434.4 | V26: 24653000 | W26: 0 | X26: 24653000 | Y26: 14671000
F27: ='Major Assumption Key'!A39 -> 2040 | G27: ='SOGR Supporting AP-CP'!E34 -> 0 | H27: ='SOGR Supporting AP-CP'!F34 -> 0 | I27: ='SOGR Supporting AP-CP'!G34 -> 0 | J27: ='SOGR Supporting AP-CP'!H34 -> 0 | K27: ='SOGR Supporting AP-CP'!K34 -> 87268.12628 | L27: =IF(AND($F27>=MIN($F27),$F27<=MAX('Major Assumption Key'!$B$6)),SUM(G27:K27),0) -> 87268.12628 | M27: ='SOGR Supporting AP-CP'!E80 -> 0 | N27: ='SOGR Supporting AP-CP'!F80 -> 0 | O27: ='SOGR Supporting AP-CP'!G81 -> 0 | P27: ='SOGR Supporting AP-CP'!H80 -> 0 | Q27: ='SOGR Supporting AP-CP'!K80 -> 0 | R27: =IF(AND($F27>=MIN('Major Assumption Key'!$B$4),$F27<=MAX('Major Assumption Key'!$B$6)),SUM(M27:Q27),0) -> 0 | S27: 87268.12628 | T27: =S27/(1+'Major Assumption Key'!$B$8)^($F27-'Major Assumption Key'!$B$7) -> 50373.21573 | V27: 87000 | W27: 0 | X27: 87000 | Y27: 50000
F28: ='Major Assumption Key'!A40 -> 2041 | G28: ='SOGR Supporting AP-CP'!E35 -> 0 | H28: ='SOGR Supporting AP-CP'!F35 -> 0 | I28: ='SOGR Supporting AP-CP'!G35 -> 0 | J28: ='SOGR Supporting AP-CP'!H35 -> 0 | K28: ='SOGR Supporting AP-CP'!K35 -> 88748.81592 | L28: =IF(AND($F28>=MIN($F28),$F28<=MAX('Major Assumption Key'!$B$6)),SUM(G28:K28),0) -> 88748.81592 | M28: ='SOGR Supporting AP-CP'!E81 -> 0 | N28: ='SOGR Supporting AP-CP'!F81 -> 0 | O28: ='SOGR Supporting AP-CP'!G82 -> 0 | P28: ='SOGR Supporting AP-CP'!H81 -> 0 | Q28: ='SOGR Supporting AP-CP'!K81 -> 0 | R28: =IF(AND($F28>=MIN('Major Assumption Key'!$B$4),$F28<=MAX('Major Assumption Key'!$B$6)),SUM(M28:Q28),0) -> 0 | S28: 88748.81592 | T28: =S28/(1+'Major Assumption Key'!$B$8)^($F28-'Major Assumption Key'!$B$7) -> 49687.58936 | V28: 89000 | W28: 0 | X28: 89000 | Y28: 50000
A29: Weighted Averages | B29: Share of Vehicles | C29: Vehicle Occupancy | D29: VOTT | F29: ='Major Assumption Key'!A41 -> 2042 | G29: ='SOGR Supporting AP-CP'!E36 -> 27692.3198 | H29: ='SOGR Supporting AP-CP'!F36 -> 0 | I29: ='SOGR Supporting AP-CP'!G36 -> 0 | J29: ='SOGR Supporting AP-CP'!H36 -> 0 | K29: ='SOGR Supporting AP-CP'!K36 -> 135381.9429 | L29: =IF(AND($F29>=MIN($F29),$F29<=MAX('Major Assumption Key'!$B$6)),SUM(G29:K29),0) -> 163074.2627 | M29: ='SOGR Supporting AP-CP'!E82 -> 0 | N29: ='SOGR Supporting AP-CP'!F82 -> 0 | O29: ='SOGR Supporting AP-CP'!G83 -> 0 | P29: ='SOGR Supporting AP-CP'!H82 -> 0 | Q29: ='SOGR Supporting AP-CP'!K82 -> 0 | R29: =IF(AND($F29>=MIN('Major Assumption Key'!$B$4),$F29<=MAX('Major Assumption Key'!$B$6)),SUM(M29:Q29),0) -> 0 | S29: 163074.2627 | T29: =S29/(1+'Major Assumption Key'!$B$8)^($F29-'Major Assumption Key'!$B$7) -> 88554.80235 | V29: 163000 | W29: 0 | X29: 163000 | Y29: 89000
A30: Auto | B30: =1-B31 -> 0.968 | C30: ='BCA Guide - Parameter Values'!$C$46 -> 1.67 | D30: ='BCA Guide - Parameter Values'!$C$24 -> 19.6 | F30: ='Major Assumption Key'!A42 -> 2043 | G30: ='SOGR Supporting AP-CP'!E37 -> 113857.377 | H30: ='SOGR Supporting AP-CP'!F37 -> 0 | I30: ='SOGR Supporting AP-CP'!G37 -> 0 | J30: ='SOGR Supporting AP-CP'!H37 -> 0 | K30: ='SOGR Supporting AP-CP'!K37 -> 321250.9672 | L30: =IF(AND($F30>=MIN($F30),$F30<=MAX('Major Assumption Key'!$B$6)),SUM(G30:K30),0) -> 435108.3443 | M30: ='SOGR Supporting AP-CP'!E83 -> 0 | N30: ='SOGR Supporting AP-CP'!F83 -> 0 | O30: ='SOGR Supporting AP-CP'!G84 -> 0 | P30: ='SOGR Supporting AP-CP'!H83 -> 0 | Q30: ='SOGR Supporting AP-CP'!K83 -> 91785.99064 | R30: =IF(AND($F30>=MIN('Major Assumption Key'!$B$4),$F30<=MAX('Major Assumption Key'!$B$6)),SUM(M30:Q30),0) -> 91785.99064 | S30: 343322.3536 | T30: =S30/(1+'Major Assumption Key'!$B$8)^($F30-'Major Assumption Key'!$B$7) -> 180829.8451 | V30: 435000 | W30: 92000 | X30: 343000 | Y30: 181000
A31: Truck | B31: ='Major Assumption Key'!B11 -> 0.032 | C31: 1 | D31: ='BCA Guide - Parameter Values'!$C$29 -> 33.5 | F31: ='Major Assumption Key'!A43 -> 2044 | G31: ='SOGR Supporting AP-CP'!E38 -> 175549.182 | H31: ='SOGR Supporting AP-CP'!F38 -> 0 | I31: ='SOGR Supporting AP-CP'!G38 -> 0 | J31: ='SOGR Supporting AP-CP'!H38 -> 0 | K31: ='SOGR Supporting AP-CP'!K38 -> 692619.639 | L31: =IF(AND($F31>=MIN($F31),$F31<=MAX('Major Assumption Key'!$B$6)),SUM(G31:K31),0) -> 868168.821 | M31: ='SOGR Supporting AP-CP'!E84 -> 0 | N31: ='SOGR Supporting AP-CP'!F84 -> 0 | O31: ='SOGR Supporting AP-CP'!G85 -> 0 | P31: ='SOGR Supporting AP-CP'!H84 -> 0 | Q31: ='SOGR Supporting AP-CP'!K84 -> 93343.33547 | R31: =IF(AND($F31>=MIN('Major Assumption Key'!$B$4),$F31<=MAX('Major Assumption Key'!$B$6)),SUM(M31:Q31),0) -> 93343.33547 | S31: 774825.4855 | T31: =S31/(1+'Major Assumption Key'!$B$8)^($F31-'Major Assumption Key'!$B$7) -> 395834.1511 | V31: 868000 | W31: 93000 | X31: 775000 | Y31: 396000
C32: =SUMPRODUCT(B30:B31,C30:C31) -> 1.64856 | D32: =SUMPRODUCT(B30:B31,D30:D31) -> 20.0448 | F32: ='Major Assumption Key'!A44 -> 2045 | G32: ='SOGR Supporting AP-CP'!E39 -> 180446.0803 | H32: ='SOGR Supporting AP-CP'!F39 -> 0 | I32: ='SOGR Supporting AP-CP'!G39 -> 0 | J32: ='SOGR Supporting AP-CP'!H39 -> 0 | K32: ='SOGR Supporting AP-CP'!K39 -> 704371.4064 | L32: =IF(AND($F32>=MIN($F32),$F32<=MAX('Major Assumption Key'!$B$6)),SUM(G32:K32),0) -> 884817.4867 | M32: ='SOGR Supporting AP-CP'!E85 -> 0 | N32: ='SOGR Supporting AP-CP'!F85 -> 0 | O32: ='SOGR Supporting AP-CP'!G86 -> 0 | P32: ='SOGR Supporting AP-CP'!H85 -> 0 | Q32: ='SOGR Supporting AP-CP'!K85 -> 94927.10397 | R32: =IF(AND($F32>=MIN('Major Assumption Key'!$B$4),$F32<=MAX('Major Assumption Key'!$B$6)),SUM(M32:Q32),0) -> 94927.10397 | S32: 789890.3827 | T32: =S32/(1+'Major Assumption Key'!$B$8)^($F32-'Major Assumption Key'!$B$7) -> 391397.0289 | V32: 885000 | W32: 95000 | X32: 790000 | Y32: 391000
F33: ='Major Assumption Key'!A45 -> 2046 | G33: ='SOGR Supporting AP-CP'!E40 -> 0 | H33: ='SOGR Supporting AP-CP'!F40 -> 5052429.902 | I33: ='SOGR Supporting AP-CP'!G40 -> 0 | J33: ='SOGR Supporting AP-CP'!H40 -> 27940799.29 | K33: ='SOGR Supporting AP-CP'!K40 -> 0 | L33: =IF(AND($F33>=MIN($F33),$F33<=MAX('Major Assumption Key'!$B$6)),SUM(G33:K33),0) -> 32993229.19 | M33: ='SOGR Supporting AP-CP'!E86 -> 0 | N33: ='SOGR Supporting AP-CP'!F86 -> 0 | O33: ='SOGR Supporting AP-CP'!G87 -> 0 | P33: ='SOGR Supporting AP-CP'!H86 -> 0 | Q33: ='SOGR Supporting AP-CP'!K86 -> 96537.74449 | R33: =IF(AND($F33>=MIN('Major Assumption Key'!$B$4),$F33<=MAX('Major Assumption Key'!$B$6)),SUM(M33:Q33),0) -> 96537.74449 | S33: 32896691.45 | T33: =S33/(1+'Major Assumption Key'!$B$8)^($F33-'Major Assumption Key'!$B$7) -> 15810450.86 | V33: 32993000 | W33: 97000 | X33: 32897000 | Y33: 15810000
F34: ='Major Assumption Key'!A46 -> 2047 | G34: ='SOGR Supporting AP-CP'!E41 -> 0 | H34: ='SOGR Supporting AP-CP'!F41 -> 0 | I34: ='SOGR Supporting AP-CP'!G41 -> 0 | J34: ='SOGR Supporting AP-CP'!H41 -> 0 | K34: ='SOGR Supporting AP-CP'!K41 -> 98175.71295 | L34: =IF(AND($F34>=MIN($F34),$F34<=MAX('Major Assumption Key'!$B$6)),SUM(G34:K34),0) -> 98175.71295 | M34: ='SOGR Supporting AP-CP'!E87 -> 0 | N34: ='SOGR Supporting AP-CP'!F87 -> 0 | O34: ='SOGR Supporting AP-CP'!G88 -> 0 | P34: ='SOGR Supporting AP-CP'!H87 -> 0 | Q34: ='SOGR Supporting AP-CP'!K87 -> 98175.71295 | R34: =IF(AND($F34>=MIN('Major Assumption Key'!$B$4),$F34<=MAX('Major Assumption Key'!$B$6)),SUM(M34:Q34),0) -> 98175.71295 | S34: 0 | T34: =S34/(1+'Major Assumption Key'!$B$8)^($F34-'Major Assumption Key'!$B$7) -> 0 | V34: 98000 | W34: 98000 | X34: 0 | Y34: 0
F35: ='Major Assumption Key'!A47 -> 2048 | G35: ='SOGR Supporting AP-CP'!E42 -> 0 | H35: ='SOGR Supporting AP-CP'!F42 -> 0 | I35: ='SOGR Supporting AP-CP'!G42 -> 0 | J35: ='SOGR Supporting AP-CP'!H42 -> 0 | K35: ='SOGR Supporting AP-CP'!K42 -> 99841.47303 | L35: =IF(AND($F35>=MIN($F35),$F35<=MAX('Major Assumption Key'!$B$6)),SUM(G35:K35),0) -> 99841.47303 | M35: ='SOGR Supporting AP-CP'!E88 -> 0 | N35: ='SOGR Supporting AP-CP'!F88 -> 0 | O35: ='SOGR Supporting AP-CP'!G89 -> 0 | P35: ='SOGR Supporting AP-CP'!H88 -> 0 | Q35: ='SOGR Supporting AP-CP'!K88 -> 99841.47303 | R35: =IF(AND($F35>=MIN('Major Assumption Key'!$B$4),$F35<=MAX('Major Assumption Key'!$B$6)),SUM(M35:Q35),0) -> 99841.47303 | S35: 0 | T35: =S35/(1+'Major Assumption Key'!$B$8)^($F35-'Major Assumption Key'!$B$7) -> 0 | V35: 100000 | W35: 100000 | X35: 0 | Y35: 0
F36: ='Major Assumption Key'!A48 -> 2049 | G36: ='SOGR Supporting AP-CP'!E43 -> 33573.74865 | H36: ='SOGR Supporting AP-CP'!F43 -> 0 | I36: ='SOGR Supporting AP-CP'!G43 -> 0 | J36: ='SOGR Supporting AP-CP'!H43 -> 0 | K36: ='SOGR Supporting AP-CP'!K43 -> 152303.2444 | L36: =IF(AND($F36>=MIN($F36),$F36<=MAX('Major Assumption Key'!$B$6)),SUM(G36:K36),0) -> 185876.9931 | M36: ='SOGR Supporting AP-CP'!E89 -> 0 | N36: ='SOGR Supporting AP-CP'!F89 -> 0 | O36: ='SOGR Supporting AP-CP'!G90 -> 0 | P36: ='SOGR Supporting AP-CP'!H89 -> 0 | Q36: ='SOGR Supporting AP-CP'!K89 -> 101535.4963 | R36: =IF(AND($F36>=MIN('Major Assumption Key'!$B$4),$F36<=MAX('Major Assumption Key'!$B$6)),SUM(M36:Q36),0) -> 101535.4963 | S36: 84341.49679 | T36: =S36/(1+'Major Assumption Key'!$B$8)^($F36-'Major Assumption Key'!$B$7) -> 36987.70127 | V36: 186000 | W36: 102000 | X36: 84000 | Y36: 37000
F37: ='Major Assumption Key'!A49 -> 2050 | G37: ='SOGR Supporting AP-CP'!E44 -> 138038.9576 | H37: ='SOGR Supporting AP-CP'!F44 -> 0 | I37: ='SOGR Supporting AP-CP'!G44 -> -2526214.951 | J37: ='SOGR Supporting AP-CP'!H44 -> 0 | K37: ='SOGR Supporting AP-CP'!K44 -> 361403.9179 | L37: =IF(AND($F37>=MIN($F37),$F37<=MAX('Major Assumption Key'!$B$6)),SUM(G37:K37),0) -> -2026772.076 | M37: ='SOGR Supporting AP-CP'!E90 -> 0 | N37: ='SOGR Supporting AP-CP'!F90 -> 0 | O37: ='SOGR Supporting AP-CP'!G91 -> 0 | P37: ='SOGR Supporting AP-CP'!H90 -> 0 | Q37: ='SOGR Supporting AP-CP'!K90 -> 103258.2622 | R37: =IF(AND($F37>=MIN('Major Assumption Key'!$B$4),$F37<=MAX('Major Assumption Key'!$B$6)),SUM(M37:Q37),0) -> 103258.2622 | S37: -2130030.338 | T37: =S37/(1+'Major Assumption Key'!$B$8)^($F37-'Major Assumption Key'!$B$7) -> -906031.2166 | V37: -2027000 | W37: 103000 | X37: -2130000 | Y37: -906000
